Workbook

Sheet Cover page
U2: TOOL NAVIGATION
P3: Region:
P4: Ethiopian Month:
P5: Ethiopian Year:
C35: Version: | D35: 1
C36: Last updated: | E36: 2020-10-27

Sheet Data Validation (hidden)
A1: Month | C1: Year | E1: Region | G1: mBrana Woreda | H1: Woreda correction | K1: Afar | M1: Benishangul Gumuz | O1: Gambella | Q1: Somali | S1: SNNPR
A2: Meskerem | C2: 2011 | E2: Afar | G2: Abala C | H2: Abala WorHO | K2: Abala WorHO | M2: Agalo Meti WorHO | O2: Abobo WorHO | Q2: Abaqaraw WorHO | S2: Adilo Zuria WorHO
A3: Tikemet | C3: 2012 | E3: Benishangul Gumuz | G3: Abaqaraw C | H3: Abaqaraw WorHO | K3: Adaar WorHO | M3: Asosa Town 1 WorHO | O3: Akobo WorHO | Q3: Adadle WorHO | S3: Angacha WorHO
A4: Hidar | C4: 2013 | E4: Gambella | G4: Abobo C | H4: Abobo WorHO | K4: Afambo WorHO | M4: Assosa WorHO | O4: Baziel PHCU | Q4: Afdam WorHO | S4: Demboya WorHO
A5: Tahesas | C5: 2014 | E5: SNNPR | G5: Adaar C | H5: Adaar WorHO | K5: Afdera WorHO | M5: Bambasi WorHO | O5: Dimma WorHO | Q5: Ararso WorHO | S5: Doyo Gena WorHO
A6: Tir | C6: 2015 | E6: Somali | G6: Adadle C | H6: Adadle WorHO | K6: Amibara WorHO | M6: Belo Jeganfoy WorHO | O6: Elia PHCU | Q6: Aware WorHO | S6: Dr. Bogalech Gebere Memorial General Hospital
A7: Yekatit | C7: 2016 | G7: Afambo C | H7: Afambo WorHO | K7: Argoba Special WorHO | M7: Bulen WorHO | O7: Gambella PHCU | Q7: Awbare WorHO | S7: Durame Town Administration WorHO
A8: Megabit | C8: 2017 | G8: Afdam C | H8: Afdam WorHO | K8: Awash Fenteale WorHO | M8: Dangur WorHO | O8: Gambella Town Primary Hospital | Q8: Ayisha WorHO | S8: Hadero Town Administration WorHO
A9: Miyazia | C9: 2018 | G9: Afdera C | H9: Afdera WorHO | K9: Awash Town WorHO | M9: Dibate WorHO | O9: Gambella Zuria WorHO | Q9: Ayun WorHO | S9: Hadero Tunto Zuriya WorHO
A10: Ginbot | C10: 2019 | G10: Agalometi C | H10: Agalo Meti WorHO | K10: Awura WorHO | M10: Guba WorHO | O10: Godere WorHO | Q10: babili WorHO | S10: Kacha Birra WorHO
A11: Sene | C11: 2020 | G11: Akobo C | H11: Akobo WorHO | K11: Ayssaita WorHO | M11: Homosha WorHO | O11: Gog WorHO | Q11: Baki Primary Hospital | S11: Kedida Gamela WorHO
A12: Hamle | G12: Amibara C | H12: Amibara WorHO | K12: Berahle WorHO | M12: Kamashi Primary Hospital | O12: Itang PHCU | Q12: Bare WorHO | S12: Shinshicho Town Administration WorHO
A13: Nehasa | G13: Ararso C | H13: Ararso WorHO | K13: Bidu WorHO | M13: Kamashi WorHO | O13: Jikawo WorHO | Q13: Bercano WorHO | S13: Tembaro WorHO
G14: Argoba Special C | H14: Argoba Special WorHO | K14: Chifra WorHO | M14: Kurmuk WorHO | O14: Jor WorHO | Q14: Bilcilbur WorHO
G15: Asosa Town 1 C | H15: Asosa Town 1 WorHO | K15: Dalifaghe WorHO | M15: Mandura WorHO | O15: Kumi Meles Zenawi Memorial Primary Hospital | Q15: Birqod WorHO
G16: Assossa C | H16: Assosa WorHO | K16: Dalol WorHO | M16: Mao Komo Special WorHO | O16: Lare WorHO | Q16: Bodalay WorHO
G17: Asossa C | H17: Assosa WorHO | K17: Dewe WorHO | M17: Menge WorHO | O17: Lier Health Center | Q17: Bokh WorHO
G18: Aware C | H18: Aware WorHO | K18: Dubti WorHO | M18: Oda Bilidigilu WorHO | O18: Lier PHCU | Q18: Bokolmanyo WorHO
G19: Awash Fentale C | H19: Awash Fenteale WorHO | K19: Dulecha WorHO | M19: Pawi Hospital | O19: Makuey WorHO | Q19: Chareti WorHO
G20: Awash Town C | H20: Awash Town WorHO | K20: Elidar WorHO | M20: Pawi WorHO | O20: Mengeshi WorHO | Q20: Danbal WorHO
G21: Awbare C | H21: Awbare WorHO | K21: Erabti WorHO | M21: Sedal WorHO | O21: Nyinenyang Primary Hospital | Q21: Danot WorHO
G22: Awra C | H22: Awura WorHO | K22: Ewa WorHO | M22: SherKole WorHO | O22: Pugniwudo Primary Hospital | Q22: Daratole WorHO
G23: Ayisha C | H23: Ayisha WorHO | K23: Galalo WorHO | M23: Wembera WorHO | O23: Wanthoa WorHO | Q23: Daroor WorHO
G24: Ayssaita C | H24: Ayssaita WorHO | K24: Gewane WorHO | M24: Yaso WorHO | Q24: Degahbur Primary Hospital
G25: Ayun C | H25: Ayun WorHO | K25: Gulina WorHO | Q25: Degahbur town WorHO
G26: Babille C | H26: babili WorHO | K26: Hadeleala WorHO | Q26: Degahbur WorHO
G27: Baki Primary Hospital C | H27: Baki Primary Hospital | K27: Koneba WorHO | Q27: Dekasuftu WorHO
G28: Bambasi C | H28: Bambasi WorHO | K28: Kori WorHO | Q28: Dhagahmadaw WorHO
G29: Bare C | H29: Bare WorHO | K29: Magale WorHO | Q29: Dhanan WorHO
G30: Baziel PHCU C | H30: Baziel PHCU | K30: Mille WorHO | Q30: Dhoboweyn WorHO
G31: Bello Djiganfoy C | H31: Belo Jeganfoy WorHO | K31: Semera Logia Kentiba WorHO | Q31: dig WorHO
G32: Berhale C | H32: Berahle WorHO | K32: Semirobi WorHO | Q32: Dollo bay WorHO
G33: Bercano C | H33: Bercano WorHO | K33: Telalak WorHO | Q33: Dolo Ado WorHO
G34: Bidu C | H34: Bidu WorHO | K34: Teru WorHO | Q34: Doollo Hospital
G35: Bilcilbur C | H35: Bilcilbur WorHO | K35: Yallo WorHO | Q35: Duhun WorHO
G36: Birkot C | H36: Birqod WorHO | Q36: East Imey WorHO
G37: Bodalay C | H37: Bodalay WorHO | Q37: EL-Ogaden WorHO
G38: Bokh C | H38: Bokh WorHO | Q38: Elele WorHO
G39: Bokolmanyo C | H39: Bokolmanyo WorHO | Q39: Elkari WorHO
G40: Bulen C | H40: Bulen WorHO | Q40: Elwayne WorHO
G41: Chareti C | H41: Chareti WorHO | Q41: Erer WorHO
G42: Chifra C | H42: Chifra WorHO | Q42: Ferfer WorHO
G43: Dalifagy C | H43: Dalifaghe WorHO | Q43: FIK Primary Hospital
G44: Dalul C | H44: Dalol WorHO | Q44: Fik WorHO
G45: Dembel C | H45: Danbal WorHO | Q45: Filtu Primary hospital
G46: Dangura C | H46: Dangur WorHO | Q46: Filtu WorHO
G47: Danot C | H47: Danot WorHO | Q47: Gablalu WorHO
G48: Daratole C | H48: Daratole WorHO | Q48: Galadi WorHO
G49: Daroor C | H49: Daroor WorHO | Q49: Galhamur WorHO
G50: Degahbur C | H50: Degahbur WorHO | Q50: Garbo WorHO
G51: Degahbur Primary Hospital | H51: Degahbur Primary Hospital | Q51: Gashamo WorHO
G52: Degahbur town C | H52: Degahbur town WorHO | Q52: God-God WorHO
G53: Dekasuftu C | H53: Dekasuftu WorHO | Q53: Godey City WorHO
G54: Dewe C | H54: Dewe WorHO | Q54: Godey General Hospital
G55: Dhagahmadaw C | H55: Dhagahmadaw WorHO | Q55: Godey WorHO
G56: Danan C | H56: Dhanan WorHO | Q56: Goglo WorHO
G57: Dhoboweyn C | H57: Dhoboweyn WorHO | Q57: Goljano WorHO
G58: Dibat C | H58: Dibate WorHO | Q58: Gorabaqaqsa WorHO
G59: Dig C | H59: dig WorHO | Q59: gota-biki WorHO
G60: Dima C | H60: Dimma WorHO | Q60: Gunagado WorHO
G61: Dolobay C | H61: Dollo bay WorHO | Q61: Gura Damole WorHO
G62: Dolo Ado C | H62: Dolo Ado WorHO | Q62: Gursum WorHO
G63: Doollo Hospital C | H63: Doollo Hospital | Q63: Hadagala WorHO
G64: Dubti C | H64: Dubti WorHO | Q64: Hamaro WorHO
G65: Duhun C | H65: Duhun WorHO | Q65: Hararey WorHO
G66: Dulecha C | H66: Dulecha WorHO | Q66: Harawo WorHO
G67: East Imey C | H67: East Imey WorHO | Q67: Hargele Primary Hospital
G68: Elele C | H68: Elele WorHO | Q68: Hargele WorHO
G69: Elia PHCU C | H69: Elia PHCU | Q69: Harorays WorHO
G70: Elidar C | H70: Elidar WorHO | Q70: Harshin WorHO
G71: Elkere C | H71: Elkari WorHO | Q71: Higloley WorHO
G72: EL-Ogaden C | H72: EL-Ogaden WorHO | Q72: Horashagah WorHO
G73: Elwayne C | H73: Elwayne WorHO | Q73: Hudhet WorHO
G74: Erebti C | H74: Erabti WorHO | Q74: Jigjiga town WorHO
G75: Erer C | H75: Erer WorHO | Q75: Kadadumo WorHO
G76: Ewa C | H76: Ewa WorHO | Q76: Karamara General Hospital
G77: Ferfer C | H77: Ferfer WorHO | Q77: Karsasula WorHO
G78: Fik C | H78: Fik WorHO | Q78: Kebridahar Primary hospital
G79: FIK Primary Hospital C | H79: FIK Primary Hospital | Q79: Kebridahar town WorHO
G80: Filtu C | H80: Filtu WorHO | Q80: Kebridahar WorHO
G81: Filtu Primary hospital C | H81: Filtu Primary hospital | Q81: Koran Mula WorHO
G82: Gablalu C | H82: Gablalu WorHO | Q82: Lagahida WorHO
G83: Galadi C | H83: Galadi WorHO | Q83: Lasdhankeyre WorHO
G84: Gelaelo C | H84: Galalo WorHO | Q84: Lehelyuub WorHO
G85: Galhamur C | H85: Galhamur WorHO | Q85: Maeso WorHO
G86: Gambella PHCU C | H86: Gambella PHCU | Q86: Marsin WorHO
G87: Gambella Town Primary Hospital C | H87: Gambella Town Primary Hospital | Q87: Mayumuluqo WorHO
G88: Gambella Zuria C | H88: Gambella Zuria WorHO | Q88: Moyale WorHO
G89: Garbo C | H89: Garbo WorHO | Q89: Mubarak WorHO
G90: Gashamo C | H90: Gashamo WorHO | Q90: Mustahil WorHO
G91: Gewane C | H91: Gewane WorHO | Q91: Qabribayah town WorHO
G92: Godere C | H92: Godere WorHO | Q92: Qabribayah WorHO
G93: Godey C | H93: Godey WorHO | Q93: Qalafo WorHO
G94: Godey City C | H94: Godey City WorHO | Q94: Qooxle WorHO
G95: Godey General Hospital C | H95: Godey General Hospital | Q95: Qubi WorHO
G96: God-God C | H96: God-God WorHO | Q96: Raso WorHO
G97: Gog C | H97: Gog WorHO | Q97: Sagag WorHO
G98: Goglo C | H98: Goglo WorHO | Q98: Salahad WorHO
G99: Goljano C | H99: Goljano WorHO | Q99: Shabeley WorHO
G100: Gorabaqaqsa C | H100: Gorabaqaqsa WorHO | Q100: Shaykosh WorHO
G101: Gota-biki C | H101: gota-biki WorHO | Q101: Shilabo WorHO
G102: Guba C | H102: Guba WorHO | Q102: Shinile WorHO
G103: Gulina C | H103: Gulina WorHO | Q103: Togwajale town WorHO
G104: Gunagado C | H104: Gunagado WorHO | Q104: Tuliguled WorHO
G105: Gura Dhamole C | H105: Gura Damole WorHO | Q105: Wangey WorHO
G106: Gurrsum C | H106: Gursum WorHO | Q106: Warder WorHO
G107: Hadigala C | H107: Hadagala WorHO | Q107: West Imay WorHO
G108: Hadeleala C | H108: Hadeleala WorHO | Q108: Yahoob WorHO
G109: Hamaro C | H109: Hamaro WorHO | Q109: yocale WorHO
G110: Hararey C | H110: Hararey WorHO
G111: Harewo C | H111: Harawo WorHO
G112: Hargele C | H112: Hargele WorHO
G113: Hargele Primary Hospital C | H113: Hargele Primary Hospital
G114: Harorays C | H114: Harorays WorHO
G115: Hareshen C | H115: Harshin WorHO
G116: Higloley C | H116: Higloley WorHO
G117: Homosha C | H117: Homosha WorHO
G118: Horashagah C | H118: Horashagah WorHO
G119: Hudet C | H119: Hudhet WorHO
G120: Itang C | H120: Itang PHCU
G121: Jigjiga town C | H121: Jigjiga town WorHO
G122: Jikawo C | H122: Jikawo WorHO
G123: Jor C | H123: Jor WorHO
G124: Kedaduma C | H124: Kadadumo WorHO
G125: Kamashi C | H125: Kamashi WorHO
G126: Kamashi Primary Hospital C | H126: Kamashi Primary Hospital
G127: Karamara General Hospital C | H127: Karamara General Hospital
G128: Karsasula C | H128: Karsasula WorHO
G129: Kebridahar C | H129: Kebridahar WorHO
G130: Kebridahar Primary hospital C | H130: Kebridahar Primary hospital
G131: Kebridahar town C | H131: Kebridahar town WorHO
G132: Koneba C | H132: Koneba WorHO
G133: Koran Mula C | H133: Koran Mula WorHO
G134: Kori C | H134: Kori WorHO
G135: Kumi Meles Zenawi Memorial Primary Hospital C | H135: Kumi Meles Zenawi Memorial Primary Hospital
G136: Kurmuk C | H136: Kurmuk WorHO
G137: Lagahida C | H137: Lagahida WorHO
G138: Lare C | H138: Lare WorHO
G139: Lasdhankeyre C | H139: Lasdhankeyre WorHO
G140: Lehelyuub C | H140: Lehelyuub WorHO
G141: Lier Health Center C | H141: Lier Health Center
G142: Lier PHCU | H142: Lier PHCU
G143: Meisso C | H143: Maeso WorHO
G144: Megale C | H144: Magale WorHO
G145: Makuey C | H145: Makuey WorHO
G146: Mandura C | H146: Mandura WorHO
G147: Maokomo Special C | H147: Mao Komo Special WorHO
G148: Marsin C | H148: Marsin WorHO
G149: Mayumuluqo C | H149: Mayumuluqo WorHO
G150: Menge C | H150: Menge WorHO
G151: Mengeshi C | H151: Mengeshi WorHO
G152: Mile C | H152: Mille WorHO
G153: Moyalle C | H153: Moyale WorHO
G154: Mubarek C | H154: Mubarak WorHO
G155: Mustahil C | H155: Mustahil WorHO
G156: Nyinenyang Primary Hospital C | H156: Nyinenyang Primary Hospital
G157: Odda Buldigilu C | H157: Oda Bilidigilu WorHO
G158: Pawi C | H158: Pawi WorHO
G159: Pawi Hospital C | H159: Pawi Hospital
G160: Pugniwudo Primary Hospital C | H160: Pugniwudo Primary Hospital
G161: Qabribayah C | H161: Qabribayah WorHO
G162: Qabribayah town C | H162: Qabribayah town WorHO
G163: Qalafo C | H163: Qalafo WorHO
G164: Qooxle C | H164: Qooxle WorHO
G165: Qubi C | H165: Qubi WorHO
G166: Raso C | H166: Raso WorHO
G167: Sagag C | H167: Sagag WorHO
G168: Salahad C | H168: Salahad WorHO
G169: Sedal C | H169: Sedal WorHO
G170: Semera Logia Keniba C | H170: Semera Logia Kentiba WorHO
G171: Semirobi C | H171: Semirobi WorHO
G172: Shabeley C | H172: Shabeley WorHO
G173: Shekosh C | H173: Shaykosh WorHO
G174: Sherkole C | H174: SherKole WorHO
G175: Shilabo C | H175: Shilabo WorHO
G176: Shinile C | H176: Shinile WorHO
G177: Talalak C | H177: Telalak WorHO
G178: Teru C | H178: Teru WorHO
G179: Togwajale town C | H179: Togwajale town WorHO
G180: Tuliguled C | H180: Tuliguled WorHO
G181: Wangey C | H181: Wangey WorHO
G182: Wantowa C | H182: Wanthoa WorHO
G183: Warder C | H183: Warder WorHO
G184: Wenbera C | H184: Wembera WorHO
G185: West Imay C | H185: West Imay WorHO
G186: Yahoob C | H186: Yahoob WorHO
G187: Yalo C | H187: Yallo WorHO
G188: Yaso C | H188: Yaso WorHO
G189: yocale C | H189: yocale WorHO
G190: Aysita C | H190: Aysita WorHO
G191: Berga C | H191: Berga WorHO
G192: Bure Mudaytu C | H192: Bure Mudaytu WorHO
G193: Dichoto C | H193: Dichoto WorHO
G194: Dollo C | H194: Dollo WorHO
G195: Elida'ar C | H195: Elida'ar WorHO
G196: Erere C | H196: Erere WorHO
G197: Gambella Town C | H197: Gambella Town WorHO
G198: Jara C | H198: Jara WorHO
G199: Jarar C | H199: Jarar WorHO
G200: Jigjiga City Counsel C | H200: Jigjiga City Counsel WorHO
... 27 more rows

Sheet Helper_zone (hidden)
A1: Helper | B1: Zone | E1: Afar | G1: Benishangulgumuz | I1: Gambella | K1: Somali | M1: SNNPR
A2: Afar1 | B2: Zone 1 ZHD | E2: Abala WorHO | G2: Agalo Meti WorHO | I2: Abobo WorHO | K2: Abaqaraw WorHO | M2: Adilo Zuria WorHO
A3: Afar2 | B3: Zone 2 ZHD | E3: Adaar WorHO | G3: Asosa Town 1 WorHO | I3: Akobo WorHO | K3: Adadle WorHO | M3: Angacha WorHO
A4: Afar3 | B4: Zone 3 ZHD | E4: Afambo WorHO | G4: Assosa WorHO | I4: Baziel PHCU | K4: Afdam WorHO | M4: Demboya WorHO
A5: Afar4 | B5: Zone 4 ZHD | E5: Afdera WorHO | G5: Bambasi WorHO | I5: Dimma WorHO | K5: Ararso WorHO | M5: Doyo Gena WorHO
A6: Afar5 | B6: Zone 5 ZHD | E6: Amibara WorHO | G6: Belo Jeganfoy WorHO | I6: Elia PHCU | K6: Aware WorHO | M6: Dr. Bogalech Gebere Memorial General Hospital
A7: Benishangulgumuz1 | B7: Assosa ZHD | E7: Argoba Special WorHO | G7: Bulen WorHO | I7: Gambella PHCU | K7: Awbare WorHO | M7: Durame Town Administration WorHO
A8: Benishangulgumuz2 | B8: Kamashi ZHD | E8: Awash Fenteale WorHO | G8: Dangur WorHO | I8: Gambella Town Primary Hospital | K8: Ayisha WorHO | M8: Hadero Town Administration WorHO
A9: Benishangulgumuz3 | B9: Mao Komo Special ZHD | E9: Awash Town WorHO | G9: Dibate WorHO | I9: Gambella Zuria WorHO | K9: Ayun WorHO | M9: Hadero Tunto Zuriya WorHO
A10: Benishangulgumuz4 | B10: Metekel ZHD | E10: Awura WorHO | G10: Guba WorHO | I10: Godere WorHO | K10: babili WorHO | M10: Kacha Birra WorHO
A11: Gambella1 | B11: Agniwa ZHD | E11: Ayssaita WorHO | G11: Homosha WorHO | I11: Gog WorHO | K11: Baki Primary Hospital | M11: Kedida Gamela WorHO
A12: Gambella2 | B12: Gambella Town WorHO | E12: Berahle WorHO | G12: Kamashi Primary Hospital | I12: Itang PHCU | K12: Bare WorHO | M12: Shinshicho Town Administration WorHO
A13: Gambella3 | B13: Itang Special WorHO | E13: Bidu WorHO | G13: Kamashi WorHO | I13: Jikawo WorHO | K13: Bercano WorHO | M13: Tembaro WorHO
A14: Gambella4 | B14: Majang ZHD | E14: Chifra WorHO | G14: Kurmuk WorHO | I14: Jor WorHO | K14: Bilcilbur WorHO
A15: Gambella5 | B15: Nuer ZHD | E15: Dalifaghe WorHO | G15: Mandura WorHO | I15: Kumi Meles Zenawi Memorial Primary Hospital | K15: Birqod WorHO
A16: Somali1 | B16: Afder ZHD | E16: Dalol WorHO | G16: Mao Komo Special WorHO | I16: Lare WorHO | K16: Bodalay WorHO
A17: Somali2 | B17: Dawa ZHD | E17: Dewe WorHO | G17: Menge WorHO | I17: Lier Health Center | K17: Bokh WorHO
A18: Somali3 | B18: Dollo ZHD | E18: Dubti WorHO | G18: Oda Bilidigilu WorHO | I18: Lier PHCU | K18: Bokolmanyo WorHO
A19: Somali4 | B19: Erar ZHD | E19: Dulecha WorHO | G19: Pawi Hospital | I19: Makuey WorHO | K19: Chareti WorHO
A20: Somali5 | B20: Fafan ZHD | E20: Elidar WorHO | G20: Pawi WorHO | I20: Mengeshi WorHO | K20: Danbal WorHO
A21: Somali6 | B21: Jarar ZHD | E21: Erabti WorHO | G21: Sedal WorHO | I21: Nyinenyang Primary Hospital | K21: Danot WorHO
A22: Somali7 | B22: Korahay ZHD | E22: Ewa WorHO | G22: SherKole WorHO | I22: Pugniwudo Primary Hospital | K22: Daratole WorHO
A23: Somali8 | B23: Liben ZHD | E23: Galalo WorHO | G23: Wembera WorHO | I23: Wanthoa WorHO | K23: Daroor WorHO
A24: Somali9 | B24: Nogob ZHD | E24: Gewane WorHO | G24: Yaso WorHO | K24: Degahbur Primary Hospital
A25: Somali10 | B25: Shebelle ZHD | E25: Gulina WorHO | K25: Degahbur town WorHO
A26: Somali11 | B26: Sitti ZHD | E26: Hadeleala WorHO | K26: Degahbur WorHO
A27: SNNPR1 | B27: Kembata Tembaro ZHD | E27: Koneba WorHO | K27: Dekasuftu WorHO
E28: Kori WorHO | K28: Dhagahmadaw WorHO
E29: Magale WorHO | K29: Dhanan WorHO
E30: Mille WorHO | K30: Dhoboweyn WorHO
E31: Semera Logia Kentiba WorHO | K31: dig WorHO
E32: Semirobi WorHO | K32: Dollo bay WorHO
E33: Telalak WorHO | K33: Dolo Ado WorHO
B34: Woreda | C34: Zone | E34: Teru WorHO | K34: Doollo Hospital
B35: Abala WorHO | C35: Zone 2 ZHD | E35: Yallo WorHO | K35: Duhun WorHO
B36: Adaar WorHO | C36: Zone 1 ZHD | K36: East Imey WorHO
B37: Afambo WorHO | C37: Zone 1 ZHD | K37: EL-Ogaden WorHO
B38: Afdera WorHO | C38: Zone 2 ZHD | K38: Elele WorHO
B39: Amibara WorHO | C39: Zone 3 ZHD | K39: Elkari WorHO
B40: Argoba Special WorHO | C40: Zone 3 ZHD | K40: Elwayne WorHO
B41: Awash Fenteale WorHO | C41: Zone 3 ZHD | K41: Erer WorHO
B42: Awash Town WorHO | C42: Zone 3 ZHD | K42: Ferfer WorHO
B43: Awura WorHO | C43: Zone 4 ZHD | K43: FIK Primary Hospital
B44: Ayssaita WorHO | C44: Zone 1 ZHD | K44: Fik WorHO
B45: Berahle WorHO | C45: Zone 2 ZHD | K45: Filtu Primary hospital
B46: Bidu WorHO | C46: Zone 2 ZHD | K46: Filtu WorHO
B47: Chifra WorHO | C47: Zone 1 ZHD | K47: Gablalu WorHO
B48: Dalifaghe WorHO | C48: Zone 5 ZHD | K48: Galadi WorHO
B49: Dalol WorHO | C49: Zone 2 ZHD | K49: Galhamur WorHO
B50: Dewe WorHO | C50: Zone 5 ZHD | K50: Garbo WorHO
B51: Dubti WorHO | C51: Zone 1 ZHD | K51: Gashamo WorHO
B52: Dulecha WorHO | C52: Zone 3 ZHD | K52: God-God WorHO
B53: Elidar WorHO | C53: Zone 1 ZHD | K53: Godey City WorHO
B54: Erabti WorHO | C54: Zone 2 ZHD | K54: Godey General Hospital
B55: Ewa WorHO | C55: Zone 4 ZHD | K55: Godey WorHO
B56: Galalo WorHO | C56: Zone 3 ZHD | K56: Goglo WorHO
B57: Gewane WorHO | C57: Zone 3 ZHD | K57: Goljano WorHO
B58: Gulina WorHO | C58: Zone 4 ZHD | K58: Gorabaqaqsa WorHO
B59: Hadeleala WorHO | C59: Zone 5 ZHD | K59: gota-biki WorHO
B60: Koneba WorHO | C60: Zone 2 ZHD | K60: Gunagado WorHO
B61: Kori WorHO | C61: Zone 1 ZHD | K61: Gura Damole WorHO
B62: Magale WorHO | C62: Zone 2 ZHD | K62: Gursum WorHO
B63: Mille WorHO | C63: Zone 1 ZHD | K63: Hadagala WorHO
B64: Semera Logia Kentiba WorHO | C64: Zone 1 ZHD | K64: Hamaro WorHO
B65: Semirobi WorHO | C65: Zone 5 ZHD | K65: Hararey WorHO
B66: Telalak WorHO | C66: Zone 5 ZHD | K66: Harawo WorHO
B67: Teru WorHO | C67: Zone 4 ZHD | K67: Hargele Primary Hospital
B68: Yallo WorHO | C68: Zone 4 ZHD | K68: Hargele WorHO
B69: Agalo Meti WorHO | C69: Kamashi ZHD | K69: Harorays WorHO
B70: Asosa Town 1 WorHO | C70: Assosa ZHD | K70: Harshin WorHO
B71: Assosa WorHO | C71: Assosa ZHD | K71: Higloley WorHO
B72: Bambasi WorHO | C72: Assosa ZHD | K72: Horashagah WorHO
B73: Belo Jeganfoy WorHO | C73: Kamashi ZHD | K73: Hudhet WorHO
B74: Bulen WorHO | C74: Metekel ZHD | K74: Jigjiga town WorHO
B75: Dangur WorHO | C75: Metekel ZHD | K75: Kadadumo WorHO
B76: Dibate WorHO | C76: Metekel ZHD | K76: Karamara General Hospital
B77: Guba WorHO | C77: Metekel ZHD | K77: Karsasula WorHO
B78: Homosha WorHO | C78: Assosa ZHD | K78: Kebridahar Primary hospital
B79: Kamashi Primary Hospital | C79: Kamashi ZHD | K79: Kebridahar town WorHO
B80: Kamashi WorHO | C80: Kamashi ZHD | K80: Kebridahar WorHO
B81: Kurmuk WorHO | C81: Assosa ZHD | K81: Koran Mula WorHO
B82: Mandura WorHO | C82: Metekel ZHD | K82: Lagahida WorHO
B83: Mao Komo Special WorHO | C83: Mao Komo Special ZHD | K83: Lasdhankeyre WorHO
B84: Menge WorHO | C84: Assosa ZHD | K84: Lehelyuub WorHO
B85: Oda Bilidigilu WorHO | C85: Assosa ZHD | K85: Maeso WorHO
B86: Pawi Hospital | C86: Metekel ZHD | K86: Marsin WorHO
B87: Pawi WorHO | C87: Metekel ZHD | K87: Mayumuluqo WorHO
B88: Sedal WorHO | C88: Kamashi ZHD | K88: Moyale WorHO
B89: SherKole WorHO | C89: Assosa ZHD | K89: Mubarak WorHO
B90: Wembera WorHO | C90: Metekel ZHD | K90: Mustahil WorHO
B91: Yaso WorHO | C91: Kamashi ZHD | K91: Qabribayah town WorHO
B92: Abaqaraw WorHO | C92: Shebelle ZHD | K92: Qabribayah WorHO
B93: Adadle WorHO | C93: Shebelle ZHD | K93: Qalafo WorHO
B94: Afdam WorHO | C94: Sitti ZHD | K94: Qooxle WorHO
B95: Ararso WorHO | C95: Jarar ZHD | K95: Qubi WorHO
B96: Aware WorHO | C96: Jarar ZHD | K96: Raso WorHO
B97: Awbare WorHO | C97: Fafan ZHD | K97: Sagag WorHO
B98: Ayisha WorHO | C98: Sitti ZHD | K98: Salahad WorHO
B99: Ayun WorHO | C99: Nogob ZHD | K99: Shabeley WorHO
B100: babili WorHO | C100: Fafan ZHD | K100: Shaykosh WorHO
B101: Baki Primary Hospital | C101: Sitti ZHD | K101: Shilabo WorHO
B102: Bare WorHO | C102: Afder ZHD | K102: Shinile WorHO
B103: Bercano WorHO | C103: Shebelle ZHD | K103: Togwajale town WorHO
B104: Bilcilbur WorHO | C104: Jarar ZHD | K104: Tuliguled WorHO
B105: Birqod WorHO | C105: Jarar ZHD | K105: Wangey WorHO
B106: Bodalay WorHO | C106: Korahay ZHD | K106: Warder WorHO
B107: Bokh WorHO | C107: Dollo ZHD | K107: West Imay WorHO
B108: Bokolmanyo WorHO | C108: Liben ZHD | K108: Yahoob WorHO
B109: Chareti WorHO | C109: Afder ZHD | K109: yocale WorHO
B110: Danbal WorHO | C110: Sitti ZHD
B111: Danot WorHO | C111: Dollo ZHD
B112: Daratole WorHO | C112: Dollo ZHD
B113: Daroor WorHO | C113: Jarar ZHD
B114: Degahbur Primary Hospital | C114: Jarar ZHD
B115: Degahbur town WorHO | C115: Jarar ZHD
B116: Degahbur WorHO | C116: Jarar ZHD
B117: Dekasuftu WorHO | C117: Liben ZHD
B118: Dhagahmadaw WorHO | C118: Jarar ZHD
B119: Dhanan WorHO | C119: Shebelle ZHD
B120: Dhoboweyn WorHO | C120: Korahay ZHD
B121: dig WorHO | C121: Jarar ZHD
B122: Dollo bay WorHO | C122: Afder ZHD
B123: Dolo Ado WorHO | C123: Liben ZHD
B124: Doollo Hospital | C124: Dollo ZHD
B125: Duhun WorHO | C125: Nogob ZHD
B126: East Imey WorHO | C126: Shebelle ZHD
B127: EL-Ogaden WorHO | C127: Korahay ZHD
B128: Elele WorHO | C128: Shebelle ZHD
B129: Elkari WorHO | C129: Afder ZHD
B130: Elwayne WorHO | C130: Nogob ZHD
B131: Erer WorHO | C131: Sitti ZHD
B132: Ferfer WorHO | C132: Shebelle ZHD
B133: FIK Primary Hospital | C133: Erar ZHD
B134: Fik WorHO | C134: Erar ZHD
B135: Filtu Primary hospital | C135: Liben ZHD
B136: Filtu WorHO | C136: Liben ZHD
B137: Gablalu WorHO | C137: Sitti ZHD
B138: Galadi WorHO | C138: Dollo ZHD
B139: Galhamur WorHO | C139: Dollo ZHD
B140: Garbo WorHO | C140: Nogob ZHD
B141: Gashamo WorHO | C141: Jarar ZHD
B142: God-God WorHO | C142: Shebelle ZHD
B143: Godey City WorHO | C143: Shebelle ZHD
B144: Godey General Hospital | C144: Shebelle ZHD
B145: Godey WorHO | C145: Afder ZHD
B146: Goglo WorHO | C146: Korahay ZHD
B147: Goljano WorHO | C147: Fafan ZHD
B148: Gorabaqaqsa WorHO | C148: Liben ZHD
B149: gota-biki WorHO | C149: Sitti ZHD
B150: Gunagado WorHO | C150: Jarar ZHD
B151: Gura Damole WorHO | C151: Liben ZHD
B152: Gursum WorHO | C152: Fafan ZHD
B153: Hadagala WorHO | C153: Sitti ZHD
B154: Hamaro WorHO | C154: Erar ZHD
B155: Hararey WorHO | C155: Nogob ZHD
B156: Harawo WorHO | C156: Fafan ZHD
B157: Hargele Primary Hospital | C157: Afder ZHD
B158: Hargele WorHO | C158: Afder ZHD
B159: Harorays WorHO | C159: Fafan ZHD
B160: Harshin WorHO | C160: Fafan ZHD
B161: Higloley WorHO | C161: Korahay ZHD
B162: Horashagah WorHO | C162: Nogob ZHD
B163: Hudhet WorHO | C163: Dawa ZHD
B164: Jigjiga town WorHO | C164: Fafan ZHD
B165: Kadadumo WorHO | C165: Dawa ZHD
B166: Karamara General Hospital | C166: Fafan ZHD
B167: Karsasula WorHO | C167: Liben ZHD
B168: Kebridahar Primary hospital | C168: Korahay ZHD
B169: Kebridahar town WorHO | C169: Korahay ZHD
B170: Kebridahar WorHO | C170: Korahay ZHD
B171: Koran Mula WorHO | C171: Fafan ZHD
B172: Lagahida WorHO | C172: Erar ZHD
B173: Lasdhankeyre WorHO | C173: Korahay ZHD
B174: Lehelyuub WorHO | C174: Dollo ZHD
B175: Maeso WorHO | C175: Sitti ZHD
B176: Marsin WorHO | C176: Korahay ZHD
B177: Mayumuluqo WorHO | C177: Erar ZHD
B178: Moyale WorHO | C178: Dawa ZHD
B179: Mubarak WorHO | C179: Dawa ZHD
B180: Mustahil WorHO | C180: Shebelle ZHD
B181: Qabribayah town WorHO | C181: Fafan ZHD
B182: Qabribayah WorHO | C182: Fafan ZHD
B183: Qalafo WorHO | C183: Shebelle ZHD
B184: Qooxle WorHO | C184: Afder ZHD
B185: Qubi WorHO | C185: Erar ZHD
B186: Raso WorHO | C186: Afder ZHD
B187: Sagag WorHO | C187: Nogob ZHD
B188: Salahad WorHO | C188: Erar ZHD
B189: Shabeley WorHO | C189: Fafan ZHD
B190: Shaykosh WorHO | C190: Korahay ZHD
B191: Shilabo WorHO | C191: Korahay ZHD
B192: Shinile WorHO | C192: Sitti ZHD
B193: Togwajale town WorHO | C193: Fafan ZHD
B194: Tuliguled WorHO | C194: Fafan ZHD
B195: Wangey WorHO | C195: Erar ZHD
B196: Warder WorHO | C196: Dollo ZHD
B197: West Imay WorHO | C197: Afder ZHD
B198: Yahoob WorHO | C198: Erar ZHD
B199: yocale WorHO | C199: Jarar ZHD
B200: Abobo WorHO | C200: Agniwa ZHD
... 33 more rows

Sheet Helper_worho denom (hidden)
A1: Helper | B1: Woreda | C1: Target Pop - new est | D1: Target pop by month (new est) | E1: Target pop (DHIS2) surviving infant | F1: tar pop - dhis2 by month | G1: Target pop BCG (DHIS2) live birth | H1: tar pop BCG - dhis2 by month | I1: Reconciled denom all but BCG | J1: Reconcile for BCG | K1: Message
A2: Afar1 | B2: Abala WorHO | C2: 1477 | D2: =ROUND(C2/12,0) -> 123 | E2: 1251 | F2: =ROUND(E2/12,0) -> 104 | G2: 1337 | H2: =ROUND(G2/12,0) -> 111 | I2: =IF(D2="", F2, D2) -> 123 | J2: =IF(D2="", I2, D2) -> 123 | K2: =IF(AND(C2="",E2=""),"No available information",IF(C2="","DHIS2 conversion factor","Target population estimates")) -> Target population estimates
A3: Afar2 | B3: Adaar WorHO | C3: 1775 | D3: =ROUND(C3/12,0) -> 148 | E3: 1774 | F3: =ROUND(E3/12,0) -> 148 | G3: 1896 | H3: =ROUND(G3/12,0) -> 158 | I3: =IF(D3="", F3, D3) -> 148 | J3: =IF(D3="", I3, D3) -> 148 | K3: =IF(AND(C3="",E3=""),"No available information",IF(C3="","DHIS2 conversion factor","Target population estimates")) -> Target population estimates
A4: Afar3 | B4: Afambo WorHO | C4: 797 | D4: 66 | E4: 796 | F4: 66 | G4: 850 | H4: 71 | I4: 66 | J4: 66 | K4: Target population estimates
A5: Afar4 | B5: Afdera WorHO | C5: 1062 | D5: 89 | E5: 1062 | F5: 89 | G5: 1135 | H5: 95 | I5: 89 | J5: 89 | K5: Target population estimates
A6: Afar5 | B6: Amibara WorHO | C6: 1698 | D6: 142 | E6: 2093 | F6: 174 | G6: 2236 | H6: 186 | I6: 142 | J6: 142 | K6: Target population estimates
A7: Afar6 | B7: Argoba Special WorHO | C7: 722 | D7: 60 | E7: 721 | F7: 60 | G7: 770 | H7: 64 | I7: 60 | J7: 60 | K7: Target population estimates
A8: Afar7 | B8: Awash Fenteale WorHO | C8: 483 | D8: 40 | E8: 483 | F8: 40 | G8: 516 | H8: 43 | I8: 40 | J8: 40 | K8: Target population estimates
A9: Afar8 | B9: Awash Town WorHO | C9: 522 | D9: 44 | E9: 488 | F9: 41 | G9: 522 | H9: 44 | I9: 44 | J9: 44 | K9: Target population estimates
A10: Afar9 | B10: Awura WorHO | C10: 1179 | D10: 98 | E10: 1179 | F10: 98 | G10: 1260 | H10: 105 | I10: 98 | J10: 98 | K10: Target population estimates
A11: Afar10 | B11: Ayssaita WorHO | C11: 1559 | D11: 130 | E11: 1557 | F11: 130 | G11: 1664 | H11: 139 | I11: 130 | J11: 130 | K11: Target population estimates
A12: Afar11 | B12: Berahle WorHO | C12: 2621 | D12: 218 | E12: 2618 | F12: 218 | G12: 2797 | H12: 233 | I12: 218 | J12: 218 | K12: Target population estimates
A13: Afar12 | B13: Bidu WorHO | E13: 2093 | F13: 174 | G13: 2236 | H13: 186 | I13: 174 | J13: 174 | K13: DHIS2 conversion factor
A14: Afar13 | B14: Chifra WorHO | C14: 3008 | D14: =ROUND(C14/12,0) -> 251 | E14: 3004 | F14: 250 | G14: 3209 | H14: 267 | I14: 251 | J14: 251 | K14: Target population estimates
A15: Afar14 | B15: Dalifaghe WorHO | C15: 1199 | D15: =ROUND(C15/12,0) -> 100 | E15: 1192 | F15: 99 | G15: 1274 | H15: 106 | I15: 100 | J15: 100 | K15: Target population estimates
A16: Afar15 | B16: Dalol WorHO | C16: 2771 | D16: =ROUND(C16/12,0) -> 231 | E16: 2768 | F16: 231 | G16: 2957 | H16: 246 | I16: 231 | J16: 231 | K16: Target population estimates
A17: Afar16 | B17: Dewe WorHO | E17: 1396 | F17: 116 | G17: 1491 | H17: 124 | I17: 116 | J17: 116 | K17: DHIS2 conversion factor
A18: Afar17 | B18: Dubti WorHO | C18: 1647 | D18: =ROUND(C18/12,0) -> 137 | E18: 2154 | F18: 180 | G18: 2302 | H18: 192 | I18: 137 | J18: 137 | K18: Target population estimates
A19: Afar18 | B19: Dulecha WorHO | C19: 741 | D19: =ROUND(C19/12,0) -> 62 | E19: 684 | F19: 57 | G19: 730 | H19: 61 | I19: 62 | J19: 62 | K19: Target population estimates
A20: Afar19 | B20: Elidar WorHO | E20: 2645 | F20: 220 | G20: 2826 | H20: 236 | I20: 220 | J20: 220 | K20: DHIS2 conversion factor
A21: Afar20 | B21: Erabti WorHO | C21: 1911 | D21: 159 | E21: 1909 | F21: 159 | G21: 2039 | H21: 170 | I21: 159 | J21: 159 | K21: Target population estimates
A22: Afar21 | B22: Ewa WorHO | C22: 1574 | D22: 131 | E22: 1572 | F22: 131 | G22: 1679 | H22: 140 | I22: 131 | J22: 131 | K22: Target population estimates
A23: Afar22 | B23: Galalo WorHO | C23: 1052 | D23: 88 | E23: 1051 | F23: 88 | G23: 1123 | H23: 94 | I23: 88 | J23: 88 | K23: Target population estimates
A24: Afar23 | B24: Gewane WorHO | C24: 1041 | D24: 87 | E24: 1042 | F24: 87 | G24: 1113 | H24: 93 | I24: 87 | J24: 87 | K24: Target population estimates
A25: Afar24 | B25: Gulina WorHO | C25: 1644 | D25: 137 | E25: 1642 | F25: 137 | G25: 1755 | H25: 146 | I25: 137 | J25: 137 | K25: Target population estimates
A26: Afar25 | B26: Hadeleala WorHO | C26: 1163 | D26: 97 | E26: 1163 | F26: 97 | G26: 1242 | H26: 104 | I26: 97 | J26: 97 | K26: Target population estimates
A27: Afar26 | B27: Koneba WorHO | C27: 1789 | D27: 149 | E27: 1787 | F27: 149 | G27: 1909 | H27: 159 | I27: 149 | J27: 149 | K27: Target population estimates
A28: Afar27 | B28: Kori WorHO | C28: 1602 | D28: 134 | E28: 1601 | F28: 133 | G28: 1710 | H28: 143 | I28: 134 | J28: 134 | K28: Target population estimates
A29: Afar28 | B29: Magale WorHO | C29: 928 | D29: 77 | E29: 927 | F29: 77 | G29: 990 | H29: 83 | I29: 77 | J29: 77 | K29: Target population estimates
A30: Afar29 | B30: Mille WorHO | E30: 3060 | F30: 255 | G30: 3269 | H30: 272 | I30: 255 | J30: 255 | K30: DHIS2 conversion factor
A31: Afar30 | B31: Semera Logia Kentiba WorHO | C31: 1132 | D31: 94 | E31: 1119 | F31: 93 | G31: 1196 | H31: 100 | I31: 94 | J31: 94 | K31: Target population estimates
A32: Afar31 | B32: Semirobi WorHO | C32: 1056 | D32: 88 | E32: 1056 | F32: 88 | G32: 1128 | H32: 94 | I32: 88 | J32: 88 | K32: Target population estimates
A33: Afar32 | B33: Telalak WorHO | C33: 1334 | D33: 111 | E33: 1252 | F33: 104 | G33: 1338 | H33: 112 | I33: 111 | J33: 111 | K33: Target population estimates
A34: Afar33 | B34: Teru WorHO | E34: 1565 | F34: 130 | G34: 1672 | H34: 139 | I34: 130 | J34: 130 | K34: DHIS2 conversion factor
A35: Afar34 | B35: Yallo WorHO | C35: 1573 | D35: 131 | E35: 1565 | F35: 130 | G35: 1672 | H35: 139 | I35: 131 | J35: 131 | K35: Target population estimates
A36: Benishangulgumuz1 | B36: Agalo Meti WorHO | C36: 1046 | D36: 87 | E36: 1016 | F36: 85 | G36: 1130 | H36: 94 | I36: 87 | J36: 87 | K36: Target population estimates
A37: Benishangulgumuz2 | B37: Asosa Town 1 WorHO | C37: 2375 | D37: 198 | E37: 1082 | F37: 90 | G37: 1204 | H37: 100 | I37: 198 | J37: 198 | K37: Target population estimates
A38: Benishangulgumuz3 | B38: Assosa WorHO | C38: 2439 | D38: 203 | E38: 3567 | F38: 297 | G38: 3968 | H38: 331 | I38: 203 | J38: 203 | K38: Target population estimates
A39: Benishangulgumuz4 | B39: Bambasi WorHO | C39: 2018 | D39: 168 | E39: 2172 | F39: 181 | G39: 2416 | H39: 201 | I39: 168 | J39: 168 | K39: Target population estimates
A40: Benishangulgumuz5 | B40: Belo Jeganfoy WorHO | C40: 1380 | D40: 115 | E40: 1344 | F40: 112 | G40: 1495 | H40: 125 | I40: 115 | J40: 115 | K40: Target population estimates
A41: Benishangulgumuz6 | B41: Bulen WorHO | C41: 1710 | D41: 143 | E41: 2030 | F41: 169 | G41: 2258 | H41: 188 | I41: 143 | J41: 143 | K41: Target population estimates
A42: Benishangulgumuz7 | B42: Dangur WorHO | C42: 2445 | D42: 204 | E42: 2165 | F42: 180 | G42: 2408 | H42: 201 | I42: 204 | J42: 204 | K42: Target population estimates
A43: Benishangulgumuz8 | B43: Dibate WorHO | C43: 2626 | D43: 219 | E43: 2973 | F43: 248 | G43: 3307 | H43: 276 | I43: 219 | J43: 219 | K43: Target population estimates
A44: Benishangulgumuz9 | B44: Guba WorHO | C44: 1146 | D44: 96 | E44: 665 | F44: 55 | G44: 740 | H44: 62 | I44: 96 | J44: 96 | K44: Target population estimates
A45: Benishangulgumuz10 | B45: Homosha WorHO | C45: 1000 | D45: 83 | E45: 970 | F45: 81 | G45: 1079 | H45: 90 | I45: 83 | J45: 83 | K45: Target population estimates
A46: Benishangulgumuz11 | B46: Kamashi Primary Hospital | I46: 0 | J46: 0 | K46: No available information
A47: Benishangulgumuz12 | B47: Kamashi WorHO | C47: 421 | D47: 35 | E47: 798 | F47: 67 | G47: 887 | H47: 74 | I47: 35 | J47: 35 | K47: Target population estimates
A48: Benishangulgumuz13 | B48: Kurmuk WorHO | C48: 896 | D48: 75 | E48: 746 | F48: 62 | G48: 830 | H48: 69 | I48: 75 | J48: 75 | K48: Target population estimates
A49: Benishangulgumuz14 | B49: Mandura WorHO | C49: 1260 | D49: 105 | E49: 1817 | F49: 151 | G49: 2021 | H49: 168 | I49: 105 | J49: 105 | K49: Target population estimates
A50: Benishangulgumuz15 | B50: Mao Komo Special WorHO | C50: 2201 | D50: 183 | E50: 2233 | F50: 186 | G50: 2484 | H50: 207 | I50: 183 | J50: 183 | K50: Target population estimates
A51: Benishangulgumuz16 | B51: Menge WorHO | C51: 1568 | D51: 131 | E51: 1795 | F51: 150 | G51: 1996 | H51: 166 | I51: 131 | J51: 131 | K51: Target population estimates
A52: Benishangulgumuz17 | B52: Oda Bilidigilu WorHO | C52: 1979 | D52: 165 | E52: 2434 | F52: 203 | G52: 2708 | H52: 226 | I52: 165 | J52: 165 | K52: Target population estimates
A53: Benishangulgumuz18 | B53: Pawi Hospital | I53: 0 | J53: 0 | K53: No available information
A54: Benishangulgumuz19 | B54: Pawi WorHO | C54: 1388 | D54: 116 | E54: 2032 | F54: 169 | G54: 2260 | H54: 188 | I54: 116 | J54: 116 | K54: Target population estimates
A55: Benishangulgumuz20 | B55: Sedal WorHO | C55: 826 | D55: 69 | E55: 803 | F55: 67 | G55: 893 | H55: 74 | I55: 69 | J55: 69 | K55: Target population estimates
A56: Benishangulgumuz21 | B56: SherKole WorHO | C56: 1755 | D56: 146 | E56: 1101 | F56: 92 | G56: 1224 | H56: 102 | I56: 146 | J56: 146 | K56: Target population estimates
A57: Benishangulgumuz22 | B57: Wembera WorHO | C57: 2006 | D57: 167 | E57: 2676 | F57: 223 | G57: 2977 | H57: 248 | I57: 167 | J57: 167 | K57: Target population estimates
A58: Benishangulgumuz23 | B58: Yaso WorHO | C58: 992 | D58: 83 | E58: 569 | F58: 47 | G58: 632 | H58: 53 | I58: 83 | J58: 83 | K58: Target population estimates
A59: Gambella1 | B59: Abobo WorHO | C59: 685 | D59: 57 | E59: 723 | F59: 60 | G59: 782 | H59: 65 | I59: 57 | J59: 57 | K59: Target population estimates
A60: Gambella2 | B60: Akobo WorHO | C60: 1031 | D60: 86 | E60: 1076 | F60: 90 | G60: 1165 | H60: 97 | I60: 86 | J60: 86 | K60: Target population estimates
A61: Gambella3 | B61: Baziel PHCU | I61: 0 | J61: 0 | K61: No available information
A62: Gambella4 | B62: Dimma WorHO | C62: 755 | D62: 63 | E62: 349 | F62: 29 | G62: 378 | H62: 32 | I62: 63 | J62: 63 | K62: Target population estimates
A63: Gambella5 | B63: Elia PHCU | I63: 0 | J63: 0 | K63: No available information
A64: Gambella6 | B64: Gambella PHCU | I64: 0 | J64: 0 | K64: No available information
A65: Gambella7 | B65: Gambella Town Primary Hospital | I65: 0 | J65: 0 | K65: No available information
A66: Gambella8 | B66: Gambella Zuria WorHO | C66: 472 | D66: =ROUND(C66/12,0) -> 39 | E66: 462 | F66: 39 | G66: 500 | H66: 42 | I66: 39 | J66: 39 | K66: Target population estimates
A67: Gambella9 | B67: Godere WorHO | C67: 1279 | D67: 107 | E67: 1691 | F67: =ROUND(E67/12,0) -> 141 | G67: 1830 | H67: =ROUND(G67/12,0) -> 153 | I67: =IF(D67="", F67, D67) -> 107 | J67: =IF(D67="", I67, D67) -> 107 | K67: =IF(AND(C67="",E67=""),"No available information",IF(C67="","DHIS2 conversion factor","Target population estimates")) -> Target population estimates
A68: Gambella10 | B68: Gog WorHO | C68: 744 | D68: 62 | E68: 734 | F68: 61 | G68: 794 | H68: 66 | I68: 62 | J68: 62 | K68: Target population estimates
A69: Gambella11 | B69: Itang PHCU | C69: 1560 | D69: 130 | I69: 130 | J69: 130 | K69: Target population estimates
A70: Gambella12 | B70: Jikawo WorHO | C70: 817 | D70: 68 | E70: 817 | F70: 68 | G70: 884 | H70: 74 | I70: 68 | J70: 68 | K70: Target population estimates
A71: Gambella13 | B71: Jor WorHO | C71: 407 | D71: 34 | E71: 387 | F71: 32 | G71: 418 | H71: 35 | I71: 34 | J71: 34 | K71: Target population estimates
A72: Gambella14 | B72: Kumi Meles Zenawi Memorial Primary Hospital | I72: 0 | J72: 0 | K72: No available information
A73: Gambella15 | B73: Lare WorHO | C73: 1361 | D73: 113 | E73: 1407 | F73: 117 | G73: 1522 | H73: 127 | I73: 113 | J73: 113 | K73: Target population estimates
A74: Gambella16 | B74: Lier Health Center | I74: 0 | J74: 0 | K74: No available information
A75: Gambella17 | B75: Lier PHCU | I75: 0 | J75: 0 | K75: No available information
A76: Gambella18 | B76: Makuey WorHO | C76: 743 | D76: =ROUND(C76/12,0) -> 62 | E76: 696 | F76: 58 | G76: 753 | H76: 63 | I76: 62 | J76: 62 | K76: Target population estimates
A77: Gambella19 | B77: Mengeshi WorHO | C77: 953 | D77: =ROUND(C77/12,0) -> 79 | E77: 893 | F77: 74 | G77: 966 | H77: 81 | I77: 79 | J77: 79 | K77: Target population estimates
A78: Gambella20 | B78: Nyinenyang Primary Hospital | I78: 0 | J78: 0 | K78: No available information
A79: Gambella21 | B79: Pugniwudo Primary Hospital | I79: 0 | J79: 0 | K79: No available information
A80: Gambella22 | B80: Wanthoa WorHO | C80: 917 | D80: =ROUND(C80/12,0) -> 76 | E80: 915 | F80: 76 | G80: 990 | H80: 83 | I80: 76 | J80: 76 | K80: Target population estimates
A81: Somali1 | B81: Abaqaraw WorHO | C81: 967 | D81: 81 | E81: 795 | F81: 66 | G81: 856 | H81: 71 | I81: 81 | J81: 81 | K81: Target population estimates
A82: Somali2 | B82: Adadle WorHO | C82: 3452 | D82: 288 | E82: 3446 | F82: 287 | G82: 3710 | H82: 309 | I82: 288 | J82: 288 | K82: Target population estimates
A83: Somali3 | B83: Afdam WorHO | E83: 2689 | F83: 224 | G83: 2894 | H83: 241 | I83: 224 | J83: 224 | K83: DHIS2 conversion factor
A84: Somali4 | B84: Ararso WorHO | C84: 1250 | D84: 104 | E84: 1279 | F84: 107 | G84: 1377 | H84: 115 | I84: 104 | J84: 104 | K84: Target population estimates
A85: Somali5 | B85: Aware WorHO | E85: 773 | F85: 64 | G85: 832 | H85: 69 | I85: 64 | J85: 64 | K85: DHIS2 conversion factor
A86: Somali6 | B86: Awbare WorHO | C86: 5273 | D86: 439 | E86: 10957 | F86: 913 | G86: 11794 | H86: 983 | I86: 439 | J86: 439 | K86: Target population estimates
A87: Somali7 | B87: Ayisha WorHO | E87: 2414 | F87: 201 | G87: 2598 | H87: 217 | I87: 201 | J87: 201 | K87: DHIS2 conversion factor
A88: Somali8 | B88: Ayun WorHO | C88: 667 | D88: 56 | I88: 56 | J88: 56 | K88: Target population estimates
A89: Somali9 | B89: babili WorHO | C89: 3208 | D89: 267 | E89: 3203 | F89: 267 | G89: 3448 | H89: 287 | I89: 267 | J89: 267 | K89: Target population estimates
A90: Somali10 | B90: Baki Primary Hospital | I90: 0 | J90: 0 | K90: No available information
A91: Somali11 | B91: Bare WorHO | C91: 3253 | D91: 271 | E91: 3248 | F91: 271 | G91: 3496 | H91: 291 | I91: 271 | J91: 271 | K91: Target population estimates
A92: Somali12 | B92: Bercano WorHO | C92: 1934 | D92: 161 | E92: 2129 | F92: 177 | G92: 2292 | H92: 191 | I92: 161 | J92: 161 | K92: Target population estimates
A93: Somali13 | B93: Bilcilbur WorHO | E93: 838 | F93: 70 | G93: 903 | H93: 75 | I93: 70 | J93: 70 | K93: DHIS2 conversion factor
A94: Somali14 | B94: Birqod WorHO | C94: 1116 | D94: 93 | E94: 1173 | F94: 98 | G94: 1263 | H94: 105 | I94: 93 | J94: 93 | K94: Target population estimates
A95: Somali15 | B95: Bodalay WorHO | C95: 917 | D95: 76 | E95: 624 | F95: 52 | G95: 671 | H95: 56 | I95: 76 | J95: 76 | K95: Target population estimates
A96: Somali16 | B96: Bokh WorHO | C96: 3565 | D96: 297 | E96: 3559 | F96: 297 | G96: 3831 | H96: 319 | I96: 297 | J96: 297 | K96: Target population estimates
A97: Somali17 | B97: Bokolmanyo WorHO | C97: 1141 | D97: 95 | E97: 1042 | F97: 87 | G97: 1121 | H97: 93 | I97: 95 | J97: 95 | K97: Target population estimates
A98: Somali18 | B98: Chareti WorHO | C98: 3804 | D98: 317 | E98: 3799 | F98: 317 | G98: 4089 | H98: 341 | I98: 317 | J98: 317 | K98: Target population estimates
A99: Somali19 | B99: Danbal WorHO | E99: 3397 | F99: 283 | G99: 3657 | H99: 305 | I99: 283 | J99: 283 | K99: DHIS2 conversion factor
A100: Somali20 | B100: Danot WorHO | C100: 1594 | D100: 133 | E100: 536 | F100: 45 | G100: 577 | H100: 48 | I100: 133 | J100: 133 | K100: Target population estimates
A101: Somali21 | B101: Daratole WorHO | C101: 1254 | D101: 105 | E101: 1025 | F101: 85 | G101: 1103 | H101: 92 | I101: 105 | J101: 105 | K101: Target population estimates
A102: Somali22 | B102: Daroor WorHO | E102: 1272 | F102: 106 | G102: 1369 | H102: 114 | I102: 106 | J102: 106 | K102: DHIS2 conversion factor
A103: Somali23 | B103: Degahbur Primary Hospital | I103: 0 | J103: 0 | K103: No available information
A104: Somali24 | B104: Degahbur town WorHO | E104: 1244 | F104: 104 | G104: 1339 | H104: 112 | I104: 104 | J104: 104 | K104: DHIS2 conversion factor
A105: Somali25 | B105: Degahbur WorHO | C105: 1240 | D105: =ROUND(C105/12,0) -> 103 | E105: 850 | F105: 71 | G105: 915 | H105: 76 | I105: 103 | J105: 103 | K105: Target population estimates
A106: Somali26 | B106: Dekasuftu WorHO | C106: 1691 | D106: =ROUND(C106/12,0) -> 141 | E106: 1878 | F106: 157 | G106: 2021 | H106: 168 | I106: 141 | J106: 141 | K106: Target population estimates
A107: Somali27 | B107: Dhagahmadaw WorHO | E107: 2428 | F107: 202 | G107: 2613 | H107: 218 | I107: 202 | J107: 202 | K107: DHIS2 conversion factor
A108: Somali28 | B108: Dhanan WorHO | C108: 1014 | D108: =ROUND(C108/12,0) -> 85 | E108: 530 | F108: 44 | G108: 571 | H108: 48 | I108: 85 | J108: 85 | K108: Target population estimates
A109: Somali29 | B109: Dhoboweyn WorHO | C109: 2667 | D109: =ROUND(C109/12,0) -> 222 | E109: 2297 | F109: 191 | G109: 2472 | H109: 206 | I109: 222 | J109: 222 | K109: Target population estimates
A110: Somali30 | B110: Dig WorHO | E110: 996 | F110: 83 | G110: 1072 | H110: 89 | I110: 83 | J110: 83 | K110: DHIS2 conversion factor
A111: Somali31 | B111: Dollo bay WorHO | C111: 3488 | D111: =ROUND(C111/12,0) -> 291 | E111: 3483 | F111: 290 | G111: 3749 | H111: 312 | I111: 291 | J111: 291 | K111: Target population estimates
A112: Somali32 | B112: Dolo Ado WorHO | C112: 3378 | D112: =ROUND(C112/12,0) -> 282 | E112: 3373 | F112: 281 | G112: 3631 | H112: 303 | I112: 282 | J112: 282 | K112: Target population estimates
A113: Somali33 | B113: Doollo Hospital | I113: 0 | J113: 0 | K113: No available information
A114: Somali34 | B114: Duhun WorHO | C114: 934 | D114: =ROUND(C114/12,0) -> 78 | E114: 574 | F114: 48 | G114: 617 | H114: 51 | I114: 78 | J114: 78 | K114: Target population estimates
A115: Somali35 | B115: East Imey WorHO | C115: 2594 | D115: =ROUND(C115/12,0) -> 216 | I115: 216 | J115: 216 | K115: Target population estimates
A116: Somali36 | B116: EL-Ogaden WorHO | E116: 582 | F116: 49 | G116: 626 | H116: 52 | I116: 49 | J116: 49 | K116: DHIS2 conversion factor
A117: Somali37 | B117: Elele WorHO | C117: 1506 | D117: =ROUND(C117/12,0) -> 126 | E117: 339 | F117: 28 | G117: 365 | H117: 30 | I117: 126 | J117: 126 | K117: Target population estimates
A118: Somali38 | B118: Elkari WorHO | C118: 2403 | D118: 200 | E118: 2400 | F118: 200 | G118: 2583 | H118: 215 | I118: 200 | J118: 200 | K118: Target population estimates
A119: Somali39 | B119: Elwayne WorHO | C119: 991 | D119: 83 | I119: 83 | J119: 83 | K119: Target population estimates
A120: Somali40 | B120: Erer WorHO | E120: 2029 | F120: 169 | G120: 2184 | H120: 182 | I120: 169 | J120: 169 | K120: DHIS2 conversion factor
A121: Somali41 | B121: Ferfer WorHO | C121: 967 | D121: 81 | E121: 1630 | F121: 136 | G121: 1754 | H121: 146 | I121: 81 | J121: 81 | K121: Target population estimates
A122: Somali42 | B122: FIK Primary Hospital | I122: 0 | J122: 0 | K122: No available information
A123: Somali43 | B123: Fik WorHO | C123: 4283 | D123: 357 | E123: 2343 | F123: 195 | G123: 2522 | H123: 210 | I123: 357 | J123: 357 | K123: Target population estimates
A124: Somali44 | B124: Filtu Primary Hospital | I124: 0 | J124: 0 | K124: No available information
A125: Somali45 | B125: Filtu WorHO | C125: 4153 | D125: 346 | E125: 389 | F125: 32 | G125: 418 | H125: 35 | I125: 346 | J125: 346 | K125: Target population estimates
A126: Somali46 | B126: Gablalu WorHO | E126: 551 | F126: 46 | G126: 593 | H126: 49 | I126: 46 | J126: 46 | K126: DHIS2 conversion factor
A127: Somali47 | B127: Galadi WorHO | C127: 2790 | D127: 233 | E127: 4052 | F127: 338 | G127: 4362 | H127: 364 | I127: 233 | J127: 233 | K127: Target population estimates
A128: Somali48 | B128: Galhamur WorHO | E128: 1113 | F128: 93 | G128: 1198 | H128: 100 | I128: 93 | J128: 93 | K128: DHIS2 conversion factor
A129: Somali49 | B129: Garbo WorHO | C129: 886 | D129: 74 | E129: 1893 | F129: 158 | G129: 2037 | H129: 170 | I129: 74 | J129: 74 | K129: Target population estimates
A130: Somali50 | B130: Gashamo WorHO | E130: 3199 | F130: 267 | G130: 3443 | H130: 287 | I130: 267 | J130: 267 | K130: DHIS2 conversion factor
A131: Somali51 | B131: God-God WorHO | C131: 1847 | D131: 154 | E131: 655 | F131: =ROUND(E131/12,0) -> 55 | G131: 705 | H131: =ROUND(G131/12,0) -> 59 | I131: =IF(D131="", F131, D131) -> 154 | J131: =IF(D131="", I131, D131) -> 154 | K131: =IF(AND(C131="",E131=""),"No available information",IF(C131="","DHIS2 conversion factor","Target population estimates")) -> Target population estimates
A132: Somali52 | B132: Godey City WorHO | C132: 1779 | D132: 148 | E132: 1776 | F132: 148 | G132: 1912 | H132: 159 | I132: 148 | J132: 148 | K132: Target population estimates
A133: Somali53 | B133: Godey General Hospital | I133: 0 | J133: 0 | K133: No available information
A134: Somali54 | B134: Godey WorHO | E134: 378 | F134: 32 | G134: 407 | H134: 34 | I134: 32 | J134: 32 | K134: DHIS2 conversion factor
A135: Somali55 | B135: Goglo WorHO | I135: 0 | J135: 0 | K135: No available information
A136: Somali56 | B136: Goljano WorHO | C136: 1804 | D136: =ROUND(C136/12,0) -> 150 | E136: 1763 | F136: 147 | G136: 1898 | H136: 158 | I136: 150 | J136: 150 | K136: Target population estimates
A137: Somali57 | B137: Gorabaqaqsa WorHO | C137: 2138 | D137: =ROUND(C137/12,0) -> 178 | E137: 2135 | F137: 178 | G137: 2298 | H137: 192 | I137: 178 | J137: 178 | K137: Target population estimates
A138: Somali58 | B138: gota-biki WorHO | E138: 1227 | F138: 102 | G138: 1320 | H138: 110 | I138: 102 | J138: 102 | K138: DHIS2 conversion factor
A139: Somali59 | B139: Gunagado WorHO | E139: 4661 | F139: 388 | G139: 5018 | H139: 418 | I139: 388 | J139: 388 | K139: DHIS2 conversion factor
A140: Somali60 | B140: Gura Damole WorHO | C140: 891 | D140: =ROUND(C140/12,0) -> 74 | E140: 890 | F140: 74 | G140: 958 | H140: 80 | I140: 74 | J140: 74 | K140: Target population estimates
A141: Somali61 | B141: Gursum WorHO | C141: 3993 | D141: =ROUND(C141/12,0) -> 333 | E141: 1156 | F141: 96 | G141: 1244 | H141: 104 | I141: 333 | J141: 333 | K141: Target population estimates
A142: Somali62 | B142: Hadagala WorHO | E142: 2305 | F142: 192 | G142: 2481 | H142: 207 | I142: 192 | J142: 192 | K142: DHIS2 conversion factor
A143: Somali63 | B143: Hamaro WorHO | C143: 1995 | D143: =ROUND(C143/12,0) -> 166 | E143: 1891 | F143: 158 | G143: 2035 | H143: 170 | I143: 166 | J143: 166 | K143: Target population estimates
A144: Somali64 | B144: Hararey WorHO | C144: 700 | D144: 58 | I144: 58 | J144: 58 | K144: Target population estimates
A145: Somali65 | B145: Harawo WorHO | C145: 3653 | D145: 304 | E145: 989 | F145: 82 | G145: 1065 | H145: 89 | I145: 304 | J145: 304 | K145: Target population estimates
A146: Somali66 | B146: Hargele Primary Hospital | I146: 0 | J146: 0 | K146: No available information
A147: Somali67 | B147: Hargele WorHO | C147: 3196 | D147: 266 | E147: 3278 | F147: 273 | G147: 3528 | H147: 294 | I147: 266 | J147: 266 | K147: Target population estimates
A148: Somali68 | B148: Harorays WorHO | C148: 2479 | D148: 207 | E148: 1241 | F148: 103 | G148: 1336 | H148: 111 | I148: 207 | J148: 207 | K148: Target population estimates
A149: Somali69 | B149: Harshin WorHO | C149: 3330 | D149: 278 | E149: 3322 | F149: 277 | G149: 3576 | H149: 298 | I149: 278 | J149: 278 | K149: Target population estimates
A150: Somali70 | B150: Higloley WorHO | E150: 608 | F150: 51 | G150: 655 | H150: 55 | I150: 51 | J150: 51 | K150: DHIS2 conversion factor
A151: Somali71 | B151: Horashagah WorHO | C151: 702 | D151: 59 | E151: 507 | F151: 42 | G151: 546 | H151: 46 | I151: 59 | J151: 59 | K151: Target population estimates
A152: Somali72 | B152: Hudhet WorHO | E152: 1803 | F152: 150 | G152: 1941 | H152: 162 | I152: 150 | J152: 150 | K152: DHIS2 conversion factor
A153: Somali73 | B153: Jigjiga town WorHO | C153: 4900 | D153: 408 | I153: 408 | J153: 408 | K153: Target population estimates
A154: Somali74 | B154: Kadadumo WorHO | E154: 915 | F154: 76 | G154: 985 | H154: 82 | I154: 76 | J154: 76 | K154: DHIS2 conversion factor
A155: Somali75 | B155: Karamara General Hospital | I155: 0 | J155: 0 | K155: No available information
A156: Somali76 | B156: Karsasula WorHO | C156: 1472 | D156: =ROUND(C156/12,0) -> 123 | E156: 1742 | F156: 145 | G156: 1875 | H156: 156 | I156: 123 | J156: 123 | K156: Target population estimates
A157: Somali77 | B157: Kebridahar Primary Hospital | I157: 0 | J157: 0 | K157: No available information
A158: Somali78 | B158: Kebridahar town WorHO | E158: 1212 | F158: 101 | G158: 1304 | H158: 109 | I158: 101 | J158: 101 | K158: DHIS2 conversion factor
A159: Somali79 | B159: Kebridahar WorHO | E159: 2316 | F159: 193 | G159: 2493 | H159: 208 | I159: 193 | J159: 193 | K159: DHIS2 conversion factor
A160: Somali80 | B160: Koran Mula WorHO | E160: 669 | F160: 56 | G160: 720 | H160: 60 | I160: 56 | J160: 56 | K160: DHIS2 conversion factor
A161: Somali81 | B161: Lagahida WorHO | C161: 1546 | D161: =ROUND(C161/12,0) -> 129 | E161: 746 | F161: 62 | G161: 803 | H161: 67 | I161: 129 | J161: 129 | K161: Target population estimates
A162: Somali82 | B162: Lasdhankeyre WorHO | E162: 569 | F162: 47 | G162: 612 | H162: 51 | I162: 47 | J162: 47 | K162: DHIS2 conversion factor
A163: Somali83 | B163: Lehelyuub WorHO | C163: 1431 | D163: =ROUND(C163/12,0) -> 119 | I163: 119 | J163: 119 | K163: Target population estimates
A164: Somali84 | B164: Maeso WorHO | C164: 2301 | D164: =ROUND(C164/12,0) -> 192 | E164: 2965 | F164: 247 | G164: 3191 | H164: 266 | I164: 192 | J164: 192 | K164: Target population estimates
A165: Somali85 | B165: Marsin WorHO | C165: 2189 | D165: =ROUND(C165/12,0) -> 182 | E165: 625 | F165: 52 | G165: 673 | H165: 56 | I165: 182 | J165: 182 | K165: Target population estimates
A166: Somali86 | B166: Mayumuluqo WorHO | C166: 670 | D166: =ROUND(C166/12,0) -> 56 | E166: 520 | F166: 43 | G166: 560 | H166: 47 | I166: 56 | J166: 56 | K166: Target population estimates
A167: Somali87 | B167: Moyale WorHO | E167: 7432 | F167: 619 | G167: 8000 | H167: 667 | I167: 619 | J167: 619 | K167: DHIS2 conversion factor
A168: Somali88 | B168: Mubarak WorHO | E168: 2095 | F168: 175 | G168: 2255 | H168: 188 | I168: 175 | J168: 175 | K168: DHIS2 conversion factor
A169: Somali89 | B169: Mustahil WorHO | E169: 1952 | F169: 163 | G169: 2101 | H169: 175 | I169: 163 | J169: 163 | K169: DHIS2 conversion factor
A170: Somali90 | B170: Qabribayah town WorHO | C170: 544 | D170: =ROUND(C170/12,0) -> 45 | E170: 543 | F170: 45 | G170: 585 | H170: 49 | I170: 45 | J170: 45 | K170: Target population estimates
A171: Somali91 | B171: Qabribayah WorHO | C171: 1270 | D171: 106 | I171: 106 | J171: 106 | K171: Target population estimates
A172: Somali92 | B172: Qalafo WorHO | C172: 2706 | D172: 226 | E172: 3202 | F172: 267 | G172: 3447 | H172: 287 | I172: 226 | J172: 226 | K172: Target population estimates
A173: Somali93 | B173: Qooxle WorHO | C173: 1771 | D173: 148 | E173: 596 | F173: 50 | G173: 642 | H173: 54 | I173: 148 | J173: 148 | K173: Target population estimates
A174: Somali94 | B174: Qubi WorHO | E174: 1430 | F174: 119 | G174: 1539 | H174: 128 | I174: 119 | J174: 119 | K174: DHIS2 conversion factor
A175: Somali95 | B175: Raso WorHO | C175: 1312 | D175: 109 | E175: 1310 | F175: 109 | G175: 1410 | H175: 118 | I175: 109 | J175: 109 | K175: Target population estimates
A176: Somali96 | B176: Sagag WorHO | C176: 1489 | D176: 124 | E176: 1525 | F176: 127 | G176: 1641 | H176: 137 | I176: 124 | J176: 124 | K176: Target population estimates
A177: Somali97 | B177: Salahad WorHO | C177: 1728 | D177: 144 | E177: 1014 | F177: 85 | G177: 1092 | H177: 91 | I177: 144 | J177: 144 | K177: Target population estimates
A178: Somali98 | B178: Shabeley WorHO | C178: 3362 | D178: 280 | I178: 280 | J178: 280 | K178: Target population estimates
A179: Somali99 | B179: Shaykosh WorHO | E179: 1403 | F179: 117 | G179: 1510 | H179: 126 | I179: 117 | J179: 117 | K179: DHIS2 conversion factor
A180: Somali100 | B180: Shilabo WorHO | E180: 2391 | F180: 199 | G180: 2574 | H180: 215 | I180: 199 | J180: 199 | K180: DHIS2 conversion factor
A181: Somali101 | B181: Shinile WorHO | E181: 1964 | F181: 164 | G181: 2114 | H181: 176 | I181: 164 | J181: 164 | K181: DHIS2 conversion factor
A182: Somali102 | B182: Togwajale town WorHO | C182: 912 | D182: =ROUND(C182/12,0) -> 76 | E182: 910 | F182: 76 | G182: 980 | H182: 82 | I182: 76 | J182: 76 | K182: Target population estimates
A183: Somali103 | B183: Tuliguled WorHO | E183: 2065 | F183: 172 | G183: 2222 | H183: 185 | I183: 172 | J183: 172 | K183: DHIS2 conversion factor
A184: Somali104 | B184: Wangey WorHO | C184: 499 | D184: =ROUND(C184/12,0) -> 42 | E184: 492 | F184: 41 | G184: 530 | H184: 44 | I184: 42 | J184: 42 | K184: Target population estimates
A185: Somali105 | B185: Warder WorHO | E185: 770 | F185: 64 | G185: 829 | H185: 69 | I185: 64 | J185: 64 | K185: DHIS2 conversion factor
A186: Somali106 | B186: West Imay WorHO | C186: 1953 | D186: =ROUND(C186/12,0) -> 163 | E186: 2003 | F186: 167 | G186: 2156 | H186: 180 | I186: 163 | J186: 163 | K186: Target population estimates
A187: Somali107 | B187: Yahoob WorHO | E187: 588 | F187: 49 | G187: 632 | H187: 53 | I187: 49 | J187: 49 | K187: DHIS2 conversion factor
A188: Somali108 | B188: yocale WorHO | E188: 1239 | F188: 103 | G188: 1334 | H188: 111 | I188: 103 | J188: 103 | K188: DHIS2 conversion factor
A189: SNNPR1 | B189: Adilo Zuria WorHO | C189: 1312 | D189: 109 | I189: 109 | J189: 109 | K189: Target population estimates
A190: SNNPR2 | B190: Angacha WorHO | C190: 3934 | D190: 328 | I190: 328 | J190: 328 | K190: Target population estimates
A191: SNNPR3 | B191: Demboya WorHO | C191: 3702 | D191: 309 | I191: 309 | J191: 309 | K191: Target population estimates
A192: SNNPR4 | B192: Doyo Gena WorHO | C192: 3516 | D192: 293 | I192: 293 | J192: 293 | K192: Target population estimates
A193: SNNPR5 | B193: Dr. Bogalech Gebere Memorial General Hospital | I193: 0 | J193: 0 | K193: No available information
A194: SNNPR6 | B194: Durame Town Administration WorHO | C194: 1638 | D194: 137 | I194: 137 | J194: 137 | K194: Target population estimates
A195: SNNPR7 | B195: Hadero Town Administration WorHO | C195: 814 | D195: 68 | I195: =IF(D195="", F195, D195) -> 68 | J195: =IF(D195="", I195, D195) -> 68 | K195: =IF(AND(C195="",E195=""),"No available information",IF(C195="","DHIS2 conversion factor","Target population estimates")) -> Target population estimates
A196: SNNPR8 | B196: Hadero Tunto Zuriya WorHO | C196: 3678 | D196: 307 | I196: 307 | J196: 307 | K196: Target population estimates
A197: SNNPR9 | B197: Kacha Birra WorHO | C197: 4340 | D197: 362 | I197: 362 | J197: 362 | K197: Target population estimates
A198: SNNPR10 | B198: Kedida Gamela WorHO | C198: 2315 | D198: 193 | I198: 193 | J198: 193 | K198: Target population estimates
A199: SNNPR11 | B199: Shinshicho Town Administration WorHO | C199: 789 | D199: 66 | I199: 66 | J199: 66 | K199: Target population estimates
A200: SNNPR12 | B200: Tembaro WorHO | C200: 4708 | D200: 392 | I200: 392 | J200: 392 | K200: Target population estimates

Sheet Regional Dashboard
C1: ='Cover page'!Q3 & " " & "Regional Dashboard: DHIS2/mBrana Data Triangulation" -> Regional Dashboard: DHIS2/mBrana Data Triangulation | L1: Tool Navigation
C4: Summary by Woreda | G4: =IF('Cover page'!$Q$3="SNNPR", "Only displays administrative units from the KT zone.", "") ->  | L4: ="Summary by Zone for" & " "&I5 -> 
C5: Woreda | D5: ='Woreda calculations'!L4 ->  | E5: ='Woreda calculations'!M4 ->  | F5: ='Woreda calculations'!N4 ->  | G5: ='Woreda calculations'!O4 ->  | H5: ='Woreda calculations'!P4 ->  | I5: ='Woreda calculations'!Q4 ->  | L5: Zone | M5: Green | N5: Yellow | O5: Red | P5: Missing data
A6: =VLOOKUP(C6, Helper_zone!$B$35:$C$233, 2,0) ->  | B6: 1 | C6: =_xlfn.IFNA(VLOOKUP(CONCATENATE(SUBSTITUTE('Cover page'!$Q$3, " ", ""),'Regional Dashboard'!B6),'Helper_worho denom'!$A$1:$C$200,2,0),"") ->  | D6: =IF(C6="","", VLOOKUP(C6, 'Regional composite scores'!$A$1:$I$201, 9, 0)) ->  | E6: =IF(C6="","", VLOOKUP(C6, 'Regional composite scores'!$A$1:$Q$201, 17,0)) ->  | F6: =IF(C6="", "", VLOOKUP(C6, 'Regional composite scores'!$A$1:$Y$201, 25, 0)) ->  | G6: =IF(C6="","",VLOOKUP(C6, 'Regional composite scores'!$A$1:$AG$201, 33, 0)) ->  | H6: =IF(C6="","",VLOOKUP(C6,'Regional composite scores'!$A$1:$AO$201,41,0)) ->  | I6: =IF(C6="","", VLOOKUP(C6, 'Regional composite scores'!$A$1:$AW$201, 49, 0)) ->  | K6: 1 | L6: =_xlfn.IFNA(VLOOKUP(CONCATENATE(SUBSTITUTE('Cover page'!$Q$3, " ", ""),'Regional Dashboard'!K6),Helper_zone!$A$2:$B$27,2,0),"") ->  | M6: =IF(L6="","",COUNTIFS($I$6:$I$113,">=6",$I$6:$I$113,"<11",$A$6:$A$113,L6)) ->  | N6: =IF(L6="", "", COUNTIFS($I$6:$I$113,">=12",$I$6:$I$113,"<16",$A$6:$A$113,L6)) ->  | O6: =IF(L6="", "", COUNTIFS($I$6:$I$113,">=16",$I$6:$I$113,"<24",$A$6:$A$113,L6)) ->  | P6: =IF(L6="","",COUNTIFS($I$6:$I$113,"Missing Data",$A$6:$A$113,L6)) -> 
A7: =VLOOKUP(C7, Helper_zone!$B$35:$C$233, 2,0) ->  | B7: 2 | C7: =_xlfn.IFNA(VLOOKUP(CONCATENATE(SUBSTITUTE('Cover page'!$Q$3, " ", ""),'Regional Dashboard'!B7),'Helper_worho denom'!$A$1:$C$200,2,0),"") ->  | D7: =IF(C7="","", VLOOKUP(C7, 'Regional composite scores'!$A$1:$I$201, 9, 0)) ->  | E7: =IF(C7="","", VLOOKUP(C7, 'Regional composite scores'!$A$1:$Q$201, 17,0)) ->  | F7: =IF(C7="", "", VLOOKUP(C7, 'Regional composite scores'!$A$1:$Y$201, 25, 0)) ->  | G7: =IF(C7="","",VLOOKUP(C7, 'Regional composite scores'!$A$1:$AG$201, 33, 0)) ->  | H7: =IF(C7="","",VLOOKUP(C7,'Regional composite scores'!$A$1:$AO$201,41,0)) ->  | I7: =IF(C7="","", VLOOKUP(C7, 'Regional composite scores'!$A$1:$AW$201, 49, 0)) ->  | K7: 2 | L7: =_xlfn.IFNA(VLOOKUP(CONCATENATE(SUBSTITUTE('Cover page'!$Q$3, " ", ""),'Regional Dashboard'!K7),Helper_zone!$A$2:$B$27,2,0),"") ->  | M7: =IF(L7="","",COUNTIFS($I$6:$I$113,">=6",$I$6:$I$113,"<11",$A$6:$A$113,L7)) ->  | N7: =IF(L7="", "", COUNTIFS($I$6:$I$113,">=12",$I$6:$I$113,"<16",$A$6:$A$113,L7)) ->  | O7: =IF(L7="", "", COUNTIFS($I$6:$I$113,">=16",$I$6:$I$113,"<24",$A$6:$A$113,L7)) ->  | P7: =IF(L7="","",COUNTIFS($I$6:$I$113,"Missing Data",$A$6:$A$113,L7)) -> 
A8: =VLOOKUP(C8, Helper_zone!$B$35:$C$233, 2,0) ->  | B8: 3 | C8: =_xlfn.IFNA(VLOOKUP(CONCATENATE(SUBSTITUTE('Cover page'!$Q$3, " ", ""),'Regional Dashboard'!B8),'Helper_worho denom'!$A$1:$C$200,2,0),"") ->  | D8: =IF(C8="","", VLOOKUP(C8, 'Regional composite scores'!$A$1:$I$201, 9, 0)) ->  | E8: =IF(C8="","", VLOOKUP(C8, 'Regional composite scores'!$A$1:$Q$201, 17,0)) ->  | F8: =IF(C8="", "", VLOOKUP(C8, 'Regional composite scores'!$A$1:$Y$201, 25, 0)) ->  | G8: =IF(C8="","",VLOOKUP(C8, 'Regional composite scores'!$A$1:$AG$201, 33, 0)) ->  | H8: =IF(C8="","",VLOOKUP(C8,'Regional composite scores'!$A$1:$AO$201,41,0)) ->  | I8: =IF(C8="","", VLOOKUP(C8, 'Regional composite scores'!$A$1:$AW$201, 49, 0)) ->  | K8: 3 | L8: =_xlfn.IFNA(VLOOKUP(CONCATENATE(SUBSTITUTE('Cover page'!$Q$3, " ", ""),'Regional Dashboard'!K8),Helper_zone!$A$2:$B$27,2,0),"") -> 
A9: =VLOOKUP(C9, Helper_zone!$B$35:$C$233, 2,0) ->  | B9: 4 | C9: =_xlfn.IFNA(VLOOKUP(CONCATENATE(SUBSTITUTE('Cover page'!$Q$3, " ", ""),'Regional Dashboard'!B9),'Helper_worho denom'!$A$1:$C$200,2,0),"") ->  | D9: =IF(C9="","", VLOOKUP(C9, 'Regional composite scores'!$A$1:$I$201, 9, 0)) ->  | E9: =IF(C9="","", VLOOKUP(C9, 'Regional composite scores'!$A$1:$Q$201, 17,0)) ->  | F9: =IF(C9="", "", VLOOKUP(C9, 'Regional composite scores'!$A$1:$Y$201, 25, 0)) ->  | G9: =IF(C9="","",VLOOKUP(C9, 'Regional composite scores'!$A$1:$AG$201, 33, 0)) ->  | H9: =IF(C9="","",VLOOKUP(C9,'Regional composite scores'!$A$1:$AO$201,41,0)) ->  | I9: =IF(C9="","", VLOOKUP(C9, 'Regional composite scores'!$A$1:$AW$201, 49, 0)) ->  | K9: 4 | L9: =_xlfn.IFNA(VLOOKUP(CONCATENATE(SUBSTITUTE('Cover page'!$Q$3, " ", ""),'Regional Dashboard'!K9),Helper_zone!$A$2:$B$27,2,0),"") -> 
A10: =VLOOKUP(C10, Helper_zone!$B$35:$C$233, 2,0) ->  | B10: 5 | C10: =_xlfn.IFNA(VLOOKUP(CONCATENATE(SUBSTITUTE('Cover page'!$Q$3, " ", ""),'Regional Dashboard'!B10),'Helper_worho denom'!$A$1:$C$200,2,0),"") ->  | D10: =IF(C10="","", VLOOKUP(C10, 'Regional composite scores'!$A$1:$I$201, 9, 0)) ->  | E10: =IF(C10="","", VLOOKUP(C10, 'Regional composite scores'!$A$1:$Q$201, 17,0)) ->  | F10: =IF(C10="", "", VLOOKUP(C10, 'Regional composite scores'!$A$1:$Y$201, 25, 0)) ->  | G10: =IF(C10="","",VLOOKUP(C10, 'Regional composite scores'!$A$1:$AG$201, 33, 0)) ->  | H10: =IF(C10="","",VLOOKUP(C10,'Regional composite scores'!$A$1:$AO$201,41,0)) ->  | I10: =IF(C10="","", VLOOKUP(C10, 'Regional composite scores'!$A$1:$AW$201, 49, 0)) ->  | K10: 5 | L10: =_xlfn.IFNA(VLOOKUP(CONCATENATE(SUBSTITUTE('Cover page'!$Q$3, " ", ""),'Regional Dashboard'!K10),Helper_zone!$A$2:$B$27,2,0),"") -> 
A11: =VLOOKUP(C11, Helper_zone!$B$35:$C$233, 2,0) ->  | B11: 6 | C11: =_xlfn.IFNA(VLOOKUP(CONCATENATE(SUBSTITUTE('Cover page'!$Q$3, " ", ""),'Regional Dashboard'!B11),'Helper_worho denom'!$A$1:$C$200,2,0),"") ->  | D11: =IF(C11="","", VLOOKUP(C11, 'Regional composite scores'!$A$1:$I$201, 9, 0)) ->  | E11: =IF(C11="","", VLOOKUP(C11, 'Regional composite scores'!$A$1:$Q$201, 17,0)) ->  | F11: =IF(C11="", "", VLOOKUP(C11, 'Regional composite scores'!$A$1:$Y$201, 25, 0)) ->  | G11: =IF(C11="","",VLOOKUP(C11, 'Regional composite scores'!$A$1:$AG$201, 33, 0)) ->  | H11: =IF(C11="","",VLOOKUP(C11,'Regional composite scores'!$A$1:$AO$201,41,0)) ->  | I11: =IF(C11="","", VLOOKUP(C11, 'Regional composite scores'!$A$1:$AW$201, 49, 0)) ->  | K11: 6 | L11: =_xlfn.IFNA(VLOOKUP(CONCATENATE(SUBSTITUTE('Cover page'!$Q$3, " ", ""),'Regional Dashboard'!K11),Helper_zone!$A$2:$B$27,2,0),"") -> 
A12: =VLOOKUP(C12, Helper_zone!$B$35:$C$233, 2,0) ->  | B12: 7 | C12: =_xlfn.IFNA(VLOOKUP(CONCATENATE(SUBSTITUTE('Cover page'!$Q$3, " ", ""),'Regional Dashboard'!B12),'Helper_worho denom'!$A$1:$C$200,2,0),"") ->  | D12: =IF(C12="","", VLOOKUP(C12, 'Regional composite scores'!$A$1:$I$201, 9, 0)) ->  | E12: =IF(C12="","", VLOOKUP(C12, 'Regional composite scores'!$A$1:$Q$201, 17,0)) ->  | F12: =IF(C12="", "", VLOOKUP(C12, 'Regional composite scores'!$A$1:$Y$201, 25, 0)) ->  | G12: =IF(C12="","",VLOOKUP(C12, 'Regional composite scores'!$A$1:$AG$201, 33, 0)) ->  | H12: =IF(C12="","",VLOOKUP(C12,'Regional composite scores'!$A$1:$AO$201,41,0)) ->  | I12: =IF(C12="","", VLOOKUP(C12, 'Regional composite scores'!$A$1:$AW$201, 49, 0)) ->  | K12: 7 | L12: =_xlfn.IFNA(VLOOKUP(CONCATENATE(SUBSTITUTE('Cover page'!$Q$3, " ", ""),'Regional Dashboard'!K12),Helper_zone!$A$2:$B$27,2,0),"") -> 
A13: =VLOOKUP(C13, Helper_zone!$B$35:$C$233, 2,0) ->  | B13: 8 | C13: =_xlfn.IFNA(VLOOKUP(CONCATENATE(SUBSTITUTE('Cover page'!$Q$3, " ", ""),'Regional Dashboard'!B13),'Helper_worho denom'!$A$1:$C$200,2,0),"") ->  | D13: =IF(C13="","", VLOOKUP(C13, 'Regional composite scores'!$A$1:$I$201, 9, 0)) ->  | E13: =IF(C13="","", VLOOKUP(C13, 'Regional composite scores'!$A$1:$Q$201, 17,0)) ->  | F13: =IF(C13="", "", VLOOKUP(C13, 'Regional composite scores'!$A$1:$Y$201, 25, 0)) ->  | G13: =IF(C13="","",VLOOKUP(C13, 'Regional composite scores'!$A$1:$AG$201, 33, 0)) ->  | H13: =IF(C13="","",VLOOKUP(C13,'Regional composite scores'!$A$1:$AO$201,41,0)) ->  | I13: =IF(C13="","", VLOOKUP(C13, 'Regional composite scores'!$A$1:$AW$201, 49, 0)) ->  | K13: 8 | L13: =_xlfn.IFNA(VLOOKUP(CONCATENATE(SUBSTITUTE('Cover page'!$Q$3, " ", ""),'Regional Dashboard'!K13),Helper_zone!$A$2:$B$27,2,0),"") -> 
A14: =VLOOKUP(C14, Helper_zone!$B$35:$C$233, 2,0) ->  | B14: 9 | C14: =_xlfn.IFNA(VLOOKUP(CONCATENATE(SUBSTITUTE('Cover page'!$Q$3, " ", ""),'Regional Dashboard'!B14),'Helper_worho denom'!$A$1:$C$200,2,0),"") ->  | D14: =IF(C14="","", VLOOKUP(C14, 'Regional composite scores'!$A$1:$I$201, 9, 0)) ->  | E14: =IF(C14="","", VLOOKUP(C14, 'Regional composite scores'!$A$1:$Q$201, 17,0)) ->  | F14: =IF(C14="", "", VLOOKUP(C14, 'Regional composite scores'!$A$1:$Y$201, 25, 0)) ->  | G14: =IF(C14="","",VLOOKUP(C14, 'Regional composite scores'!$A$1:$AG$201, 33, 0)) ->  | H14: =IF(C14="","",VLOOKUP(C14,'Regional composite scores'!$A$1:$AO$201,41,0)) ->  | I14: =IF(C14="","", VLOOKUP(C14, 'Regional composite scores'!$A$1:$AW$201, 49, 0)) ->  | K14: 9 | L14: =_xlfn.IFNA(VLOOKUP(CONCATENATE(SUBSTITUTE('Cover page'!$Q$3, " ", ""),'Regional Dashboard'!K14),Helper_zone!$A$2:$B$27,2,0),"") -> 
A15: =VLOOKUP(C15, Helper_zone!$B$35:$C$233, 2,0) ->  | B15: 10 | C15: =_xlfn.IFNA(VLOOKUP(CONCATENATE(SUBSTITUTE('Cover page'!$Q$3, " ", ""),'Regional Dashboard'!B15),'Helper_worho denom'!$A$1:$C$200,2,0),"") ->  | D15: =IF(C15="","", VLOOKUP(C15, 'Regional composite scores'!$A$1:$I$201, 9, 0)) ->  | E15: =IF(C15="","", VLOOKUP(C15, 'Regional composite scores'!$A$1:$Q$201, 17,0)) ->  | F15: =IF(C15="", "", VLOOKUP(C15, 'Regional composite scores'!$A$1:$Y$201, 25, 0)) ->  | G15: =IF(C15="","",VLOOKUP(C15, 'Regional composite scores'!$A$1:$AG$201, 33, 0)) ->  | H15: =IF(C15="","",VLOOKUP(C15,'Regional composite scores'!$A$1:$AO$201,41,0)) ->  | I15: =IF(C15="","", VLOOKUP(C15, 'Regional composite scores'!$A$1:$AW$201, 49, 0)) ->  | K15: 10 | L15: =_xlfn.IFNA(VLOOKUP(CONCATENATE(SUBSTITUTE('Cover page'!$Q$3, " ", ""),'Regional Dashboard'!K15),Helper_zone!$A$2:$B$27,2,0),"") -> 
A16: =VLOOKUP(C16, Helper_zone!$B$35:$C$233, 2,0) ->  | B16: 11 | C16: =_xlfn.IFNA(VLOOKUP(CONCATENATE(SUBSTITUTE('Cover page'!$Q$3, " ", ""),'Regional Dashboard'!B16),'Helper_worho denom'!$A$1:$C$200,2,0),"") ->  | D16: =IF(C16="","", VLOOKUP(C16, 'Regional composite scores'!$A$1:$I$201, 9, 0)) ->  | E16: =IF(C16="","", VLOOKUP(C16, 'Regional composite scores'!$A$1:$Q$201, 17,0)) ->  | F16: =IF(C16="", "", VLOOKUP(C16, 'Regional composite scores'!$A$1:$Y$201, 25, 0)) ->  | G16: =IF(C16="","",VLOOKUP(C16, 'Regional composite scores'!$A$1:$AG$201, 33, 0)) ->  | H16: =IF(C16="","",VLOOKUP(C16,'Regional composite scores'!$A$1:$AO$201,41,0)) ->  | I16: =IF(C16="","", VLOOKUP(C16, 'Regional composite scores'!$A$1:$AW$201, 49, 0)) ->  | K16: 11 | L16: =_xlfn.IFNA(VLOOKUP(CONCATENATE(SUBSTITUTE('Cover page'!$Q$3, " ", ""),'Regional Dashboard'!K16),Helper_zone!$A$2:$B$27,2,0),"") -> 
A17: =VLOOKUP(C17, Helper_zone!$B$35:$C$233, 2,0) ->  | B17: 12 | C17: =_xlfn.IFNA(VLOOKUP(CONCATENATE(SUBSTITUTE('Cover page'!$Q$3, " ", ""),'Regional Dashboard'!B17),'Helper_worho denom'!$A$1:$C$200,2,0),"") ->  | D17: =IF(C17="","", VLOOKUP(C17, 'Regional composite scores'!$A$1:$I$201, 9, 0)) ->  | E17: =IF(C17="","", VLOOKUP(C17, 'Regional composite scores'!$A$1:$Q$201, 17,0)) ->  | F17: =IF(C17="", "", VLOOKUP(C17, 'Regional composite scores'!$A$1:$Y$201, 25, 0)) ->  | G17: =IF(C17="","",VLOOKUP(C17, 'Regional composite scores'!$A$1:$AG$201, 33, 0)) ->  | H17: =IF(C17="","",VLOOKUP(C17,'Regional composite scores'!$A$1:$AO$201,41,0)) ->  | I17: =IF(C17="","", VLOOKUP(C17, 'Regional composite scores'!$A$1:$AW$201, 49, 0)) -> 
A18: =VLOOKUP(C18, Helper_zone!$B$35:$C$233, 2,0) ->  | B18: 13 | C18: =_xlfn.IFNA(VLOOKUP(CONCATENATE(SUBSTITUTE('Cover page'!$Q$3, " ", ""),'Regional Dashboard'!B18),'Helper_worho denom'!$A$1:$C$200,2,0),"") ->  | D18: =IF(C18="","", VLOOKUP(C18, 'Regional composite scores'!$A$1:$I$201, 9, 0)) ->  | E18: =IF(C18="","", VLOOKUP(C18, 'Regional composite scores'!$A$1:$Q$201, 17,0)) ->  | F18: =IF(C18="", "", VLOOKUP(C18, 'Regional composite scores'!$A$1:$Y$201, 25, 0)) ->  | G18: =IF(C18="","",VLOOKUP(C18, 'Regional composite scores'!$A$1:$AG$201, 33, 0)) ->  | H18: =IF(C18="","",VLOOKUP(C18,'Regional composite scores'!$A$1:$AO$201,41,0)) ->  | I18: =IF(C18="","", VLOOKUP(C18, 'Regional composite scores'!$A$1:$AW$201, 49, 0)) -> 
A19: =VLOOKUP(C19, Helper_zone!$B$35:$C$233, 2,0) ->  | B19: 14 | C19: =_xlfn.IFNA(VLOOKUP(CONCATENATE(SUBSTITUTE('Cover page'!$Q$3, " ", ""),'Regional Dashboard'!B19),'Helper_worho denom'!$A$1:$C$200,2,0),"") ->  | D19: =IF(C19="","", VLOOKUP(C19, 'Regional composite scores'!$A$1:$I$201, 9, 0)) ->  | E19: =IF(C19="","", VLOOKUP(C19, 'Regional composite scores'!$A$1:$Q$201, 17,0)) ->  | F19: =IF(C19="", "", VLOOKUP(C19, 'Regional composite scores'!$A$1:$Y$201, 25, 0)) ->  | G19: =IF(C19="","",VLOOKUP(C19, 'Regional composite scores'!$A$1:$AG$201, 33, 0)) ->  | H19: =IF(C19="","",VLOOKUP(C19,'Regional composite scores'!$A$1:$AO$201,41,0)) ->  | I19: =IF(C19="","", VLOOKUP(C19, 'Regional composite scores'!$A$1:$AW$201, 49, 0)) -> 
A20: =VLOOKUP(C20, Helper_zone!$B$35:$C$233, 2,0) ->  | B20: 15 | C20: =_xlfn.IFNA(VLOOKUP(CONCATENATE(SUBSTITUTE('Cover page'!$Q$3, " ", ""),'Regional Dashboard'!B20),'Helper_worho denom'!$A$1:$C$200,2,0),"") ->  | D20: =IF(C20="","", VLOOKUP(C20, 'Regional composite scores'!$A$1:$I$201, 9, 0)) ->  | E20: =IF(C20="","", VLOOKUP(C20, 'Regional composite scores'!$A$1:$Q$201, 17,0)) ->  | F20: =IF(C20="", "", VLOOKUP(C20, 'Regional composite scores'!$A$1:$Y$201, 25, 0)) ->  | G20: =IF(C20="","",VLOOKUP(C20, 'Regional composite scores'!$A$1:$AG$201, 33, 0)) ->  | H20: =IF(C20="","",VLOOKUP(C20,'Regional composite scores'!$A$1:$AO$201,41,0)) ->  | I20: =IF(C20="","", VLOOKUP(C20, 'Regional composite scores'!$A$1:$AW$201, 49, 0)) -> 
A21: =VLOOKUP(C21, Helper_zone!$B$35:$C$233, 2,0) ->  | B21: 16 | C21: =_xlfn.IFNA(VLOOKUP(CONCATENATE(SUBSTITUTE('Cover page'!$Q$3, " ", ""),'Regional Dashboard'!B21),'Helper_worho denom'!$A$1:$C$200,2,0),"") ->  | D21: =IF(C21="","", VLOOKUP(C21, 'Regional composite scores'!$A$1:$I$201, 9, 0)) ->  | E21: =IF(C21="","", VLOOKUP(C21, 'Regional composite scores'!$A$1:$Q$201, 17,0)) ->  | F21: =IF(C21="", "", VLOOKUP(C21, 'Regional composite scores'!$A$1:$Y$201, 25, 0)) ->  | G21: =IF(C21="","",VLOOKUP(C21, 'Regional composite scores'!$A$1:$AG$201, 33, 0)) ->  | H21: =IF(C21="","",VLOOKUP(C21,'Regional composite scores'!$A$1:$AO$201,41,0)) ->  | I21: =IF(C21="","", VLOOKUP(C21, 'Regional composite scores'!$A$1:$AW$201, 49, 0)) -> 
A22: =VLOOKUP(C22, Helper_zone!$B$35:$C$233, 2,0) ->  | B22: 17 | C22: =_xlfn.IFNA(VLOOKUP(CONCATENATE(SUBSTITUTE('Cover page'!$Q$3, " ", ""),'Regional Dashboard'!B22),'Helper_worho denom'!$A$1:$C$200,2,0),"") ->  | D22: =IF(C22="","", VLOOKUP(C22, 'Regional composite scores'!$A$1:$I$201, 9, 0)) ->  | E22: =IF(C22="","", VLOOKUP(C22, 'Regional composite scores'!$A$1:$Q$201, 17,0)) ->  | F22: =IF(C22="", "", VLOOKUP(C22, 'Regional composite scores'!$A$1:$Y$201, 25, 0)) ->  | G22: =IF(C22="","",VLOOKUP(C22, 'Regional composite scores'!$A$1:$AG$201, 33, 0)) ->  | H22: =IF(C22="","",VLOOKUP(C22,'Regional composite scores'!$A$1:$AO$201,41,0)) ->  | I22: =IF(C22="","", VLOOKUP(C22, 'Regional composite scores'!$A$1:$AW$201, 49, 0)) -> 
A23: =VLOOKUP(C23, Helper_zone!$B$35:$C$233, 2,0) ->  | B23: 18 | C23: =_xlfn.IFNA(VLOOKUP(CONCATENATE(SUBSTITUTE('Cover page'!$Q$3, " ", ""),'Regional Dashboard'!B23),'Helper_worho denom'!$A$1:$C$200,2,0),"") ->  | D23: =IF(C23="","", VLOOKUP(C23, 'Regional composite scores'!$A$1:$I$201, 9, 0)) ->  | E23: =IF(C23="","", VLOOKUP(C23, 'Regional composite scores'!$A$1:$Q$201, 17,0)) ->  | F23: =IF(C23="", "", VLOOKUP(C23, 'Regional composite scores'!$A$1:$Y$201, 25, 0)) ->  | G23: =IF(C23="","",VLOOKUP(C23, 'Regional composite scores'!$A$1:$AG$201, 33, 0)) ->  | H23: =IF(C23="","",VLOOKUP(C23,'Regional composite scores'!$A$1:$AO$201,41,0)) ->  | I23: =IF(C23="","", VLOOKUP(C23, 'Regional composite scores'!$A$1:$AW$201, 49, 0)) -> 
A24: =VLOOKUP(C24, Helper_zone!$B$35:$C$233, 2,0) ->  | B24: 19 | C24: =_xlfn.IFNA(VLOOKUP(CONCATENATE(SUBSTITUTE('Cover page'!$Q$3, " ", ""),'Regional Dashboard'!B24),'Helper_worho denom'!$A$1:$C$200,2,0),"") ->  | D24: =IF(C24="","", VLOOKUP(C24, 'Regional composite scores'!$A$1:$I$201, 9, 0)) ->  | E24: =IF(C24="","", VLOOKUP(C24, 'Regional composite scores'!$A$1:$Q$201, 17,0)) ->  | F24: =IF(C24="", "", VLOOKUP(C24, 'Regional composite scores'!$A$1:$Y$201, 25, 0)) ->  | G24: =IF(C24="","",VLOOKUP(C24, 'Regional composite scores'!$A$1:$AG$201, 33, 0)) ->  | H24: =IF(C24="","",VLOOKUP(C24,'Regional composite scores'!$A$1:$AO$201,41,0)) ->  | I24: =IF(C24="","", VLOOKUP(C24, 'Regional composite scores'!$A$1:$AW$201, 49, 0)) -> 
A25: =VLOOKUP(C25, Helper_zone!$B$35:$C$233, 2,0) ->  | B25: 20 | C25: =_xlfn.IFNA(VLOOKUP(CONCATENATE(SUBSTITUTE('Cover page'!$Q$3, " ", ""),'Regional Dashboard'!B25),'Helper_worho denom'!$A$1:$C$200,2,0),"") ->  | D25: =IF(C25="","", VLOOKUP(C25, 'Regional composite scores'!$A$1:$I$201, 9, 0)) ->  | E25: =IF(C25="","", VLOOKUP(C25, 'Regional composite scores'!$A$1:$Q$201, 17,0)) ->  | F25: =IF(C25="", "", VLOOKUP(C25, 'Regional composite scores'!$A$1:$Y$201, 25, 0)) ->  | G25: =IF(C25="","",VLOOKUP(C25, 'Regional composite scores'!$A$1:$AG$201, 33, 0)) ->  | H25: =IF(C25="","",VLOOKUP(C25,'Regional composite scores'!$A$1:$AO$201,41,0)) ->  | I25: =IF(C25="","", VLOOKUP(C25, 'Regional composite scores'!$A$1:$AW$201, 49, 0)) -> 
A26: =VLOOKUP(C26, Helper_zone!$B$35:$C$233, 2,0) ->  | B26: 21 | C26: =_xlfn.IFNA(VLOOKUP(CONCATENATE(SUBSTITUTE('Cover page'!$Q$3, " ", ""),'Regional Dashboard'!B26),'Helper_worho denom'!$A$1:$C$200,2,0),"") ->  | D26: =IF(C26="","", VLOOKUP(C26, 'Regional composite scores'!$A$1:$I$201, 9, 0)) ->  | E26: =IF(C26="","", VLOOKUP(C26, 'Regional composite scores'!$A$1:$Q$201, 17,0)) ->  | F26: =IF(C26="", "", VLOOKUP(C26, 'Regional composite scores'!$A$1:$Y$201, 25, 0)) ->  | G26: =IF(C26="","",VLOOKUP(C26, 'Regional composite scores'!$A$1:$AG$201, 33, 0)) ->  | H26: =IF(C26="","",VLOOKUP(C26,'Regional composite scores'!$A$1:$AO$201,41,0)) ->  | I26: =IF(C26="","", VLOOKUP(C26, 'Regional composite scores'!$A$1:$AW$201, 49, 0)) -> 
A27: =VLOOKUP(C27, Helper_zone!$B$35:$C$233, 2,0) ->  | B27: 22 | C27: =_xlfn.IFNA(VLOOKUP(CONCATENATE(SUBSTITUTE('Cover page'!$Q$3, " ", ""),'Regional Dashboard'!B27),'Helper_worho denom'!$A$1:$C$200,2,0),"") ->  | D27: =IF(C27="","", VLOOKUP(C27, 'Regional composite scores'!$A$1:$I$201, 9, 0)) ->  | E27: =IF(C27="","", VLOOKUP(C27, 'Regional composite scores'!$A$1:$Q$201, 17,0)) ->  | F27: =IF(C27="", "", VLOOKUP(C27, 'Regional composite scores'!$A$1:$Y$201, 25, 0)) ->  | G27: =IF(C27="","",VLOOKUP(C27, 'Regional composite scores'!$A$1:$AG$201, 33, 0)) ->  | H27: =IF(C27="","",VLOOKUP(C27,'Regional composite scores'!$A$1:$AO$201,41,0)) ->  | I27: =IF(C27="","", VLOOKUP(C27, 'Regional composite scores'!$A$1:$AW$201, 49, 0)) -> 
A28: =VLOOKUP(C28, Helper_zone!$B$35:$C$233, 2,0) ->  | B28: 23 | C28: =_xlfn.IFNA(VLOOKUP(CONCATENATE(SUBSTITUTE('Cover page'!$Q$3, " ", ""),'Regional Dashboard'!B28),'Helper_worho denom'!$A$1:$C$200,2,0),"") ->  | D28: =IF(C28="","", VLOOKUP(C28, 'Regional composite scores'!$A$1:$I$201, 9, 0)) ->  | E28: =IF(C28="","", VLOOKUP(C28, 'Regional composite scores'!$A$1:$Q$201, 17,0)) ->  | F28: =IF(C28="", "", VLOOKUP(C28, 'Regional composite scores'!$A$1:$Y$201, 25, 0)) ->  | G28: =IF(C28="","",VLOOKUP(C28, 'Regional composite scores'!$A$1:$AG$201, 33, 0)) ->  | H28: =IF(C28="","",VLOOKUP(C28,'Regional composite scores'!$A$1:$AO$201,41,0)) ->  | I28: =IF(C28="","", VLOOKUP(C28, 'Regional composite scores'!$A$1:$AW$201, 49, 0)) -> 
A29: =VLOOKUP(C29, Helper_zone!$B$35:$C$233, 2,0) ->  | B29: 24 | C29: =_xlfn.IFNA(VLOOKUP(CONCATENATE(SUBSTITUTE('Cover page'!$Q$3, " ", ""),'Regional Dashboard'!B29),'Helper_worho denom'!$A$1:$C$200,2,0),"") ->  | D29: =IF(C29="","", VLOOKUP(C29, 'Regional composite scores'!$A$1:$I$201, 9, 0)) ->  | E29: =IF(C29="","", VLOOKUP(C29, 'Regional composite scores'!$A$1:$Q$201, 17,0)) ->  | F29: =IF(C29="", "", VLOOKUP(C29, 'Regional composite scores'!$A$1:$Y$201, 25, 0)) ->  | G29: =IF(C29="","",VLOOKUP(C29, 'Regional composite scores'!$A$1:$AG$201, 33, 0)) ->  | H29: =IF(C29="","",VLOOKUP(C29,'Regional composite scores'!$A$1:$AO$201,41,0)) ->  | I29: =IF(C29="","", VLOOKUP(C29, 'Regional composite scores'!$A$1:$AW$201, 49, 0)) -> 
A30: =VLOOKUP(C30, Helper_zone!$B$35:$C$233, 2,0) ->  | B30: 25 | C30: =_xlfn.IFNA(VLOOKUP(CONCATENATE(SUBSTITUTE('Cover page'!$Q$3, " ", ""),'Regional Dashboard'!B30),'Helper_worho denom'!$A$1:$C$200,2,0),"") ->  | D30: =IF(C30="","", VLOOKUP(C30, 'Regional composite scores'!$A$1:$I$201, 9, 0)) ->  | E30: =IF(C30="","", VLOOKUP(C30, 'Regional composite scores'!$A$1:$Q$201, 17,0)) ->  | F30: =IF(C30="", "", VLOOKUP(C30, 'Regional composite scores'!$A$1:$Y$201, 25, 0)) ->  | G30: =IF(C30="","",VLOOKUP(C30, 'Regional composite scores'!$A$1:$AG$201, 33, 0)) ->  | H30: =IF(C30="","",VLOOKUP(C30,'Regional composite scores'!$A$1:$AO$201,41,0)) ->  | I30: =IF(C30="","", VLOOKUP(C30, 'Regional composite scores'!$A$1:$AW$201, 49, 0)) -> 
A31: =VLOOKUP(C31, Helper_zone!$B$35:$C$233, 2,0) ->  | B31: 26 | C31: =_xlfn.IFNA(VLOOKUP(CONCATENATE(SUBSTITUTE('Cover page'!$Q$3, " ", ""),'Regional Dashboard'!B31),'Helper_worho denom'!$A$1:$C$200,2,0),"") ->  | D31: =IF(C31="","", VLOOKUP(C31, 'Regional composite scores'!$A$1:$I$201, 9, 0)) ->  | E31: =IF(C31="","", VLOOKUP(C31, 'Regional composite scores'!$A$1:$Q$201, 17,0)) ->  | F31: =IF(C31="", "", VLOOKUP(C31, 'Regional composite scores'!$A$1:$Y$201, 25, 0)) ->  | G31: =IF(C31="","",VLOOKUP(C31, 'Regional composite scores'!$A$1:$AG$201, 33, 0)) ->  | H31: =IF(C31="","",VLOOKUP(C31,'Regional composite scores'!$A$1:$AO$201,41,0)) ->  | I31: =IF(C31="","", VLOOKUP(C31, 'Regional composite scores'!$A$1:$AW$201, 49, 0)) -> 
A32: =VLOOKUP(C32, Helper_zone!$B$35:$C$233, 2,0) ->  | B32: 27 | C32: =_xlfn.IFNA(VLOOKUP(CONCATENATE(SUBSTITUTE('Cover page'!$Q$3, " ", ""),'Regional Dashboard'!B32),'Helper_worho denom'!$A$1:$C$200,2,0),"") ->  | D32: =IF(C32="","", VLOOKUP(C32, 'Regional composite scores'!$A$1:$I$201, 9, 0)) ->  | E32: =IF(C32="","", VLOOKUP(C32, 'Regional composite scores'!$A$1:$Q$201, 17,0)) ->  | F32: =IF(C32="", "", VLOOKUP(C32, 'Regional composite scores'!$A$1:$Y$201, 25, 0)) ->  | G32: =IF(C32="","",VLOOKUP(C32, 'Regional composite scores'!$A$1:$AG$201, 33, 0)) ->  | H32: =IF(C32="","",VLOOKUP(C32,'Regional composite scores'!$A$1:$AO$201,41,0)) ->  | I32: =IF(C32="","", VLOOKUP(C32, 'Regional composite scores'!$A$1:$AW$201, 49, 0)) -> 
A33: =VLOOKUP(C33, Helper_zone!$B$35:$C$233, 2,0) ->  | B33: 28 | C33: =_xlfn.IFNA(VLOOKUP(CONCATENATE(SUBSTITUTE('Cover page'!$Q$3, " ", ""),'Regional Dashboard'!B33),'Helper_worho denom'!$A$1:$C$200,2,0),"") ->  | D33: =IF(C33="","", VLOOKUP(C33, 'Regional composite scores'!$A$1:$I$201, 9, 0)) ->  | E33: =IF(C33="","", VLOOKUP(C33, 'Regional composite scores'!$A$1:$Q$201, 17,0)) ->  | F33: =IF(C33="", "", VLOOKUP(C33, 'Regional composite scores'!$A$1:$Y$201, 25, 0)) ->  | G33: =IF(C33="","",VLOOKUP(C33, 'Regional composite scores'!$A$1:$AG$201, 33, 0)) ->  | H33: =IF(C33="","",VLOOKUP(C33,'Regional composite scores'!$A$1:$AO$201,41,0)) ->  | I33: =IF(C33="","", VLOOKUP(C33, 'Regional composite scores'!$A$1:$AW$201, 49, 0)) -> 
A34: =VLOOKUP(C34, Helper_zone!$B$35:$C$233, 2,0) ->  | B34: 29 | C34: =_xlfn.IFNA(VLOOKUP(CONCATENATE(SUBSTITUTE('Cover page'!$Q$3, " ", ""),'Regional Dashboard'!B34),'Helper_worho denom'!$A$1:$C$200,2,0),"") ->  | D34: =IF(C34="","", VLOOKUP(C34, 'Regional composite scores'!$A$1:$I$201, 9, 0)) ->  | E34: =IF(C34="","", VLOOKUP(C34, 'Regional composite scores'!$A$1:$Q$201, 17,0)) ->  | F34: =IF(C34="", "", VLOOKUP(C34, 'Regional composite scores'!$A$1:$Y$201, 25, 0)) ->  | G34: =IF(C34="","",VLOOKUP(C34, 'Regional composite scores'!$A$1:$AG$201, 33, 0)) ->  | H34: =IF(C34="","",VLOOKUP(C34,'Regional composite scores'!$A$1:$AO$201,41,0)) ->  | I34: =IF(C34="","", VLOOKUP(C34, 'Regional composite scores'!$A$1:$AW$201, 49, 0)) -> 
A35: =VLOOKUP(C35, Helper_zone!$B$35:$C$233, 2,0) ->  | B35: 30 | C35: =_xlfn.IFNA(VLOOKUP(CONCATENATE(SUBSTITUTE('Cover page'!$Q$3, " ", ""),'Regional Dashboard'!B35),'Helper_worho denom'!$A$1:$C$200,2,0),"") ->  | D35: =IF(C35="","", VLOOKUP(C35, 'Regional composite scores'!$A$1:$I$201, 9, 0)) ->  | E35: =IF(C35="","", VLOOKUP(C35, 'Regional composite scores'!$A$1:$Q$201, 17,0)) ->  | F35: =IF(C35="", "", VLOOKUP(C35, 'Regional composite scores'!$A$1:$Y$201, 25, 0)) ->  | G35: =IF(C35="","",VLOOKUP(C35, 'Regional composite scores'!$A$1:$AG$201, 33, 0)) ->  | H35: =IF(C35="","",VLOOKUP(C35,'Regional composite scores'!$A$1:$AO$201,41,0)) ->  | I35: =IF(C35="","", VLOOKUP(C35, 'Regional composite scores'!$A$1:$AW$201, 49, 0)) -> 
A36: =VLOOKUP(C36, Helper_zone!$B$35:$C$233, 2,0) ->  | B36: 31 | C36: =_xlfn.IFNA(VLOOKUP(CONCATENATE(SUBSTITUTE('Cover page'!$Q$3, " ", ""),'Regional Dashboard'!B36),'Helper_worho denom'!$A$1:$C$200,2,0),"") ->  | D36: =IF(C36="","", VLOOKUP(C36, 'Regional composite scores'!$A$1:$I$201, 9, 0)) ->  | E36: =IF(C36="","", VLOOKUP(C36, 'Regional composite scores'!$A$1:$Q$201, 17,0)) ->  | F36: =IF(C36="", "", VLOOKUP(C36, 'Regional composite scores'!$A$1:$Y$201, 25, 0)) ->  | G36: =IF(C36="","",VLOOKUP(C36, 'Regional composite scores'!$A$1:$AG$201, 33, 0)) ->  | H36: =IF(C36="","",VLOOKUP(C36,'Regional composite scores'!$A$1:$AO$201,41,0)) ->  | I36: =IF(C36="","", VLOOKUP(C36, 'Regional composite scores'!$A$1:$AW$201, 49, 0)) -> 
A37: =VLOOKUP(C37, Helper_zone!$B$35:$C$233, 2,0) ->  | B37: 32 | C37: =_xlfn.IFNA(VLOOKUP(CONCATENATE(SUBSTITUTE('Cover page'!$Q$3, " ", ""),'Regional Dashboard'!B37),'Helper_worho denom'!$A$1:$C$200,2,0),"") ->  | D37: =IF(C37="","", VLOOKUP(C37, 'Regional composite scores'!$A$1:$I$201, 9, 0)) ->  | E37: =IF(C37="","", VLOOKUP(C37, 'Regional composite scores'!$A$1:$Q$201, 17,0)) ->  | F37: =IF(C37="", "", VLOOKUP(C37, 'Regional composite scores'!$A$1:$Y$201, 25, 0)) ->  | G37: =IF(C37="","",VLOOKUP(C37, 'Regional composite scores'!$A$1:$AG$201, 33, 0)) ->  | H37: =IF(C37="","",VLOOKUP(C37,'Regional composite scores'!$A$1:$AO$201,41,0)) ->  | I37: =IF(C37="","", VLOOKUP(C37, 'Regional composite scores'!$A$1:$AW$201, 49, 0)) -> 
A38: =VLOOKUP(C38, Helper_zone!$B$35:$C$233, 2,0) ->  | B38: 33 | C38: =_xlfn.IFNA(VLOOKUP(CONCATENATE(SUBSTITUTE('Cover page'!$Q$3, " ", ""),'Regional Dashboard'!B38),'Helper_worho denom'!$A$1:$C$200,2,0),"") ->  | D38: =IF(C38="","", VLOOKUP(C38, 'Regional composite scores'!$A$1:$I$201, 9, 0)) ->  | E38: =IF(C38="","", VLOOKUP(C38, 'Regional composite scores'!$A$1:$Q$201, 17,0)) ->  | F38: =IF(C38="", "", VLOOKUP(C38, 'Regional composite scores'!$A$1:$Y$201, 25, 0)) ->  | G38: =IF(C38="","",VLOOKUP(C38, 'Regional composite scores'!$A$1:$AG$201, 33, 0)) ->  | H38: =IF(C38="","",VLOOKUP(C38,'Regional composite scores'!$A$1:$AO$201,41,0)) ->  | I38: =IF(C38="","", VLOOKUP(C38, 'Regional composite scores'!$A$1:$AW$201, 49, 0)) -> 
A39: =VLOOKUP(C39, Helper_zone!$B$35:$C$233, 2,0) ->  | B39: 34 | C39: =_xlfn.IFNA(VLOOKUP(CONCATENATE(SUBSTITUTE('Cover page'!$Q$3, " ", ""),'Regional Dashboard'!B39),'Helper_worho denom'!$A$1:$C$200,2,0),"") ->  | D39: =IF(C39="","", VLOOKUP(C39, 'Regional composite scores'!$A$1:$I$201, 9, 0)) ->  | E39: =IF(C39="","", VLOOKUP(C39, 'Regional composite scores'!$A$1:$Q$201, 17,0)) ->  | F39: =IF(C39="", "", VLOOKUP(C39, 'Regional composite scores'!$A$1:$Y$201, 25, 0)) ->  | G39: =IF(C39="","",VLOOKUP(C39, 'Regional composite scores'!$A$1:$AG$201, 33, 0)) ->  | H39: =IF(C39="","",VLOOKUP(C39,'Regional composite scores'!$A$1:$AO$201,41,0)) ->  | I39: =IF(C39="","", VLOOKUP(C39, 'Regional composite scores'!$A$1:$AW$201, 49, 0)) -> 
A40: =VLOOKUP(C40, Helper_zone!$B$35:$C$233, 2,0) ->  | B40: 35 | C40: =_xlfn.IFNA(VLOOKUP(CONCATENATE(SUBSTITUTE('Cover page'!$Q$3, " ", ""),'Regional Dashboard'!B40),'Helper_worho denom'!$A$1:$C$200,2,0),"") ->  | D40: =IF(C40="","", VLOOKUP(C40, 'Regional composite scores'!$A$1:$I$201, 9, 0)) ->  | E40: =IF(C40="","", VLOOKUP(C40, 'Regional composite scores'!$A$1:$Q$201, 17,0)) ->  | F40: =IF(C40="", "", VLOOKUP(C40, 'Regional composite scores'!$A$1:$Y$201, 25, 0)) ->  | G40: =IF(C40="","",VLOOKUP(C40, 'Regional composite scores'!$A$1:$AG$201, 33, 0)) ->  | H40: =IF(C40="","",VLOOKUP(C40,'Regional composite scores'!$A$1:$AO$201,41,0)) ->  | I40: =IF(C40="","", VLOOKUP(C40, 'Regional composite scores'!$A$1:$AW$201, 49, 0)) -> 
A41: =VLOOKUP(C41, Helper_zone!$B$35:$C$233, 2,0) ->  | B41: 36 | C41: =_xlfn.IFNA(VLOOKUP(CONCATENATE(SUBSTITUTE('Cover page'!$Q$3, " ", ""),'Regional Dashboard'!B41),'Helper_worho denom'!$A$1:$C$200,2,0),"") ->  | D41: =IF(C41="","", VLOOKUP(C41, 'Regional composite scores'!$A$1:$I$201, 9, 0)) ->  | E41: =IF(C41="","", VLOOKUP(C41, 'Regional composite scores'!$A$1:$Q$201, 17,0)) ->  | F41: =IF(C41="", "", VLOOKUP(C41, 'Regional composite scores'!$A$1:$Y$201, 25, 0)) ->  | G41: =IF(C41="","",VLOOKUP(C41, 'Regional composite scores'!$A$1:$AG$201, 33, 0)) ->  | H41: =IF(C41="","",VLOOKUP(C41,'Regional composite scores'!$A$1:$AO$201,41,0)) ->  | I41: =IF(C41="","", VLOOKUP(C41, 'Regional composite scores'!$A$1:$AW$201, 49, 0)) -> 
A42: =VLOOKUP(C42, Helper_zone!$B$35:$C$233, 2,0) ->  | B42: 37 | C42: =_xlfn.IFNA(VLOOKUP(CONCATENATE(SUBSTITUTE('Cover page'!$Q$3, " ", ""),'Regional Dashboard'!B42),'Helper_worho denom'!$A$1:$C$200,2,0),"") ->  | D42: =IF(C42="","", VLOOKUP(C42, 'Regional composite scores'!$A$1:$I$201, 9, 0)) ->  | E42: =IF(C42="","", VLOOKUP(C42, 'Regional composite scores'!$A$1:$Q$201, 17,0)) ->  | F42: =IF(C42="", "", VLOOKUP(C42, 'Regional composite scores'!$A$1:$Y$201, 25, 0)) ->  | G42: =IF(C42="","",VLOOKUP(C42, 'Regional composite scores'!$A$1:$AG$201, 33, 0)) ->  | H42: =IF(C42="","",VLOOKUP(C42,'Regional composite scores'!$A$1:$AO$201,41,0)) ->  | I42: =IF(C42="","", VLOOKUP(C42, 'Regional composite scores'!$A$1:$AW$201, 49, 0)) -> 
A43: =VLOOKUP(C43, Helper_zone!$B$35:$C$233, 2,0) ->  | B43: 38 | C43: =_xlfn.IFNA(VLOOKUP(CONCATENATE(SUBSTITUTE('Cover page'!$Q$3, " ", ""),'Regional Dashboard'!B43),'Helper_worho denom'!$A$1:$C$200,2,0),"") ->  | D43: =IF(C43="","", VLOOKUP(C43, 'Regional composite scores'!$A$1:$I$201, 9, 0)) ->  | E43: =IF(C43="","", VLOOKUP(C43, 'Regional composite scores'!$A$1:$Q$201, 17,0)) ->  | F43: =IF(C43="", "", VLOOKUP(C43, 'Regional composite scores'!$A$1:$Y$201, 25, 0)) ->  | G43: =IF(C43="","",VLOOKUP(C43, 'Regional composite scores'!$A$1:$AG$201, 33, 0)) ->  | H43: =IF(C43="","",VLOOKUP(C43,'Regional composite scores'!$A$1:$AO$201,41,0)) ->  | I43: =IF(C43="","", VLOOKUP(C43, 'Regional composite scores'!$A$1:$AW$201, 49, 0)) -> 
A44: =VLOOKUP(C44, Helper_zone!$B$35:$C$233, 2,0) ->  | B44: 39 | C44: =_xlfn.IFNA(VLOOKUP(CONCATENATE(SUBSTITUTE('Cover page'!$Q$3, " ", ""),'Regional Dashboard'!B44),'Helper_worho denom'!$A$1:$C$200,2,0),"") ->  | D44: =IF(C44="","", VLOOKUP(C44, 'Regional composite scores'!$A$1:$I$201, 9, 0)) ->  | E44: =IF(C44="","", VLOOKUP(C44, 'Regional composite scores'!$A$1:$Q$201, 17,0)) ->  | F44: =IF(C44="", "", VLOOKUP(C44, 'Regional composite scores'!$A$1:$Y$201, 25, 0)) ->  | G44: =IF(C44="","",VLOOKUP(C44, 'Regional composite scores'!$A$1:$AG$201, 33, 0)) ->  | H44: =IF(C44="","",VLOOKUP(C44,'Regional composite scores'!$A$1:$AO$201,41,0)) ->  | I44: =IF(C44="","", VLOOKUP(C44, 'Regional composite scores'!$A$1:$AW$201, 49, 0)) -> 
A45: =VLOOKUP(C45, Helper_zone!$B$35:$C$233, 2,0) ->  | B45: 40 | C45: =_xlfn.IFNA(VLOOKUP(CONCATENATE(SUBSTITUTE('Cover page'!$Q$3, " ", ""),'Regional Dashboard'!B45),'Helper_worho denom'!$A$1:$C$200,2,0),"") ->  | D45: =IF(C45="","", VLOOKUP(C45, 'Regional composite scores'!$A$1:$I$201, 9, 0)) ->  | E45: =IF(C45="","", VLOOKUP(C45, 'Regional composite scores'!$A$1:$Q$201, 17,0)) ->  | F45: =IF(C45="", "", VLOOKUP(C45, 'Regional composite scores'!$A$1:$Y$201, 25, 0)) ->  | G45: =IF(C45="","",VLOOKUP(C45, 'Regional composite scores'!$A$1:$AG$201, 33, 0)) ->  | H45: =IF(C45="","",VLOOKUP(C45,'Regional composite scores'!$A$1:$AO$201,41,0)) ->  | I45: =IF(C45="","", VLOOKUP(C45, 'Regional composite scores'!$A$1:$AW$201, 49, 0)) -> 
A46: =VLOOKUP(C46, Helper_zone!$B$35:$C$233, 2,0) ->  | B46: 41 | C46: =_xlfn.IFNA(VLOOKUP(CONCATENATE(SUBSTITUTE('Cover page'!$Q$3, " ", ""),'Regional Dashboard'!B46),'Helper_worho denom'!$A$1:$C$200,2,0),"") ->  | D46: =IF(C46="","", VLOOKUP(C46, 'Regional composite scores'!$A$1:$I$201, 9, 0)) ->  | E46: =IF(C46="","", VLOOKUP(C46, 'Regional composite scores'!$A$1:$Q$201, 17,0)) ->  | F46: =IF(C46="", "", VLOOKUP(C46, 'Regional composite scores'!$A$1:$Y$201, 25, 0)) ->  | G46: =IF(C46="","",VLOOKUP(C46, 'Regional composite scores'!$A$1:$AG$201, 33, 0)) ->  | H46: =IF(C46="","",VLOOKUP(C46,'Regional composite scores'!$A$1:$AO$201,41,0)) ->  | I46: =IF(C46="","", VLOOKUP(C46, 'Regional composite scores'!$A$1:$AW$201, 49, 0)) -> 
A47: =VLOOKUP(C47, Helper_zone!$B$35:$C$233, 2,0) ->  | B47: 42 | C47: =_xlfn.IFNA(VLOOKUP(CONCATENATE(SUBSTITUTE('Cover page'!$Q$3, " ", ""),'Regional Dashboard'!B47),'Helper_worho denom'!$A$1:$C$200,2,0),"") ->  | D47: =IF(C47="","", VLOOKUP(C47, 'Regional composite scores'!$A$1:$I$201, 9, 0)) ->  | E47: =IF(C47="","", VLOOKUP(C47, 'Regional composite scores'!$A$1:$Q$201, 17,0)) ->  | F47: =IF(C47="", "", VLOOKUP(C47, 'Regional composite scores'!$A$1:$Y$201, 25, 0)) ->  | G47: =IF(C47="","",VLOOKUP(C47, 'Regional composite scores'!$A$1:$AG$201, 33, 0)) ->  | H47: =IF(C47="","",VLOOKUP(C47,'Regional composite scores'!$A$1:$AO$201,41,0)) ->  | I47: =IF(C47="","", VLOOKUP(C47, 'Regional composite scores'!$A$1:$AW$201, 49, 0)) -> 
A48: =VLOOKUP(C48, Helper_zone!$B$35:$C$233, 2,0) ->  | B48: 43 | C48: =_xlfn.IFNA(VLOOKUP(CONCATENATE(SUBSTITUTE('Cover page'!$Q$3, " ", ""),'Regional Dashboard'!B48),'Helper_worho denom'!$A$1:$C$200,2,0),"") ->  | D48: =IF(C48="","", VLOOKUP(C48, 'Regional composite scores'!$A$1:$I$201, 9, 0)) ->  | E48: =IF(C48="","", VLOOKUP(C48, 'Regional composite scores'!$A$1:$Q$201, 17,0)) ->  | F48: =IF(C48="", "", VLOOKUP(C48, 'Regional composite scores'!$A$1:$Y$201, 25, 0)) ->  | G48: =IF(C48="","",VLOOKUP(C48, 'Regional composite scores'!$A$1:$AG$201, 33, 0)) ->  | H48: =IF(C48="","",VLOOKUP(C48,'Regional composite scores'!$A$1:$AO$201,41,0)) ->  | I48: =IF(C48="","", VLOOKUP(C48, 'Regional composite scores'!$A$1:$AW$201, 49, 0)) -> 
A49: =VLOOKUP(C49, Helper_zone!$B$35:$C$233, 2,0) ->  | B49: 44 | C49: =_xlfn.IFNA(VLOOKUP(CONCATENATE(SUBSTITUTE('Cover page'!$Q$3, " ", ""),'Regional Dashboard'!B49),'Helper_worho denom'!$A$1:$C$200,2,0),"") ->  | D49: =IF(C49="","", VLOOKUP(C49, 'Regional composite scores'!$A$1:$I$201, 9, 0)) ->  | E49: =IF(C49="","", VLOOKUP(C49, 'Regional composite scores'!$A$1:$Q$201, 17,0)) ->  | F49: =IF(C49="", "", VLOOKUP(C49, 'Regional composite scores'!$A$1:$Y$201, 25, 0)) ->  | G49: =IF(C49="","",VLOOKUP(C49, 'Regional composite scores'!$A$1:$AG$201, 33, 0)) ->  | H49: =IF(C49="","",VLOOKUP(C49,'Regional composite scores'!$A$1:$AO$201,41,0)) ->  | I49: =IF(C49="","", VLOOKUP(C49, 'Regional composite scores'!$A$1:$AW$201, 49, 0)) -> 
A50: =VLOOKUP(C50, Helper_zone!$B$35:$C$233, 2,0) ->  | B50: 45 | C50: =_xlfn.IFNA(VLOOKUP(CONCATENATE(SUBSTITUTE('Cover page'!$Q$3, " ", ""),'Regional Dashboard'!B50),'Helper_worho denom'!$A$1:$C$200,2,0),"") ->  | D50: =IF(C50="","", VLOOKUP(C50, 'Regional composite scores'!$A$1:$I$201, 9, 0)) ->  | E50: =IF(C50="","", VLOOKUP(C50, 'Regional composite scores'!$A$1:$Q$201, 17,0)) ->  | F50: =IF(C50="", "", VLOOKUP(C50, 'Regional composite scores'!$A$1:$Y$201, 25, 0)) ->  | G50: =IF(C50="","",VLOOKUP(C50, 'Regional composite scores'!$A$1:$AG$201, 33, 0)) ->  | H50: =IF(C50="","",VLOOKUP(C50,'Regional composite scores'!$A$1:$AO$201,41,0)) ->  | I50: =IF(C50="","", VLOOKUP(C50, 'Regional composite scores'!$A$1:$AW$201, 49, 0)) -> 
A51: =VLOOKUP(C51, Helper_zone!$B$35:$C$233, 2,0) ->  | B51: 46 | C51: =_xlfn.IFNA(VLOOKUP(CONCATENATE(SUBSTITUTE('Cover page'!$Q$3, " ", ""),'Regional Dashboard'!B51),'Helper_worho denom'!$A$1:$C$200,2,0),"") ->  | D51: =IF(C51="","", VLOOKUP(C51, 'Regional composite scores'!$A$1:$I$201, 9, 0)) ->  | E51: =IF(C51="","", VLOOKUP(C51, 'Regional composite scores'!$A$1:$Q$201, 17,0)) ->  | F51: =IF(C51="", "", VLOOKUP(C51, 'Regional composite scores'!$A$1:$Y$201, 25, 0)) ->  | G51: =IF(C51="","",VLOOKUP(C51, 'Regional composite scores'!$A$1:$AG$201, 33, 0)) ->  | H51: =IF(C51="","",VLOOKUP(C51,'Regional composite scores'!$A$1:$AO$201,41,0)) ->  | I51: =IF(C51="","", VLOOKUP(C51, 'Regional composite scores'!$A$1:$AW$201, 49, 0)) -> 
A52: =VLOOKUP(C52, Helper_zone!$B$35:$C$233, 2,0) ->  | B52: 47 | C52: =_xlfn.IFNA(VLOOKUP(CONCATENATE(SUBSTITUTE('Cover page'!$Q$3, " ", ""),'Regional Dashboard'!B52),'Helper_worho denom'!$A$1:$C$200,2,0),"") ->  | D52: =IF(C52="","", VLOOKUP(C52, 'Regional composite scores'!$A$1:$I$201, 9, 0)) ->  | E52: =IF(C52="","", VLOOKUP(C52, 'Regional composite scores'!$A$1:$Q$201, 17,0)) ->  | F52: =IF(C52="", "", VLOOKUP(C52, 'Regional composite scores'!$A$1:$Y$201, 25, 0)) ->  | G52: =IF(C52="","",VLOOKUP(C52, 'Regional composite scores'!$A$1:$AG$201, 33, 0)) ->  | H52: =IF(C52="","",VLOOKUP(C52,'Regional composite scores'!$A$1:$AO$201,41,0)) ->  | I52: =IF(C52="","", VLOOKUP(C52, 'Regional composite scores'!$A$1:$AW$201, 49, 0)) -> 
A53: =VLOOKUP(C53, Helper_zone!$B$35:$C$233, 2,0) ->  | B53: 48 | C53: =_xlfn.IFNA(VLOOKUP(CONCATENATE(SUBSTITUTE('Cover page'!$Q$3, " ", ""),'Regional Dashboard'!B53),'Helper_worho denom'!$A$1:$C$200,2,0),"") ->  | D53: =IF(C53="","", VLOOKUP(C53, 'Regional composite scores'!$A$1:$I$201, 9, 0)) ->  | E53: =IF(C53="","", VLOOKUP(C53, 'Regional composite scores'!$A$1:$Q$201, 17,0)) ->  | F53: =IF(C53="", "", VLOOKUP(C53, 'Regional composite scores'!$A$1:$Y$201, 25, 0)) ->  | G53: =IF(C53="","",VLOOKUP(C53, 'Regional composite scores'!$A$1:$AG$201, 33, 0)) ->  | H53: =IF(C53="","",VLOOKUP(C53,'Regional composite scores'!$A$1:$AO$201,41,0)) ->  | I53: =IF(C53="","", VLOOKUP(C53, 'Regional composite scores'!$A$1:$AW$201, 49, 0)) -> 
A54: =VLOOKUP(C54, Helper_zone!$B$35:$C$233, 2,0) ->  | B54: 49 | C54: =_xlfn.IFNA(VLOOKUP(CONCATENATE(SUBSTITUTE('Cover page'!$Q$3, " ", ""),'Regional Dashboard'!B54),'Helper_worho denom'!$A$1:$C$200,2,0),"") ->  | D54: =IF(C54="","", VLOOKUP(C54, 'Regional composite scores'!$A$1:$I$201, 9, 0)) ->  | E54: =IF(C54="","", VLOOKUP(C54, 'Regional composite scores'!$A$1:$Q$201, 17,0)) ->  | F54: =IF(C54="", "", VLOOKUP(C54, 'Regional composite scores'!$A$1:$Y$201, 25, 0)) ->  | G54: =IF(C54="","",VLOOKUP(C54, 'Regional composite scores'!$A$1:$AG$201, 33, 0)) ->  | H54: =IF(C54="","",VLOOKUP(C54,'Regional composite scores'!$A$1:$AO$201,41,0)) ->  | I54: =IF(C54="","", VLOOKUP(C54, 'Regional composite scores'!$A$1:$AW$201, 49, 0)) -> 
A55: =VLOOKUP(C55, Helper_zone!$B$35:$C$233, 2,0) ->  | B55: 50 | C55: =_xlfn.IFNA(VLOOKUP(CONCATENATE(SUBSTITUTE('Cover page'!$Q$3, " ", ""),'Regional Dashboard'!B55),'Helper_worho denom'!$A$1:$C$200,2,0),"") ->  | D55: =IF(C55="","", VLOOKUP(C55, 'Regional composite scores'!$A$1:$I$201, 9, 0)) ->  | E55: =IF(C55="","", VLOOKUP(C55, 'Regional composite scores'!$A$1:$Q$201, 17,0)) ->  | F55: =IF(C55="", "", VLOOKUP(C55, 'Regional composite scores'!$A$1:$Y$201, 25, 0)) ->  | G55: =IF(C55="","",VLOOKUP(C55, 'Regional composite scores'!$A$1:$AG$201, 33, 0)) ->  | H55: =IF(C55="","",VLOOKUP(C55,'Regional composite scores'!$A$1:$AO$201,41,0)) ->  | I55: =IF(C55="","", VLOOKUP(C55, 'Regional composite scores'!$A$1:$AW$201, 49, 0)) -> 
A56: =VLOOKUP(C56, Helper_zone!$B$35:$C$233, 2,0) ->  | B56: 51 | C56: =_xlfn.IFNA(VLOOKUP(CONCATENATE(SUBSTITUTE('Cover page'!$Q$3, " ", ""),'Regional Dashboard'!B56),'Helper_worho denom'!$A$1:$C$200,2,0),"") ->  | D56: =IF(C56="","", VLOOKUP(C56, 'Regional composite scores'!$A$1:$I$201, 9, 0)) ->  | E56: =IF(C56="","", VLOOKUP(C56, 'Regional composite scores'!$A$1:$Q$201, 17,0)) ->  | F56: =IF(C56="", "", VLOOKUP(C56, 'Regional composite scores'!$A$1:$Y$201, 25, 0)) ->  | G56: =IF(C56="","",VLOOKUP(C56, 'Regional composite scores'!$A$1:$AG$201, 33, 0)) ->  | H56: =IF(C56="","",VLOOKUP(C56,'Regional composite scores'!$A$1:$AO$201,41,0)) ->  | I56: =IF(C56="","", VLOOKUP(C56, 'Regional composite scores'!$A$1:$AW$201, 49, 0)) -> 
A57: =VLOOKUP(C57, Helper_zone!$B$35:$C$233, 2,0) ->  | B57: 52 | C57: =_xlfn.IFNA(VLOOKUP(CONCATENATE(SUBSTITUTE('Cover page'!$Q$3, " ", ""),'Regional Dashboard'!B57),'Helper_worho denom'!$A$1:$C$200,2,0),"") ->  | D57: =IF(C57="","", VLOOKUP(C57, 'Regional composite scores'!$A$1:$I$201, 9, 0)) ->  | E57: =IF(C57="","", VLOOKUP(C57, 'Regional composite scores'!$A$1:$Q$201, 17,0)) ->  | F57: =IF(C57="", "", VLOOKUP(C57, 'Regional composite scores'!$A$1:$Y$201, 25, 0)) ->  | G57: =IF(C57="","",VLOOKUP(C57, 'Regional composite scores'!$A$1:$AG$201, 33, 0)) ->  | H57: =IF(C57="","",VLOOKUP(C57,'Regional composite scores'!$A$1:$AO$201,41,0)) ->  | I57: =IF(C57="","", VLOOKUP(C57, 'Regional composite scores'!$A$1:$AW$201, 49, 0)) -> 
A58: =VLOOKUP(C58, Helper_zone!$B$35:$C$233, 2,0) ->  | B58: 53 | C58: =_xlfn.IFNA(VLOOKUP(CONCATENATE(SUBSTITUTE('Cover page'!$Q$3, " ", ""),'Regional Dashboard'!B58),'Helper_worho denom'!$A$1:$C$200,2,0),"") ->  | D58: =IF(C58="","", VLOOKUP(C58, 'Regional composite scores'!$A$1:$I$201, 9, 0)) ->  | E58: =IF(C58="","", VLOOKUP(C58, 'Regional composite scores'!$A$1:$Q$201, 17,0)) ->  | F58: =IF(C58="", "", VLOOKUP(C58, 'Regional composite scores'!$A$1:$Y$201, 25, 0)) ->  | G58: =IF(C58="","",VLOOKUP(C58, 'Regional composite scores'!$A$1:$AG$201, 33, 0)) ->  | H58: =IF(C58="","",VLOOKUP(C58,'Regional composite scores'!$A$1:$AO$201,41,0)) ->  | I58: =IF(C58="","", VLOOKUP(C58, 'Regional composite scores'!$A$1:$AW$201, 49, 0)) -> 
A59: =VLOOKUP(C59, Helper_zone!$B$35:$C$233, 2,0) ->  | B59: 54 | C59: =_xlfn.IFNA(VLOOKUP(CONCATENATE(SUBSTITUTE('Cover page'!$Q$3, " ", ""),'Regional Dashboard'!B59),'Helper_worho denom'!$A$1:$C$200,2,0),"") ->  | D59: =IF(C59="","", VLOOKUP(C59, 'Regional composite scores'!$A$1:$I$201, 9, 0)) ->  | E59: =IF(C59="","", VLOOKUP(C59, 'Regional composite scores'!$A$1:$Q$201, 17,0)) ->  | F59: =IF(C59="", "", VLOOKUP(C59, 'Regional composite scores'!$A$1:$Y$201, 25, 0)) ->  | G59: =IF(C59="","",VLOOKUP(C59, 'Regional composite scores'!$A$1:$AG$201, 33, 0)) ->  | H59: =IF(C59="","",VLOOKUP(C59,'Regional composite scores'!$A$1:$AO$201,41,0)) ->  | I59: =IF(C59="","", VLOOKUP(C59, 'Regional composite scores'!$A$1:$AW$201, 49, 0)) -> 
A60: =VLOOKUP(C60, Helper_zone!$B$35:$C$233, 2,0) ->  | B60: 55 | C60: =_xlfn.IFNA(VLOOKUP(CONCATENATE(SUBSTITUTE('Cover page'!$Q$3, " ", ""),'Regional Dashboard'!B60),'Helper_worho denom'!$A$1:$C$200,2,0),"") ->  | D60: =IF(C60="","", VLOOKUP(C60, 'Regional composite scores'!$A$1:$I$201, 9, 0)) ->  | E60: =IF(C60="","", VLOOKUP(C60, 'Regional composite scores'!$A$1:$Q$201, 17,0)) ->  | F60: =IF(C60="", "", VLOOKUP(C60, 'Regional composite scores'!$A$1:$Y$201, 25, 0)) ->  | G60: =IF(C60="","",VLOOKUP(C60, 'Regional composite scores'!$A$1:$AG$201, 33, 0)) ->  | H60: =IF(C60="","",VLOOKUP(C60,'Regional composite scores'!$A$1:$AO$201,41,0)) ->  | I60: =IF(C60="","", VLOOKUP(C60, 'Regional composite scores'!$A$1:$AW$201, 49, 0)) -> 
A61: =VLOOKUP(C61, Helper_zone!$B$35:$C$233, 2,0) ->  | B61: 56 | C61: =_xlfn.IFNA(VLOOKUP(CONCATENATE(SUBSTITUTE('Cover page'!$Q$3, " ", ""),'Regional Dashboard'!B61),'Helper_worho denom'!$A$1:$C$200,2,0),"") ->  | D61: =IF(C61="","", VLOOKUP(C61, 'Regional composite scores'!$A$1:$I$201, 9, 0)) ->  | E61: =IF(C61="","", VLOOKUP(C61, 'Regional composite scores'!$A$1:$Q$201, 17,0)) ->  | F61: =IF(C61="", "", VLOOKUP(C61, 'Regional composite scores'!$A$1:$Y$201, 25, 0)) ->  | G61: =IF(C61="","",VLOOKUP(C61, 'Regional composite scores'!$A$1:$AG$201, 33, 0)) ->  | H61: =IF(C61="","",VLOOKUP(C61,'Regional composite scores'!$A$1:$AO$201,41,0)) ->  | I61: =IF(C61="","", VLOOKUP(C61, 'Regional composite scores'!$A$1:$AW$201, 49, 0)) -> 
A62: =VLOOKUP(C62, Helper_zone!$B$35:$C$233, 2,0) ->  | B62: 57 | C62: =_xlfn.IFNA(VLOOKUP(CONCATENATE(SUBSTITUTE('Cover page'!$Q$3, " ", ""),'Regional Dashboard'!B62),'Helper_worho denom'!$A$1:$C$200,2,0),"") ->  | D62: =IF(C62="","", VLOOKUP(C62, 'Regional composite scores'!$A$1:$I$201, 9, 0)) ->  | E62: =IF(C62="","", VLOOKUP(C62, 'Regional composite scores'!$A$1:$Q$201, 17,0)) ->  | F62: =IF(C62="", "", VLOOKUP(C62, 'Regional composite scores'!$A$1:$Y$201, 25, 0)) ->  | G62: =IF(C62="","",VLOOKUP(C62, 'Regional composite scores'!$A$1:$AG$201, 33, 0)) ->  | H62: =IF(C62="","",VLOOKUP(C62,'Regional composite scores'!$A$1:$AO$201,41,0)) ->  | I62: =IF(C62="","", VLOOKUP(C62, 'Regional composite scores'!$A$1:$AW$201, 49, 0)) -> 
A63: =VLOOKUP(C63, Helper_zone!$B$35:$C$233, 2,0) ->  | B63: 58 | C63: =_xlfn.IFNA(VLOOKUP(CONCATENATE(SUBSTITUTE('Cover page'!$Q$3, " ", ""),'Regional Dashboard'!B63),'Helper_worho denom'!$A$1:$C$200,2,0),"") ->  | D63: =IF(C63="","", VLOOKUP(C63, 'Regional composite scores'!$A$1:$I$201, 9, 0)) ->  | E63: =IF(C63="","", VLOOKUP(C63, 'Regional composite scores'!$A$1:$Q$201, 17,0)) ->  | F63: =IF(C63="", "", VLOOKUP(C63, 'Regional composite scores'!$A$1:$Y$201, 25, 0)) ->  | G63: =IF(C63="","",VLOOKUP(C63, 'Regional composite scores'!$A$1:$AG$201, 33, 0)) ->  | H63: =IF(C63="","",VLOOKUP(C63,'Regional composite scores'!$A$1:$AO$201,41,0)) ->  | I63: =IF(C63="","", VLOOKUP(C63, 'Regional composite scores'!$A$1:$AW$201, 49, 0)) -> 
A64: =VLOOKUP(C64, Helper_zone!$B$35:$C$233, 2,0) ->  | B64: 59 | C64: =_xlfn.IFNA(VLOOKUP(CONCATENATE(SUBSTITUTE('Cover page'!$Q$3, " ", ""),'Regional Dashboard'!B64),'Helper_worho denom'!$A$1:$C$200,2,0),"") ->  | D64: =IF(C64="","", VLOOKUP(C64, 'Regional composite scores'!$A$1:$I$201, 9, 0)) ->  | E64: =IF(C64="","", VLOOKUP(C64, 'Regional composite scores'!$A$1:$Q$201, 17,0)) ->  | F64: =IF(C64="", "", VLOOKUP(C64, 'Regional composite scores'!$A$1:$Y$201, 25, 0)) ->  | G64: =IF(C64="","",VLOOKUP(C64, 'Regional composite scores'!$A$1:$AG$201, 33, 0)) ->  | H64: =IF(C64="","",VLOOKUP(C64,'Regional composite scores'!$A$1:$AO$201,41,0)) ->  | I64: =IF(C64="","", VLOOKUP(C64, 'Regional composite scores'!$A$1:$AW$201, 49, 0)) -> 
A65: =VLOOKUP(C65, Helper_zone!$B$35:$C$233, 2,0) ->  | B65: 60 | C65: =_xlfn.IFNA(VLOOKUP(CONCATENATE(SUBSTITUTE('Cover page'!$Q$3, " ", ""),'Regional Dashboard'!B65),'Helper_worho denom'!$A$1:$C$200,2,0),"") ->  | D65: =IF(C65="","", VLOOKUP(C65, 'Regional composite scores'!$A$1:$I$201, 9, 0)) ->  | E65: =IF(C65="","", VLOOKUP(C65, 'Regional composite scores'!$A$1:$Q$201, 17,0)) ->  | F65: =IF(C65="", "", VLOOKUP(C65, 'Regional composite scores'!$A$1:$Y$201, 25, 0)) ->  | G65: =IF(C65="","",VLOOKUP(C65, 'Regional composite scores'!$A$1:$AG$201, 33, 0)) ->  | H65: =IF(C65="","",VLOOKUP(C65,'Regional composite scores'!$A$1:$AO$201,41,0)) ->  | I65: =IF(C65="","", VLOOKUP(C65, 'Regional composite scores'!$A$1:$AW$201, 49, 0)) -> 
A66: =VLOOKUP(C66, Helper_zone!$B$35:$C$233, 2,0) ->  | B66: 61 | C66: =_xlfn.IFNA(VLOOKUP(CONCATENATE(SUBSTITUTE('Cover page'!$Q$3, " ", ""),'Regional Dashboard'!B66),'Helper_worho denom'!$A$1:$C$200,2,0),"") ->  | D66: =IF(C66="","", VLOOKUP(C66, 'Regional composite scores'!$A$1:$I$201, 9, 0)) ->  | E66: =IF(C66="","", VLOOKUP(C66, 'Regional composite scores'!$A$1:$Q$201, 17,0)) ->  | F66: =IF(C66="", "", VLOOKUP(C66, 'Regional composite scores'!$A$1:$Y$201, 25, 0)) ->  | G66: =IF(C66="","",VLOOKUP(C66, 'Regional composite scores'!$A$1:$AG$201, 33, 0)) ->  | H66: =IF(C66="","",VLOOKUP(C66,'Regional composite scores'!$A$1:$AO$201,41,0)) ->  | I66: =IF(C66="","", VLOOKUP(C66, 'Regional composite scores'!$A$1:$AW$201, 49, 0)) -> 
A67: =VLOOKUP(C67, Helper_zone!$B$35:$C$233, 2,0) ->  | B67: 62 | C67: =_xlfn.IFNA(VLOOKUP(CONCATENATE(SUBSTITUTE('Cover page'!$Q$3, " ", ""),'Regional Dashboard'!B67),'Helper_worho denom'!$A$1:$C$200,2,0),"") ->  | D67: =IF(C67="","", VLOOKUP(C67, 'Regional composite scores'!$A$1:$I$201, 9, 0)) ->  | E67: =IF(C67="","", VLOOKUP(C67, 'Regional composite scores'!$A$1:$Q$201, 17,0)) ->  | F67: =IF(C67="", "", VLOOKUP(C67, 'Regional composite scores'!$A$1:$Y$201, 25, 0)) ->  | G67: =IF(C67="","",VLOOKUP(C67, 'Regional composite scores'!$A$1:$AG$201, 33, 0)) ->  | H67: =IF(C67="","",VLOOKUP(C67,'Regional composite scores'!$A$1:$AO$201,41,0)) ->  | I67: =IF(C67="","", VLOOKUP(C67, 'Regional composite scores'!$A$1:$AW$201, 49, 0)) -> 
A68: =VLOOKUP(C68, Helper_zone!$B$35:$C$233, 2,0) ->  | B68: 63 | C68: =_xlfn.IFNA(VLOOKUP(CONCATENATE(SUBSTITUTE('Cover page'!$Q$3, " ", ""),'Regional Dashboard'!B68),'Helper_worho denom'!$A$1:$C$200,2,0),"") ->  | D68: =IF(C68="","", VLOOKUP(C68, 'Regional composite scores'!$A$1:$I$201, 9, 0)) ->  | E68: =IF(C68="","", VLOOKUP(C68, 'Regional composite scores'!$A$1:$Q$201, 17,0)) ->  | F68: =IF(C68="", "", VLOOKUP(C68, 'Regional composite scores'!$A$1:$Y$201, 25, 0)) ->  | G68: =IF(C68="","",VLOOKUP(C68, 'Regional composite scores'!$A$1:$AG$201, 33, 0)) ->  | H68: =IF(C68="","",VLOOKUP(C68,'Regional composite scores'!$A$1:$AO$201,41,0)) ->  | I68: =IF(C68="","", VLOOKUP(C68, 'Regional composite scores'!$A$1:$AW$201, 49, 0)) -> 
A69: =VLOOKUP(C69, Helper_zone!$B$35:$C$233, 2,0) ->  | B69: 64 | C69: =_xlfn.IFNA(VLOOKUP(CONCATENATE(SUBSTITUTE('Cover page'!$Q$3, " ", ""),'Regional Dashboard'!B69),'Helper_worho denom'!$A$1:$C$200,2,0),"") ->  | D69: =IF(C69="","", VLOOKUP(C69, 'Regional composite scores'!$A$1:$I$201, 9, 0)) ->  | E69: =IF(C69="","", VLOOKUP(C69, 'Regional composite scores'!$A$1:$Q$201, 17,0)) ->  | F69: =IF(C69="", "", VLOOKUP(C69, 'Regional composite scores'!$A$1:$Y$201, 25, 0)) ->  | G69: =IF(C69="","",VLOOKUP(C69, 'Regional composite scores'!$A$1:$AG$201, 33, 0)) ->  | H69: =IF(C69="","",VLOOKUP(C69,'Regional composite scores'!$A$1:$AO$201,41,0)) ->  | I69: =IF(C69="","", VLOOKUP(C69, 'Regional composite scores'!$A$1:$AW$201, 49, 0)) -> 
A70: =VLOOKUP(C70, Helper_zone!$B$35:$C$233, 2,0) ->  | B70: 65 | C70: =_xlfn.IFNA(VLOOKUP(CONCATENATE(SUBSTITUTE('Cover page'!$Q$3, " ", ""),'Regional Dashboard'!B70),'Helper_worho denom'!$A$1:$C$200,2,0),"") ->  | D70: =IF(C70="","", VLOOKUP(C70, 'Regional composite scores'!$A$1:$I$201, 9, 0)) ->  | E70: =IF(C70="","", VLOOKUP(C70, 'Regional composite scores'!$A$1:$Q$201, 17,0)) ->  | F70: =IF(C70="", "", VLOOKUP(C70, 'Regional composite scores'!$A$1:$Y$201, 25, 0)) ->  | G70: =IF(C70="","",VLOOKUP(C70, 'Regional composite scores'!$A$1:$AG$201, 33, 0)) ->  | H70: =IF(C70="","",VLOOKUP(C70,'Regional composite scores'!$A$1:$AO$201,41,0)) ->  | I70: =IF(C70="","", VLOOKUP(C70, 'Regional composite scores'!$A$1:$AW$201, 49, 0)) -> 
A71: =VLOOKUP(C71, Helper_zone!$B$35:$C$233, 2,0) ->  | B71: 66 | C71: =_xlfn.IFNA(VLOOKUP(CONCATENATE(SUBSTITUTE('Cover page'!$Q$3, " ", ""),'Regional Dashboard'!B71),'Helper_worho denom'!$A$1:$C$200,2,0),"") ->  | D71: =IF(C71="","", VLOOKUP(C71, 'Regional composite scores'!$A$1:$I$201, 9, 0)) ->  | E71: =IF(C71="","", VLOOKUP(C71, 'Regional composite scores'!$A$1:$Q$201, 17,0)) ->  | F71: =IF(C71="", "", VLOOKUP(C71, 'Regional composite scores'!$A$1:$Y$201, 25, 0)) ->  | G71: =IF(C71="","",VLOOKUP(C71, 'Regional composite scores'!$A$1:$AG$201, 33, 0)) ->  | H71: =IF(C71="","",VLOOKUP(C71,'Regional composite scores'!$A$1:$AO$201,41,0)) ->  | I71: =IF(C71="","", VLOOKUP(C71, 'Regional composite scores'!$A$1:$AW$201, 49, 0)) -> 
A72: =VLOOKUP(C72, Helper_zone!$B$35:$C$233, 2,0) ->  | B72: 67 | C72: =_xlfn.IFNA(VLOOKUP(CONCATENATE(SUBSTITUTE('Cover page'!$Q$3, " ", ""),'Regional Dashboard'!B72),'Helper_worho denom'!$A$1:$C$200,2,0),"") ->  | D72: =IF(C72="","", VLOOKUP(C72, 'Regional composite scores'!$A$1:$I$201, 9, 0)) ->  | E72: =IF(C72="","", VLOOKUP(C72, 'Regional composite scores'!$A$1:$Q$201, 17,0)) ->  | F72: =IF(C72="", "", VLOOKUP(C72, 'Regional composite scores'!$A$1:$Y$201, 25, 0)) ->  | G72: =IF(C72="","",VLOOKUP(C72, 'Regional composite scores'!$A$1:$AG$201, 33, 0)) ->  | H72: =IF(C72="","",VLOOKUP(C72,'Regional composite scores'!$A$1:$AO$201,41,0)) ->  | I72: =IF(C72="","", VLOOKUP(C72, 'Regional composite scores'!$A$1:$AW$201, 49, 0)) -> 
A73: =VLOOKUP(C73, Helper_zone!$B$35:$C$233, 2,0) ->  | B73: 68 | C73: =_xlfn.IFNA(VLOOKUP(CONCATENATE(SUBSTITUTE('Cover page'!$Q$3, " ", ""),'Regional Dashboard'!B73),'Helper_worho denom'!$A$1:$C$200,2,0),"") ->  | D73: =IF(C73="","", VLOOKUP(C73, 'Regional composite scores'!$A$1:$I$201, 9, 0)) ->  | E73: =IF(C73="","", VLOOKUP(C73, 'Regional composite scores'!$A$1:$Q$201, 17,0)) ->  | F73: =IF(C73="", "", VLOOKUP(C73, 'Regional composite scores'!$A$1:$Y$201, 25, 0)) ->  | G73: =IF(C73="","",VLOOKUP(C73, 'Regional composite scores'!$A$1:$AG$201, 33, 0)) ->  | H73: =IF(C73="","",VLOOKUP(C73,'Regional composite scores'!$A$1:$AO$201,41,0)) ->  | I73: =IF(C73="","", VLOOKUP(C73, 'Regional composite scores'!$A$1:$AW$201, 49, 0)) -> 
A74: =VLOOKUP(C74, Helper_zone!$B$35:$C$233, 2,0) ->  | B74: 69 | C74: =_xlfn.IFNA(VLOOKUP(CONCATENATE(SUBSTITUTE('Cover page'!$Q$3, " ", ""),'Regional Dashboard'!B74),'Helper_worho denom'!$A$1:$C$200,2,0),"") ->  | D74: =IF(C74="","", VLOOKUP(C74, 'Regional composite scores'!$A$1:$I$201, 9, 0)) ->  | E74: =IF(C74="","", VLOOKUP(C74, 'Regional composite scores'!$A$1:$Q$201, 17,0)) ->  | F74: =IF(C74="", "", VLOOKUP(C74, 'Regional composite scores'!$A$1:$Y$201, 25, 0)) ->  | G74: =IF(C74="","",VLOOKUP(C74, 'Regional composite scores'!$A$1:$AG$201, 33, 0)) ->  | H74: =IF(C74="","",VLOOKUP(C74,'Regional composite scores'!$A$1:$AO$201,41,0)) ->  | I74: =IF(C74="","", VLOOKUP(C74, 'Regional composite scores'!$A$1:$AW$201, 49, 0)) -> 
A75: =VLOOKUP(C75, Helper_zone!$B$35:$C$233, 2,0) ->  | B75: 70 | C75: =_xlfn.IFNA(VLOOKUP(CONCATENATE(SUBSTITUTE('Cover page'!$Q$3, " ", ""),'Regional Dashboard'!B75),'Helper_worho denom'!$A$1:$C$200,2,0),"") ->  | D75: =IF(C75="","", VLOOKUP(C75, 'Regional composite scores'!$A$1:$I$201, 9, 0)) ->  | E75: =IF(C75="","", VLOOKUP(C75, 'Regional composite scores'!$A$1:$Q$201, 17,0)) ->  | F75: =IF(C75="", "", VLOOKUP(C75, 'Regional composite scores'!$A$1:$Y$201, 25, 0)) ->  | G75: =IF(C75="","",VLOOKUP(C75, 'Regional composite scores'!$A$1:$AG$201, 33, 0)) ->  | H75: =IF(C75="","",VLOOKUP(C75,'Regional composite scores'!$A$1:$AO$201,41,0)) ->  | I75: =IF(C75="","", VLOOKUP(C75, 'Regional composite scores'!$A$1:$AW$201, 49, 0)) -> 
A76: =VLOOKUP(C76, Helper_zone!$B$35:$C$233, 2,0) ->  | B76: 71 | C76: =_xlfn.IFNA(VLOOKUP(CONCATENATE(SUBSTITUTE('Cover page'!$Q$3, " ", ""),'Regional Dashboard'!B76),'Helper_worho denom'!$A$1:$C$200,2,0),"") ->  | D76: =IF(C76="","", VLOOKUP(C76, 'Regional composite scores'!$A$1:$I$201, 9, 0)) ->  | E76: =IF(C76="","", VLOOKUP(C76, 'Regional composite scores'!$A$1:$Q$201, 17,0)) ->  | F76: =IF(C76="", "", VLOOKUP(C76, 'Regional composite scores'!$A$1:$Y$201, 25, 0)) ->  | G76: =IF(C76="","",VLOOKUP(C76, 'Regional composite scores'!$A$1:$AG$201, 33, 0)) ->  | H76: =IF(C76="","",VLOOKUP(C76,'Regional composite scores'!$A$1:$AO$201,41,0)) ->  | I76: =IF(C76="","", VLOOKUP(C76, 'Regional composite scores'!$A$1:$AW$201, 49, 0)) -> 
A77: =VLOOKUP(C77, Helper_zone!$B$35:$C$233, 2,0) ->  | B77: 72 | C77: =_xlfn.IFNA(VLOOKUP(CONCATENATE(SUBSTITUTE('Cover page'!$Q$3, " ", ""),'Regional Dashboard'!B77),'Helper_worho denom'!$A$1:$C$200,2,0),"") ->  | D77: =IF(C77="","", VLOOKUP(C77, 'Regional composite scores'!$A$1:$I$201, 9, 0)) ->  | E77: =IF(C77="","", VLOOKUP(C77, 'Regional composite scores'!$A$1:$Q$201, 17,0)) ->  | F77: =IF(C77="", "", VLOOKUP(C77, 'Regional composite scores'!$A$1:$Y$201, 25, 0)) ->  | G77: =IF(C77="","",VLOOKUP(C77, 'Regional composite scores'!$A$1:$AG$201, 33, 0)) ->  | H77: =IF(C77="","",VLOOKUP(C77,'Regional composite scores'!$A$1:$AO$201,41,0)) ->  | I77: =IF(C77="","", VLOOKUP(C77, 'Regional composite scores'!$A$1:$AW$201, 49, 0)) -> 
A78: =VLOOKUP(C78, Helper_zone!$B$35:$C$233, 2,0) ->  | B78: 73 | C78: =_xlfn.IFNA(VLOOKUP(CONCATENATE(SUBSTITUTE('Cover page'!$Q$3, " ", ""),'Regional Dashboard'!B78),'Helper_worho denom'!$A$1:$C$200,2,0),"") ->  | D78: =IF(C78="","", VLOOKUP(C78, 'Regional composite scores'!$A$1:$I$201, 9, 0)) ->  | E78: =IF(C78="","", VLOOKUP(C78, 'Regional composite scores'!$A$1:$Q$201, 17,0)) ->  | F78: =IF(C78="", "", VLOOKUP(C78, 'Regional composite scores'!$A$1:$Y$201, 25, 0)) ->  | G78: =IF(C78="","",VLOOKUP(C78, 'Regional composite scores'!$A$1:$AG$201, 33, 0)) ->  | H78: =IF(C78="","",VLOOKUP(C78,'Regional composite scores'!$A$1:$AO$201,41,0)) ->  | I78: =IF(C78="","", VLOOKUP(C78, 'Regional composite scores'!$A$1:$AW$201, 49, 0)) -> 
A79: =VLOOKUP(C79, Helper_zone!$B$35:$C$233, 2,0) ->  | B79: 74 | C79: =_xlfn.IFNA(VLOOKUP(CONCATENATE(SUBSTITUTE('Cover page'!$Q$3, " ", ""),'Regional Dashboard'!B79),'Helper_worho denom'!$A$1:$C$200,2,0),"") ->  | D79: =IF(C79="","", VLOOKUP(C79, 'Regional composite scores'!$A$1:$I$201, 9, 0)) ->  | E79: =IF(C79="","", VLOOKUP(C79, 'Regional composite scores'!$A$1:$Q$201, 17,0)) ->  | F79: =IF(C79="", "", VLOOKUP(C79, 'Regional composite scores'!$A$1:$Y$201, 25, 0)) ->  | G79: =IF(C79="","",VLOOKUP(C79, 'Regional composite scores'!$A$1:$AG$201, 33, 0)) ->  | H79: =IF(C79="","",VLOOKUP(C79,'Regional composite scores'!$A$1:$AO$201,41,0)) ->  | I79: =IF(C79="","", VLOOKUP(C79, 'Regional composite scores'!$A$1:$AW$201, 49, 0)) -> 
A80: =VLOOKUP(C80, Helper_zone!$B$35:$C$233, 2,0) ->  | B80: 75 | C80: =_xlfn.IFNA(VLOOKUP(CONCATENATE(SUBSTITUTE('Cover page'!$Q$3, " ", ""),'Regional Dashboard'!B80),'Helper_worho denom'!$A$1:$C$200,2,0),"") ->  | D80: =IF(C80="","", VLOOKUP(C80, 'Regional composite scores'!$A$1:$I$201, 9, 0)) ->  | E80: =IF(C80="","", VLOOKUP(C80, 'Regional composite scores'!$A$1:$Q$201, 17,0)) ->  | F80: =IF(C80="", "", VLOOKUP(C80, 'Regional composite scores'!$A$1:$Y$201, 25, 0)) ->  | G80: =IF(C80="","",VLOOKUP(C80, 'Regional composite scores'!$A$1:$AG$201, 33, 0)) ->  | H80: =IF(C80="","",VLOOKUP(C80,'Regional composite scores'!$A$1:$AO$201,41,0)) ->  | I80: =IF(C80="","", VLOOKUP(C80, 'Regional composite scores'!$A$1:$AW$201, 49, 0)) -> 
A81: =VLOOKUP(C81, Helper_zone!$B$35:$C$233, 2,0) ->  | B81: 76 | C81: =_xlfn.IFNA(VLOOKUP(CONCATENATE(SUBSTITUTE('Cover page'!$Q$3, " ", ""),'Regional Dashboard'!B81),'Helper_worho denom'!$A$1:$C$200,2,0),"") ->  | D81: =IF(C81="","", VLOOKUP(C81, 'Regional composite scores'!$A$1:$I$201, 9, 0)) ->  | E81: =IF(C81="","", VLOOKUP(C81, 'Regional composite scores'!$A$1:$Q$201, 17,0)) ->  | F81: =IF(C81="", "", VLOOKUP(C81, 'Regional composite scores'!$A$1:$Y$201, 25, 0)) ->  | G81: =IF(C81="","",VLOOKUP(C81, 'Regional composite scores'!$A$1:$AG$201, 33, 0)) ->  | H81: =IF(C81="","",VLOOKUP(C81,'Regional composite scores'!$A$1:$AO$201,41,0)) ->  | I81: =IF(C81="","", VLOOKUP(C81, 'Regional composite scores'!$A$1:$AW$201, 49, 0)) -> 
A82: =VLOOKUP(C82, Helper_zone!$B$35:$C$233, 2,0) ->  | B82: 77 | C82: =_xlfn.IFNA(VLOOKUP(CONCATENATE(SUBSTITUTE('Cover page'!$Q$3, " ", ""),'Regional Dashboard'!B82),'Helper_worho denom'!$A$1:$C$200,2,0),"") ->  | D82: =IF(C82="","", VLOOKUP(C82, 'Regional composite scores'!$A$1:$I$201, 9, 0)) ->  | E82: =IF(C82="","", VLOOKUP(C82, 'Regional composite scores'!$A$1:$Q$201, 17,0)) ->  | F82: =IF(C82="", "", VLOOKUP(C82, 'Regional composite scores'!$A$1:$Y$201, 25, 0)) ->  | G82: =IF(C82="","",VLOOKUP(C82, 'Regional composite scores'!$A$1:$AG$201, 33, 0)) ->  | H82: =IF(C82="","",VLOOKUP(C82,'Regional composite scores'!$A$1:$AO$201,41,0)) ->  | I82: =IF(C82="","", VLOOKUP(C82, 'Regional composite scores'!$A$1:$AW$201, 49, 0)) -> 
A83: =VLOOKUP(C83, Helper_zone!$B$35:$C$233, 2,0) ->  | B83: 78 | C83: =_xlfn.IFNA(VLOOKUP(CONCATENATE(SUBSTITUTE('Cover page'!$Q$3, " ", ""),'Regional Dashboard'!B83),'Helper_worho denom'!$A$1:$C$200,2,0),"") ->  | D83: =IF(C83="","", VLOOKUP(C83, 'Regional composite scores'!$A$1:$I$201, 9, 0)) ->  | E83: =IF(C83="","", VLOOKUP(C83, 'Regional composite scores'!$A$1:$Q$201, 17,0)) ->  | F83: =IF(C83="", "", VLOOKUP(C83, 'Regional composite scores'!$A$1:$Y$201, 25, 0)) ->  | G83: =IF(C83="","",VLOOKUP(C83, 'Regional composite scores'!$A$1:$AG$201, 33, 0)) ->  | H83: =IF(C83="","",VLOOKUP(C83,'Regional composite scores'!$A$1:$AO$201,41,0)) ->  | I83: =IF(C83="","", VLOOKUP(C83, 'Regional composite scores'!$A$1:$AW$201, 49, 0)) -> 
A84: =VLOOKUP(C84, Helper_zone!$B$35:$C$233, 2,0) ->  | B84: 79 | C84: =_xlfn.IFNA(VLOOKUP(CONCATENATE(SUBSTITUTE('Cover page'!$Q$3, " ", ""),'Regional Dashboard'!B84),'Helper_worho denom'!$A$1:$C$200,2,0),"") ->  | D84: =IF(C84="","", VLOOKUP(C84, 'Regional composite scores'!$A$1:$I$201, 9, 0)) ->  | E84: =IF(C84="","", VLOOKUP(C84, 'Regional composite scores'!$A$1:$Q$201, 17,0)) ->  | F84: =IF(C84="", "", VLOOKUP(C84, 'Regional composite scores'!$A$1:$Y$201, 25, 0)) ->  | G84: =IF(C84="","",VLOOKUP(C84, 'Regional composite scores'!$A$1:$AG$201, 33, 0)) ->  | H84: =IF(C84="","",VLOOKUP(C84,'Regional composite scores'!$A$1:$AO$201,41,0)) ->  | I84: =IF(C84="","", VLOOKUP(C84, 'Regional composite scores'!$A$1:$AW$201, 49, 0)) -> 
A85: =VLOOKUP(C85, Helper_zone!$B$35:$C$233, 2,0) ->  | B85: 80 | C85: =_xlfn.IFNA(VLOOKUP(CONCATENATE(SUBSTITUTE('Cover page'!$Q$3, " ", ""),'Regional Dashboard'!B85),'Helper_worho denom'!$A$1:$C$200,2,0),"") ->  | D85: =IF(C85="","", VLOOKUP(C85, 'Regional composite scores'!$A$1:$I$201, 9, 0)) ->  | E85: =IF(C85="","", VLOOKUP(C85, 'Regional composite scores'!$A$1:$Q$201, 17,0)) ->  | F85: =IF(C85="", "", VLOOKUP(C85, 'Regional composite scores'!$A$1:$Y$201, 25, 0)) ->  | G85: =IF(C85="","",VLOOKUP(C85, 'Regional composite scores'!$A$1:$AG$201, 33, 0)) ->  | H85: =IF(C85="","",VLOOKUP(C85,'Regional composite scores'!$A$1:$AO$201,41,0)) ->  | I85: =IF(C85="","", VLOOKUP(C85, 'Regional composite scores'!$A$1:$AW$201, 49, 0)) -> 
A86: =VLOOKUP(C86, Helper_zone!$B$35:$C$233, 2,0) ->  | B86: 81 | C86: =_xlfn.IFNA(VLOOKUP(CONCATENATE(SUBSTITUTE('Cover page'!$Q$3, " ", ""),'Regional Dashboard'!B86),'Helper_worho denom'!$A$1:$C$200,2,0),"") ->  | D86: =IF(C86="","", VLOOKUP(C86, 'Regional composite scores'!$A$1:$I$201, 9, 0)) ->  | E86: =IF(C86="","", VLOOKUP(C86, 'Regional composite scores'!$A$1:$Q$201, 17,0)) ->  | F86: =IF(C86="", "", VLOOKUP(C86, 'Regional composite scores'!$A$1:$Y$201, 25, 0)) ->  | G86: =IF(C86="","",VLOOKUP(C86, 'Regional composite scores'!$A$1:$AG$201, 33, 0)) ->  | H86: =IF(C86="","",VLOOKUP(C86,'Regional composite scores'!$A$1:$AO$201,41,0)) ->  | I86: =IF(C86="","", VLOOKUP(C86, 'Regional composite scores'!$A$1:$AW$201, 49, 0)) -> 
A87: =VLOOKUP(C87, Helper_zone!$B$35:$C$233, 2,0) ->  | B87: 82 | C87: =_xlfn.IFNA(VLOOKUP(CONCATENATE(SUBSTITUTE('Cover page'!$Q$3, " ", ""),'Regional Dashboard'!B87),'Helper_worho denom'!$A$1:$C$200,2,0),"") ->  | D87: =IF(C87="","", VLOOKUP(C87, 'Regional composite scores'!$A$1:$I$201, 9, 0)) ->  | E87: =IF(C87="","", VLOOKUP(C87, 'Regional composite scores'!$A$1:$Q$201, 17,0)) ->  | F87: =IF(C87="", "", VLOOKUP(C87, 'Regional composite scores'!$A$1:$Y$201, 25, 0)) ->  | G87: =IF(C87="","",VLOOKUP(C87, 'Regional composite scores'!$A$1:$AG$201, 33, 0)) ->  | H87: =IF(C87="","",VLOOKUP(C87,'Regional composite scores'!$A$1:$AO$201,41,0)) ->  | I87: =IF(C87="","", VLOOKUP(C87, 'Regional composite scores'!$A$1:$AW$201, 49, 0)) -> 
A88: =VLOOKUP(C88, Helper_zone!$B$35:$C$233, 2,0) ->  | B88: 83 | C88: =_xlfn.IFNA(VLOOKUP(CONCATENATE(SUBSTITUTE('Cover page'!$Q$3, " ", ""),'Regional Dashboard'!B88),'Helper_worho denom'!$A$1:$C$200,2,0),"") ->  | D88: =IF(C88="","", VLOOKUP(C88, 'Regional composite scores'!$A$1:$I$201, 9, 0)) ->  | E88: =IF(C88="","", VLOOKUP(C88, 'Regional composite scores'!$A$1:$Q$201, 17,0)) ->  | F88: =IF(C88="", "", VLOOKUP(C88, 'Regional composite scores'!$A$1:$Y$201, 25, 0)) ->  | G88: =IF(C88="","",VLOOKUP(C88, 'Regional composite scores'!$A$1:$AG$201, 33, 0)) ->  | H88: =IF(C88="","",VLOOKUP(C88,'Regional composite scores'!$A$1:$AO$201,41,0)) ->  | I88: =IF(C88="","", VLOOKUP(C88, 'Regional composite scores'!$A$1:$AW$201, 49, 0)) -> 
A89: =VLOOKUP(C89, Helper_zone!$B$35:$C$233, 2,0) ->  | B89: 84 | C89: =_xlfn.IFNA(VLOOKUP(CONCATENATE(SUBSTITUTE('Cover page'!$Q$3, " ", ""),'Regional Dashboard'!B89),'Helper_worho denom'!$A$1:$C$200,2,0),"") ->  | D89: =IF(C89="","", VLOOKUP(C89, 'Regional composite scores'!$A$1:$I$201, 9, 0)) ->  | E89: =IF(C89="","", VLOOKUP(C89, 'Regional composite scores'!$A$1:$Q$201, 17,0)) ->  | F89: =IF(C89="", "", VLOOKUP(C89, 'Regional composite scores'!$A$1:$Y$201, 25, 0)) ->  | G89: =IF(C89="","",VLOOKUP(C89, 'Regional composite scores'!$A$1:$AG$201, 33, 0)) ->  | H89: =IF(C89="","",VLOOKUP(C89,'Regional composite scores'!$A$1:$AO$201,41,0)) ->  | I89: =IF(C89="","", VLOOKUP(C89, 'Regional composite scores'!$A$1:$AW$201, 49, 0)) -> 
A90: =VLOOKUP(C90, Helper_zone!$B$35:$C$233, 2,0) ->  | B90: 85 | C90: =_xlfn.IFNA(VLOOKUP(CONCATENATE(SUBSTITUTE('Cover page'!$Q$3, " ", ""),'Regional Dashboard'!B90),'Helper_worho denom'!$A$1:$C$200,2,0),"") ->  | D90: =IF(C90="","", VLOOKUP(C90, 'Regional composite scores'!$A$1:$I$201, 9, 0)) ->  | E90: =IF(C90="","", VLOOKUP(C90, 'Regional composite scores'!$A$1:$Q$201, 17,0)) ->  | F90: =IF(C90="", "", VLOOKUP(C90, 'Regional composite scores'!$A$1:$Y$201, 25, 0)) ->  | G90: =IF(C90="","",VLOOKUP(C90, 'Regional composite scores'!$A$1:$AG$201, 33, 0)) ->  | H90: =IF(C90="","",VLOOKUP(C90,'Regional composite scores'!$A$1:$AO$201,41,0)) ->  | I90: =IF(C90="","", VLOOKUP(C90, 'Regional composite scores'!$A$1:$AW$201, 49, 0)) -> 
A91: =VLOOKUP(C91, Helper_zone!$B$35:$C$233, 2,0) ->  | B91: 86 | C91: =_xlfn.IFNA(VLOOKUP(CONCATENATE(SUBSTITUTE('Cover page'!$Q$3, " ", ""),'Regional Dashboard'!B91),'Helper_worho denom'!$A$1:$C$200,2,0),"") ->  | D91: =IF(C91="","", VLOOKUP(C91, 'Regional composite scores'!$A$1:$I$201, 9, 0)) ->  | E91: =IF(C91="","", VLOOKUP(C91, 'Regional composite scores'!$A$1:$Q$201, 17,0)) ->  | F91: =IF(C91="", "", VLOOKUP(C91, 'Regional composite scores'!$A$1:$Y$201, 25, 0)) ->  | G91: =IF(C91="","",VLOOKUP(C91, 'Regional composite scores'!$A$1:$AG$201, 33, 0)) ->  | H91: =IF(C91="","",VLOOKUP(C91,'Regional composite scores'!$A$1:$AO$201,41,0)) ->  | I91: =IF(C91="","", VLOOKUP(C91, 'Regional composite scores'!$A$1:$AW$201, 49, 0)) -> 
A92: =VLOOKUP(C92, Helper_zone!$B$35:$C$233, 2,0) ->  | B92: 87 | C92: =_xlfn.IFNA(VLOOKUP(CONCATENATE(SUBSTITUTE('Cover page'!$Q$3, " ", ""),'Regional Dashboard'!B92),'Helper_worho denom'!$A$1:$C$200,2,0),"") ->  | D92: =IF(C92="","", VLOOKUP(C92, 'Regional composite scores'!$A$1:$I$201, 9, 0)) ->  | E92: =IF(C92="","", VLOOKUP(C92, 'Regional composite scores'!$A$1:$Q$201, 17,0)) ->  | F92: =IF(C92="", "", VLOOKUP(C92, 'Regional composite scores'!$A$1:$Y$201, 25, 0)) ->  | G92: =IF(C92="","",VLOOKUP(C92, 'Regional composite scores'!$A$1:$AG$201, 33, 0)) ->  | H92: =IF(C92="","",VLOOKUP(C92,'Regional composite scores'!$A$1:$AO$201,41,0)) ->  | I92: =IF(C92="","", VLOOKUP(C92, 'Regional composite scores'!$A$1:$AW$201, 49, 0)) -> 
A93: =VLOOKUP(C93, Helper_zone!$B$35:$C$233, 2,0) ->  | B93: 88 | C93: =_xlfn.IFNA(VLOOKUP(CONCATENATE(SUBSTITUTE('Cover page'!$Q$3, " ", ""),'Regional Dashboard'!B93),'Helper_worho denom'!$A$1:$C$200,2,0),"") ->  | D93: =IF(C93="","", VLOOKUP(C93, 'Regional composite scores'!$A$1:$I$201, 9, 0)) ->  | E93: =IF(C93="","", VLOOKUP(C93, 'Regional composite scores'!$A$1:$Q$201, 17,0)) ->  | F93: =IF(C93="", "", VLOOKUP(C93, 'Regional composite scores'!$A$1:$Y$201, 25, 0)) ->  | G93: =IF(C93="","",VLOOKUP(C93, 'Regional composite scores'!$A$1:$AG$201, 33, 0)) ->  | H93: =IF(C93="","",VLOOKUP(C93,'Regional composite scores'!$A$1:$AO$201,41,0)) ->  | I93: =IF(C93="","", VLOOKUP(C93, 'Regional composite scores'!$A$1:$AW$201, 49, 0)) -> 
A94: =VLOOKUP(C94, Helper_zone!$B$35:$C$233, 2,0) ->  | B94: 89 | C94: =_xlfn.IFNA(VLOOKUP(CONCATENATE(SUBSTITUTE('Cover page'!$Q$3, " ", ""),'Regional Dashboard'!B94),'Helper_worho denom'!$A$1:$C$200,2,0),"") ->  | D94: =IF(C94="","", VLOOKUP(C94, 'Regional composite scores'!$A$1:$I$201, 9, 0)) ->  | E94: =IF(C94="","", VLOOKUP(C94, 'Regional composite scores'!$A$1:$Q$201, 17,0)) ->  | F94: =IF(C94="", "", VLOOKUP(C94, 'Regional composite scores'!$A$1:$Y$201, 25, 0)) ->  | G94: =IF(C94="","",VLOOKUP(C94, 'Regional composite scores'!$A$1:$AG$201, 33, 0)) ->  | H94: =IF(C94="","",VLOOKUP(C94,'Regional composite scores'!$A$1:$AO$201,41,0)) ->  | I94: =IF(C94="","", VLOOKUP(C94, 'Regional composite scores'!$A$1:$AW$201, 49, 0)) -> 
A95: =VLOOKUP(C95, Helper_zone!$B$35:$C$233, 2,0) ->  | B95: 90 | C95: =_xlfn.IFNA(VLOOKUP(CONCATENATE(SUBSTITUTE('Cover page'!$Q$3, " ", ""),'Regional Dashboard'!B95),'Helper_worho denom'!$A$1:$C$200,2,0),"") ->  | D95: =IF(C95="","", VLOOKUP(C95, 'Regional composite scores'!$A$1:$I$201, 9, 0)) ->  | E95: =IF(C95="","", VLOOKUP(C95, 'Regional composite scores'!$A$1:$Q$201, 17,0)) ->  | F95: =IF(C95="", "", VLOOKUP(C95, 'Regional composite scores'!$A$1:$Y$201, 25, 0)) ->  | G95: =IF(C95="","",VLOOKUP(C95, 'Regional composite scores'!$A$1:$AG$201, 33, 0)) ->  | H95: =IF(C95="","",VLOOKUP(C95,'Regional composite scores'!$A$1:$AO$201,41,0)) ->  | I95: =IF(C95="","", VLOOKUP(C95, 'Regional composite scores'!$A$1:$AW$201, 49, 0)) -> 
A96: =VLOOKUP(C96, Helper_zone!$B$35:$C$233, 2,0) ->  | B96: 91 | C96: =_xlfn.IFNA(VLOOKUP(CONCATENATE(SUBSTITUTE('Cover page'!$Q$3, " ", ""),'Regional Dashboard'!B96),'Helper_worho denom'!$A$1:$C$200,2,0),"") ->  | D96: =IF(C96="","", VLOOKUP(C96, 'Regional composite scores'!$A$1:$I$201, 9, 0)) ->  | E96: =IF(C96="","", VLOOKUP(C96, 'Regional composite scores'!$A$1:$Q$201, 17,0)) ->  | F96: =IF(C96="", "", VLOOKUP(C96, 'Regional composite scores'!$A$1:$Y$201, 25, 0)) ->  | G96: =IF(C96="","",VLOOKUP(C96, 'Regional composite scores'!$A$1:$AG$201, 33, 0)) ->  | H96: =IF(C96="","",VLOOKUP(C96,'Regional composite scores'!$A$1:$AO$201,41,0)) ->  | I96: =IF(C96="","", VLOOKUP(C96, 'Regional composite scores'!$A$1:$AW$201, 49, 0)) -> 
A97: =VLOOKUP(C97, Helper_zone!$B$35:$C$233, 2,0) ->  | B97: 92 | C97: =_xlfn.IFNA(VLOOKUP(CONCATENATE(SUBSTITUTE('Cover page'!$Q$3, " ", ""),'Regional Dashboard'!B97),'Helper_worho denom'!$A$1:$C$200,2,0),"") ->  | D97: =IF(C97="","", VLOOKUP(C97, 'Regional composite scores'!$A$1:$I$201, 9, 0)) ->  | E97: =IF(C97="","", VLOOKUP(C97, 'Regional composite scores'!$A$1:$Q$201, 17,0)) ->  | F97: =IF(C97="", "", VLOOKUP(C97, 'Regional composite scores'!$A$1:$Y$201, 25, 0)) ->  | G97: =IF(C97="","",VLOOKUP(C97, 'Regional composite scores'!$A$1:$AG$201, 33, 0)) ->  | H97: =IF(C97="","",VLOOKUP(C97,'Regional composite scores'!$A$1:$AO$201,41,0)) ->  | I97: =IF(C97="","", VLOOKUP(C97, 'Regional composite scores'!$A$1:$AW$201, 49, 0)) -> 
A98: =VLOOKUP(C98, Helper_zone!$B$35:$C$233, 2,0) ->  | B98: 93 | C98: =_xlfn.IFNA(VLOOKUP(CONCATENATE(SUBSTITUTE('Cover page'!$Q$3, " ", ""),'Regional Dashboard'!B98),'Helper_worho denom'!$A$1:$C$200,2,0),"") ->  | D98: =IF(C98="","", VLOOKUP(C98, 'Regional composite scores'!$A$1:$I$201, 9, 0)) ->  | E98: =IF(C98="","", VLOOKUP(C98, 'Regional composite scores'!$A$1:$Q$201, 17,0)) ->  | F98: =IF(C98="", "", VLOOKUP(C98, 'Regional composite scores'!$A$1:$Y$201, 25, 0)) ->  | G98: =IF(C98="","",VLOOKUP(C98, 'Regional composite scores'!$A$1:$AG$201, 33, 0)) ->  | H98: =IF(C98="","",VLOOKUP(C98,'Regional composite scores'!$A$1:$AO$201,41,0)) ->  | I98: =IF(C98="","", VLOOKUP(C98, 'Regional composite scores'!$A$1:$AW$201, 49, 0)) -> 
A99: =VLOOKUP(C99, Helper_zone!$B$35:$C$233, 2,0) ->  | B99: 94 | C99: =_xlfn.IFNA(VLOOKUP(CONCATENATE(SUBSTITUTE('Cover page'!$Q$3, " ", ""),'Regional Dashboard'!B99),'Helper_worho denom'!$A$1:$C$200,2,0),"") ->  | D99: =IF(C99="","", VLOOKUP(C99, 'Regional composite scores'!$A$1:$I$201, 9, 0)) ->  | E99: =IF(C99="","", VLOOKUP(C99, 'Regional composite scores'!$A$1:$Q$201, 17,0)) ->  | F99: =IF(C99="", "", VLOOKUP(C99, 'Regional composite scores'!$A$1:$Y$201, 25, 0)) ->  | G99: =IF(C99="","",VLOOKUP(C99, 'Regional composite scores'!$A$1:$AG$201, 33, 0)) ->  | H99: =IF(C99="","",VLOOKUP(C99,'Regional composite scores'!$A$1:$AO$201,41,0)) ->  | I99: =IF(C99="","", VLOOKUP(C99, 'Regional composite scores'!$A$1:$AW$201, 49, 0)) -> 
A100: =VLOOKUP(C100, Helper_zone!$B$35:$C$233, 2,0) ->  | B100: 95 | C100: =_xlfn.IFNA(VLOOKUP(CONCATENATE(SUBSTITUTE('Cover page'!$Q$3, " ", ""),'Regional Dashboard'!B100),'Helper_worho denom'!$A$1:$C$200,2,0),"") ->  | D100: =IF(C100="","", VLOOKUP(C100, 'Regional composite scores'!$A$1:$I$201, 9, 0)) ->  | E100: =IF(C100="","", VLOOKUP(C100, 'Regional composite scores'!$A$1:$Q$201, 17,0)) ->  | F100: =IF(C100="", "", VLOOKUP(C100, 'Regional composite scores'!$A$1:$Y$201, 25, 0)) ->  | G100: =IF(C100="","",VLOOKUP(C100, 'Regional composite scores'!$A$1:$AG$201, 33, 0)) ->  | H100: =IF(C100="","",VLOOKUP(C100,'Regional composite scores'!$A$1:$AO$201,41,0)) ->  | I100: =IF(C100="","", VLOOKUP(C100, 'Regional composite scores'!$A$1:$AW$201, 49, 0)) -> 
A101: =VLOOKUP(C101, Helper_zone!$B$35:$C$233, 2,0) ->  | B101: 96 | C101: =_xlfn.IFNA(VLOOKUP(CONCATENATE(SUBSTITUTE('Cover page'!$Q$3, " ", ""),'Regional Dashboard'!B101),'Helper_worho denom'!$A$1:$C$200,2,0),"") ->  | D101: =IF(C101="","", VLOOKUP(C101, 'Regional composite scores'!$A$1:$I$201, 9, 0)) ->  | E101: =IF(C101="","", VLOOKUP(C101, 'Regional composite scores'!$A$1:$Q$201, 17,0)) ->  | F101: =IF(C101="", "", VLOOKUP(C101, 'Regional composite scores'!$A$1:$Y$201, 25, 0)) ->  | G101: =IF(C101="","",VLOOKUP(C101, 'Regional composite scores'!$A$1:$AG$201, 33, 0)) ->  | H101: =IF(C101="","",VLOOKUP(C101,'Regional composite scores'!$A$1:$AO$201,41,0)) ->  | I101: =IF(C101="","", VLOOKUP(C101, 'Regional composite scores'!$A$1:$AW$201, 49, 0)) -> 
A102: =VLOOKUP(C102, Helper_zone!$B$35:$C$233, 2,0) ->  | B102: 97 | C102: =_xlfn.IFNA(VLOOKUP(CONCATENATE(SUBSTITUTE('Cover page'!$Q$3, " ", ""),'Regional Dashboard'!B102),'Helper_worho denom'!$A$1:$C$200,2,0),"") ->  | D102: =IF(C102="","", VLOOKUP(C102, 'Regional composite scores'!$A$1:$I$201, 9, 0)) ->  | E102: =IF(C102="","", VLOOKUP(C102, 'Regional composite scores'!$A$1:$Q$201, 17,0)) ->  | F102: =IF(C102="", "", VLOOKUP(C102, 'Regional composite scores'!$A$1:$Y$201, 25, 0)) ->  | G102: =IF(C102="","",VLOOKUP(C102, 'Regional composite scores'!$A$1:$AG$201, 33, 0)) ->  | H102: =IF(C102="","",VLOOKUP(C102,'Regional composite scores'!$A$1:$AO$201,41,0)) ->  | I102: =IF(C102="","", VLOOKUP(C102, 'Regional composite scores'!$A$1:$AW$201, 49, 0)) -> 
A103: =VLOOKUP(C103, Helper_zone!$B$35:$C$233, 2,0) ->  | B103: 98 | C103: =_xlfn.IFNA(VLOOKUP(CONCATENATE(SUBSTITUTE('Cover page'!$Q$3, " ", ""),'Regional Dashboard'!B103),'Helper_worho denom'!$A$1:$C$200,2,0),"") ->  | D103: =IF(C103="","", VLOOKUP(C103, 'Regional composite scores'!$A$1:$I$201, 9, 0)) ->  | E103: =IF(C103="","", VLOOKUP(C103, 'Regional composite scores'!$A$1:$Q$201, 17,0)) ->  | F103: =IF(C103="", "", VLOOKUP(C103, 'Regional composite scores'!$A$1:$Y$201, 25, 0)) ->  | G103: =IF(C103="","",VLOOKUP(C103, 'Regional composite scores'!$A$1:$AG$201, 33, 0)) ->  | H103: =IF(C103="","",VLOOKUP(C103,'Regional composite scores'!$A$1:$AO$201,41,0)) ->  | I103: =IF(C103="","", VLOOKUP(C103, 'Regional composite scores'!$A$1:$AW$201, 49, 0)) -> 
A104: =VLOOKUP(C104, Helper_zone!$B$35:$C$233, 2,0) ->  | B104: 99 | C104: =_xlfn.IFNA(VLOOKUP(CONCATENATE(SUBSTITUTE('Cover page'!$Q$3, " ", ""),'Regional Dashboard'!B104),'Helper_worho denom'!$A$1:$C$200,2,0),"") ->  | D104: =IF(C104="","", VLOOKUP(C104, 'Regional composite scores'!$A$1:$I$201, 9, 0)) ->  | E104: =IF(C104="","", VLOOKUP(C104, 'Regional composite scores'!$A$1:$Q$201, 17,0)) ->  | F104: =IF(C104="", "", VLOOKUP(C104, 'Regional composite scores'!$A$1:$Y$201, 25, 0)) ->  | G104: =IF(C104="","",VLOOKUP(C104, 'Regional composite scores'!$A$1:$AG$201, 33, 0)) ->  | H104: =IF(C104="","",VLOOKUP(C104,'Regional composite scores'!$A$1:$AO$201,41,0)) ->  | I104: =IF(C104="","", VLOOKUP(C104, 'Regional composite scores'!$A$1:$AW$201, 49, 0)) -> 
A105: =VLOOKUP(C105, Helper_zone!$B$35:$C$233, 2,0) ->  | B105: 100 | C105: =_xlfn.IFNA(VLOOKUP(CONCATENATE(SUBSTITUTE('Cover page'!$Q$3, " ", ""),'Regional Dashboard'!B105),'Helper_worho denom'!$A$1:$C$200,2,0),"") ->  | D105: =IF(C105="","", VLOOKUP(C105, 'Regional composite scores'!$A$1:$I$201, 9, 0)) ->  | E105: =IF(C105="","", VLOOKUP(C105, 'Regional composite scores'!$A$1:$Q$201, 17,0)) ->  | F105: =IF(C105="", "", VLOOKUP(C105, 'Regional composite scores'!$A$1:$Y$201, 25, 0)) ->  | G105: =IF(C105="","",VLOOKUP(C105, 'Regional composite scores'!$A$1:$AG$201, 33, 0)) ->  | H105: =IF(C105="","",VLOOKUP(C105,'Regional composite scores'!$A$1:$AO$201,41,0)) ->  | I105: =IF(C105="","", VLOOKUP(C105, 'Regional composite scores'!$A$1:$AW$201, 49, 0)) -> 
A106: =VLOOKUP(C106, Helper_zone!$B$35:$C$233, 2,0) ->  | B106: 101 | C106: =_xlfn.IFNA(VLOOKUP(CONCATENATE(SUBSTITUTE('Cover page'!$Q$3, " ", ""),'Regional Dashboard'!B106),'Helper_worho denom'!$A$1:$C$200,2,0),"") ->  | D106: =IF(C106="","", VLOOKUP(C106, 'Regional composite scores'!$A$1:$I$201, 9, 0)) ->  | E106: =IF(C106="","", VLOOKUP(C106, 'Regional composite scores'!$A$1:$Q$201, 17,0)) ->  | F106: =IF(C106="", "", VLOOKUP(C106, 'Regional composite scores'!$A$1:$Y$201, 25, 0)) ->  | G106: =IF(C106="","",VLOOKUP(C106, 'Regional composite scores'!$A$1:$AG$201, 33, 0)) ->  | H106: =IF(C106="","",VLOOKUP(C106,'Regional composite scores'!$A$1:$AO$201,41,0)) ->  | I106: =IF(C106="","", VLOOKUP(C106, 'Regional composite scores'!$A$1:$AW$201, 49, 0)) -> 
A107: =VLOOKUP(C107, Helper_zone!$B$35:$C$233, 2,0) ->  | B107: 102 | C107: =_xlfn.IFNA(VLOOKUP(CONCATENATE(SUBSTITUTE('Cover page'!$Q$3, " ", ""),'Regional Dashboard'!B107),'Helper_worho denom'!$A$1:$C$200,2,0),"") ->  | D107: =IF(C107="","", VLOOKUP(C107, 'Regional composite scores'!$A$1:$I$201, 9, 0)) ->  | E107: =IF(C107="","", VLOOKUP(C107, 'Regional composite scores'!$A$1:$Q$201, 17,0)) ->  | F107: =IF(C107="", "", VLOOKUP(C107, 'Regional composite scores'!$A$1:$Y$201, 25, 0)) ->  | G107: =IF(C107="","",VLOOKUP(C107, 'Regional composite scores'!$A$1:$AG$201, 33, 0)) ->  | H107: =IF(C107="","",VLOOKUP(C107,'Regional composite scores'!$A$1:$AO$201,41,0)) ->  | I107: =IF(C107="","", VLOOKUP(C107, 'Regional composite scores'!$A$1:$AW$201, 49, 0)) -> 
A108: =VLOOKUP(C108, Helper_zone!$B$35:$C$233, 2,0) ->  | B108: 103 | C108: =_xlfn.IFNA(VLOOKUP(CONCATENATE(SUBSTITUTE('Cover page'!$Q$3, " ", ""),'Regional Dashboard'!B108),'Helper_worho denom'!$A$1:$C$200,2,0),"") ->  | D108: =IF(C108="","", VLOOKUP(C108, 'Regional composite scores'!$A$1:$I$201, 9, 0)) ->  | E108: =IF(C108="","", VLOOKUP(C108, 'Regional composite scores'!$A$1:$Q$201, 17,0)) ->  | F108: =IF(C108="", "", VLOOKUP(C108, 'Regional composite scores'!$A$1:$Y$201, 25, 0)) ->  | G108: =IF(C108="","",VLOOKUP(C108, 'Regional composite scores'!$A$1:$AG$201, 33, 0)) ->  | H108: =IF(C108="","",VLOOKUP(C108,'Regional composite scores'!$A$1:$AO$201,41,0)) ->  | I108: =IF(C108="","", VLOOKUP(C108, 'Regional composite scores'!$A$1:$AW$201, 49, 0)) -> 
A109: =VLOOKUP(C109, Helper_zone!$B$35:$C$233, 2,0) ->  | B109: 104 | C109: =_xlfn.IFNA(VLOOKUP(CONCATENATE(SUBSTITUTE('Cover page'!$Q$3, " ", ""),'Regional Dashboard'!B109),'Helper_worho denom'!$A$1:$C$200,2,0),"") ->  | D109: =IF(C109="","", VLOOKUP(C109, 'Regional composite scores'!$A$1:$I$201, 9, 0)) ->  | E109: =IF(C109="","", VLOOKUP(C109, 'Regional composite scores'!$A$1:$Q$201, 17,0)) ->  | F109: =IF(C109="", "", VLOOKUP(C109, 'Regional composite scores'!$A$1:$Y$201, 25, 0)) ->  | G109: =IF(C109="","",VLOOKUP(C109, 'Regional composite scores'!$A$1:$AG$201, 33, 0)) ->  | H109: =IF(C109="","",VLOOKUP(C109,'Regional composite scores'!$A$1:$AO$201,41,0)) ->  | I109: =IF(C109="","", VLOOKUP(C109, 'Regional composite scores'!$A$1:$AW$201, 49, 0)) -> 
A110: =VLOOKUP(C110, Helper_zone!$B$35:$C$233, 2,0) ->  | B110: 105 | C110: =_xlfn.IFNA(VLOOKUP(CONCATENATE(SUBSTITUTE('Cover page'!$Q$3, " ", ""),'Regional Dashboard'!B110),'Helper_worho denom'!$A$1:$C$200,2,0),"") ->  | D110: =IF(C110="","", VLOOKUP(C110, 'Regional composite scores'!$A$1:$I$201, 9, 0)) ->  | E110: =IF(C110="","", VLOOKUP(C110, 'Regional composite scores'!$A$1:$Q$201, 17,0)) ->  | F110: =IF(C110="", "", VLOOKUP(C110, 'Regional composite scores'!$A$1:$Y$201, 25, 0)) ->  | G110: =IF(C110="","",VLOOKUP(C110, 'Regional composite scores'!$A$1:$AG$201, 33, 0)) ->  | H110: =IF(C110="","",VLOOKUP(C110,'Regional composite scores'!$A$1:$AO$201,41,0)) ->  | I110: =IF(C110="","", VLOOKUP(C110, 'Regional composite scores'!$A$1:$AW$201, 49, 0)) -> 
A111: =VLOOKUP(C111, Helper_zone!$B$35:$C$233, 2,0) ->  | B111: 106 | C111: =_xlfn.IFNA(VLOOKUP(CONCATENATE(SUBSTITUTE('Cover page'!$Q$3, " ", ""),'Regional Dashboard'!B111),'Helper_worho denom'!$A$1:$C$200,2,0),"") ->  | D111: =IF(C111="","", VLOOKUP(C111, 'Regional composite scores'!$A$1:$I$201, 9, 0)) ->  | E111: =IF(C111="","", VLOOKUP(C111, 'Regional composite scores'!$A$1:$Q$201, 17,0)) ->  | F111: =IF(C111="", "", VLOOKUP(C111, 'Regional composite scores'!$A$1:$Y$201, 25, 0)) ->  | G111: =IF(C111="","",VLOOKUP(C111, 'Regional composite scores'!$A$1:$AG$201, 33, 0)) ->  | H111: =IF(C111="","",VLOOKUP(C111,'Regional composite scores'!$A$1:$AO$201,41,0)) ->  | I111: =IF(C111="","", VLOOKUP(C111, 'Regional composite scores'!$A$1:$AW$201, 49, 0)) -> 
A112: =VLOOKUP(C112, Helper_zone!$B$35:$C$233, 2,0) ->  | B112: 107 | C112: =_xlfn.IFNA(VLOOKUP(CONCATENATE(SUBSTITUTE('Cover page'!$Q$3, " ", ""),'Regional Dashboard'!B112),'Helper_worho denom'!$A$1:$C$200,2,0),"") ->  | D112: =IF(C112="","", VLOOKUP(C112, 'Regional composite scores'!$A$1:$I$201, 9, 0)) ->  | E112: =IF(C112="","", VLOOKUP(C112, 'Regional composite scores'!$A$1:$Q$201, 17,0)) ->  | F112: =IF(C112="", "", VLOOKUP(C112, 'Regional composite scores'!$A$1:$Y$201, 25, 0)) ->  | G112: =IF(C112="","",VLOOKUP(C112, 'Regional composite scores'!$A$1:$AG$201, 33, 0)) ->  | H112: =IF(C112="","",VLOOKUP(C112,'Regional composite scores'!$A$1:$AO$201,41,0)) ->  | I112: =IF(C112="","", VLOOKUP(C112, 'Regional composite scores'!$A$1:$AW$201, 49, 0)) -> 
A113: =VLOOKUP(C113, Helper_zone!$B$35:$C$233, 2,0) ->  | B113: 108 | C113: =_xlfn.IFNA(VLOOKUP(CONCATENATE(SUBSTITUTE('Cover page'!$Q$3, " ", ""),'Regional Dashboard'!B113),'Helper_worho denom'!$A$1:$C$200,2,0),"") ->  | D113: =IF(C113="","", VLOOKUP(C113, 'Regional composite scores'!$A$1:$I$201, 9, 0)) ->  | E113: =IF(C113="","", VLOOKUP(C113, 'Regional composite scores'!$A$1:$Q$201, 17,0)) ->  | F113: =IF(C113="", "", VLOOKUP(C113, 'Regional composite scores'!$A$1:$Y$201, 25, 0)) ->  | G113: =IF(C113="","",VLOOKUP(C113, 'Regional composite scores'!$A$1:$AG$201, 33, 0)) ->  | H113: =IF(C113="","",VLOOKUP(C113,'Regional composite scores'!$A$1:$AO$201,41,0)) ->  | I113: =IF(C113="","", VLOOKUP(C113, 'Regional composite scores'!$A$1:$AW$201, 49, 0)) -> 

Sheet RED Regional Dashboard
C1: ='Cover page'!Q3 & " " & "Regional Dashboard: RED Categorisation" -> Regional Dashboard: RED Categorisation | L1: Tool Navigation
C4: RED Categorisation: Summary by Woreda | G4: =IF('Cover page'!$Q$3="SNNPR", "Only displays administrative units from the KT zone.", "") ->  | L4: ="RED Categorisation: Summary by Zone for" & " "&I5 -> 
C5: Woreda | D5: ='Woreda calculations'!L4 ->  | E5: ='Woreda calculations'!M4 ->  | F5: ='Woreda calculations'!N4 ->  | G5: ='Woreda calculations'!O4 ->  | H5: ='Woreda calculations'!P4 ->  | I5: ='Woreda calculations'!Q4 ->  | L5: Zone | M5: Category 1 | N5: Category 2 | O5: Category 3 | P5: Category 4
A6: =VLOOKUP(C6, Helper_zone!$B$35:$C$233, 2, 0) ->  | B6: 1 | C6: =_xlfn.IFNA(VLOOKUP(CONCATENATE(SUBSTITUTE('Cover page'!$Q$3," ",""),B6),'Helper_worho denom'!$A$1:$C$200,2,0),"") ->  | D6: =IF(C6="","", VLOOKUP(C6,'RED regional calc'!$A$3:$Y$201, 20, 0)) ->  | E6: =IF(C6="","", VLOOKUP(C6,'RED regional calc'!$A$3:$Y$201, 21, 0)) ->  | F6: =IF(C6="","", VLOOKUP(C6,'RED regional calc'!$A$3:$Y$201, 22, 0)) ->  | G6: =IF(C6="","", VLOOKUP(C6,'RED regional calc'!$A$3:$Y$201, 23, 0)) ->  | H6: =IF(C6="","", VLOOKUP(C6,'RED regional calc'!$A$3:$Y$201, 24, 0)) ->  | I6: =IF(C6="","", VLOOKUP(C6,'RED regional calc'!$A$3:$Y$201, 25, 0)) ->  | L6: =_xlfn.IFNA(VLOOKUP(CONCATENATE(SUBSTITUTE('Cover page'!$Q$3, " ", ""),'RED Regional Dashboard'!K7),Helper_zone!$A$2:$B$27,2,0),"") ->  | M6: =IF($L6="","",COUNTIFS($A$6:$A$113,$L6,$I$6:$I$113,M$5)) ->  | N6: =IF($L6="","",COUNTIFS($A$6:$A$113,$L6,$I$6:$I$113,N$5)) -> 
A7: =VLOOKUP(C7, Helper_zone!$B$35:$C$233, 2, 0) ->  | B7: 2 | C7: =_xlfn.IFNA(VLOOKUP(CONCATENATE(SUBSTITUTE('Cover page'!$Q$3," ",""),B7),'Helper_worho denom'!$A$1:$C$200,2,0),"") ->  | D7: =IF(C7="","", VLOOKUP(C7,'RED regional calc'!$A$3:$Y$201, 20, 0)) ->  | E7: =IF(C7="","", VLOOKUP(C7,'RED regional calc'!$A$3:$Y$201, 21, 0)) ->  | F7: =IF(C7="","", VLOOKUP(C7,'RED regional calc'!$A$3:$Y$201, 22, 0)) ->  | G7: =IF(C7="","", VLOOKUP(C7,'RED regional calc'!$A$3:$Y$201, 23, 0)) ->  | H7: =IF(C7="","", VLOOKUP(C7,'RED regional calc'!$A$3:$Y$201, 24, 0)) ->  | I7: =IF(C7="","", VLOOKUP(C7,'RED regional calc'!$A$3:$Y$201, 25, 0)) ->  | K7: 1 | L7: =_xlfn.IFNA(VLOOKUP(CONCATENATE(SUBSTITUTE('Cover page'!$Q$3, " ", ""),'RED Regional Dashboard'!K8),Helper_zone!$A$2:$B$27,2,0),"") ->  | M7: =IF($L7="","",COUNTIFS($A$6:$A$113,$L7,$I$6:$I$113,M$5)) -> 
A8: =VLOOKUP(C8, Helper_zone!$B$35:$C$233, 2, 0) ->  | B8: 3 | C8: =_xlfn.IFNA(VLOOKUP(CONCATENATE(SUBSTITUTE('Cover page'!$Q$3," ",""),B8),'Helper_worho denom'!$A$1:$C$200,2,0),"") ->  | D8: =IF(C8="","", VLOOKUP(C8,'RED regional calc'!$A$3:$Y$201, 20, 0)) ->  | E8: =IF(C8="","", VLOOKUP(C8,'RED regional calc'!$A$3:$Y$201, 21, 0)) ->  | F8: =IF(C8="","", VLOOKUP(C8,'RED regional calc'!$A$3:$Y$201, 22, 0)) ->  | G8: =IF(C8="","", VLOOKUP(C8,'RED regional calc'!$A$3:$Y$201, 23, 0)) ->  | H8: =IF(C8="","", VLOOKUP(C8,'RED regional calc'!$A$3:$Y$201, 24, 0)) ->  | I8: =IF(C8="","", VLOOKUP(C8,'RED regional calc'!$A$3:$Y$201, 25, 0)) ->  | K8: 2 | L8: =_xlfn.IFNA(VLOOKUP(CONCATENATE(SUBSTITUTE('Cover page'!$Q$3, " ", ""),'RED Regional Dashboard'!K9),Helper_zone!$A$2:$B$27,2,0),"") -> 
A9: =VLOOKUP(C9, Helper_zone!$B$35:$C$233, 2, 0) ->  | B9: 4 | C9: =_xlfn.IFNA(VLOOKUP(CONCATENATE(SUBSTITUTE('Cover page'!$Q$3," ",""),B9),'Helper_worho denom'!$A$1:$C$200,2,0),"") ->  | D9: =IF(C9="","", VLOOKUP(C9,'RED regional calc'!$A$3:$Y$201, 20, 0)) ->  | E9: =IF(C9="","", VLOOKUP(C9,'RED regional calc'!$A$3:$Y$201, 21, 0)) ->  | F9: =IF(C9="","", VLOOKUP(C9,'RED regional calc'!$A$3:$Y$201, 22, 0)) ->  | G9: =IF(C9="","", VLOOKUP(C9,'RED regional calc'!$A$3:$Y$201, 23, 0)) ->  | H9: =IF(C9="","", VLOOKUP(C9,'RED regional calc'!$A$3:$Y$201, 24, 0)) ->  | I9: =IF(C9="","", VLOOKUP(C9,'RED regional calc'!$A$3:$Y$201, 25, 0)) ->  | K9: 3 | L9: =_xlfn.IFNA(VLOOKUP(CONCATENATE(SUBSTITUTE('Cover page'!$Q$3, " ", ""),'RED Regional Dashboard'!K10),Helper_zone!$A$2:$B$27,2,0),"") -> 
A10: =VLOOKUP(C10, Helper_zone!$B$35:$C$233, 2, 0) ->  | B10: 5 | C10: =_xlfn.IFNA(VLOOKUP(CONCATENATE(SUBSTITUTE('Cover page'!$Q$3," ",""),B10),'Helper_worho denom'!$A$1:$C$200,2,0),"") ->  | D10: =IF(C10="","", VLOOKUP(C10,'RED regional calc'!$A$3:$Y$201, 20, 0)) ->  | E10: =IF(C10="","", VLOOKUP(C10,'RED regional calc'!$A$3:$Y$201, 21, 0)) ->  | F10: =IF(C10="","", VLOOKUP(C10,'RED regional calc'!$A$3:$Y$201, 22, 0)) ->  | G10: =IF(C10="","", VLOOKUP(C10,'RED regional calc'!$A$3:$Y$201, 23, 0)) ->  | H10: =IF(C10="","", VLOOKUP(C10,'RED regional calc'!$A$3:$Y$201, 24, 0)) ->  | I10: =IF(C10="","", VLOOKUP(C10,'RED regional calc'!$A$3:$Y$201, 25, 0)) ->  | K10: 4 | L10: =_xlfn.IFNA(VLOOKUP(CONCATENATE(SUBSTITUTE('Cover page'!$Q$3, " ", ""),'RED Regional Dashboard'!K11),Helper_zone!$A$2:$B$27,2,0),"") -> 
A11: =VLOOKUP(C11, Helper_zone!$B$35:$C$233, 2, 0) ->  | B11: 6 | C11: =_xlfn.IFNA(VLOOKUP(CONCATENATE(SUBSTITUTE('Cover page'!$Q$3," ",""),B11),'Helper_worho denom'!$A$1:$C$200,2,0),"") ->  | D11: =IF(C11="","", VLOOKUP(C11,'RED regional calc'!$A$3:$Y$201, 20, 0)) ->  | E11: =IF(C11="","", VLOOKUP(C11,'RED regional calc'!$A$3:$Y$201, 21, 0)) ->  | F11: =IF(C11="","", VLOOKUP(C11,'RED regional calc'!$A$3:$Y$201, 22, 0)) ->  | G11: =IF(C11="","", VLOOKUP(C11,'RED regional calc'!$A$3:$Y$201, 23, 0)) ->  | H11: =IF(C11="","", VLOOKUP(C11,'RED regional calc'!$A$3:$Y$201, 24, 0)) ->  | I11: =IF(C11="","", VLOOKUP(C11,'RED regional calc'!$A$3:$Y$201, 25, 0)) ->  | K11: 5 | L11: =_xlfn.IFNA(VLOOKUP(CONCATENATE(SUBSTITUTE('Cover page'!$Q$3, " ", ""),'RED Regional Dashboard'!K12),Helper_zone!$A$2:$B$27,2,0),"") -> 
A12: =VLOOKUP(C12, Helper_zone!$B$35:$C$233, 2, 0) ->  | B12: 7 | C12: =_xlfn.IFNA(VLOOKUP(CONCATENATE(SUBSTITUTE('Cover page'!$Q$3," ",""),B12),'Helper_worho denom'!$A$1:$C$200,2,0),"") ->  | D12: =IF(C12="","", VLOOKUP(C12,'RED regional calc'!$A$3:$Y$201, 20, 0)) ->  | E12: =IF(C12="","", VLOOKUP(C12,'RED regional calc'!$A$3:$Y$201, 21, 0)) ->  | F12: =IF(C12="","", VLOOKUP(C12,'RED regional calc'!$A$3:$Y$201, 22, 0)) ->  | G12: =IF(C12="","", VLOOKUP(C12,'RED regional calc'!$A$3:$Y$201, 23, 0)) ->  | H12: =IF(C12="","", VLOOKUP(C12,'RED regional calc'!$A$3:$Y$201, 24, 0)) ->  | I12: =IF(C12="","", VLOOKUP(C12,'RED regional calc'!$A$3:$Y$201, 25, 0)) ->  | K12: 6 | L12: =_xlfn.IFNA(VLOOKUP(CONCATENATE(SUBSTITUTE('Cover page'!$Q$3, " ", ""),'RED Regional Dashboard'!K13),Helper_zone!$A$2:$B$27,2,0),"") -> 
A13: =VLOOKUP(C13, Helper_zone!$B$35:$C$233, 2, 0) ->  | B13: 8 | C13: =_xlfn.IFNA(VLOOKUP(CONCATENATE(SUBSTITUTE('Cover page'!$Q$3," ",""),B13),'Helper_worho denom'!$A$1:$C$200,2,0),"") ->  | D13: =IF(C13="","", VLOOKUP(C13,'RED regional calc'!$A$3:$Y$201, 20, 0)) ->  | E13: =IF(C13="","", VLOOKUP(C13,'RED regional calc'!$A$3:$Y$201, 21, 0)) ->  | F13: =IF(C13="","", VLOOKUP(C13,'RED regional calc'!$A$3:$Y$201, 22, 0)) ->  | G13: =IF(C13="","", VLOOKUP(C13,'RED regional calc'!$A$3:$Y$201, 23, 0)) ->  | H13: =IF(C13="","", VLOOKUP(C13,'RED regional calc'!$A$3:$Y$201, 24, 0)) ->  | I13: =IF(C13="","", VLOOKUP(C13,'RED regional calc'!$A$3:$Y$201, 25, 0)) ->  | K13: 7 | L13: =_xlfn.IFNA(VLOOKUP(CONCATENATE(SUBSTITUTE('Cover page'!$Q$3, " ", ""),'RED Regional Dashboard'!K14),Helper_zone!$A$2:$B$27,2,0),"") -> 
A14: =VLOOKUP(C14, Helper_zone!$B$35:$C$233, 2, 0) ->  | B14: 9 | C14: =_xlfn.IFNA(VLOOKUP(CONCATENATE(SUBSTITUTE('Cover page'!$Q$3," ",""),B14),'Helper_worho denom'!$A$1:$C$200,2,0),"") ->  | D14: =IF(C14="","", VLOOKUP(C14,'RED regional calc'!$A$3:$Y$201, 20, 0)) ->  | E14: =IF(C14="","", VLOOKUP(C14,'RED regional calc'!$A$3:$Y$201, 21, 0)) ->  | F14: =IF(C14="","", VLOOKUP(C14,'RED regional calc'!$A$3:$Y$201, 22, 0)) ->  | G14: =IF(C14="","", VLOOKUP(C14,'RED regional calc'!$A$3:$Y$201, 23, 0)) ->  | H14: =IF(C14="","", VLOOKUP(C14,'RED regional calc'!$A$3:$Y$201, 24, 0)) ->  | I14: =IF(C14="","", VLOOKUP(C14,'RED regional calc'!$A$3:$Y$201, 25, 0)) ->  | K14: 8 | L14: =_xlfn.IFNA(VLOOKUP(CONCATENATE(SUBSTITUTE('Cover page'!$Q$3, " ", ""),'RED Regional Dashboard'!K15),Helper_zone!$A$2:$B$27,2,0),"") -> 
A15: =VLOOKUP(C15, Helper_zone!$B$35:$C$233, 2, 0) ->  | B15: 10 | C15: =_xlfn.IFNA(VLOOKUP(CONCATENATE(SUBSTITUTE('Cover page'!$Q$3," ",""),B15),'Helper_worho denom'!$A$1:$C$200,2,0),"") ->  | D15: =IF(C15="","", VLOOKUP(C15,'RED regional calc'!$A$3:$Y$201, 20, 0)) ->  | E15: =IF(C15="","", VLOOKUP(C15,'RED regional calc'!$A$3:$Y$201, 21, 0)) ->  | F15: =IF(C15="","", VLOOKUP(C15,'RED regional calc'!$A$3:$Y$201, 22, 0)) ->  | G15: =IF(C15="","", VLOOKUP(C15,'RED regional calc'!$A$3:$Y$201, 23, 0)) ->  | H15: =IF(C15="","", VLOOKUP(C15,'RED regional calc'!$A$3:$Y$201, 24, 0)) ->  | I15: =IF(C15="","", VLOOKUP(C15,'RED regional calc'!$A$3:$Y$201, 25, 0)) ->  | K15: 9 | L15: =_xlfn.IFNA(VLOOKUP(CONCATENATE(SUBSTITUTE('Cover page'!$Q$3, " ", ""),'RED Regional Dashboard'!K16),Helper_zone!$A$2:$B$27,2,0),"") -> 
A16: =VLOOKUP(C16, Helper_zone!$B$35:$C$233, 2, 0) ->  | B16: 11 | C16: =_xlfn.IFNA(VLOOKUP(CONCATENATE(SUBSTITUTE('Cover page'!$Q$3," ",""),B16),'Helper_worho denom'!$A$1:$C$200,2,0),"") ->  | D16: =IF(C16="","", VLOOKUP(C16,'RED regional calc'!$A$3:$Y$201, 20, 0)) ->  | E16: =IF(C16="","", VLOOKUP(C16,'RED regional calc'!$A$3:$Y$201, 21, 0)) ->  | F16: =IF(C16="","", VLOOKUP(C16,'RED regional calc'!$A$3:$Y$201, 22, 0)) ->  | G16: =IF(C16="","", VLOOKUP(C16,'RED regional calc'!$A$3:$Y$201, 23, 0)) ->  | H16: =IF(C16="","", VLOOKUP(C16,'RED regional calc'!$A$3:$Y$201, 24, 0)) ->  | I16: =IF(C16="","", VLOOKUP(C16,'RED regional calc'!$A$3:$Y$201, 25, 0)) ->  | K16: 10 | L16: =_xlfn.IFNA(VLOOKUP(CONCATENATE(SUBSTITUTE('Cover page'!$Q$3, " ", ""),'RED Regional Dashboard'!K17),Helper_zone!$A$2:$B$27,2,0),"") -> 
A17: =VLOOKUP(C17, Helper_zone!$B$35:$C$233, 2, 0) ->  | B17: 12 | C17: =_xlfn.IFNA(VLOOKUP(CONCATENATE(SUBSTITUTE('Cover page'!$Q$3," ",""),B17),'Helper_worho denom'!$A$1:$C$200,2,0),"") ->  | D17: =IF(C17="","", VLOOKUP(C17,'RED regional calc'!$A$3:$Y$201, 20, 0)) ->  | E17: =IF(C17="","", VLOOKUP(C17,'RED regional calc'!$A$3:$Y$201, 21, 0)) ->  | F17: =IF(C17="","", VLOOKUP(C17,'RED regional calc'!$A$3:$Y$201, 22, 0)) ->  | G17: =IF(C17="","", VLOOKUP(C17,'RED regional calc'!$A$3:$Y$201, 23, 0)) ->  | H17: =IF(C17="","", VLOOKUP(C17,'RED regional calc'!$A$3:$Y$201, 24, 0)) ->  | I17: =IF(C17="","", VLOOKUP(C17,'RED regional calc'!$A$3:$Y$201, 25, 0)) ->  | K17: 11
A18: =VLOOKUP(C18, Helper_zone!$B$35:$C$233, 2, 0) ->  | B18: 13 | C18: =_xlfn.IFNA(VLOOKUP(CONCATENATE(SUBSTITUTE('Cover page'!$Q$3," ",""),B18),'Helper_worho denom'!$A$1:$C$200,2,0),"") ->  | D18: =IF(C18="","", VLOOKUP(C18,'RED regional calc'!$A$3:$Y$201, 20, 0)) ->  | E18: =IF(C18="","", VLOOKUP(C18,'RED regional calc'!$A$3:$Y$201, 21, 0)) ->  | F18: =IF(C18="","", VLOOKUP(C18,'RED regional calc'!$A$3:$Y$201, 22, 0)) ->  | G18: =IF(C18="","", VLOOKUP(C18,'RED regional calc'!$A$3:$Y$201, 23, 0)) ->  | H18: =IF(C18="","", VLOOKUP(C18,'RED regional calc'!$A$3:$Y$201, 24, 0)) ->  | I18: =IF(C18="","", VLOOKUP(C18,'RED regional calc'!$A$3:$Y$201, 25, 0)) -> 
A19: =VLOOKUP(C19, Helper_zone!$B$35:$C$233, 2, 0) ->  | B19: 14 | C19: =_xlfn.IFNA(VLOOKUP(CONCATENATE(SUBSTITUTE('Cover page'!$Q$3," ",""),B19),'Helper_worho denom'!$A$1:$C$200,2,0),"") ->  | D19: =IF(C19="","", VLOOKUP(C19,'RED regional calc'!$A$3:$Y$201, 20, 0)) ->  | E19: =IF(C19="","", VLOOKUP(C19,'RED regional calc'!$A$3:$Y$201, 21, 0)) ->  | F19: =IF(C19="","", VLOOKUP(C19,'RED regional calc'!$A$3:$Y$201, 22, 0)) ->  | G19: =IF(C19="","", VLOOKUP(C19,'RED regional calc'!$A$3:$Y$201, 23, 0)) ->  | H19: =IF(C19="","", VLOOKUP(C19,'RED regional calc'!$A$3:$Y$201, 24, 0)) ->  | I19: =IF(C19="","", VLOOKUP(C19,'RED regional calc'!$A$3:$Y$201, 25, 0)) -> 
A20: =VLOOKUP(C20, Helper_zone!$B$35:$C$233, 2, 0) ->  | B20: 15 | C20: =_xlfn.IFNA(VLOOKUP(CONCATENATE(SUBSTITUTE('Cover page'!$Q$3," ",""),B20),'Helper_worho denom'!$A$1:$C$200,2,0),"") ->  | D20: =IF(C20="","", VLOOKUP(C20,'RED regional calc'!$A$3:$Y$201, 20, 0)) ->  | E20: =IF(C20="","", VLOOKUP(C20,'RED regional calc'!$A$3:$Y$201, 21, 0)) ->  | F20: =IF(C20="","", VLOOKUP(C20,'RED regional calc'!$A$3:$Y$201, 22, 0)) ->  | G20: =IF(C20="","", VLOOKUP(C20,'RED regional calc'!$A$3:$Y$201, 23, 0)) ->  | H20: =IF(C20="","", VLOOKUP(C20,'RED regional calc'!$A$3:$Y$201, 24, 0)) ->  | I20: =IF(C20="","", VLOOKUP(C20,'RED regional calc'!$A$3:$Y$201, 25, 0)) -> 
A21: =VLOOKUP(C21, Helper_zone!$B$35:$C$233, 2, 0) ->  | B21: 16 | C21: =_xlfn.IFNA(VLOOKUP(CONCATENATE(SUBSTITUTE('Cover page'!$Q$3," ",""),B21),'Helper_worho denom'!$A$1:$C$200,2,0),"") ->  | D21: =IF(C21="","", VLOOKUP(C21,'RED regional calc'!$A$3:$Y$201, 20, 0)) ->  | E21: =IF(C21="","", VLOOKUP(C21,'RED regional calc'!$A$3:$Y$201, 21, 0)) ->  | F21: =IF(C21="","", VLOOKUP(C21,'RED regional calc'!$A$3:$Y$201, 22, 0)) ->  | G21: =IF(C21="","", VLOOKUP(C21,'RED regional calc'!$A$3:$Y$201, 23, 0)) ->  | H21: =IF(C21="","", VLOOKUP(C21,'RED regional calc'!$A$3:$Y$201, 24, 0)) ->  | I21: =IF(C21="","", VLOOKUP(C21,'RED regional calc'!$A$3:$Y$201, 25, 0)) -> 
A22: =VLOOKUP(C22, Helper_zone!$B$35:$C$233, 2, 0) ->  | B22: 17 | C22: =_xlfn.IFNA(VLOOKUP(CONCATENATE(SUBSTITUTE('Cover page'!$Q$3," ",""),B22),'Helper_worho denom'!$A$1:$C$200,2,0),"") ->  | D22: =IF(C22="","", VLOOKUP(C22,'RED regional calc'!$A$3:$Y$201, 20, 0)) ->  | E22: =IF(C22="","", VLOOKUP(C22,'RED regional calc'!$A$3:$Y$201, 21, 0)) ->  | F22: =IF(C22="","", VLOOKUP(C22,'RED regional calc'!$A$3:$Y$201, 22, 0)) ->  | G22: =IF(C22="","", VLOOKUP(C22,'RED regional calc'!$A$3:$Y$201, 23, 0)) ->  | H22: =IF(C22="","", VLOOKUP(C22,'RED regional calc'!$A$3:$Y$201, 24, 0)) ->  | I22: =IF(C22="","", VLOOKUP(C22,'RED regional calc'!$A$3:$Y$201, 25, 0)) -> 
A23: =VLOOKUP(C23, Helper_zone!$B$35:$C$233, 2, 0) ->  | B23: 18 | C23: =_xlfn.IFNA(VLOOKUP(CONCATENATE(SUBSTITUTE('Cover page'!$Q$3," ",""),B23),'Helper_worho denom'!$A$1:$C$200,2,0),"") ->  | D23: =IF(C23="","", VLOOKUP(C23,'RED regional calc'!$A$3:$Y$201, 20, 0)) ->  | E23: =IF(C23="","", VLOOKUP(C23,'RED regional calc'!$A$3:$Y$201, 21, 0)) ->  | F23: =IF(C23="","", VLOOKUP(C23,'RED regional calc'!$A$3:$Y$201, 22, 0)) ->  | G23: =IF(C23="","", VLOOKUP(C23,'RED regional calc'!$A$3:$Y$201, 23, 0)) ->  | H23: =IF(C23="","", VLOOKUP(C23,'RED regional calc'!$A$3:$Y$201, 24, 0)) ->  | I23: =IF(C23="","", VLOOKUP(C23,'RED regional calc'!$A$3:$Y$201, 25, 0)) -> 
A24: =VLOOKUP(C24, Helper_zone!$B$35:$C$233, 2, 0) ->  | B24: 19 | C24: =_xlfn.IFNA(VLOOKUP(CONCATENATE(SUBSTITUTE('Cover page'!$Q$3," ",""),B24),'Helper_worho denom'!$A$1:$C$200,2,0),"") ->  | D24: =IF(C24="","", VLOOKUP(C24,'RED regional calc'!$A$3:$Y$201, 20, 0)) ->  | E24: =IF(C24="","", VLOOKUP(C24,'RED regional calc'!$A$3:$Y$201, 21, 0)) ->  | F24: =IF(C24="","", VLOOKUP(C24,'RED regional calc'!$A$3:$Y$201, 22, 0)) ->  | G24: =IF(C24="","", VLOOKUP(C24,'RED regional calc'!$A$3:$Y$201, 23, 0)) ->  | H24: =IF(C24="","", VLOOKUP(C24,'RED regional calc'!$A$3:$Y$201, 24, 0)) ->  | I24: =IF(C24="","", VLOOKUP(C24,'RED regional calc'!$A$3:$Y$201, 25, 0)) -> 
A25: =VLOOKUP(C25, Helper_zone!$B$35:$C$233, 2, 0) ->  | B25: 20 | C25: =_xlfn.IFNA(VLOOKUP(CONCATENATE(SUBSTITUTE('Cover page'!$Q$3," ",""),B25),'Helper_worho denom'!$A$1:$C$200,2,0),"") ->  | D25: =IF(C25="","", VLOOKUP(C25,'RED regional calc'!$A$3:$Y$201, 20, 0)) ->  | E25: =IF(C25="","", VLOOKUP(C25,'RED regional calc'!$A$3:$Y$201, 21, 0)) ->  | F25: =IF(C25="","", VLOOKUP(C25,'RED regional calc'!$A$3:$Y$201, 22, 0)) ->  | G25: =IF(C25="","", VLOOKUP(C25,'RED regional calc'!$A$3:$Y$201, 23, 0)) ->  | H25: =IF(C25="","", VLOOKUP(C25,'RED regional calc'!$A$3:$Y$201, 24, 0)) ->  | I25: =IF(C25="","", VLOOKUP(C25,'RED regional calc'!$A$3:$Y$201, 25, 0)) -> 
A26: =VLOOKUP(C26, Helper_zone!$B$35:$C$233, 2, 0) ->  | B26: 21 | C26: =_xlfn.IFNA(VLOOKUP(CONCATENATE(SUBSTITUTE('Cover page'!$Q$3," ",""),B26),'Helper_worho denom'!$A$1:$C$200,2,0),"") ->  | D26: =IF(C26="","", VLOOKUP(C26,'RED regional calc'!$A$3:$Y$201, 20, 0)) ->  | E26: =IF(C26="","", VLOOKUP(C26,'RED regional calc'!$A$3:$Y$201, 21, 0)) ->  | F26: =IF(C26="","", VLOOKUP(C26,'RED regional calc'!$A$3:$Y$201, 22, 0)) ->  | G26: =IF(C26="","", VLOOKUP(C26,'RED regional calc'!$A$3:$Y$201, 23, 0)) ->  | H26: =IF(C26="","", VLOOKUP(C26,'RED regional calc'!$A$3:$Y$201, 24, 0)) ->  | I26: =IF(C26="","", VLOOKUP(C26,'RED regional calc'!$A$3:$Y$201, 25, 0)) -> 
A27: =VLOOKUP(C27, Helper_zone!$B$35:$C$233, 2, 0) ->  | B27: 22 | C27: =_xlfn.IFNA(VLOOKUP(CONCATENATE(SUBSTITUTE('Cover page'!$Q$3," ",""),B27),'Helper_worho denom'!$A$1:$C$200,2,0),"") ->  | D27: =IF(C27="","", VLOOKUP(C27,'RED regional calc'!$A$3:$Y$201, 20, 0)) ->  | E27: =IF(C27="","", VLOOKUP(C27,'RED regional calc'!$A$3:$Y$201, 21, 0)) ->  | F27: =IF(C27="","", VLOOKUP(C27,'RED regional calc'!$A$3:$Y$201, 22, 0)) ->  | G27: =IF(C27="","", VLOOKUP(C27,'RED regional calc'!$A$3:$Y$201, 23, 0)) ->  | H27: =IF(C27="","", VLOOKUP(C27,'RED regional calc'!$A$3:$Y$201, 24, 0)) ->  | I27: =IF(C27="","", VLOOKUP(C27,'RED regional calc'!$A$3:$Y$201, 25, 0)) -> 
A28: =VLOOKUP(C28, Helper_zone!$B$35:$C$233, 2, 0) ->  | B28: 23 | C28: =_xlfn.IFNA(VLOOKUP(CONCATENATE(SUBSTITUTE('Cover page'!$Q$3," ",""),B28),'Helper_worho denom'!$A$1:$C$200,2,0),"") ->  | D28: =IF(C28="","", VLOOKUP(C28,'RED regional calc'!$A$3:$Y$201, 20, 0)) ->  | E28: =IF(C28="","", VLOOKUP(C28,'RED regional calc'!$A$3:$Y$201, 21, 0)) ->  | F28: =IF(C28="","", VLOOKUP(C28,'RED regional calc'!$A$3:$Y$201, 22, 0)) ->  | G28: =IF(C28="","", VLOOKUP(C28,'RED regional calc'!$A$3:$Y$201, 23, 0)) ->  | H28: =IF(C28="","", VLOOKUP(C28,'RED regional calc'!$A$3:$Y$201, 24, 0)) ->  | I28: =IF(C28="","", VLOOKUP(C28,'RED regional calc'!$A$3:$Y$201, 25, 0)) -> 
A29: =VLOOKUP(C29, Helper_zone!$B$35:$C$233, 2, 0) ->  | B29: 24 | C29: =_xlfn.IFNA(VLOOKUP(CONCATENATE(SUBSTITUTE('Cover page'!$Q$3," ",""),B29),'Helper_worho denom'!$A$1:$C$200,2,0),"") ->  | D29: =IF(C29="","", VLOOKUP(C29,'RED regional calc'!$A$3:$Y$201, 20, 0)) ->  | E29: =IF(C29="","", VLOOKUP(C29,'RED regional calc'!$A$3:$Y$201, 21, 0)) ->  | F29: =IF(C29="","", VLOOKUP(C29,'RED regional calc'!$A$3:$Y$201, 22, 0)) ->  | G29: =IF(C29="","", VLOOKUP(C29,'RED regional calc'!$A$3:$Y$201, 23, 0)) ->  | H29: =IF(C29="","", VLOOKUP(C29,'RED regional calc'!$A$3:$Y$201, 24, 0)) ->  | I29: =IF(C29="","", VLOOKUP(C29,'RED regional calc'!$A$3:$Y$201, 25, 0)) -> 
A30: =VLOOKUP(C30, Helper_zone!$B$35:$C$233, 2, 0) ->  | B30: 25 | C30: =_xlfn.IFNA(VLOOKUP(CONCATENATE(SUBSTITUTE('Cover page'!$Q$3," ",""),B30),'Helper_worho denom'!$A$1:$C$200,2,0),"") ->  | D30: =IF(C30="","", VLOOKUP(C30,'RED regional calc'!$A$3:$Y$201, 20, 0)) ->  | E30: =IF(C30="","", VLOOKUP(C30,'RED regional calc'!$A$3:$Y$201, 21, 0)) ->  | F30: =IF(C30="","", VLOOKUP(C30,'RED regional calc'!$A$3:$Y$201, 22, 0)) ->  | G30: =IF(C30="","", VLOOKUP(C30,'RED regional calc'!$A$3:$Y$201, 23, 0)) ->  | H30: =IF(C30="","", VLOOKUP(C30,'RED regional calc'!$A$3:$Y$201, 24, 0)) ->  | I30: =IF(C30="","", VLOOKUP(C30,'RED regional calc'!$A$3:$Y$201, 25, 0)) -> 
A31: =VLOOKUP(C31, Helper_zone!$B$35:$C$233, 2, 0) ->  | B31: 26 | C31: =_xlfn.IFNA(VLOOKUP(CONCATENATE(SUBSTITUTE('Cover page'!$Q$3," ",""),B31),'Helper_worho denom'!$A$1:$C$200,2,0),"") ->  | D31: =IF(C31="","", VLOOKUP(C31,'RED regional calc'!$A$3:$Y$201, 20, 0)) ->  | E31: =IF(C31="","", VLOOKUP(C31,'RED regional calc'!$A$3:$Y$201, 21, 0)) ->  | F31: =IF(C31="","", VLOOKUP(C31,'RED regional calc'!$A$3:$Y$201, 22, 0)) ->  | G31: =IF(C31="","", VLOOKUP(C31,'RED regional calc'!$A$3:$Y$201, 23, 0)) ->  | H31: =IF(C31="","", VLOOKUP(C31,'RED regional calc'!$A$3:$Y$201, 24, 0)) ->  | I31: =IF(C31="","", VLOOKUP(C31,'RED regional calc'!$A$3:$Y$201, 25, 0)) -> 
A32: =VLOOKUP(C32, Helper_zone!$B$35:$C$233, 2, 0) ->  | B32: 27 | C32: =_xlfn.IFNA(VLOOKUP(CONCATENATE(SUBSTITUTE('Cover page'!$Q$3," ",""),B32),'Helper_worho denom'!$A$1:$C$200,2,0),"") ->  | D32: =IF(C32="","", VLOOKUP(C32,'RED regional calc'!$A$3:$Y$201, 20, 0)) ->  | E32: =IF(C32="","", VLOOKUP(C32,'RED regional calc'!$A$3:$Y$201, 21, 0)) ->  | F32: =IF(C32="","", VLOOKUP(C32,'RED regional calc'!$A$3:$Y$201, 22, 0)) ->  | G32: =IF(C32="","", VLOOKUP(C32,'RED regional calc'!$A$3:$Y$201, 23, 0)) ->  | H32: =IF(C32="","", VLOOKUP(C32,'RED regional calc'!$A$3:$Y$201, 24, 0)) ->  | I32: =IF(C32="","", VLOOKUP(C32,'RED regional calc'!$A$3:$Y$201, 25, 0)) -> 
A33: =VLOOKUP(C33, Helper_zone!$B$35:$C$233, 2, 0) ->  | B33: 28 | C33: =_xlfn.IFNA(VLOOKUP(CONCATENATE(SUBSTITUTE('Cover page'!$Q$3," ",""),B33),'Helper_worho denom'!$A$1:$C$200,2,0),"") ->  | D33: =IF(C33="","", VLOOKUP(C33,'RED regional calc'!$A$3:$Y$201, 20, 0)) ->  | E33: =IF(C33="","", VLOOKUP(C33,'RED regional calc'!$A$3:$Y$201, 21, 0)) ->  | F33: =IF(C33="","", VLOOKUP(C33,'RED regional calc'!$A$3:$Y$201, 22, 0)) ->  | G33: =IF(C33="","", VLOOKUP(C33,'RED regional calc'!$A$3:$Y$201, 23, 0)) ->  | H33: =IF(C33="","", VLOOKUP(C33,'RED regional calc'!$A$3:$Y$201, 24, 0)) ->  | I33: =IF(C33="","", VLOOKUP(C33,'RED regional calc'!$A$3:$Y$201, 25, 0)) -> 
A34: =VLOOKUP(C34, Helper_zone!$B$35:$C$233, 2, 0) ->  | B34: 29 | C34: =_xlfn.IFNA(VLOOKUP(CONCATENATE(SUBSTITUTE('Cover page'!$Q$3," ",""),B34),'Helper_worho denom'!$A$1:$C$200,2,0),"") ->  | D34: =IF(C34="","", VLOOKUP(C34,'RED regional calc'!$A$3:$Y$201, 20, 0)) ->  | E34: =IF(C34="","", VLOOKUP(C34,'RED regional calc'!$A$3:$Y$201, 21, 0)) ->  | F34: =IF(C34="","", VLOOKUP(C34,'RED regional calc'!$A$3:$Y$201, 22, 0)) ->  | G34: =IF(C34="","", VLOOKUP(C34,'RED regional calc'!$A$3:$Y$201, 23, 0)) ->  | H34: =IF(C34="","", VLOOKUP(C34,'RED regional calc'!$A$3:$Y$201, 24, 0)) ->  | I34: =IF(C34="","", VLOOKUP(C34,'RED regional calc'!$A$3:$Y$201, 25, 0)) -> 
A35: =VLOOKUP(C35, Helper_zone!$B$35:$C$233, 2, 0) ->  | B35: 30 | C35: =_xlfn.IFNA(VLOOKUP(CONCATENATE(SUBSTITUTE('Cover page'!$Q$3," ",""),B35),'Helper_worho denom'!$A$1:$C$200,2,0),"") ->  | D35: =IF(C35="","", VLOOKUP(C35,'RED regional calc'!$A$3:$Y$201, 20, 0)) ->  | E35: =IF(C35="","", VLOOKUP(C35,'RED regional calc'!$A$3:$Y$201, 21, 0)) ->  | F35: =IF(C35="","", VLOOKUP(C35,'RED regional calc'!$A$3:$Y$201, 22, 0)) ->  | G35: =IF(C35="","", VLOOKUP(C35,'RED regional calc'!$A$3:$Y$201, 23, 0)) ->  | H35: =IF(C35="","", VLOOKUP(C35,'RED regional calc'!$A$3:$Y$201, 24, 0)) ->  | I35: =IF(C35="","", VLOOKUP(C35,'RED regional calc'!$A$3:$Y$201, 25, 0)) -> 
A36: =VLOOKUP(C36, Helper_zone!$B$35:$C$233, 2, 0) ->  | B36: 31 | C36: =_xlfn.IFNA(VLOOKUP(CONCATENATE(SUBSTITUTE('Cover page'!$Q$3," ",""),B36),'Helper_worho denom'!$A$1:$C$200,2,0),"") ->  | D36: =IF(C36="","", VLOOKUP(C36,'RED regional calc'!$A$3:$Y$201, 20, 0)) ->  | E36: =IF(C36="","", VLOOKUP(C36,'RED regional calc'!$A$3:$Y$201, 21, 0)) ->  | F36: =IF(C36="","", VLOOKUP(C36,'RED regional calc'!$A$3:$Y$201, 22, 0)) ->  | G36: =IF(C36="","", VLOOKUP(C36,'RED regional calc'!$A$3:$Y$201, 23, 0)) ->  | H36: =IF(C36="","", VLOOKUP(C36,'RED regional calc'!$A$3:$Y$201, 24, 0)) ->  | I36: =IF(C36="","", VLOOKUP(C36,'RED regional calc'!$A$3:$Y$201, 25, 0)) -> 
A37: =VLOOKUP(C37, Helper_zone!$B$35:$C$233, 2, 0) ->  | B37: 32 | C37: =_xlfn.IFNA(VLOOKUP(CONCATENATE(SUBSTITUTE('Cover page'!$Q$3," ",""),B37),'Helper_worho denom'!$A$1:$C$200,2,0),"") ->  | D37: =IF(C37="","", VLOOKUP(C37,'RED regional calc'!$A$3:$Y$201, 20, 0)) ->  | E37: =IF(C37="","", VLOOKUP(C37,'RED regional calc'!$A$3:$Y$201, 21, 0)) ->  | F37: =IF(C37="","", VLOOKUP(C37,'RED regional calc'!$A$3:$Y$201, 22, 0)) ->  | G37: =IF(C37="","", VLOOKUP(C37,'RED regional calc'!$A$3:$Y$201, 23, 0)) ->  | H37: =IF(C37="","", VLOOKUP(C37,'RED regional calc'!$A$3:$Y$201, 24, 0)) ->  | I37: =IF(C37="","", VLOOKUP(C37,'RED regional calc'!$A$3:$Y$201, 25, 0)) -> 
A38: =VLOOKUP(C38, Helper_zone!$B$35:$C$233, 2, 0) ->  | B38: 33 | C38: =_xlfn.IFNA(VLOOKUP(CONCATENATE(SUBSTITUTE('Cover page'!$Q$3," ",""),B38),'Helper_worho denom'!$A$1:$C$200,2,0),"") ->  | D38: =IF(C38="","", VLOOKUP(C38,'RED regional calc'!$A$3:$Y$201, 20, 0)) ->  | E38: =IF(C38="","", VLOOKUP(C38,'RED regional calc'!$A$3:$Y$201, 21, 0)) ->  | F38: =IF(C38="","", VLOOKUP(C38,'RED regional calc'!$A$3:$Y$201, 22, 0)) ->  | G38: =IF(C38="","", VLOOKUP(C38,'RED regional calc'!$A$3:$Y$201, 23, 0)) ->  | H38: =IF(C38="","", VLOOKUP(C38,'RED regional calc'!$A$3:$Y$201, 24, 0)) ->  | I38: =IF(C38="","", VLOOKUP(C38,'RED regional calc'!$A$3:$Y$201, 25, 0)) -> 
A39: =VLOOKUP(C39, Helper_zone!$B$35:$C$233, 2, 0) ->  | B39: 34 | C39: =_xlfn.IFNA(VLOOKUP(CONCATENATE(SUBSTITUTE('Cover page'!$Q$3," ",""),B39),'Helper_worho denom'!$A$1:$C$200,2,0),"") ->  | D39: =IF(C39="","", VLOOKUP(C39,'RED regional calc'!$A$3:$Y$201, 20, 0)) ->  | E39: =IF(C39="","", VLOOKUP(C39,'RED regional calc'!$A$3:$Y$201, 21, 0)) ->  | F39: =IF(C39="","", VLOOKUP(C39,'RED regional calc'!$A$3:$Y$201, 22, 0)) ->  | G39: =IF(C39="","", VLOOKUP(C39,'RED regional calc'!$A$3:$Y$201, 23, 0)) ->  | H39: =IF(C39="","", VLOOKUP(C39,'RED regional calc'!$A$3:$Y$201, 24, 0)) ->  | I39: =IF(C39="","", VLOOKUP(C39,'RED regional calc'!$A$3:$Y$201, 25, 0)) -> 
A40: =VLOOKUP(C40, Helper_zone!$B$35:$C$233, 2, 0) ->  | B40: 35 | C40: =_xlfn.IFNA(VLOOKUP(CONCATENATE(SUBSTITUTE('Cover page'!$Q$3," ",""),B40),'Helper_worho denom'!$A$1:$C$200,2,0),"") ->  | D40: =IF(C40="","", VLOOKUP(C40,'RED regional calc'!$A$3:$Y$201, 20, 0)) ->  | E40: =IF(C40="","", VLOOKUP(C40,'RED regional calc'!$A$3:$Y$201, 21, 0)) ->  | F40: =IF(C40="","", VLOOKUP(C40,'RED regional calc'!$A$3:$Y$201, 22, 0)) ->  | G40: =IF(C40="","", VLOOKUP(C40,'RED regional calc'!$A$3:$Y$201, 23, 0)) ->  | H40: =IF(C40="","", VLOOKUP(C40,'RED regional calc'!$A$3:$Y$201, 24, 0)) ->  | I40: =IF(C40="","", VLOOKUP(C40,'RED regional calc'!$A$3:$Y$201, 25, 0)) -> 
A41: =VLOOKUP(C41, Helper_zone!$B$35:$C$233, 2, 0) ->  | B41: 36 | C41: =_xlfn.IFNA(VLOOKUP(CONCATENATE(SUBSTITUTE('Cover page'!$Q$3," ",""),B41),'Helper_worho denom'!$A$1:$C$200,2,0),"") ->  | D41: =IF(C41="","", VLOOKUP(C41,'RED regional calc'!$A$3:$Y$201, 20, 0)) ->  | E41: =IF(C41="","", VLOOKUP(C41,'RED regional calc'!$A$3:$Y$201, 21, 0)) ->  | F41: =IF(C41="","", VLOOKUP(C41,'RED regional calc'!$A$3:$Y$201, 22, 0)) ->  | G41: =IF(C41="","", VLOOKUP(C41,'RED regional calc'!$A$3:$Y$201, 23, 0)) ->  | H41: =IF(C41="","", VLOOKUP(C41,'RED regional calc'!$A$3:$Y$201, 24, 0)) ->  | I41: =IF(C41="","", VLOOKUP(C41,'RED regional calc'!$A$3:$Y$201, 25, 0)) -> 
A42: =VLOOKUP(C42, Helper_zone!$B$35:$C$233, 2, 0) ->  | B42: 37 | C42: =_xlfn.IFNA(VLOOKUP(CONCATENATE(SUBSTITUTE('Cover page'!$Q$3," ",""),B42),'Helper_worho denom'!$A$1:$C$200,2,0),"") ->  | D42: =IF(C42="","", VLOOKUP(C42,'RED regional calc'!$A$3:$Y$201, 20, 0)) ->  | E42: =IF(C42="","", VLOOKUP(C42,'RED regional calc'!$A$3:$Y$201, 21, 0)) ->  | F42: =IF(C42="","", VLOOKUP(C42,'RED regional calc'!$A$3:$Y$201, 22, 0)) ->  | G42: =IF(C42="","", VLOOKUP(C42,'RED regional calc'!$A$3:$Y$201, 23, 0)) ->  | H42: =IF(C42="","", VLOOKUP(C42,'RED regional calc'!$A$3:$Y$201, 24, 0)) ->  | I42: =IF(C42="","", VLOOKUP(C42,'RED regional calc'!$A$3:$Y$201, 25, 0)) -> 
A43: =VLOOKUP(C43, Helper_zone!$B$35:$C$233, 2, 0) ->  | B43: 38 | C43: =_xlfn.IFNA(VLOOKUP(CONCATENATE(SUBSTITUTE('Cover page'!$Q$3," ",""),B43),'Helper_worho denom'!$A$1:$C$200,2,0),"") ->  | D43: =IF(C43="","", VLOOKUP(C43,'RED regional calc'!$A$3:$Y$201, 20, 0)) ->  | E43: =IF(C43="","", VLOOKUP(C43,'RED regional calc'!$A$3:$Y$201, 21, 0)) ->  | F43: =IF(C43="","", VLOOKUP(C43,'RED regional calc'!$A$3:$Y$201, 22, 0)) ->  | G43: =IF(C43="","", VLOOKUP(C43,'RED regional calc'!$A$3:$Y$201, 23, 0)) ->  | H43: =IF(C43="","", VLOOKUP(C43,'RED regional calc'!$A$3:$Y$201, 24, 0)) ->  | I43: =IF(C43="","", VLOOKUP(C43,'RED regional calc'!$A$3:$Y$201, 25, 0)) -> 
A44: =VLOOKUP(C44, Helper_zone!$B$35:$C$233, 2, 0) ->  | B44: 39 | C44: =_xlfn.IFNA(VLOOKUP(CONCATENATE(SUBSTITUTE('Cover page'!$Q$3," ",""),B44),'Helper_worho denom'!$A$1:$C$200,2,0),"") ->  | D44: =IF(C44="","", VLOOKUP(C44,'RED regional calc'!$A$3:$Y$201, 20, 0)) ->  | E44: =IF(C44="","", VLOOKUP(C44,'RED regional calc'!$A$3:$Y$201, 21, 0)) ->  | F44: =IF(C44="","", VLOOKUP(C44,'RED regional calc'!$A$3:$Y$201, 22, 0)) ->  | G44: =IF(C44="","", VLOOKUP(C44,'RED regional calc'!$A$3:$Y$201, 23, 0)) ->  | H44: =IF(C44="","", VLOOKUP(C44,'RED regional calc'!$A$3:$Y$201, 24, 0)) ->  | I44: =IF(C44="","", VLOOKUP(C44,'RED regional calc'!$A$3:$Y$201, 25, 0)) -> 
A45: =VLOOKUP(C45, Helper_zone!$B$35:$C$233, 2, 0) ->  | B45: 40 | C45: =_xlfn.IFNA(VLOOKUP(CONCATENATE(SUBSTITUTE('Cover page'!$Q$3," ",""),B45),'Helper_worho denom'!$A$1:$C$200,2,0),"") ->  | D45: =IF(C45="","", VLOOKUP(C45,'RED regional calc'!$A$3:$Y$201, 20, 0)) ->  | E45: =IF(C45="","", VLOOKUP(C45,'RED regional calc'!$A$3:$Y$201, 21, 0)) ->  | F45: =IF(C45="","", VLOOKUP(C45,'RED regional calc'!$A$3:$Y$201, 22, 0)) ->  | G45: =IF(C45="","", VLOOKUP(C45,'RED regional calc'!$A$3:$Y$201, 23, 0)) ->  | H45: =IF(C45="","", VLOOKUP(C45,'RED regional calc'!$A$3:$Y$201, 24, 0)) ->  | I45: =IF(C45="","", VLOOKUP(C45,'RED regional calc'!$A$3:$Y$201, 25, 0)) -> 
A46: =VLOOKUP(C46, Helper_zone!$B$35:$C$233, 2, 0) ->  | B46: 41 | C46: =_xlfn.IFNA(VLOOKUP(CONCATENATE(SUBSTITUTE('Cover page'!$Q$3," ",""),B46),'Helper_worho denom'!$A$1:$C$200,2,0),"") ->  | D46: =IF(C46="","", VLOOKUP(C46,'RED regional calc'!$A$3:$Y$201, 20, 0)) ->  | E46: =IF(C46="","", VLOOKUP(C46,'RED regional calc'!$A$3:$Y$201, 21, 0)) ->  | F46: =IF(C46="","", VLOOKUP(C46,'RED regional calc'!$A$3:$Y$201, 22, 0)) ->  | G46: =IF(C46="","", VLOOKUP(C46,'RED regional calc'!$A$3:$Y$201, 23, 0)) ->  | H46: =IF(C46="","", VLOOKUP(C46,'RED regional calc'!$A$3:$Y$201, 24, 0)) ->  | I46: =IF(C46="","", VLOOKUP(C46,'RED regional calc'!$A$3:$Y$201, 25, 0)) -> 
A47: =VLOOKUP(C47, Helper_zone!$B$35:$C$233, 2, 0) ->  | B47: 42 | C47: =_xlfn.IFNA(VLOOKUP(CONCATENATE(SUBSTITUTE('Cover page'!$Q$3," ",""),B47),'Helper_worho denom'!$A$1:$C$200,2,0),"") ->  | D47: =IF(C47="","", VLOOKUP(C47,'RED regional calc'!$A$3:$Y$201, 20, 0)) ->  | E47: =IF(C47="","", VLOOKUP(C47,'RED regional calc'!$A$3:$Y$201, 21, 0)) ->  | F47: =IF(C47="","", VLOOKUP(C47,'RED regional calc'!$A$3:$Y$201, 22, 0)) ->  | G47: =IF(C47="","", VLOOKUP(C47,'RED regional calc'!$A$3:$Y$201, 23, 0)) ->  | H47: =IF(C47="","", VLOOKUP(C47,'RED regional calc'!$A$3:$Y$201, 24, 0)) ->  | I47: =IF(C47="","", VLOOKUP(C47,'RED regional calc'!$A$3:$Y$201, 25, 0)) -> 
A48: =VLOOKUP(C48, Helper_zone!$B$35:$C$233, 2, 0) ->  | B48: 43 | C48: =_xlfn.IFNA(VLOOKUP(CONCATENATE(SUBSTITUTE('Cover page'!$Q$3," ",""),B48),'Helper_worho denom'!$A$1:$C$200,2,0),"") ->  | D48: =IF(C48="","", VLOOKUP(C48,'RED regional calc'!$A$3:$Y$201, 20, 0)) ->  | E48: =IF(C48="","", VLOOKUP(C48,'RED regional calc'!$A$3:$Y$201, 21, 0)) ->  | F48: =IF(C48="","", VLOOKUP(C48,'RED regional calc'!$A$3:$Y$201, 22, 0)) ->  | G48: =IF(C48="","", VLOOKUP(C48,'RED regional calc'!$A$3:$Y$201, 23, 0)) ->  | H48: =IF(C48="","", VLOOKUP(C48,'RED regional calc'!$A$3:$Y$201, 24, 0)) ->  | I48: =IF(C48="","", VLOOKUP(C48,'RED regional calc'!$A$3:$Y$201, 25, 0)) -> 
A49: =VLOOKUP(C49, Helper_zone!$B$35:$C$233, 2, 0) ->  | B49: 44 | C49: =_xlfn.IFNA(VLOOKUP(CONCATENATE(SUBSTITUTE('Cover page'!$Q$3," ",""),B49),'Helper_worho denom'!$A$1:$C$200,2,0),"") ->  | D49: =IF(C49="","", VLOOKUP(C49,'RED regional calc'!$A$3:$Y$201, 20, 0)) ->  | E49: =IF(C49="","", VLOOKUP(C49,'RED regional calc'!$A$3:$Y$201, 21, 0)) ->  | F49: =IF(C49="","", VLOOKUP(C49,'RED regional calc'!$A$3:$Y$201, 22, 0)) ->  | G49: =IF(C49="","", VLOOKUP(C49,'RED regional calc'!$A$3:$Y$201, 23, 0)) ->  | H49: =IF(C49="","", VLOOKUP(C49,'RED regional calc'!$A$3:$Y$201, 24, 0)) ->  | I49: =IF(C49="","", VLOOKUP(C49,'RED regional calc'!$A$3:$Y$201, 25, 0)) -> 
A50: =VLOOKUP(C50, Helper_zone!$B$35:$C$233, 2, 0) ->  | B50: 45 | C50: =_xlfn.IFNA(VLOOKUP(CONCATENATE(SUBSTITUTE('Cover page'!$Q$3," ",""),B50),'Helper_worho denom'!$A$1:$C$200,2,0),"") ->  | D50: =IF(C50="","", VLOOKUP(C50,'RED regional calc'!$A$3:$Y$201, 20, 0)) ->  | E50: =IF(C50="","", VLOOKUP(C50,'RED regional calc'!$A$3:$Y$201, 21, 0)) ->  | F50: =IF(C50="","", VLOOKUP(C50,'RED regional calc'!$A$3:$Y$201, 22, 0)) ->  | G50: =IF(C50="","", VLOOKUP(C50,'RED regional calc'!$A$3:$Y$201, 23, 0)) ->  | H50: =IF(C50="","", VLOOKUP(C50,'RED regional calc'!$A$3:$Y$201, 24, 0)) ->  | I50: =IF(C50="","", VLOOKUP(C50,'RED regional calc'!$A$3:$Y$201, 25, 0)) -> 
A51: =VLOOKUP(C51, Helper_zone!$B$35:$C$233, 2, 0) ->  | B51: 46 | C51: =_xlfn.IFNA(VLOOKUP(CONCATENATE(SUBSTITUTE('Cover page'!$Q$3," ",""),B51),'Helper_worho denom'!$A$1:$C$200,2,0),"") ->  | D51: =IF(C51="","", VLOOKUP(C51,'RED regional calc'!$A$3:$Y$201, 20, 0)) ->  | E51: =IF(C51="","", VLOOKUP(C51,'RED regional calc'!$A$3:$Y$201, 21, 0)) ->  | F51: =IF(C51="","", VLOOKUP(C51,'RED regional calc'!$A$3:$Y$201, 22, 0)) ->  | G51: =IF(C51="","", VLOOKUP(C51,'RED regional calc'!$A$3:$Y$201, 23, 0)) ->  | H51: =IF(C51="","", VLOOKUP(C51,'RED regional calc'!$A$3:$Y$201, 24, 0)) ->  | I51: =IF(C51="","", VLOOKUP(C51,'RED regional calc'!$A$3:$Y$201, 25, 0)) -> 
A52: =VLOOKUP(C52, Helper_zone!$B$35:$C$233, 2, 0) ->  | B52: 47 | C52: =_xlfn.IFNA(VLOOKUP(CONCATENATE(SUBSTITUTE('Cover page'!$Q$3," ",""),B52),'Helper_worho denom'!$A$1:$C$200,2,0),"") ->  | D52: =IF(C52="","", VLOOKUP(C52,'RED regional calc'!$A$3:$Y$201, 20, 0)) ->  | E52: =IF(C52="","", VLOOKUP(C52,'RED regional calc'!$A$3:$Y$201, 21, 0)) ->  | F52: =IF(C52="","", VLOOKUP(C52,'RED regional calc'!$A$3:$Y$201, 22, 0)) ->  | G52: =IF(C52="","", VLOOKUP(C52,'RED regional calc'!$A$3:$Y$201, 23, 0)) ->  | H52: =IF(C52="","", VLOOKUP(C52,'RED regional calc'!$A$3:$Y$201, 24, 0)) ->  | I52: =IF(C52="","", VLOOKUP(C52,'RED regional calc'!$A$3:$Y$201, 25, 0)) -> 
A53: =VLOOKUP(C53, Helper_zone!$B$35:$C$233, 2, 0) ->  | B53: 48 | C53: =_xlfn.IFNA(VLOOKUP(CONCATENATE(SUBSTITUTE('Cover page'!$Q$3," ",""),B53),'Helper_worho denom'!$A$1:$C$200,2,0),"") ->  | D53: =IF(C53="","", VLOOKUP(C53,'RED regional calc'!$A$3:$Y$201, 20, 0)) ->  | E53: =IF(C53="","", VLOOKUP(C53,'RED regional calc'!$A$3:$Y$201, 21, 0)) ->  | F53: =IF(C53="","", VLOOKUP(C53,'RED regional calc'!$A$3:$Y$201, 22, 0)) ->  | G53: =IF(C53="","", VLOOKUP(C53,'RED regional calc'!$A$3:$Y$201, 23, 0)) ->  | H53: =IF(C53="","", VLOOKUP(C53,'RED regional calc'!$A$3:$Y$201, 24, 0)) ->  | I53: =IF(C53="","", VLOOKUP(C53,'RED regional calc'!$A$3:$Y$201, 25, 0)) -> 
A54: =VLOOKUP(C54, Helper_zone!$B$35:$C$233, 2, 0) ->  | B54: 49 | C54: =_xlfn.IFNA(VLOOKUP(CONCATENATE(SUBSTITUTE('Cover page'!$Q$3," ",""),B54),'Helper_worho denom'!$A$1:$C$200,2,0),"") ->  | D54: =IF(C54="","", VLOOKUP(C54,'RED regional calc'!$A$3:$Y$201, 20, 0)) ->  | E54: =IF(C54="","", VLOOKUP(C54,'RED regional calc'!$A$3:$Y$201, 21, 0)) ->  | F54: =IF(C54="","", VLOOKUP(C54,'RED regional calc'!$A$3:$Y$201, 22, 0)) ->  | G54: =IF(C54="","", VLOOKUP(C54,'RED regional calc'!$A$3:$Y$201, 23, 0)) ->  | H54: =IF(C54="","", VLOOKUP(C54,'RED regional calc'!$A$3:$Y$201, 24, 0)) ->  | I54: =IF(C54="","", VLOOKUP(C54,'RED regional calc'!$A$3:$Y$201, 25, 0)) -> 
A55: =VLOOKUP(C55, Helper_zone!$B$35:$C$233, 2, 0) ->  | B55: 50 | C55: =_xlfn.IFNA(VLOOKUP(CONCATENATE(SUBSTITUTE('Cover page'!$Q$3," ",""),B55),'Helper_worho denom'!$A$1:$C$200,2,0),"") ->  | D55: =IF(C55="","", VLOOKUP(C55,'RED regional calc'!$A$3:$Y$201, 20, 0)) ->  | E55: =IF(C55="","", VLOOKUP(C55,'RED regional calc'!$A$3:$Y$201, 21, 0)) ->  | F55: =IF(C55="","", VLOOKUP(C55,'RED regional calc'!$A$3:$Y$201, 22, 0)) ->  | G55: =IF(C55="","", VLOOKUP(C55,'RED regional calc'!$A$3:$Y$201, 23, 0)) ->  | H55: =IF(C55="","", VLOOKUP(C55,'RED regional calc'!$A$3:$Y$201, 24, 0)) ->  | I55: =IF(C55="","", VLOOKUP(C55,'RED regional calc'!$A$3:$Y$201, 25, 0)) -> 
A56: =VLOOKUP(C56, Helper_zone!$B$35:$C$233, 2, 0) ->  | B56: 51 | C56: =_xlfn.IFNA(VLOOKUP(CONCATENATE(SUBSTITUTE('Cover page'!$Q$3," ",""),B56),'Helper_worho denom'!$A$1:$C$200,2,0),"") ->  | D56: =IF(C56="","", VLOOKUP(C56,'RED regional calc'!$A$3:$Y$201, 20, 0)) ->  | E56: =IF(C56="","", VLOOKUP(C56,'RED regional calc'!$A$3:$Y$201, 21, 0)) ->  | F56: =IF(C56="","", VLOOKUP(C56,'RED regional calc'!$A$3:$Y$201, 22, 0)) ->  | G56: =IF(C56="","", VLOOKUP(C56,'RED regional calc'!$A$3:$Y$201, 23, 0)) ->  | H56: =IF(C56="","", VLOOKUP(C56,'RED regional calc'!$A$3:$Y$201, 24, 0)) ->  | I56: =IF(C56="","", VLOOKUP(C56,'RED regional calc'!$A$3:$Y$201, 25, 0)) -> 
A57: =VLOOKUP(C57, Helper_zone!$B$35:$C$233, 2, 0) ->  | B57: 52 | C57: =_xlfn.IFNA(VLOOKUP(CONCATENATE(SUBSTITUTE('Cover page'!$Q$3," ",""),B57),'Helper_worho denom'!$A$1:$C$200,2,0),"") ->  | D57: =IF(C57="","", VLOOKUP(C57,'RED regional calc'!$A$3:$Y$201, 20, 0)) ->  | E57: =IF(C57="","", VLOOKUP(C57,'RED regional calc'!$A$3:$Y$201, 21, 0)) ->  | F57: =IF(C57="","", VLOOKUP(C57,'RED regional calc'!$A$3:$Y$201, 22, 0)) ->  | G57: =IF(C57="","", VLOOKUP(C57,'RED regional calc'!$A$3:$Y$201, 23, 0)) ->  | H57: =IF(C57="","", VLOOKUP(C57,'RED regional calc'!$A$3:$Y$201, 24, 0)) ->  | I57: =IF(C57="","", VLOOKUP(C57,'RED regional calc'!$A$3:$Y$201, 25, 0)) -> 
A58: =VLOOKUP(C58, Helper_zone!$B$35:$C$233, 2, 0) ->  | B58: 53 | C58: =_xlfn.IFNA(VLOOKUP(CONCATENATE(SUBSTITUTE('Cover page'!$Q$3," ",""),B58),'Helper_worho denom'!$A$1:$C$200,2,0),"") ->  | D58: =IF(C58="","", VLOOKUP(C58,'RED regional calc'!$A$3:$Y$201, 20, 0)) ->  | E58: =IF(C58="","", VLOOKUP(C58,'RED regional calc'!$A$3:$Y$201, 21, 0)) ->  | F58: =IF(C58="","", VLOOKUP(C58,'RED regional calc'!$A$3:$Y$201, 22, 0)) ->  | G58: =IF(C58="","", VLOOKUP(C58,'RED regional calc'!$A$3:$Y$201, 23, 0)) ->  | H58: =IF(C58="","", VLOOKUP(C58,'RED regional calc'!$A$3:$Y$201, 24, 0)) ->  | I58: =IF(C58="","", VLOOKUP(C58,'RED regional calc'!$A$3:$Y$201, 25, 0)) -> 
A59: =VLOOKUP(C59, Helper_zone!$B$35:$C$233, 2, 0) ->  | B59: 54 | C59: =_xlfn.IFNA(VLOOKUP(CONCATENATE(SUBSTITUTE('Cover page'!$Q$3," ",""),B59),'Helper_worho denom'!$A$1:$C$200,2,0),"") ->  | D59: =IF(C59="","", VLOOKUP(C59,'RED regional calc'!$A$3:$Y$201, 20, 0)) ->  | E59: =IF(C59="","", VLOOKUP(C59,'RED regional calc'!$A$3:$Y$201, 21, 0)) ->  | F59: =IF(C59="","", VLOOKUP(C59,'RED regional calc'!$A$3:$Y$201, 22, 0)) ->  | G59: =IF(C59="","", VLOOKUP(C59,'RED regional calc'!$A$3:$Y$201, 23, 0)) ->  | H59: =IF(C59="","", VLOOKUP(C59,'RED regional calc'!$A$3:$Y$201, 24, 0)) ->  | I59: =IF(C59="","", VLOOKUP(C59,'RED regional calc'!$A$3:$Y$201, 25, 0)) -> 
A60: =VLOOKUP(C60, Helper_zone!$B$35:$C$233, 2, 0) ->  | B60: 55 | C60: =_xlfn.IFNA(VLOOKUP(CONCATENATE(SUBSTITUTE('Cover page'!$Q$3," ",""),B60),'Helper_worho denom'!$A$1:$C$200,2,0),"") ->  | D60: =IF(C60="","", VLOOKUP(C60,'RED regional calc'!$A$3:$Y$201, 20, 0)) ->  | E60: =IF(C60="","", VLOOKUP(C60,'RED regional calc'!$A$3:$Y$201, 21, 0)) ->  | F60: =IF(C60="","", VLOOKUP(C60,'RED regional calc'!$A$3:$Y$201, 22, 0)) ->  | G60: =IF(C60="","", VLOOKUP(C60,'RED regional calc'!$A$3:$Y$201, 23, 0)) ->  | H60: =IF(C60="","", VLOOKUP(C60,'RED regional calc'!$A$3:$Y$201, 24, 0)) ->  | I60: =IF(C60="","", VLOOKUP(C60,'RED regional calc'!$A$3:$Y$201, 25, 0)) -> 
A61: =VLOOKUP(C61, Helper_zone!$B$35:$C$233, 2, 0) ->  | B61: 56 | C61: =_xlfn.IFNA(VLOOKUP(CONCATENATE(SUBSTITUTE('Cover page'!$Q$3," ",""),B61),'Helper_worho denom'!$A$1:$C$200,2,0),"") ->  | D61: =IF(C61="","", VLOOKUP(C61,'RED regional calc'!$A$3:$Y$201, 20, 0)) ->  | E61: =IF(C61="","", VLOOKUP(C61,'RED regional calc'!$A$3:$Y$201, 21, 0)) ->  | F61: =IF(C61="","", VLOOKUP(C61,'RED regional calc'!$A$3:$Y$201, 22, 0)) ->  | G61: =IF(C61="","", VLOOKUP(C61,'RED regional calc'!$A$3:$Y$201, 23, 0)) ->  | H61: =IF(C61="","", VLOOKUP(C61,'RED regional calc'!$A$3:$Y$201, 24, 0)) ->  | I61: =IF(C61="","", VLOOKUP(C61,'RED regional calc'!$A$3:$Y$201, 25, 0)) -> 
A62: =VLOOKUP(C62, Helper_zone!$B$35:$C$233, 2, 0) ->  | B62: 57 | C62: =_xlfn.IFNA(VLOOKUP(CONCATENATE(SUBSTITUTE('Cover page'!$Q$3," ",""),B62),'Helper_worho denom'!$A$1:$C$200,2,0),"") ->  | D62: =IF(C62="","", VLOOKUP(C62,'RED regional calc'!$A$3:$Y$201, 20, 0)) ->  | E62: =IF(C62="","", VLOOKUP(C62,'RED regional calc'!$A$3:$Y$201, 21, 0)) ->  | F62: =IF(C62="","", VLOOKUP(C62,'RED regional calc'!$A$3:$Y$201, 22, 0)) ->  | G62: =IF(C62="","", VLOOKUP(C62,'RED regional calc'!$A$3:$Y$201, 23, 0)) ->  | H62: =IF(C62="","", VLOOKUP(C62,'RED regional calc'!$A$3:$Y$201, 24, 0)) ->  | I62: =IF(C62="","", VLOOKUP(C62,'RED regional calc'!$A$3:$Y$201, 25, 0)) -> 
A63: =VLOOKUP(C63, Helper_zone!$B$35:$C$233, 2, 0) ->  | B63: 58 | C63: =_xlfn.IFNA(VLOOKUP(CONCATENATE(SUBSTITUTE('Cover page'!$Q$3," ",""),B63),'Helper_worho denom'!$A$1:$C$200,2,0),"") ->  | D63: =IF(C63="","", VLOOKUP(C63,'RED regional calc'!$A$3:$Y$201, 20, 0)) ->  | E63: =IF(C63="","", VLOOKUP(C63,'RED regional calc'!$A$3:$Y$201, 21, 0)) ->  | F63: =IF(C63="","", VLOOKUP(C63,'RED regional calc'!$A$3:$Y$201, 22, 0)) ->  | G63: =IF(C63="","", VLOOKUP(C63,'RED regional calc'!$A$3:$Y$201, 23, 0)) ->  | H63: =IF(C63="","", VLOOKUP(C63,'RED regional calc'!$A$3:$Y$201, 24, 0)) ->  | I63: =IF(C63="","", VLOOKUP(C63,'RED regional calc'!$A$3:$Y$201, 25, 0)) -> 
A64: =VLOOKUP(C64, Helper_zone!$B$35:$C$233, 2, 0) ->  | B64: 59 | C64: =_xlfn.IFNA(VLOOKUP(CONCATENATE(SUBSTITUTE('Cover page'!$Q$3," ",""),B64),'Helper_worho denom'!$A$1:$C$200,2,0),"") ->  | D64: =IF(C64="","", VLOOKUP(C64,'RED regional calc'!$A$3:$Y$201, 20, 0)) ->  | E64: =IF(C64="","", VLOOKUP(C64,'RED regional calc'!$A$3:$Y$201, 21, 0)) ->  | F64: =IF(C64="","", VLOOKUP(C64,'RED regional calc'!$A$3:$Y$201, 22, 0)) ->  | G64: =IF(C64="","", VLOOKUP(C64,'RED regional calc'!$A$3:$Y$201, 23, 0)) ->  | H64: =IF(C64="","", VLOOKUP(C64,'RED regional calc'!$A$3:$Y$201, 24, 0)) ->  | I64: =IF(C64="","", VLOOKUP(C64,'RED regional calc'!$A$3:$Y$201, 25, 0)) -> 
A65: =VLOOKUP(C65, Helper_zone!$B$35:$C$233, 2, 0) ->  | B65: 60 | C65: =_xlfn.IFNA(VLOOKUP(CONCATENATE(SUBSTITUTE('Cover page'!$Q$3," ",""),B65),'Helper_worho denom'!$A$1:$C$200,2,0),"") ->  | D65: =IF(C65="","", VLOOKUP(C65,'RED regional calc'!$A$3:$Y$201, 20, 0)) ->  | E65: =IF(C65="","", VLOOKUP(C65,'RED regional calc'!$A$3:$Y$201, 21, 0)) ->  | F65: =IF(C65="","", VLOOKUP(C65,'RED regional calc'!$A$3:$Y$201, 22, 0)) ->  | G65: =IF(C65="","", VLOOKUP(C65,'RED regional calc'!$A$3:$Y$201, 23, 0)) ->  | H65: =IF(C65="","", VLOOKUP(C65,'RED regional calc'!$A$3:$Y$201, 24, 0)) ->  | I65: =IF(C65="","", VLOOKUP(C65,'RED regional calc'!$A$3:$Y$201, 25, 0)) -> 
A66: =VLOOKUP(C66, Helper_zone!$B$35:$C$233, 2, 0) ->  | B66: 61 | C66: =_xlfn.IFNA(VLOOKUP(CONCATENATE(SUBSTITUTE('Cover page'!$Q$3," ",""),B66),'Helper_worho denom'!$A$1:$C$200,2,0),"") ->  | D66: =IF(C66="","", VLOOKUP(C66,'RED regional calc'!$A$3:$Y$201, 20, 0)) ->  | E66: =IF(C66="","", VLOOKUP(C66,'RED regional calc'!$A$3:$Y$201, 21, 0)) ->  | F66: =IF(C66="","", VLOOKUP(C66,'RED regional calc'!$A$3:$Y$201, 22, 0)) ->  | G66: =IF(C66="","", VLOOKUP(C66,'RED regional calc'!$A$3:$Y$201, 23, 0)) ->  | H66: =IF(C66="","", VLOOKUP(C66,'RED regional calc'!$A$3:$Y$201, 24, 0)) ->  | I66: =IF(C66="","", VLOOKUP(C66,'RED regional calc'!$A$3:$Y$201, 25, 0)) -> 
A67: =VLOOKUP(C67, Helper_zone!$B$35:$C$233, 2, 0) ->  | B67: 62 | C67: =_xlfn.IFNA(VLOOKUP(CONCATENATE(SUBSTITUTE('Cover page'!$Q$3," ",""),B67),'Helper_worho denom'!$A$1:$C$200,2,0),"") ->  | D67: =IF(C67="","", VLOOKUP(C67,'RED regional calc'!$A$3:$Y$201, 20, 0)) ->  | E67: =IF(C67="","", VLOOKUP(C67,'RED regional calc'!$A$3:$Y$201, 21, 0)) ->  | F67: =IF(C67="","", VLOOKUP(C67,'RED regional calc'!$A$3:$Y$201, 22, 0)) ->  | G67: =IF(C67="","", VLOOKUP(C67,'RED regional calc'!$A$3:$Y$201, 23, 0)) ->  | H67: =IF(C67="","", VLOOKUP(C67,'RED regional calc'!$A$3:$Y$201, 24, 0)) ->  | I67: =IF(C67="","", VLOOKUP(C67,'RED regional calc'!$A$3:$Y$201, 25, 0)) -> 
A68: =VLOOKUP(C68, Helper_zone!$B$35:$C$233, 2, 0) ->  | B68: 63 | C68: =_xlfn.IFNA(VLOOKUP(CONCATENATE(SUBSTITUTE('Cover page'!$Q$3," ",""),B68),'Helper_worho denom'!$A$1:$C$200,2,0),"") ->  | D68: =IF(C68="","", VLOOKUP(C68,'RED regional calc'!$A$3:$Y$201, 20, 0)) ->  | E68: =IF(C68="","", VLOOKUP(C68,'RED regional calc'!$A$3:$Y$201, 21, 0)) ->  | F68: =IF(C68="","", VLOOKUP(C68,'RED regional calc'!$A$3:$Y$201, 22, 0)) ->  | G68: =IF(C68="","", VLOOKUP(C68,'RED regional calc'!$A$3:$Y$201, 23, 0)) ->  | H68: =IF(C68="","", VLOOKUP(C68,'RED regional calc'!$A$3:$Y$201, 24, 0)) ->  | I68: =IF(C68="","", VLOOKUP(C68,'RED regional calc'!$A$3:$Y$201, 25, 0)) -> 
A69: =VLOOKUP(C69, Helper_zone!$B$35:$C$233, 2, 0) ->  | B69: 64 | C69: =_xlfn.IFNA(VLOOKUP(CONCATENATE(SUBSTITUTE('Cover page'!$Q$3," ",""),B69),'Helper_worho denom'!$A$1:$C$200,2,0),"") ->  | D69: =IF(C69="","", VLOOKUP(C69,'RED regional calc'!$A$3:$Y$201, 20, 0)) ->  | E69: =IF(C69="","", VLOOKUP(C69,'RED regional calc'!$A$3:$Y$201, 21, 0)) ->  | F69: =IF(C69="","", VLOOKUP(C69,'RED regional calc'!$A$3:$Y$201, 22, 0)) ->  | G69: =IF(C69="","", VLOOKUP(C69,'RED regional calc'!$A$3:$Y$201, 23, 0)) ->  | H69: =IF(C69="","", VLOOKUP(C69,'RED regional calc'!$A$3:$Y$201, 24, 0)) ->  | I69: =IF(C69="","", VLOOKUP(C69,'RED regional calc'!$A$3:$Y$201, 25, 0)) -> 
A70: =VLOOKUP(C70, Helper_zone!$B$35:$C$233, 2, 0) ->  | B70: 65 | C70: =_xlfn.IFNA(VLOOKUP(CONCATENATE(SUBSTITUTE('Cover page'!$Q$3," ",""),B70),'Helper_worho denom'!$A$1:$C$200,2,0),"") ->  | D70: =IF(C70="","", VLOOKUP(C70,'RED regional calc'!$A$3:$Y$201, 20, 0)) ->  | E70: =IF(C70="","", VLOOKUP(C70,'RED regional calc'!$A$3:$Y$201, 21, 0)) ->  | F70: =IF(C70="","", VLOOKUP(C70,'RED regional calc'!$A$3:$Y$201, 22, 0)) ->  | G70: =IF(C70="","", VLOOKUP(C70,'RED regional calc'!$A$3:$Y$201, 23, 0)) ->  | H70: =IF(C70="","", VLOOKUP(C70,'RED regional calc'!$A$3:$Y$201, 24, 0)) ->  | I70: =IF(C70="","", VLOOKUP(C70,'RED regional calc'!$A$3:$Y$201, 25, 0)) -> 
A71: =VLOOKUP(C71, Helper_zone!$B$35:$C$233, 2, 0) ->  | B71: 66 | C71: =_xlfn.IFNA(VLOOKUP(CONCATENATE(SUBSTITUTE('Cover page'!$Q$3," ",""),B71),'Helper_worho denom'!$A$1:$C$200,2,0),"") ->  | D71: =IF(C71="","", VLOOKUP(C71,'RED regional calc'!$A$3:$Y$201, 20, 0)) ->  | E71: =IF(C71="","", VLOOKUP(C71,'RED regional calc'!$A$3:$Y$201, 21, 0)) ->  | F71: =IF(C71="","", VLOOKUP(C71,'RED regional calc'!$A$3:$Y$201, 22, 0)) ->  | G71: =IF(C71="","", VLOOKUP(C71,'RED regional calc'!$A$3:$Y$201, 23, 0)) ->  | H71: =IF(C71="","", VLOOKUP(C71,'RED regional calc'!$A$3:$Y$201, 24, 0)) ->  | I71: =IF(C71="","", VLOOKUP(C71,'RED regional calc'!$A$3:$Y$201, 25, 0)) -> 
A72: =VLOOKUP(C72, Helper_zone!$B$35:$C$233, 2, 0) ->  | B72: 67 | C72: =_xlfn.IFNA(VLOOKUP(CONCATENATE(SUBSTITUTE('Cover page'!$Q$3," ",""),B72),'Helper_worho denom'!$A$1:$C$200,2,0),"") ->  | D72: =IF(C72="","", VLOOKUP(C72,'RED regional calc'!$A$3:$Y$201, 20, 0)) ->  | E72: =IF(C72="","", VLOOKUP(C72,'RED regional calc'!$A$3:$Y$201, 21, 0)) ->  | F72: =IF(C72="","", VLOOKUP(C72,'RED regional calc'!$A$3:$Y$201, 22, 0)) ->  | G72: =IF(C72="","", VLOOKUP(C72,'RED regional calc'!$A$3:$Y$201, 23, 0)) ->  | H72: =IF(C72="","", VLOOKUP(C72,'RED regional calc'!$A$3:$Y$201, 24, 0)) ->  | I72: =IF(C72="","", VLOOKUP(C72,'RED regional calc'!$A$3:$Y$201, 25, 0)) -> 
A73: =VLOOKUP(C73, Helper_zone!$B$35:$C$233, 2, 0) ->  | B73: 68 | C73: =_xlfn.IFNA(VLOOKUP(CONCATENATE(SUBSTITUTE('Cover page'!$Q$3," ",""),B73),'Helper_worho denom'!$A$1:$C$200,2,0),"") ->  | D73: =IF(C73="","", VLOOKUP(C73,'RED regional calc'!$A$3:$Y$201, 20, 0)) ->  | E73: =IF(C73="","", VLOOKUP(C73,'RED regional calc'!$A$3:$Y$201, 21, 0)) ->  | F73: =IF(C73="","", VLOOKUP(C73,'RED regional calc'!$A$3:$Y$201, 22, 0)) ->  | G73: =IF(C73="","", VLOOKUP(C73,'RED regional calc'!$A$3:$Y$201, 23, 0)) ->  | H73: =IF(C73="","", VLOOKUP(C73,'RED regional calc'!$A$3:$Y$201, 24, 0)) ->  | I73: =IF(C73="","", VLOOKUP(C73,'RED regional calc'!$A$3:$Y$201, 25, 0)) -> 
A74: =VLOOKUP(C74, Helper_zone!$B$35:$C$233, 2, 0) ->  | B74: 69 | C74: =_xlfn.IFNA(VLOOKUP(CONCATENATE(SUBSTITUTE('Cover page'!$Q$3," ",""),B74),'Helper_worho denom'!$A$1:$C$200,2,0),"") ->  | D74: =IF(C74="","", VLOOKUP(C74,'RED regional calc'!$A$3:$Y$201, 20, 0)) ->  | E74: =IF(C74="","", VLOOKUP(C74,'RED regional calc'!$A$3:$Y$201, 21, 0)) ->  | F74: =IF(C74="","", VLOOKUP(C74,'RED regional calc'!$A$3:$Y$201, 22, 0)) ->  | G74: =IF(C74="","", VLOOKUP(C74,'RED regional calc'!$A$3:$Y$201, 23, 0)) ->  | H74: =IF(C74="","", VLOOKUP(C74,'RED regional calc'!$A$3:$Y$201, 24, 0)) ->  | I74: =IF(C74="","", VLOOKUP(C74,'RED regional calc'!$A$3:$Y$201, 25, 0)) -> 
A75: =VLOOKUP(C75, Helper_zone!$B$35:$C$233, 2, 0) ->  | B75: 70 | C75: =_xlfn.IFNA(VLOOKUP(CONCATENATE(SUBSTITUTE('Cover page'!$Q$3," ",""),B75),'Helper_worho denom'!$A$1:$C$200,2,0),"") ->  | D75: =IF(C75="","", VLOOKUP(C75,'RED regional calc'!$A$3:$Y$201, 20, 0)) ->  | E75: =IF(C75="","", VLOOKUP(C75,'RED regional calc'!$A$3:$Y$201, 21, 0)) ->  | F75: =IF(C75="","", VLOOKUP(C75,'RED regional calc'!$A$3:$Y$201, 22, 0)) ->  | G75: =IF(C75="","", VLOOKUP(C75,'RED regional calc'!$A$3:$Y$201, 23, 0)) ->  | H75: =IF(C75="","", VLOOKUP(C75,'RED regional calc'!$A$3:$Y$201, 24, 0)) ->  | I75: =IF(C75="","", VLOOKUP(C75,'RED regional calc'!$A$3:$Y$201, 25, 0)) -> 
A76: =VLOOKUP(C76, Helper_zone!$B$35:$C$233, 2, 0) ->  | B76: 71 | C76: =_xlfn.IFNA(VLOOKUP(CONCATENATE(SUBSTITUTE('Cover page'!$Q$3," ",""),B76),'Helper_worho denom'!$A$1:$C$200,2,0),"") ->  | D76: =IF(C76="","", VLOOKUP(C76,'RED regional calc'!$A$3:$Y$201, 20, 0)) ->  | E76: =IF(C76="","", VLOOKUP(C76,'RED regional calc'!$A$3:$Y$201, 21, 0)) ->  | F76: =IF(C76="","", VLOOKUP(C76,'RED regional calc'!$A$3:$Y$201, 22, 0)) ->  | G76: =IF(C76="","", VLOOKUP(C76,'RED regional calc'!$A$3:$Y$201, 23, 0)) ->  | H76: =IF(C76="","", VLOOKUP(C76,'RED regional calc'!$A$3:$Y$201, 24, 0)) ->  | I76: =IF(C76="","", VLOOKUP(C76,'RED regional calc'!$A$3:$Y$201, 25, 0)) -> 
A77: =VLOOKUP(C77, Helper_zone!$B$35:$C$233, 2, 0) ->  | B77: 72 | C77: =_xlfn.IFNA(VLOOKUP(CONCATENATE(SUBSTITUTE('Cover page'!$Q$3," ",""),B77),'Helper_worho denom'!$A$1:$C$200,2,0),"") ->  | D77: =IF(C77="","", VLOOKUP(C77,'RED regional calc'!$A$3:$Y$201, 20, 0)) ->  | E77: =IF(C77="","", VLOOKUP(C77,'RED regional calc'!$A$3:$Y$201, 21, 0)) ->  | F77: =IF(C77="","", VLOOKUP(C77,'RED regional calc'!$A$3:$Y$201, 22, 0)) ->  | G77: =IF(C77="","", VLOOKUP(C77,'RED regional calc'!$A$3:$Y$201, 23, 0)) ->  | H77: =IF(C77="","", VLOOKUP(C77,'RED regional calc'!$A$3:$Y$201, 24, 0)) ->  | I77: =IF(C77="","", VLOOKUP(C77,'RED regional calc'!$A$3:$Y$201, 25, 0)) -> 
A78: =VLOOKUP(C78, Helper_zone!$B$35:$C$233, 2, 0) ->  | B78: 73 | C78: =_xlfn.IFNA(VLOOKUP(CONCATENATE(SUBSTITUTE('Cover page'!$Q$3," ",""),B78),'Helper_worho denom'!$A$1:$C$200,2,0),"") ->  | D78: =IF(C78="","", VLOOKUP(C78,'RED regional calc'!$A$3:$Y$201, 20, 0)) ->  | E78: =IF(C78="","", VLOOKUP(C78,'RED regional calc'!$A$3:$Y$201, 21, 0)) ->  | F78: =IF(C78="","", VLOOKUP(C78,'RED regional calc'!$A$3:$Y$201, 22, 0)) ->  | G78: =IF(C78="","", VLOOKUP(C78,'RED regional calc'!$A$3:$Y$201, 23, 0)) ->  | H78: =IF(C78="","", VLOOKUP(C78,'RED regional calc'!$A$3:$Y$201, 24, 0)) ->  | I78: =IF(C78="","", VLOOKUP(C78,'RED regional calc'!$A$3:$Y$201, 25, 0)) -> 
A79: =VLOOKUP(C79, Helper_zone!$B$35:$C$233, 2, 0) ->  | B79: 74 | C79: =_xlfn.IFNA(VLOOKUP(CONCATENATE(SUBSTITUTE('Cover page'!$Q$3," ",""),B79),'Helper_worho denom'!$A$1:$C$200,2,0),"") ->  | D79: =IF(C79="","", VLOOKUP(C79,'RED regional calc'!$A$3:$Y$201, 20, 0)) ->  | E79: =IF(C79="","", VLOOKUP(C79,'RED regional calc'!$A$3:$Y$201, 21, 0)) ->  | F79: =IF(C79="","", VLOOKUP(C79,'RED regional calc'!$A$3:$Y$201, 22, 0)) ->  | G79: =IF(C79="","", VLOOKUP(C79,'RED regional calc'!$A$3:$Y$201, 23, 0)) ->  | H79: =IF(C79="","", VLOOKUP(C79,'RED regional calc'!$A$3:$Y$201, 24, 0)) ->  | I79: =IF(C79="","", VLOOKUP(C79,'RED regional calc'!$A$3:$Y$201, 25, 0)) -> 
A80: =VLOOKUP(C80, Helper_zone!$B$35:$C$233, 2, 0) ->  | B80: 75 | C80: =_xlfn.IFNA(VLOOKUP(CONCATENATE(SUBSTITUTE('Cover page'!$Q$3," ",""),B80),'Helper_worho denom'!$A$1:$C$200,2,0),"") ->  | D80: =IF(C80="","", VLOOKUP(C80,'RED regional calc'!$A$3:$Y$201, 20, 0)) ->  | E80: =IF(C80="","", VLOOKUP(C80,'RED regional calc'!$A$3:$Y$201, 21, 0)) ->  | F80: =IF(C80="","", VLOOKUP(C80,'RED regional calc'!$A$3:$Y$201, 22, 0)) ->  | G80: =IF(C80="","", VLOOKUP(C80,'RED regional calc'!$A$3:$Y$201, 23, 0)) ->  | H80: =IF(C80="","", VLOOKUP(C80,'RED regional calc'!$A$3:$Y$201, 24, 0)) ->  | I80: =IF(C80="","", VLOOKUP(C80,'RED regional calc'!$A$3:$Y$201, 25, 0)) -> 
A81: =VLOOKUP(C81, Helper_zone!$B$35:$C$233, 2, 0) ->  | B81: 76 | C81: =_xlfn.IFNA(VLOOKUP(CONCATENATE(SUBSTITUTE('Cover page'!$Q$3," ",""),B81),'Helper_worho denom'!$A$1:$C$200,2,0),"") ->  | D81: =IF(C81="","", VLOOKUP(C81,'RED regional calc'!$A$3:$Y$201, 20, 0)) ->  | E81: =IF(C81="","", VLOOKUP(C81,'RED regional calc'!$A$3:$Y$201, 21, 0)) ->  | F81: =IF(C81="","", VLOOKUP(C81,'RED regional calc'!$A$3:$Y$201, 22, 0)) ->  | G81: =IF(C81="","", VLOOKUP(C81,'RED regional calc'!$A$3:$Y$201, 23, 0)) ->  | H81: =IF(C81="","", VLOOKUP(C81,'RED regional calc'!$A$3:$Y$201, 24, 0)) ->  | I81: =IF(C81="","", VLOOKUP(C81,'RED regional calc'!$A$3:$Y$201, 25, 0)) -> 
A82: =VLOOKUP(C82, Helper_zone!$B$35:$C$233, 2, 0) ->  | B82: 77 | C82: =_xlfn.IFNA(VLOOKUP(CONCATENATE(SUBSTITUTE('Cover page'!$Q$3," ",""),B82),'Helper_worho denom'!$A$1:$C$200,2,0),"") ->  | D82: =IF(C82="","", VLOOKUP(C82,'RED regional calc'!$A$3:$Y$201, 20, 0)) ->  | E82: =IF(C82="","", VLOOKUP(C82,'RED regional calc'!$A$3:$Y$201, 21, 0)) ->  | F82: =IF(C82="","", VLOOKUP(C82,'RED regional calc'!$A$3:$Y$201, 22, 0)) ->  | G82: =IF(C82="","", VLOOKUP(C82,'RED regional calc'!$A$3:$Y$201, 23, 0)) ->  | H82: =IF(C82="","", VLOOKUP(C82,'RED regional calc'!$A$3:$Y$201, 24, 0)) ->  | I82: =IF(C82="","", VLOOKUP(C82,'RED regional calc'!$A$3:$Y$201, 25, 0)) -> 
A83: =VLOOKUP(C83, Helper_zone!$B$35:$C$233, 2, 0) ->  | B83: 78 | C83: =_xlfn.IFNA(VLOOKUP(CONCATENATE(SUBSTITUTE('Cover page'!$Q$3," ",""),B83),'Helper_worho denom'!$A$1:$C$200,2,0),"") ->  | D83: =IF(C83="","", VLOOKUP(C83,'RED regional calc'!$A$3:$Y$201, 20, 0)) ->  | E83: =IF(C83="","", VLOOKUP(C83,'RED regional calc'!$A$3:$Y$201, 21, 0)) ->  | F83: =IF(C83="","", VLOOKUP(C83,'RED regional calc'!$A$3:$Y$201, 22, 0)) ->  | G83: =IF(C83="","", VLOOKUP(C83,'RED regional calc'!$A$3:$Y$201, 23, 0)) ->  | H83: =IF(C83="","", VLOOKUP(C83,'RED regional calc'!$A$3:$Y$201, 24, 0)) ->  | I83: =IF(C83="","", VLOOKUP(C83,'RED regional calc'!$A$3:$Y$201, 25, 0)) -> 
A84: =VLOOKUP(C84, Helper_zone!$B$35:$C$233, 2, 0) ->  | B84: 79 | C84: =_xlfn.IFNA(VLOOKUP(CONCATENATE(SUBSTITUTE('Cover page'!$Q$3," ",""),B84),'Helper_worho denom'!$A$1:$C$200,2,0),"") ->  | D84: =IF(C84="","", VLOOKUP(C84,'RED regional calc'!$A$3:$Y$201, 20, 0)) ->  | E84: =IF(C84="","", VLOOKUP(C84,'RED regional calc'!$A$3:$Y$201, 21, 0)) ->  | F84: =IF(C84="","", VLOOKUP(C84,'RED regional calc'!$A$3:$Y$201, 22, 0)) ->  | G84: =IF(C84="","", VLOOKUP(C84,'RED regional calc'!$A$3:$Y$201, 23, 0)) ->  | H84: =IF(C84="","", VLOOKUP(C84,'RED regional calc'!$A$3:$Y$201, 24, 0)) ->  | I84: =IF(C84="","", VLOOKUP(C84,'RED regional calc'!$A$3:$Y$201, 25, 0)) -> 
A85: =VLOOKUP(C85, Helper_zone!$B$35:$C$233, 2, 0) ->  | B85: 80 | C85: =_xlfn.IFNA(VLOOKUP(CONCATENATE(SUBSTITUTE('Cover page'!$Q$3," ",""),B85),'Helper_worho denom'!$A$1:$C$200,2,0),"") ->  | D85: =IF(C85="","", VLOOKUP(C85,'RED regional calc'!$A$3:$Y$201, 20, 0)) ->  | E85: =IF(C85="","", VLOOKUP(C85,'RED regional calc'!$A$3:$Y$201, 21, 0)) ->  | F85: =IF(C85="","", VLOOKUP(C85,'RED regional calc'!$A$3:$Y$201, 22, 0)) ->  | G85: =IF(C85="","", VLOOKUP(C85,'RED regional calc'!$A$3:$Y$201, 23, 0)) ->  | H85: =IF(C85="","", VLOOKUP(C85,'RED regional calc'!$A$3:$Y$201, 24, 0)) ->  | I85: =IF(C85="","", VLOOKUP(C85,'RED regional calc'!$A$3:$Y$201, 25, 0)) -> 
A86: =VLOOKUP(C86, Helper_zone!$B$35:$C$233, 2, 0) ->  | B86: 81 | C86: =_xlfn.IFNA(VLOOKUP(CONCATENATE(SUBSTITUTE('Cover page'!$Q$3," ",""),B86),'Helper_worho denom'!$A$1:$C$200,2,0),"") ->  | D86: =IF(C86="","", VLOOKUP(C86,'RED regional calc'!$A$3:$Y$201, 20, 0)) ->  | E86: =IF(C86="","", VLOOKUP(C86,'RED regional calc'!$A$3:$Y$201, 21, 0)) ->  | F86: =IF(C86="","", VLOOKUP(C86,'RED regional calc'!$A$3:$Y$201, 22, 0)) ->  | G86: =IF(C86="","", VLOOKUP(C86,'RED regional calc'!$A$3:$Y$201, 23, 0)) ->  | H86: =IF(C86="","", VLOOKUP(C86,'RED regional calc'!$A$3:$Y$201, 24, 0)) ->  | I86: =IF(C86="","", VLOOKUP(C86,'RED regional calc'!$A$3:$Y$201, 25, 0)) -> 
A87: =VLOOKUP(C87, Helper_zone!$B$35:$C$233, 2, 0) ->  | B87: 82 | C87: =_xlfn.IFNA(VLOOKUP(CONCATENATE(SUBSTITUTE('Cover page'!$Q$3," ",""),B87),'Helper_worho denom'!$A$1:$C$200,2,0),"") ->  | D87: =IF(C87="","", VLOOKUP(C87,'RED regional calc'!$A$3:$Y$201, 20, 0)) ->  | E87: =IF(C87="","", VLOOKUP(C87,'RED regional calc'!$A$3:$Y$201, 21, 0)) ->  | F87: =IF(C87="","", VLOOKUP(C87,'RED regional calc'!$A$3:$Y$201, 22, 0)) ->  | G87: =IF(C87="","", VLOOKUP(C87,'RED regional calc'!$A$3:$Y$201, 23, 0)) ->  | H87: =IF(C87="","", VLOOKUP(C87,'RED regional calc'!$A$3:$Y$201, 24, 0)) ->  | I87: =IF(C87="","", VLOOKUP(C87,'RED regional calc'!$A$3:$Y$201, 25, 0)) -> 
A88: =VLOOKUP(C88, Helper_zone!$B$35:$C$233, 2, 0) ->  | B88: 83 | C88: =_xlfn.IFNA(VLOOKUP(CONCATENATE(SUBSTITUTE('Cover page'!$Q$3," ",""),B88),'Helper_worho denom'!$A$1:$C$200,2,0),"") ->  | D88: =IF(C88="","", VLOOKUP(C88,'RED regional calc'!$A$3:$Y$201, 20, 0)) ->  | E88: =IF(C88="","", VLOOKUP(C88,'RED regional calc'!$A$3:$Y$201, 21, 0)) ->  | F88: =IF(C88="","", VLOOKUP(C88,'RED regional calc'!$A$3:$Y$201, 22, 0)) ->  | G88: =IF(C88="","", VLOOKUP(C88,'RED regional calc'!$A$3:$Y$201, 23, 0)) ->  | H88: =IF(C88="","", VLOOKUP(C88,'RED regional calc'!$A$3:$Y$201, 24, 0)) ->  | I88: =IF(C88="","", VLOOKUP(C88,'RED regional calc'!$A$3:$Y$201, 25, 0)) -> 
A89: =VLOOKUP(C89, Helper_zone!$B$35:$C$233, 2, 0) ->  | B89: 84 | C89: =_xlfn.IFNA(VLOOKUP(CONCATENATE(SUBSTITUTE('Cover page'!$Q$3," ",""),B89),'Helper_worho denom'!$A$1:$C$200,2,0),"") ->  | D89: =IF(C89="","", VLOOKUP(C89,'RED regional calc'!$A$3:$Y$201, 20, 0)) ->  | E89: =IF(C89="","", VLOOKUP(C89,'RED regional calc'!$A$3:$Y$201, 21, 0)) ->  | F89: =IF(C89="","", VLOOKUP(C89,'RED regional calc'!$A$3:$Y$201, 22, 0)) ->  | G89: =IF(C89="","", VLOOKUP(C89,'RED regional calc'!$A$3:$Y$201, 23, 0)) ->  | H89: =IF(C89="","", VLOOKUP(C89,'RED regional calc'!$A$3:$Y$201, 24, 0)) ->  | I89: =IF(C89="","", VLOOKUP(C89,'RED regional calc'!$A$3:$Y$201, 25, 0)) -> 
A90: =VLOOKUP(C90, Helper_zone!$B$35:$C$233, 2, 0) ->  | B90: 85 | C90: =_xlfn.IFNA(VLOOKUP(CONCATENATE(SUBSTITUTE('Cover page'!$Q$3," ",""),B90),'Helper_worho denom'!$A$1:$C$200,2,0),"") ->  | D90: =IF(C90="","", VLOOKUP(C90,'RED regional calc'!$A$3:$Y$201, 20, 0)) ->  | E90: =IF(C90="","", VLOOKUP(C90,'RED regional calc'!$A$3:$Y$201, 21, 0)) ->  | F90: =IF(C90="","", VLOOKUP(C90,'RED regional calc'!$A$3:$Y$201, 22, 0)) ->  | G90: =IF(C90="","", VLOOKUP(C90,'RED regional calc'!$A$3:$Y$201, 23, 0)) ->  | H90: =IF(C90="","", VLOOKUP(C90,'RED regional calc'!$A$3:$Y$201, 24, 0)) ->  | I90: =IF(C90="","", VLOOKUP(C90,'RED regional calc'!$A$3:$Y$201, 25, 0)) -> 
A91: =VLOOKUP(C91, Helper_zone!$B$35:$C$233, 2, 0) ->  | B91: 86 | C91: =_xlfn.IFNA(VLOOKUP(CONCATENATE(SUBSTITUTE('Cover page'!$Q$3," ",""),B91),'Helper_worho denom'!$A$1:$C$200,2,0),"") ->  | D91: =IF(C91="","", VLOOKUP(C91,'RED regional calc'!$A$3:$Y$201, 20, 0)) ->  | E91: =IF(C91="","", VLOOKUP(C91,'RED regional calc'!$A$3:$Y$201, 21, 0)) ->  | F91: =IF(C91="","", VLOOKUP(C91,'RED regional calc'!$A$3:$Y$201, 22, 0)) ->  | G91: =IF(C91="","", VLOOKUP(C91,'RED regional calc'!$A$3:$Y$201, 23, 0)) ->  | H91: =IF(C91="","", VLOOKUP(C91,'RED regional calc'!$A$3:$Y$201, 24, 0)) ->  | I91: =IF(C91="","", VLOOKUP(C91,'RED regional calc'!$A$3:$Y$201, 25, 0)) -> 
A92: =VLOOKUP(C92, Helper_zone!$B$35:$C$233, 2, 0) ->  | B92: 87 | C92: =_xlfn.IFNA(VLOOKUP(CONCATENATE(SUBSTITUTE('Cover page'!$Q$3," ",""),B92),'Helper_worho denom'!$A$1:$C$200,2,0),"") ->  | D92: =IF(C92="","", VLOOKUP(C92,'RED regional calc'!$A$3:$Y$201, 20, 0)) ->  | E92: =IF(C92="","", VLOOKUP(C92,'RED regional calc'!$A$3:$Y$201, 21, 0)) ->  | F92: =IF(C92="","", VLOOKUP(C92,'RED regional calc'!$A$3:$Y$201, 22, 0)) ->  | G92: =IF(C92="","", VLOOKUP(C92,'RED regional calc'!$A$3:$Y$201, 23, 0)) ->  | H92: =IF(C92="","", VLOOKUP(C92,'RED regional calc'!$A$3:$Y$201, 24, 0)) ->  | I92: =IF(C92="","", VLOOKUP(C92,'RED regional calc'!$A$3:$Y$201, 25, 0)) -> 
A93: =VLOOKUP(C93, Helper_zone!$B$35:$C$233, 2, 0) ->  | B93: 88 | C93: =_xlfn.IFNA(VLOOKUP(CONCATENATE(SUBSTITUTE('Cover page'!$Q$3," ",""),B93),'Helper_worho denom'!$A$1:$C$200,2,0),"") ->  | D93: =IF(C93="","", VLOOKUP(C93,'RED regional calc'!$A$3:$Y$201, 20, 0)) ->  | E93: =IF(C93="","", VLOOKUP(C93,'RED regional calc'!$A$3:$Y$201, 21, 0)) ->  | F93: =IF(C93="","", VLOOKUP(C93,'RED regional calc'!$A$3:$Y$201, 22, 0)) ->  | G93: =IF(C93="","", VLOOKUP(C93,'RED regional calc'!$A$3:$Y$201, 23, 0)) ->  | H93: =IF(C93="","", VLOOKUP(C93,'RED regional calc'!$A$3:$Y$201, 24, 0)) ->  | I93: =IF(C93="","", VLOOKUP(C93,'RED regional calc'!$A$3:$Y$201, 25, 0)) -> 
A94: =VLOOKUP(C94, Helper_zone!$B$35:$C$233, 2, 0) ->  | B94: 89 | C94: =_xlfn.IFNA(VLOOKUP(CONCATENATE(SUBSTITUTE('Cover page'!$Q$3," ",""),B94),'Helper_worho denom'!$A$1:$C$200,2,0),"") ->  | D94: =IF(C94="","", VLOOKUP(C94,'RED regional calc'!$A$3:$Y$201, 20, 0)) ->  | E94: =IF(C94="","", VLOOKUP(C94,'RED regional calc'!$A$3:$Y$201, 21, 0)) ->  | F94: =IF(C94="","", VLOOKUP(C94,'RED regional calc'!$A$3:$Y$201, 22, 0)) ->  | G94: =IF(C94="","", VLOOKUP(C94,'RED regional calc'!$A$3:$Y$201, 23, 0)) ->  | H94: =IF(C94="","", VLOOKUP(C94,'RED regional calc'!$A$3:$Y$201, 24, 0)) ->  | I94: =IF(C94="","", VLOOKUP(C94,'RED regional calc'!$A$3:$Y$201, 25, 0)) -> 
A95: =VLOOKUP(C95, Helper_zone!$B$35:$C$233, 2, 0) ->  | B95: 90 | C95: =_xlfn.IFNA(VLOOKUP(CONCATENATE(SUBSTITUTE('Cover page'!$Q$3," ",""),B95),'Helper_worho denom'!$A$1:$C$200,2,0),"") ->  | D95: =IF(C95="","", VLOOKUP(C95,'RED regional calc'!$A$3:$Y$201, 20, 0)) ->  | E95: =IF(C95="","", VLOOKUP(C95,'RED regional calc'!$A$3:$Y$201, 21, 0)) ->  | F95: =IF(C95="","", VLOOKUP(C95,'RED regional calc'!$A$3:$Y$201, 22, 0)) ->  | G95: =IF(C95="","", VLOOKUP(C95,'RED regional calc'!$A$3:$Y$201, 23, 0)) ->  | H95: =IF(C95="","", VLOOKUP(C95,'RED regional calc'!$A$3:$Y$201, 24, 0)) ->  | I95: =IF(C95="","", VLOOKUP(C95,'RED regional calc'!$A$3:$Y$201, 25, 0)) -> 
A96: =VLOOKUP(C96, Helper_zone!$B$35:$C$233, 2, 0) ->  | B96: 91 | C96: =_xlfn.IFNA(VLOOKUP(CONCATENATE(SUBSTITUTE('Cover page'!$Q$3," ",""),B96),'Helper_worho denom'!$A$1:$C$200,2,0),"") ->  | D96: =IF(C96="","", VLOOKUP(C96,'RED regional calc'!$A$3:$Y$201, 20, 0)) ->  | E96: =IF(C96="","", VLOOKUP(C96,'RED regional calc'!$A$3:$Y$201, 21, 0)) ->  | F96: =IF(C96="","", VLOOKUP(C96,'RED regional calc'!$A$3:$Y$201, 22, 0)) ->  | G96: =IF(C96="","", VLOOKUP(C96,'RED regional calc'!$A$3:$Y$201, 23, 0)) ->  | H96: =IF(C96="","", VLOOKUP(C96,'RED regional calc'!$A$3:$Y$201, 24, 0)) ->  | I96: =IF(C96="","", VLOOKUP(C96,'RED regional calc'!$A$3:$Y$201, 25, 0)) -> 
A97: =VLOOKUP(C97, Helper_zone!$B$35:$C$233, 2, 0) ->  | B97: 92 | C97: =_xlfn.IFNA(VLOOKUP(CONCATENATE(SUBSTITUTE('Cover page'!$Q$3," ",""),B97),'Helper_worho denom'!$A$1:$C$200,2,0),"") ->  | D97: =IF(C97="","", VLOOKUP(C97,'RED regional calc'!$A$3:$Y$201, 20, 0)) ->  | E97: =IF(C97="","", VLOOKUP(C97,'RED regional calc'!$A$3:$Y$201, 21, 0)) ->  | F97: =IF(C97="","", VLOOKUP(C97,'RED regional calc'!$A$3:$Y$201, 22, 0)) ->  | G97: =IF(C97="","", VLOOKUP(C97,'RED regional calc'!$A$3:$Y$201, 23, 0)) ->  | H97: =IF(C97="","", VLOOKUP(C97,'RED regional calc'!$A$3:$Y$201, 24, 0)) ->  | I97: =IF(C97="","", VLOOKUP(C97,'RED regional calc'!$A$3:$Y$201, 25, 0)) -> 
A98: =VLOOKUP(C98, Helper_zone!$B$35:$C$233, 2, 0) ->  | B98: 93 | C98: =_xlfn.IFNA(VLOOKUP(CONCATENATE(SUBSTITUTE('Cover page'!$Q$3," ",""),B98),'Helper_worho denom'!$A$1:$C$200,2,0),"") ->  | D98: =IF(C98="","", VLOOKUP(C98,'RED regional calc'!$A$3:$Y$201, 20, 0)) ->  | E98: =IF(C98="","", VLOOKUP(C98,'RED regional calc'!$A$3:$Y$201, 21, 0)) ->  | F98: =IF(C98="","", VLOOKUP(C98,'RED regional calc'!$A$3:$Y$201, 22, 0)) ->  | G98: =IF(C98="","", VLOOKUP(C98,'RED regional calc'!$A$3:$Y$201, 23, 0)) ->  | H98: =IF(C98="","", VLOOKUP(C98,'RED regional calc'!$A$3:$Y$201, 24, 0)) ->  | I98: =IF(C98="","", VLOOKUP(C98,'RED regional calc'!$A$3:$Y$201, 25, 0)) -> 
A99: =VLOOKUP(C99, Helper_zone!$B$35:$C$233, 2, 0) ->  | B99: 94 | C99: =_xlfn.IFNA(VLOOKUP(CONCATENATE(SUBSTITUTE('Cover page'!$Q$3," ",""),B99),'Helper_worho denom'!$A$1:$C$200,2,0),"") ->  | D99: =IF(C99="","", VLOOKUP(C99,'RED regional calc'!$A$3:$Y$201, 20, 0)) ->  | E99: =IF(C99="","", VLOOKUP(C99,'RED regional calc'!$A$3:$Y$201, 21, 0)) ->  | F99: =IF(C99="","", VLOOKUP(C99,'RED regional calc'!$A$3:$Y$201, 22, 0)) ->  | G99: =IF(C99="","", VLOOKUP(C99,'RED regional calc'!$A$3:$Y$201, 23, 0)) ->  | H99: =IF(C99="","", VLOOKUP(C99,'RED regional calc'!$A$3:$Y$201, 24, 0)) ->  | I99: =IF(C99="","", VLOOKUP(C99,'RED regional calc'!$A$3:$Y$201, 25, 0)) -> 
A100: =VLOOKUP(C100, Helper_zone!$B$35:$C$233, 2, 0) ->  | B100: 95 | C100: =_xlfn.IFNA(VLOOKUP(CONCATENATE(SUBSTITUTE('Cover page'!$Q$3," ",""),B100),'Helper_worho denom'!$A$1:$C$200,2,0),"") ->  | D100: =IF(C100="","", VLOOKUP(C100,'RED regional calc'!$A$3:$Y$201, 20, 0)) ->  | E100: =IF(C100="","", VLOOKUP(C100,'RED regional calc'!$A$3:$Y$201, 21, 0)) ->  | F100: =IF(C100="","", VLOOKUP(C100,'RED regional calc'!$A$3:$Y$201, 22, 0)) ->  | G100: =IF(C100="","", VLOOKUP(C100,'RED regional calc'!$A$3:$Y$201, 23, 0)) ->  | H100: =IF(C100="","", VLOOKUP(C100,'RED regional calc'!$A$3:$Y$201, 24, 0)) ->  | I100: =IF(C100="","", VLOOKUP(C100,'RED regional calc'!$A$3:$Y$201, 25, 0)) -> 
A101: =VLOOKUP(C101, Helper_zone!$B$35:$C$233, 2, 0) ->  | B101: 96 | C101: =_xlfn.IFNA(VLOOKUP(CONCATENATE(SUBSTITUTE('Cover page'!$Q$3," ",""),B101),'Helper_worho denom'!$A$1:$C$200,2,0),"") ->  | D101: =IF(C101="","", VLOOKUP(C101,'RED regional calc'!$A$3:$Y$201, 20, 0)) ->  | E101: =IF(C101="","", VLOOKUP(C101,'RED regional calc'!$A$3:$Y$201, 21, 0)) ->  | F101: =IF(C101="","", VLOOKUP(C101,'RED regional calc'!$A$3:$Y$201, 22, 0)) ->  | G101: =IF(C101="","", VLOOKUP(C101,'RED regional calc'!$A$3:$Y$201, 23, 0)) ->  | H101: =IF(C101="","", VLOOKUP(C101,'RED regional calc'!$A$3:$Y$201, 24, 0)) ->  | I101: =IF(C101="","", VLOOKUP(C101,'RED regional calc'!$A$3:$Y$201, 25, 0)) -> 
A102: =VLOOKUP(C102, Helper_zone!$B$35:$C$233, 2, 0) ->  | B102: 97 | C102: =_xlfn.IFNA(VLOOKUP(CONCATENATE(SUBSTITUTE('Cover page'!$Q$3," ",""),B102),'Helper_worho denom'!$A$1:$C$200,2,0),"") ->  | D102: =IF(C102="","", VLOOKUP(C102,'RED regional calc'!$A$3:$Y$201, 20, 0)) ->  | E102: =IF(C102="","", VLOOKUP(C102,'RED regional calc'!$A$3:$Y$201, 21, 0)) ->  | F102: =IF(C102="","", VLOOKUP(C102,'RED regional calc'!$A$3:$Y$201, 22, 0)) ->  | G102: =IF(C102="","", VLOOKUP(C102,'RED regional calc'!$A$3:$Y$201, 23, 0)) ->  | H102: =IF(C102="","", VLOOKUP(C102,'RED regional calc'!$A$3:$Y$201, 24, 0)) ->  | I102: =IF(C102="","", VLOOKUP(C102,'RED regional calc'!$A$3:$Y$201, 25, 0)) -> 
A103: =VLOOKUP(C103, Helper_zone!$B$35:$C$233, 2, 0) ->  | B103: 98 | C103: =_xlfn.IFNA(VLOOKUP(CONCATENATE(SUBSTITUTE('Cover page'!$Q$3," ",""),B103),'Helper_worho denom'!$A$1:$C$200,2,0),"") ->  | D103: =IF(C103="","", VLOOKUP(C103,'RED regional calc'!$A$3:$Y$201, 20, 0)) ->  | E103: =IF(C103="","", VLOOKUP(C103,'RED regional calc'!$A$3:$Y$201, 21, 0)) ->  | F103: =IF(C103="","", VLOOKUP(C103,'RED regional calc'!$A$3:$Y$201, 22, 0)) ->  | G103: =IF(C103="","", VLOOKUP(C103,'RED regional calc'!$A$3:$Y$201, 23, 0)) ->  | H103: =IF(C103="","", VLOOKUP(C103,'RED regional calc'!$A$3:$Y$201, 24, 0)) ->  | I103: =IF(C103="","", VLOOKUP(C103,'RED regional calc'!$A$3:$Y$201, 25, 0)) -> 
A104: =VLOOKUP(C104, Helper_zone!$B$35:$C$233, 2, 0) ->  | B104: 99 | C104: =_xlfn.IFNA(VLOOKUP(CONCATENATE(SUBSTITUTE('Cover page'!$Q$3," ",""),B104),'Helper_worho denom'!$A$1:$C$200,2,0),"") ->  | D104: =IF(C104="","", VLOOKUP(C104,'RED regional calc'!$A$3:$Y$201, 20, 0)) ->  | E104: =IF(C104="","", VLOOKUP(C104,'RED regional calc'!$A$3:$Y$201, 21, 0)) ->  | F104: =IF(C104="","", VLOOKUP(C104,'RED regional calc'!$A$3:$Y$201, 22, 0)) ->  | G104: =IF(C104="","", VLOOKUP(C104,'RED regional calc'!$A$3:$Y$201, 23, 0)) ->  | H104: =IF(C104="","", VLOOKUP(C104,'RED regional calc'!$A$3:$Y$201, 24, 0)) ->  | I104: =IF(C104="","", VLOOKUP(C104,'RED regional calc'!$A$3:$Y$201, 25, 0)) -> 
A105: =VLOOKUP(C105, Helper_zone!$B$35:$C$233, 2, 0) ->  | B105: 100 | C105: =_xlfn.IFNA(VLOOKUP(CONCATENATE(SUBSTITUTE('Cover page'!$Q$3," ",""),B105),'Helper_worho denom'!$A$1:$C$200,2,0),"") ->  | D105: =IF(C105="","", VLOOKUP(C105,'RED regional calc'!$A$3:$Y$201, 20, 0)) ->  | E105: =IF(C105="","", VLOOKUP(C105,'RED regional calc'!$A$3:$Y$201, 21, 0)) ->  | F105: =IF(C105="","", VLOOKUP(C105,'RED regional calc'!$A$3:$Y$201, 22, 0)) ->  | G105: =IF(C105="","", VLOOKUP(C105,'RED regional calc'!$A$3:$Y$201, 23, 0)) ->  | H105: =IF(C105="","", VLOOKUP(C105,'RED regional calc'!$A$3:$Y$201, 24, 0)) ->  | I105: =IF(C105="","", VLOOKUP(C105,'RED regional calc'!$A$3:$Y$201, 25, 0)) -> 
A106: =VLOOKUP(C106, Helper_zone!$B$35:$C$233, 2, 0) ->  | B106: 101 | C106: =_xlfn.IFNA(VLOOKUP(CONCATENATE(SUBSTITUTE('Cover page'!$Q$3," ",""),B106),'Helper_worho denom'!$A$1:$C$200,2,0),"") ->  | D106: =IF(C106="","", VLOOKUP(C106,'RED regional calc'!$A$3:$Y$201, 20, 0)) ->  | E106: =IF(C106="","", VLOOKUP(C106,'RED regional calc'!$A$3:$Y$201, 21, 0)) ->  | F106: =IF(C106="","", VLOOKUP(C106,'RED regional calc'!$A$3:$Y$201, 22, 0)) ->  | G106: =IF(C106="","", VLOOKUP(C106,'RED regional calc'!$A$3:$Y$201, 23, 0)) ->  | H106: =IF(C106="","", VLOOKUP(C106,'RED regional calc'!$A$3:$Y$201, 24, 0)) ->  | I106: =IF(C106="","", VLOOKUP(C106,'RED regional calc'!$A$3:$Y$201, 25, 0)) -> 
A107: =VLOOKUP(C107, Helper_zone!$B$35:$C$233, 2, 0) ->  | B107: 102 | C107: =_xlfn.IFNA(VLOOKUP(CONCATENATE(SUBSTITUTE('Cover page'!$Q$3," ",""),B107),'Helper_worho denom'!$A$1:$C$200,2,0),"") ->  | D107: =IF(C107="","", VLOOKUP(C107,'RED regional calc'!$A$3:$Y$201, 20, 0)) ->  | E107: =IF(C107="","", VLOOKUP(C107,'RED regional calc'!$A$3:$Y$201, 21, 0)) ->  | F107: =IF(C107="","", VLOOKUP(C107,'RED regional calc'!$A$3:$Y$201, 22, 0)) ->  | G107: =IF(C107="","", VLOOKUP(C107,'RED regional calc'!$A$3:$Y$201, 23, 0)) ->  | H107: =IF(C107="","", VLOOKUP(C107,'RED regional calc'!$A$3:$Y$201, 24, 0)) ->  | I107: =IF(C107="","", VLOOKUP(C107,'RED regional calc'!$A$3:$Y$201, 25, 0)) -> 
A108: =VLOOKUP(C108, Helper_zone!$B$35:$C$233, 2, 0) ->  | B108: 103 | C108: =_xlfn.IFNA(VLOOKUP(CONCATENATE(SUBSTITUTE('Cover page'!$Q$3," ",""),B108),'Helper_worho denom'!$A$1:$C$200,2,0),"") ->  | D108: =IF(C108="","", VLOOKUP(C108,'RED regional calc'!$A$3:$Y$201, 20, 0)) ->  | E108: =IF(C108="","", VLOOKUP(C108,'RED regional calc'!$A$3:$Y$201, 21, 0)) ->  | F108: =IF(C108="","", VLOOKUP(C108,'RED regional calc'!$A$3:$Y$201, 22, 0)) ->  | G108: =IF(C108="","", VLOOKUP(C108,'RED regional calc'!$A$3:$Y$201, 23, 0)) ->  | H108: =IF(C108="","", VLOOKUP(C108,'RED regional calc'!$A$3:$Y$201, 24, 0)) ->  | I108: =IF(C108="","", VLOOKUP(C108,'RED regional calc'!$A$3:$Y$201, 25, 0)) -> 
A109: =VLOOKUP(C109, Helper_zone!$B$35:$C$233, 2, 0) ->  | B109: 104 | C109: =_xlfn.IFNA(VLOOKUP(CONCATENATE(SUBSTITUTE('Cover page'!$Q$3," ",""),B109),'Helper_worho denom'!$A$1:$C$200,2,0),"") ->  | D109: =IF(C109="","", VLOOKUP(C109,'RED regional calc'!$A$3:$Y$201, 20, 0)) ->  | E109: =IF(C109="","", VLOOKUP(C109,'RED regional calc'!$A$3:$Y$201, 21, 0)) ->  | F109: =IF(C109="","", VLOOKUP(C109,'RED regional calc'!$A$3:$Y$201, 22, 0)) ->  | G109: =IF(C109="","", VLOOKUP(C109,'RED regional calc'!$A$3:$Y$201, 23, 0)) ->  | H109: =IF(C109="","", VLOOKUP(C109,'RED regional calc'!$A$3:$Y$201, 24, 0)) ->  | I109: =IF(C109="","", VLOOKUP(C109,'RED regional calc'!$A$3:$Y$201, 25, 0)) -> 
A110: =VLOOKUP(C110, Helper_zone!$B$35:$C$233, 2, 0) ->  | B110: 105 | C110: =_xlfn.IFNA(VLOOKUP(CONCATENATE(SUBSTITUTE('Cover page'!$Q$3," ",""),B110),'Helper_worho denom'!$A$1:$C$200,2,0),"") ->  | D110: =IF(C110="","", VLOOKUP(C110,'RED regional calc'!$A$3:$Y$201, 20, 0)) ->  | E110: =IF(C110="","", VLOOKUP(C110,'RED regional calc'!$A$3:$Y$201, 21, 0)) ->  | F110: =IF(C110="","", VLOOKUP(C110,'RED regional calc'!$A$3:$Y$201, 22, 0)) ->  | G110: =IF(C110="","", VLOOKUP(C110,'RED regional calc'!$A$3:$Y$201, 23, 0)) ->  | H110: =IF(C110="","", VLOOKUP(C110,'RED regional calc'!$A$3:$Y$201, 24, 0)) ->  | I110: =IF(C110="","", VLOOKUP(C110,'RED regional calc'!$A$3:$Y$201, 25, 0)) -> 
A111: =VLOOKUP(C111, Helper_zone!$B$35:$C$233, 2, 0) ->  | B111: 106 | C111: =_xlfn.IFNA(VLOOKUP(CONCATENATE(SUBSTITUTE('Cover page'!$Q$3," ",""),B111),'Helper_worho denom'!$A$1:$C$200,2,0),"") ->  | D111: =IF(C111="","", VLOOKUP(C111,'RED regional calc'!$A$3:$Y$201, 20, 0)) ->  | E111: =IF(C111="","", VLOOKUP(C111,'RED regional calc'!$A$3:$Y$201, 21, 0)) ->  | F111: =IF(C111="","", VLOOKUP(C111,'RED regional calc'!$A$3:$Y$201, 22, 0)) ->  | G111: =IF(C111="","", VLOOKUP(C111,'RED regional calc'!$A$3:$Y$201, 23, 0)) ->  | H111: =IF(C111="","", VLOOKUP(C111,'RED regional calc'!$A$3:$Y$201, 24, 0)) ->  | I111: =IF(C111="","", VLOOKUP(C111,'RED regional calc'!$A$3:$Y$201, 25, 0)) -> 
A112: =VLOOKUP(C112, Helper_zone!$B$35:$C$233, 2, 0) ->  | B112: 107 | C112: =_xlfn.IFNA(VLOOKUP(CONCATENATE(SUBSTITUTE('Cover page'!$Q$3," ",""),B112),'Helper_worho denom'!$A$1:$C$200,2,0),"") ->  | D112: =IF(C112="","", VLOOKUP(C112,'RED regional calc'!$A$3:$Y$201, 20, 0)) ->  | E112: =IF(C112="","", VLOOKUP(C112,'RED regional calc'!$A$3:$Y$201, 21, 0)) ->  | F112: =IF(C112="","", VLOOKUP(C112,'RED regional calc'!$A$3:$Y$201, 22, 0)) ->  | G112: =IF(C112="","", VLOOKUP(C112,'RED regional calc'!$A$3:$Y$201, 23, 0)) ->  | H112: =IF(C112="","", VLOOKUP(C112,'RED regional calc'!$A$3:$Y$201, 24, 0)) ->  | I112: =IF(C112="","", VLOOKUP(C112,'RED regional calc'!$A$3:$Y$201, 25, 0)) -> 
A113: =VLOOKUP(C113, Helper_zone!$B$35:$C$233, 2, 0) ->  | B113: 108 | C113: =_xlfn.IFNA(VLOOKUP(CONCATENATE(SUBSTITUTE('Cover page'!$Q$3," ",""),B113),'Helper_worho denom'!$A$1:$C$200,2,0),"") ->  | D113: =IF(C113="","", VLOOKUP(C113,'RED regional calc'!$A$3:$Y$201, 20, 0)) ->  | E113: =IF(C113="","", VLOOKUP(C113,'RED regional calc'!$A$3:$Y$201, 21, 0)) ->  | F113: =IF(C113="","", VLOOKUP(C113,'RED regional calc'!$A$3:$Y$201, 22, 0)) ->  | G113: =IF(C113="","", VLOOKUP(C113,'RED regional calc'!$A$3:$Y$201, 23, 0)) ->  | H113: =IF(C113="","", VLOOKUP(C113,'RED regional calc'!$A$3:$Y$201, 24, 0)) ->  | I113: =IF(C113="","", VLOOKUP(C113,'RED regional calc'!$A$3:$Y$201, 25, 0)) -> 

Sheet RED regional calc (hidden)
B1: =CONCATENATE('Date calculations'!$C$12, " ", 'Date calculations'!$G$12) ->  | C1: =CONCATENATE('Date calculations'!$C$13, " ", 'Date calculations'!$G$13) ->  | D1: =CONCATENATE('Date calculations'!$C$14, " ", 'Date calculations'!$G$14) ->  | E1: =CONCATENATE('Date calculations'!$C$15," ", 'Date calculations'!$G$15) ->  | F1: =CONCATENATE('Date calculations'!$C$16," ",'Date calculations'!$G$16) ->  | G1: =CONCATENATE('Date calculations'!$C$17, " ", 'Date calculations'!$G$17) ->  | H1: =CONCATENATE('Date calculations'!$C$12, " ", 'Date calculations'!$G$12) ->  | I1: =CONCATENATE('Date calculations'!$C$13, " ", 'Date calculations'!$G$13) ->  | J1: =CONCATENATE('Date calculations'!$C$14, " ", 'Date calculations'!$G$14) ->  | K1: =CONCATENATE('Date calculations'!$C$15," ", 'Date calculations'!$G$15) ->  | L1: =CONCATENATE('Date calculations'!$C$16," ",'Date calculations'!$G$16) ->  | M1: =CONCATENATE('Date calculations'!$C$17, " ", 'Date calculations'!$G$17) ->  | N1: =CONCATENATE('Date calculations'!$C$12, " ", 'Date calculations'!$G$12) ->  | O1: =CONCATENATE('Date calculations'!$C$13, " ", 'Date calculations'!$G$13) ->  | P1: =CONCATENATE('Date calculations'!$C$14, " ", 'Date calculations'!$G$14) ->  | Q1: =CONCATENATE('Date calculations'!$C$15," ", 'Date calculations'!$G$15) ->  | R1: =CONCATENATE('Date calculations'!$C$16," ",'Date calculations'!$G$16) ->  | S1: =CONCATENATE('Date calculations'!$C$17, " ", 'Date calculations'!$G$17) ->  | T1: =CONCATENATE('Date calculations'!$C$12, " ", 'Date calculations'!$G$12) ->  | U1: =CONCATENATE('Date calculations'!$C$13, " ", 'Date calculations'!$G$13) ->  | V1: =CONCATENATE('Date calculations'!$C$14, " ", 'Date calculations'!$G$14) ->  | W1: =CONCATENATE('Date calculations'!$C$15," ", 'Date calculations'!$G$15) ->  | X1: =CONCATENATE('Date calculations'!$C$16," ",'Date calculations'!$G$16) ->  | Y1: =CONCATENATE('Date calculations'!$C$17, " ", 'Date calculations'!$G$17) -> 
A2: Woreda | B2: Penta1 | C2: Penta1 | D2: Penta1 | E2: Penta1 | F2: Penta1 | G2: Penta1 | H2: Penta3 | I2: Penta3 | J2: Penta3 | K2: Penta3 | L2: Penta3 | M2: Penta3 | N2: P1-P3 drop | O2: P1-P3 drop | P2: P1-P3 drop | Q2: P1-P3 drop | R2: P1-P3 drop | S2: P1-P3 drop | T2: REDcat | U2: REDcat | V2: REDcat | W2: REDcat | X2: REDcat | Y2: REDcat
A3: Abala WorHO | B3: =SUMIFS(DHIS2[Penta1], DHIS2[woreda], A3, DHIS2[month_year], $B$1)/VLOOKUP(A3, 'Helper_worho denom'!$B$2:$I$200, 8, 0) -> 0 | C3: =SUMIFS(DHIS2[Penta1], DHIS2[woreda], A3, DHIS2[month_year], $C$1)/VLOOKUP(A3, 'Helper_worho denom'!$B$2:$I$200, 8, 0) -> 0 | D3: =SUMIFS(DHIS2[Penta1], DHIS2[woreda], A3, DHIS2[month_year], $D$1)/VLOOKUP(A3, 'Helper_worho denom'!$B$2:$I$200, 8, 0) -> 0 | E3: =SUMIFS(DHIS2[Penta1], DHIS2[woreda], A3, DHIS2[month_year], $E$1)/VLOOKUP(A3, 'Helper_worho denom'!$B$2:$I$200, 8, 0) -> 0 | F3: =SUMIFS(DHIS2[Penta1], DHIS2[woreda], A3, DHIS2[month_year], $F$1)/VLOOKUP(A3, 'Helper_worho denom'!$B$2:$I$200, 8, 0) -> 0 | G3: =SUMIFS(DHIS2[Penta1], DHIS2[woreda], A3, DHIS2[month_year], $G$1)/VLOOKUP(A3, 'Helper_worho denom'!$B$2:$I$200, 8, 0) -> 0 | H3: =SUMIFS(DHIS2[Penta3], DHIS2[woreda], A3, DHIS2[month_year], $H$1)/VLOOKUP(A3,'Helper_worho denom'!$B$2:$I$200, 8, 0) -> 0 | I3: =SUMIFS(DHIS2[Penta3], DHIS2[woreda], A3, DHIS2[month_year], $I$1)/VLOOKUP(A3,'Helper_worho denom'!$B$2:$I$200, 8, 0) -> 0 | J3: =SUMIFS(DHIS2[Penta3], DHIS2[woreda], A3, DHIS2[month_year], $J$1)/VLOOKUP(A3,'Helper_worho denom'!$B$2:$I$200, 8, 0) -> 0 | K3: =SUMIFS(DHIS2[Penta3], DHIS2[woreda], A3, DHIS2[month_year], $K$1)/VLOOKUP(A3,'Helper_worho denom'!$B$2:$I$200, 8, 0) -> 0 | L3: =SUMIFS(DHIS2[Penta3], DHIS2[woreda], A3, DHIS2[month_year], $L$1)/VLOOKUP(A3,'Helper_worho denom'!$B$2:$I$200, 8, 0) -> 0 | M3: =SUMIFS(DHIS2[Penta3], DHIS2[woreda], A3, DHIS2[month_year], $M$1)/VLOOKUP(A3,'Helper_worho denom'!$B$2:$I$200, 8, 0) -> 0 | N3: =IFERROR((B3-H3)/B3, "N/A") -> N/A | O3: =IFERROR((C3-I3)/C3,"N/A") -> N/A | P3: =IFERROR((D3-J3)/D3,"N/A") -> N/A | Q3: =IFERROR((E3-K3)/E3,"N/A") -> N/A | R3: =IFERROR((F3-L3)/F3, "N/A") -> N/A | S3: =IFERROR((G3-M3)/G3, "N/A") -> N/A | T3: =IFERROR(IF(AND(B3>=0.9,N3<0.05),"Category 1",IF(AND(B3>=0.9,N3>=0.05),"Category 2",IF(AND(B3<0.9,N3<0.05),"Category 3",IF(AND(B3<0.9,N3<>"N/A", N3>=0.05),"Category 4","N/A")))), "Missing data") -> N/A | U3: =IFERROR(IF(AND(C3>=0.9,O3<0.05),"Category 1",IF(AND(C3>=0.9,O3>=0.05),"Category 2",IF(AND(C3<0.9,O3<0.05),"Category 3",IF(AND(C3<0.9,O3<>"N/A", O3>=0.05),"Category 4","N/A")))), "Missing data") -> N/A | V3: =IFERROR(IF(AND(D3>=0.9,P3<0.05),"Category 1",IF(AND(D3>=0.9,P3>=0.05),"Category 2",IF(AND(D3<0.9,P3<0.05),"Category 3",IF(AND(D3<0.9,P3<>"N/A", P3>=0.05),"Category 4","N/A")))), "Missing data") -> N/A | W3: =IFERROR(IF(AND(E3>=0.9,Q3<0.05),"Category 1",IF(AND(E3>=0.9,Q3>=0.05),"Category 2",IF(AND(E3<0.9,Q3<0.05),"Category 3",IF(AND(E3<0.9,Q3<>"N/A", Q3>=0.05),"Category 4","N/A")))), "Missing data") -> N/A | X3: N/A | Y3: N/A
A4: Adaar WorHO | B4: =SUMIFS(DHIS2[Penta1], DHIS2[woreda], A4, DHIS2[month_year], $B$1)/VLOOKUP(A4, 'Helper_worho denom'!$B$2:$I$200, 8, 0) -> 0 | C4: =SUMIFS(DHIS2[Penta1], DHIS2[woreda], A4, DHIS2[month_year], $C$1)/VLOOKUP(A4, 'Helper_worho denom'!$B$2:$I$200, 8, 0) -> 0 | D4: =SUMIFS(DHIS2[Penta1], DHIS2[woreda], A4, DHIS2[month_year], $D$1)/VLOOKUP(A4, 'Helper_worho denom'!$B$2:$I$200, 8, 0) -> 0 | E4: =SUMIFS(DHIS2[Penta1], DHIS2[woreda], A4, DHIS2[month_year], $E$1)/VLOOKUP(A4, 'Helper_worho denom'!$B$2:$I$200, 8, 0) -> 0 | F4: =SUMIFS(DHIS2[Penta1], DHIS2[woreda], A4, DHIS2[month_year], $F$1)/VLOOKUP(A4, 'Helper_worho denom'!$B$2:$I$200, 8, 0) -> 0 | G4: =SUMIFS(DHIS2[Penta1], DHIS2[woreda], A4, DHIS2[month_year], $G$1)/VLOOKUP(A4, 'Helper_worho denom'!$B$2:$I$200, 8, 0) -> 0 | H4: =SUMIFS(DHIS2[Penta3], DHIS2[woreda], A4, DHIS2[month_year], $H$1)/VLOOKUP(A4,'Helper_worho denom'!$B$2:$I$200, 8, 0) -> 0 | I4: =SUMIFS(DHIS2[Penta3], DHIS2[woreda], A4, DHIS2[month_year], $I$1)/VLOOKUP(A4,'Helper_worho denom'!$B$2:$I$200, 8, 0) -> 0 | J4: =SUMIFS(DHIS2[Penta3], DHIS2[woreda], A4, DHIS2[month_year], $J$1)/VLOOKUP(A4,'Helper_worho denom'!$B$2:$I$200, 8, 0) -> 0 | K4: =SUMIFS(DHIS2[Penta3], DHIS2[woreda], A4, DHIS2[month_year], $K$1)/VLOOKUP(A4,'Helper_worho denom'!$B$2:$I$200, 8, 0) -> 0 | L4: =SUMIFS(DHIS2[Penta3], DHIS2[woreda], A4, DHIS2[month_year], $L$1)/VLOOKUP(A4,'Helper_worho denom'!$B$2:$I$200, 8, 0) -> 0 | M4: =SUMIFS(DHIS2[Penta3], DHIS2[woreda], A4, DHIS2[month_year], $M$1)/VLOOKUP(A4,'Helper_worho denom'!$B$2:$I$200, 8, 0) -> 0 | N4: =IFERROR((B4-H4)/B4, "N/A") -> N/A | O4: =IFERROR((C4-I4)/C4,"N/A") -> N/A | P4: =IFERROR((D4-J4)/D4,"N/A") -> N/A | Q4: =IFERROR((E4-K4)/E4,"N/A") -> N/A | R4: =IFERROR((F4-L4)/F4, "N/A") -> N/A | S4: =IFERROR((G4-M4)/G4, "N/A") -> N/A | T4: =IFERROR(IF(AND(B4>=0.9,N4<0.05),"Category 1",IF(AND(B4>=0.9,N4>=0.05),"Category 2",IF(AND(B4<0.9,N4<0.05),"Category 3",IF(AND(B4<0.9,N4<>"N/A", N4>=0.05),"Category 4","N/A")))), "Missing data") -> N/A | U4: =IFERROR(IF(AND(C4>=0.9,O4<0.05),"Category 1",IF(AND(C4>=0.9,O4>=0.05),"Category 2",IF(AND(C4<0.9,O4<0.05),"Category 3",IF(AND(C4<0.9,O4<>"N/A", O4>=0.05),"Category 4","N/A")))), "Missing data") -> N/A | V4: =IFERROR(IF(AND(D4>=0.9,P4<0.05),"Category 1",IF(AND(D4>=0.9,P4>=0.05),"Category 2",IF(AND(D4<0.9,P4<0.05),"Category 3",IF(AND(D4<0.9,P4<>"N/A", P4>=0.05),"Category 4","N/A")))), "Missing data") -> N/A | W4: =IFERROR(IF(AND(E4>=0.9,Q4<0.05),"Category 1",IF(AND(E4>=0.9,Q4>=0.05),"Category 2",IF(AND(E4<0.9,Q4<0.05),"Category 3",IF(AND(E4<0.9,Q4<>"N/A", Q4>=0.05),"Category 4","N/A")))), "Missing data") -> N/A | X4: =IFERROR(IF(AND(F4>=0.9,R4<0.05),"Category 1",IF(AND(F4>=0.9,R4>=0.05),"Category 2",IF(AND(F4<0.9,R4<0.05),"Category 3",IF(AND(F4<0.9,R4<>"N/A", R4>=0.05),"Category 4","N/A")))), "Missing data") -> N/A | Y4: =IFERROR(IF(AND(G4>=0.9,S4<0.05),"Category 1",IF(AND(G4>=0.9,S4>=0.05),"Category 2",IF(AND(G4<0.9,S4<0.05),"Category 3",IF(AND(G4<0.9,S4<>"N/A", S4>=0.05),"Category 4","N/A")))), "Missing data") -> N/A
A5: Afambo WorHO | B5: =SUMIFS(DHIS2[Penta1], DHIS2[woreda], A5, DHIS2[month_year], $B$1)/VLOOKUP(A5, 'Helper_worho denom'!$B$2:$I$200, 8, 0) -> 0 | C5: =SUMIFS(DHIS2[Penta1], DHIS2[woreda], A5, DHIS2[month_year], $C$1)/VLOOKUP(A5, 'Helper_worho denom'!$B$2:$I$200, 8, 0) -> 0 | D5: =SUMIFS(DHIS2[Penta1], DHIS2[woreda], A5, DHIS2[month_year], $D$1)/VLOOKUP(A5, 'Helper_worho denom'!$B$2:$I$200, 8, 0) -> 0 | E5: =SUMIFS(DHIS2[Penta1], DHIS2[woreda], A5, DHIS2[month_year], $E$1)/VLOOKUP(A5, 'Helper_worho denom'!$B$2:$I$200, 8, 0) -> 0 | F5: =SUMIFS(DHIS2[Penta1], DHIS2[woreda], A5, DHIS2[month_year], $F$1)/VLOOKUP(A5, 'Helper_worho denom'!$B$2:$I$200, 8, 0) -> 0 | G5: =SUMIFS(DHIS2[Penta1], DHIS2[woreda], A5, DHIS2[month_year], $G$1)/VLOOKUP(A5, 'Helper_worho denom'!$B$2:$I$200, 8, 0) -> 0 | H5: =SUMIFS(DHIS2[Penta3], DHIS2[woreda], A5, DHIS2[month_year], $H$1)/VLOOKUP(A5,'Helper_worho denom'!$B$2:$I$200, 8, 0) -> 0 | I5: =SUMIFS(DHIS2[Penta3], DHIS2[woreda], A5, DHIS2[month_year], $I$1)/VLOOKUP(A5,'Helper_worho denom'!$B$2:$I$200, 8, 0) -> 0 | J5: =SUMIFS(DHIS2[Penta3], DHIS2[woreda], A5, DHIS2[month_year], $J$1)/VLOOKUP(A5,'Helper_worho denom'!$B$2:$I$200, 8, 0) -> 0 | K5: =SUMIFS(DHIS2[Penta3], DHIS2[woreda], A5, DHIS2[month_year], $K$1)/VLOOKUP(A5,'Helper_worho denom'!$B$2:$I$200, 8, 0) -> 0 | L5: =SUMIFS(DHIS2[Penta3], DHIS2[woreda], A5, DHIS2[month_year], $L$1)/VLOOKUP(A5,'Helper_worho denom'!$B$2:$I$200, 8, 0) -> 0 | M5: =SUMIFS(DHIS2[Penta3], DHIS2[woreda], A5, DHIS2[month_year], $M$1)/VLOOKUP(A5,'Helper_worho denom'!$B$2:$I$200, 8, 0) -> 0 | N5: N/A | O5: N/A | P5: N/A | Q5: N/A | R5: N/A | S5: N/A | T5: N/A | U5: N/A | V5: N/A | W5: N/A | X5: N/A | Y5: N/A
A6: Afdera WorHO | B6: =SUMIFS(DHIS2[Penta1], DHIS2[woreda], A6, DHIS2[month_year], $B$1)/VLOOKUP(A6, 'Helper_worho denom'!$B$2:$I$200, 8, 0) -> 0 | C6: =SUMIFS(DHIS2[Penta1], DHIS2[woreda], A6, DHIS2[month_year], $C$1)/VLOOKUP(A6, 'Helper_worho denom'!$B$2:$I$200, 8, 0) -> 0 | D6: =SUMIFS(DHIS2[Penta1], DHIS2[woreda], A6, DHIS2[month_year], $D$1)/VLOOKUP(A6, 'Helper_worho denom'!$B$2:$I$200, 8, 0) -> 0 | E6: =SUMIFS(DHIS2[Penta1], DHIS2[woreda], A6, DHIS2[month_year], $E$1)/VLOOKUP(A6, 'Helper_worho denom'!$B$2:$I$200, 8, 0) -> 0 | F6: =SUMIFS(DHIS2[Penta1], DHIS2[woreda], A6, DHIS2[month_year], $F$1)/VLOOKUP(A6, 'Helper_worho denom'!$B$2:$I$200, 8, 0) -> 0 | G6: =SUMIFS(DHIS2[Penta1], DHIS2[woreda], A6, DHIS2[month_year], $G$1)/VLOOKUP(A6, 'Helper_worho denom'!$B$2:$I$200, 8, 0) -> 0 | H6: =SUMIFS(DHIS2[Penta3], DHIS2[woreda], A6, DHIS2[month_year], $H$1)/VLOOKUP(A6,'Helper_worho denom'!$B$2:$I$200, 8, 0) -> 0 | I6: =SUMIFS(DHIS2[Penta3], DHIS2[woreda], A6, DHIS2[month_year], $I$1)/VLOOKUP(A6,'Helper_worho denom'!$B$2:$I$200, 8, 0) -> 0 | J6: =SUMIFS(DHIS2[Penta3], DHIS2[woreda], A6, DHIS2[month_year], $J$1)/VLOOKUP(A6,'Helper_worho denom'!$B$2:$I$200, 8, 0) -> 0 | K6: =SUMIFS(DHIS2[Penta3], DHIS2[woreda], A6, DHIS2[month_year], $K$1)/VLOOKUP(A6,'Helper_worho denom'!$B$2:$I$200, 8, 0) -> 0 | L6: =SUMIFS(DHIS2[Penta3], DHIS2[woreda], A6, DHIS2[month_year], $L$1)/VLOOKUP(A6,'Helper_worho denom'!$B$2:$I$200, 8, 0) -> 0 | M6: =SUMIFS(DHIS2[Penta3], DHIS2[woreda], A6, DHIS2[month_year], $M$1)/VLOOKUP(A6,'Helper_worho denom'!$B$2:$I$200, 8, 0) -> 0 | N6: N/A | O6: N/A | P6: N/A | Q6: N/A | R6: N/A | S6: N/A | T6: N/A | U6: N/A | V6: N/A | W6: N/A | X6: N/A | Y6: N/A
A7: Amibara WorHO | B7: =SUMIFS(DHIS2[Penta1], DHIS2[woreda], A7, DHIS2[month_year], $B$1)/VLOOKUP(A7, 'Helper_worho denom'!$B$2:$I$200, 8, 0) -> 0 | C7: =SUMIFS(DHIS2[Penta1], DHIS2[woreda], A7, DHIS2[month_year], $C$1)/VLOOKUP(A7, 'Helper_worho denom'!$B$2:$I$200, 8, 0) -> 0 | D7: =SUMIFS(DHIS2[Penta1], DHIS2[woreda], A7, DHIS2[month_year], $D$1)/VLOOKUP(A7, 'Helper_worho denom'!$B$2:$I$200, 8, 0) -> 0 | E7: =SUMIFS(DHIS2[Penta1], DHIS2[woreda], A7, DHIS2[month_year], $E$1)/VLOOKUP(A7, 'Helper_worho denom'!$B$2:$I$200, 8, 0) -> 0 | F7: =SUMIFS(DHIS2[Penta1], DHIS2[woreda], A7, DHIS2[month_year], $F$1)/VLOOKUP(A7, 'Helper_worho denom'!$B$2:$I$200, 8, 0) -> 0 | G7: =SUMIFS(DHIS2[Penta1], DHIS2[woreda], A7, DHIS2[month_year], $G$1)/VLOOKUP(A7, 'Helper_worho denom'!$B$2:$I$200, 8, 0) -> 0 | H7: =SUMIFS(DHIS2[Penta3], DHIS2[woreda], A7, DHIS2[month_year], $H$1)/VLOOKUP(A7,'Helper_worho denom'!$B$2:$I$200, 8, 0) -> 0 | I7: =SUMIFS(DHIS2[Penta3], DHIS2[woreda], A7, DHIS2[month_year], $I$1)/VLOOKUP(A7,'Helper_worho denom'!$B$2:$I$200, 8, 0) -> 0 | J7: =SUMIFS(DHIS2[Penta3], DHIS2[woreda], A7, DHIS2[month_year], $J$1)/VLOOKUP(A7,'Helper_worho denom'!$B$2:$I$200, 8, 0) -> 0 | K7: =SUMIFS(DHIS2[Penta3], DHIS2[woreda], A7, DHIS2[month_year], $K$1)/VLOOKUP(A7,'Helper_worho denom'!$B$2:$I$200, 8, 0) -> 0 | L7: =SUMIFS(DHIS2[Penta3], DHIS2[woreda], A7, DHIS2[month_year], $L$1)/VLOOKUP(A7,'Helper_worho denom'!$B$2:$I$200, 8, 0) -> 0 | M7: =SUMIFS(DHIS2[Penta3], DHIS2[woreda], A7, DHIS2[month_year], $M$1)/VLOOKUP(A7,'Helper_worho denom'!$B$2:$I$200, 8, 0) -> 0 | N7: N/A | O7: N/A | P7: N/A | Q7: N/A | R7: N/A | S7: N/A | T7: N/A | U7: N/A | V7: N/A | W7: N/A | X7: N/A | Y7: N/A
A8: Argoba Special WorHO | B8: =SUMIFS(DHIS2[Penta1], DHIS2[woreda], A8, DHIS2[month_year], $B$1)/VLOOKUP(A8, 'Helper_worho denom'!$B$2:$I$200, 8, 0) -> 0 | C8: =SUMIFS(DHIS2[Penta1], DHIS2[woreda], A8, DHIS2[month_year], $C$1)/VLOOKUP(A8, 'Helper_worho denom'!$B$2:$I$200, 8, 0) -> 0 | D8: =SUMIFS(DHIS2[Penta1], DHIS2[woreda], A8, DHIS2[month_year], $D$1)/VLOOKUP(A8, 'Helper_worho denom'!$B$2:$I$200, 8, 0) -> 0 | E8: =SUMIFS(DHIS2[Penta1], DHIS2[woreda], A8, DHIS2[month_year], $E$1)/VLOOKUP(A8, 'Helper_worho denom'!$B$2:$I$200, 8, 0) -> 0 | F8: =SUMIFS(DHIS2[Penta1], DHIS2[woreda], A8, DHIS2[month_year], $F$1)/VLOOKUP(A8, 'Helper_worho denom'!$B$2:$I$200, 8, 0) -> 0 | G8: =SUMIFS(DHIS2[Penta1], DHIS2[woreda], A8, DHIS2[month_year], $G$1)/VLOOKUP(A8, 'Helper_worho denom'!$B$2:$I$200, 8, 0) -> 0 | H8: =SUMIFS(DHIS2[Penta3], DHIS2[woreda], A8, DHIS2[month_year], $H$1)/VLOOKUP(A8,'Helper_worho denom'!$B$2:$I$200, 8, 0) -> 0 | I8: =SUMIFS(DHIS2[Penta3], DHIS2[woreda], A8, DHIS2[month_year], $I$1)/VLOOKUP(A8,'Helper_worho denom'!$B$2:$I$200, 8, 0) -> 0 | J8: =SUMIFS(DHIS2[Penta3], DHIS2[woreda], A8, DHIS2[month_year], $J$1)/VLOOKUP(A8,'Helper_worho denom'!$B$2:$I$200, 8, 0) -> 0 | K8: =SUMIFS(DHIS2[Penta3], DHIS2[woreda], A8, DHIS2[month_year], $K$1)/VLOOKUP(A8,'Helper_worho denom'!$B$2:$I$200, 8, 0) -> 0 | L8: =SUMIFS(DHIS2[Penta3], DHIS2[woreda], A8, DHIS2[month_year], $L$1)/VLOOKUP(A8,'Helper_worho denom'!$B$2:$I$200, 8, 0) -> 0 | M8: =SUMIFS(DHIS2[Penta3], DHIS2[woreda], A8, DHIS2[month_year], $M$1)/VLOOKUP(A8,'Helper_worho denom'!$B$2:$I$200, 8, 0) -> 0 | N8: N/A | O8: N/A | P8: N/A | Q8: N/A | R8: N/A | S8: N/A | T8: N/A | U8: N/A | V8: N/A | W8: N/A | X8: N/A | Y8: N/A
A9: Awash Fenteale WorHO | B9: =SUMIFS(DHIS2[Penta1], DHIS2[woreda], A9, DHIS2[month_year], $B$1)/VLOOKUP(A9, 'Helper_worho denom'!$B$2:$I$200, 8, 0) -> 0 | C9: =SUMIFS(DHIS2[Penta1], DHIS2[woreda], A9, DHIS2[month_year], $C$1)/VLOOKUP(A9, 'Helper_worho denom'!$B$2:$I$200, 8, 0) -> 0 | D9: =SUMIFS(DHIS2[Penta1], DHIS2[woreda], A9, DHIS2[month_year], $D$1)/VLOOKUP(A9, 'Helper_worho denom'!$B$2:$I$200, 8, 0) -> 0 | E9: =SUMIFS(DHIS2[Penta1], DHIS2[woreda], A9, DHIS2[month_year], $E$1)/VLOOKUP(A9, 'Helper_worho denom'!$B$2:$I$200, 8, 0) -> 0 | F9: =SUMIFS(DHIS2[Penta1], DHIS2[woreda], A9, DHIS2[month_year], $F$1)/VLOOKUP(A9, 'Helper_worho denom'!$B$2:$I$200, 8, 0) -> 0 | G9: =SUMIFS(DHIS2[Penta1], DHIS2[woreda], A9, DHIS2[month_year], $G$1)/VLOOKUP(A9, 'Helper_worho denom'!$B$2:$I$200, 8, 0) -> 0 | H9: =SUMIFS(DHIS2[Penta3], DHIS2[woreda], A9, DHIS2[month_year], $H$1)/VLOOKUP(A9,'Helper_worho denom'!$B$2:$I$200, 8, 0) -> 0 | I9: =SUMIFS(DHIS2[Penta3], DHIS2[woreda], A9, DHIS2[month_year], $I$1)/VLOOKUP(A9,'Helper_worho denom'!$B$2:$I$200, 8, 0) -> 0 | J9: =SUMIFS(DHIS2[Penta3], DHIS2[woreda], A9, DHIS2[month_year], $J$1)/VLOOKUP(A9,'Helper_worho denom'!$B$2:$I$200, 8, 0) -> 0 | K9: =SUMIFS(DHIS2[Penta3], DHIS2[woreda], A9, DHIS2[month_year], $K$1)/VLOOKUP(A9,'Helper_worho denom'!$B$2:$I$200, 8, 0) -> 0 | L9: =SUMIFS(DHIS2[Penta3], DHIS2[woreda], A9, DHIS2[month_year], $L$1)/VLOOKUP(A9,'Helper_worho denom'!$B$2:$I$200, 8, 0) -> 0 | M9: =SUMIFS(DHIS2[Penta3], DHIS2[woreda], A9, DHIS2[month_year], $M$1)/VLOOKUP(A9,'Helper_worho denom'!$B$2:$I$200, 8, 0) -> 0 | N9: N/A | O9: N/A | P9: N/A | Q9: N/A | R9: N/A | S9: N/A | T9: N/A | U9: N/A | V9: N/A | W9: N/A | X9: N/A | Y9: N/A
A10: Awash Town WorHO | B10: =SUMIFS(DHIS2[Penta1], DHIS2[woreda], A10, DHIS2[month_year], $B$1)/VLOOKUP(A10, 'Helper_worho denom'!$B$2:$I$200, 8, 0) -> 0 | C10: =SUMIFS(DHIS2[Penta1], DHIS2[woreda], A10, DHIS2[month_year], $C$1)/VLOOKUP(A10, 'Helper_worho denom'!$B$2:$I$200, 8, 0) -> 0 | D10: =SUMIFS(DHIS2[Penta1], DHIS2[woreda], A10, DHIS2[month_year], $D$1)/VLOOKUP(A10, 'Helper_worho denom'!$B$2:$I$200, 8, 0) -> 0 | E10: =SUMIFS(DHIS2[Penta1], DHIS2[woreda], A10, DHIS2[month_year], $E$1)/VLOOKUP(A10, 'Helper_worho denom'!$B$2:$I$200, 8, 0) -> 0 | F10: =SUMIFS(DHIS2[Penta1], DHIS2[woreda], A10, DHIS2[month_year], $F$1)/VLOOKUP(A10, 'Helper_worho denom'!$B$2:$I$200, 8, 0) -> 0 | G10: =SUMIFS(DHIS2[Penta1], DHIS2[woreda], A10, DHIS2[month_year], $G$1)/VLOOKUP(A10, 'Helper_worho denom'!$B$2:$I$200, 8, 0) -> 0 | H10: =SUMIFS(DHIS2[Penta3], DHIS2[woreda], A10, DHIS2[month_year], $H$1)/VLOOKUP(A10,'Helper_worho denom'!$B$2:$I$200, 8, 0) -> 0 | I10: =SUMIFS(DHIS2[Penta3], DHIS2[woreda], A10, DHIS2[month_year], $I$1)/VLOOKUP(A10,'Helper_worho denom'!$B$2:$I$200, 8, 0) -> 0 | J10: =SUMIFS(DHIS2[Penta3], DHIS2[woreda], A10, DHIS2[month_year], $J$1)/VLOOKUP(A10,'Helper_worho denom'!$B$2:$I$200, 8, 0) -> 0 | K10: =SUMIFS(DHIS2[Penta3], DHIS2[woreda], A10, DHIS2[month_year], $K$1)/VLOOKUP(A10,'Helper_worho denom'!$B$2:$I$200, 8, 0) -> 0 | L10: =SUMIFS(DHIS2[Penta3], DHIS2[woreda], A10, DHIS2[month_year], $L$1)/VLOOKUP(A10,'Helper_worho denom'!$B$2:$I$200, 8, 0) -> 0 | M10: =SUMIFS(DHIS2[Penta3], DHIS2[woreda], A10, DHIS2[month_year], $M$1)/VLOOKUP(A10,'Helper_worho denom'!$B$2:$I$200, 8, 0) -> 0 | N10: N/A | O10: N/A | P10: N/A | Q10: N/A | R10: N/A | S10: N/A | T10: N/A | U10: N/A | V10: N/A | W10: N/A | X10: N/A | Y10: N/A
A11: Awura WorHO | B11: =SUMIFS(DHIS2[Penta1], DHIS2[woreda], A11, DHIS2[month_year], $B$1)/VLOOKUP(A11, 'Helper_worho denom'!$B$2:$I$200, 8, 0) -> 0 | C11: =SUMIFS(DHIS2[Penta1], DHIS2[woreda], A11, DHIS2[month_year], $C$1)/VLOOKUP(A11, 'Helper_worho denom'!$B$2:$I$200, 8, 0) -> 0 | D11: =SUMIFS(DHIS2[Penta1], DHIS2[woreda], A11, DHIS2[month_year], $D$1)/VLOOKUP(A11, 'Helper_worho denom'!$B$2:$I$200, 8, 0) -> 0 | E11: =SUMIFS(DHIS2[Penta1], DHIS2[woreda], A11, DHIS2[month_year], $E$1)/VLOOKUP(A11, 'Helper_worho denom'!$B$2:$I$200, 8, 0) -> 0 | F11: =SUMIFS(DHIS2[Penta1], DHIS2[woreda], A11, DHIS2[month_year], $F$1)/VLOOKUP(A11, 'Helper_worho denom'!$B$2:$I$200, 8, 0) -> 0 | G11: =SUMIFS(DHIS2[Penta1], DHIS2[woreda], A11, DHIS2[month_year], $G$1)/VLOOKUP(A11, 'Helper_worho denom'!$B$2:$I$200, 8, 0) -> 0 | H11: =SUMIFS(DHIS2[Penta3], DHIS2[woreda], A11, DHIS2[month_year], $H$1)/VLOOKUP(A11,'Helper_worho denom'!$B$2:$I$200, 8, 0) -> 0 | I11: =SUMIFS(DHIS2[Penta3], DHIS2[woreda], A11, DHIS2[month_year], $I$1)/VLOOKUP(A11,'Helper_worho denom'!$B$2:$I$200, 8, 0) -> 0 | J11: =SUMIFS(DHIS2[Penta3], DHIS2[woreda], A11, DHIS2[month_year], $J$1)/VLOOKUP(A11,'Helper_worho denom'!$B$2:$I$200, 8, 0) -> 0 | K11: =SUMIFS(DHIS2[Penta3], DHIS2[woreda], A11, DHIS2[month_year], $K$1)/VLOOKUP(A11,'Helper_worho denom'!$B$2:$I$200, 8, 0) -> 0 | L11: =SUMIFS(DHIS2[Penta3], DHIS2[woreda], A11, DHIS2[month_year], $L$1)/VLOOKUP(A11,'Helper_worho denom'!$B$2:$I$200, 8, 0) -> 0 | M11: =SUMIFS(DHIS2[Penta3], DHIS2[woreda], A11, DHIS2[month_year], $M$1)/VLOOKUP(A11,'Helper_worho denom'!$B$2:$I$200, 8, 0) -> 0 | N11: N/A | O11: N/A | P11: N/A | Q11: N/A | R11: N/A | S11: N/A | T11: N/A | U11: N/A | V11: N/A | W11: N/A | X11: N/A | Y11: N/A
A12: Ayssaita WorHO | B12: =SUMIFS(DHIS2[Penta1], DHIS2[woreda], A12, DHIS2[month_year], $B$1)/VLOOKUP(A12, 'Helper_worho denom'!$B$2:$I$200, 8, 0) -> 0 | C12: =SUMIFS(DHIS2[Penta1], DHIS2[woreda], A12, DHIS2[month_year], $C$1)/VLOOKUP(A12, 'Helper_worho denom'!$B$2:$I$200, 8, 0) -> 0 | D12: =SUMIFS(DHIS2[Penta1], DHIS2[woreda], A12, DHIS2[month_year], $D$1)/VLOOKUP(A12, 'Helper_worho denom'!$B$2:$I$200, 8, 0) -> 0 | E12: =SUMIFS(DHIS2[Penta1], DHIS2[woreda], A12, DHIS2[month_year], $E$1)/VLOOKUP(A12, 'Helper_worho denom'!$B$2:$I$200, 8, 0) -> 0 | F12: =SUMIFS(DHIS2[Penta1], DHIS2[woreda], A12, DHIS2[month_year], $F$1)/VLOOKUP(A12, 'Helper_worho denom'!$B$2:$I$200, 8, 0) -> 0 | G12: =SUMIFS(DHIS2[Penta1], DHIS2[woreda], A12, DHIS2[month_year], $G$1)/VLOOKUP(A12, 'Helper_worho denom'!$B$2:$I$200, 8, 0) -> 0 | H12: =SUMIFS(DHIS2[Penta3], DHIS2[woreda], A12, DHIS2[month_year], $H$1)/VLOOKUP(A12,'Helper_worho denom'!$B$2:$I$200, 8, 0) -> 0 | I12: =SUMIFS(DHIS2[Penta3], DHIS2[woreda], A12, DHIS2[month_year], $I$1)/VLOOKUP(A12,'Helper_worho denom'!$B$2:$I$200, 8, 0) -> 0 | J12: =SUMIFS(DHIS2[Penta3], DHIS2[woreda], A12, DHIS2[month_year], $J$1)/VLOOKUP(A12,'Helper_worho denom'!$B$2:$I$200, 8, 0) -> 0 | K12: =SUMIFS(DHIS2[Penta3], DHIS2[woreda], A12, DHIS2[month_year], $K$1)/VLOOKUP(A12,'Helper_worho denom'!$B$2:$I$200, 8, 0) -> 0 | L12: =SUMIFS(DHIS2[Penta3], DHIS2[woreda], A12, DHIS2[month_year], $L$1)/VLOOKUP(A12,'Helper_worho denom'!$B$2:$I$200, 8, 0) -> 0 | M12: =SUMIFS(DHIS2[Penta3], DHIS2[woreda], A12, DHIS2[month_year], $M$1)/VLOOKUP(A12,'Helper_worho denom'!$B$2:$I$200, 8, 0) -> 0 | N12: N/A | O12: N/A | P12: N/A | Q12: N/A | R12: N/A | S12: N/A | T12: N/A | U12: N/A | V12: N/A | W12: N/A | X12: N/A | Y12: N/A
A13: Berahle WorHO | B13: =SUMIFS(DHIS2[Penta1], DHIS2[woreda], A13, DHIS2[month_year], $B$1)/VLOOKUP(A13, 'Helper_worho denom'!$B$2:$I$200, 8, 0) -> 0 | C13: =SUMIFS(DHIS2[Penta1], DHIS2[woreda], A13, DHIS2[month_year], $C$1)/VLOOKUP(A13, 'Helper_worho denom'!$B$2:$I$200, 8, 0) -> 0 | D13: =SUMIFS(DHIS2[Penta1], DHIS2[woreda], A13, DHIS2[month_year], $D$1)/VLOOKUP(A13, 'Helper_worho denom'!$B$2:$I$200, 8, 0) -> 0 | E13: =SUMIFS(DHIS2[Penta1], DHIS2[woreda], A13, DHIS2[month_year], $E$1)/VLOOKUP(A13, 'Helper_worho denom'!$B$2:$I$200, 8, 0) -> 0 | F13: =SUMIFS(DHIS2[Penta1], DHIS2[woreda], A13, DHIS2[month_year], $F$1)/VLOOKUP(A13, 'Helper_worho denom'!$B$2:$I$200, 8, 0) -> 0 | G13: =SUMIFS(DHIS2[Penta1], DHIS2[woreda], A13, DHIS2[month_year], $G$1)/VLOOKUP(A13, 'Helper_worho denom'!$B$2:$I$200, 8, 0) -> 0 | H13: =SUMIFS(DHIS2[Penta3], DHIS2[woreda], A13, DHIS2[month_year], $H$1)/VLOOKUP(A13,'Helper_worho denom'!$B$2:$I$200, 8, 0) -> 0 | I13: =SUMIFS(DHIS2[Penta3], DHIS2[woreda], A13, DHIS2[month_year], $I$1)/VLOOKUP(A13,'Helper_worho denom'!$B$2:$I$200, 8, 0) -> 0 | J13: =SUMIFS(DHIS2[Penta3], DHIS2[woreda], A13, DHIS2[month_year], $J$1)/VLOOKUP(A13,'Helper_worho denom'!$B$2:$I$200, 8, 0) -> 0 | K13: =SUMIFS(DHIS2[Penta3], DHIS2[woreda], A13, DHIS2[month_year], $K$1)/VLOOKUP(A13,'Helper_worho denom'!$B$2:$I$200, 8, 0) -> 0 | L13: =SUMIFS(DHIS2[Penta3], DHIS2[woreda], A13, DHIS2[month_year], $L$1)/VLOOKUP(A13,'Helper_worho denom'!$B$2:$I$200, 8, 0) -> 0 | M13: =SUMIFS(DHIS2[Penta3], DHIS2[woreda], A13, DHIS2[month_year], $M$1)/VLOOKUP(A13,'Helper_worho denom'!$B$2:$I$200, 8, 0) -> 0 | N13: N/A | O13: N/A | P13: N/A | Q13: N/A | R13: N/A | S13: N/A | T13: N/A | U13: N/A | V13: N/A | W13: N/A | X13: N/A | Y13: N/A
A14: Bidu WorHO | B14: =SUMIFS(DHIS2[Penta1], DHIS2[woreda], A14, DHIS2[month_year], $B$1)/VLOOKUP(A14, 'Helper_worho denom'!$B$2:$I$200, 8, 0) -> 0 | C14: =SUMIFS(DHIS2[Penta1], DHIS2[woreda], A14, DHIS2[month_year], $C$1)/VLOOKUP(A14, 'Helper_worho denom'!$B$2:$I$200, 8, 0) -> 0 | D14: =SUMIFS(DHIS2[Penta1], DHIS2[woreda], A14, DHIS2[month_year], $D$1)/VLOOKUP(A14, 'Helper_worho denom'!$B$2:$I$200, 8, 0) -> 0 | E14: =SUMIFS(DHIS2[Penta1], DHIS2[woreda], A14, DHIS2[month_year], $E$1)/VLOOKUP(A14, 'Helper_worho denom'!$B$2:$I$200, 8, 0) -> 0 | F14: =SUMIFS(DHIS2[Penta1], DHIS2[woreda], A14, DHIS2[month_year], $F$1)/VLOOKUP(A14, 'Helper_worho denom'!$B$2:$I$200, 8, 0) -> 0 | G14: =SUMIFS(DHIS2[Penta1], DHIS2[woreda], A14, DHIS2[month_year], $G$1)/VLOOKUP(A14, 'Helper_worho denom'!$B$2:$I$200, 8, 0) -> 0 | H14: =SUMIFS(DHIS2[Penta3], DHIS2[woreda], A14, DHIS2[month_year], $H$1)/VLOOKUP(A14,'Helper_worho denom'!$B$2:$I$200, 8, 0) -> 0 | I14: =SUMIFS(DHIS2[Penta3], DHIS2[woreda], A14, DHIS2[month_year], $I$1)/VLOOKUP(A14,'Helper_worho denom'!$B$2:$I$200, 8, 0) -> 0 | J14: =SUMIFS(DHIS2[Penta3], DHIS2[woreda], A14, DHIS2[month_year], $J$1)/VLOOKUP(A14,'Helper_worho denom'!$B$2:$I$200, 8, 0) -> 0 | K14: =SUMIFS(DHIS2[Penta3], DHIS2[woreda], A14, DHIS2[month_year], $K$1)/VLOOKUP(A14,'Helper_worho denom'!$B$2:$I$200, 8, 0) -> 0 | L14: =SUMIFS(DHIS2[Penta3], DHIS2[woreda], A14, DHIS2[month_year], $L$1)/VLOOKUP(A14,'Helper_worho denom'!$B$2:$I$200, 8, 0) -> 0 | M14: =SUMIFS(DHIS2[Penta3], DHIS2[woreda], A14, DHIS2[month_year], $M$1)/VLOOKUP(A14,'Helper_worho denom'!$B$2:$I$200, 8, 0) -> 0 | N14: N/A | O14: N/A | P14: N/A | Q14: N/A | R14: N/A | S14: N/A | T14: N/A | U14: N/A | V14: N/A | W14: N/A | X14: N/A | Y14: N/A
A15: Chifra WorHO | B15: =SUMIFS(DHIS2[Penta1], DHIS2[woreda], A15, DHIS2[month_year], $B$1)/VLOOKUP(A15, 'Helper_worho denom'!$B$2:$I$200, 8, 0) -> 0 | C15: =SUMIFS(DHIS2[Penta1], DHIS2[woreda], A15, DHIS2[month_year], $C$1)/VLOOKUP(A15, 'Helper_worho denom'!$B$2:$I$200, 8, 0) -> 0 | D15: =SUMIFS(DHIS2[Penta1], DHIS2[woreda], A15, DHIS2[month_year], $D$1)/VLOOKUP(A15, 'Helper_worho denom'!$B$2:$I$200, 8, 0) -> 0 | E15: =SUMIFS(DHIS2[Penta1], DHIS2[woreda], A15, DHIS2[month_year], $E$1)/VLOOKUP(A15, 'Helper_worho denom'!$B$2:$I$200, 8, 0) -> 0 | F15: =SUMIFS(DHIS2[Penta1], DHIS2[woreda], A15, DHIS2[month_year], $F$1)/VLOOKUP(A15, 'Helper_worho denom'!$B$2:$I$200, 8, 0) -> 0 | G15: =SUMIFS(DHIS2[Penta1], DHIS2[woreda], A15, DHIS2[month_year], $G$1)/VLOOKUP(A15, 'Helper_worho denom'!$B$2:$I$200, 8, 0) -> 0 | H15: =SUMIFS(DHIS2[Penta3], DHIS2[woreda], A15, DHIS2[month_year], $H$1)/VLOOKUP(A15,'Helper_worho denom'!$B$2:$I$200, 8, 0) -> 0 | I15: =SUMIFS(DHIS2[Penta3], DHIS2[woreda], A15, DHIS2[month_year], $I$1)/VLOOKUP(A15,'Helper_worho denom'!$B$2:$I$200, 8, 0) -> 0 | J15: =SUMIFS(DHIS2[Penta3], DHIS2[woreda], A15, DHIS2[month_year], $J$1)/VLOOKUP(A15,'Helper_worho denom'!$B$2:$I$200, 8, 0) -> 0 | K15: =SUMIFS(DHIS2[Penta3], DHIS2[woreda], A15, DHIS2[month_year], $K$1)/VLOOKUP(A15,'Helper_worho denom'!$B$2:$I$200, 8, 0) -> 0 | L15: =SUMIFS(DHIS2[Penta3], DHIS2[woreda], A15, DHIS2[month_year], $L$1)/VLOOKUP(A15,'Helper_worho denom'!$B$2:$I$200, 8, 0) -> 0 | M15: =SUMIFS(DHIS2[Penta3], DHIS2[woreda], A15, DHIS2[month_year], $M$1)/VLOOKUP(A15,'Helper_worho denom'!$B$2:$I$200, 8, 0) -> 0 | N15: N/A | O15: N/A | P15: N/A | Q15: N/A | R15: N/A | S15: N/A | T15: N/A | U15: N/A | V15: N/A | W15: N/A | X15: N/A | Y15: N/A
A16: Dalifaghe WorHO | B16: =SUMIFS(DHIS2[Penta1], DHIS2[woreda], A16, DHIS2[month_year], $B$1)/VLOOKUP(A16, 'Helper_worho denom'!$B$2:$I$200, 8, 0) -> 0 | C16: =SUMIFS(DHIS2[Penta1], DHIS2[woreda], A16, DHIS2[month_year], $C$1)/VLOOKUP(A16, 'Helper_worho denom'!$B$2:$I$200, 8, 0) -> 0 | D16: =SUMIFS(DHIS2[Penta1], DHIS2[woreda], A16, DHIS2[month_year], $D$1)/VLOOKUP(A16, 'Helper_worho denom'!$B$2:$I$200, 8, 0) -> 0 | E16: =SUMIFS(DHIS2[Penta1], DHIS2[woreda], A16, DHIS2[month_year], $E$1)/VLOOKUP(A16, 'Helper_worho denom'!$B$2:$I$200, 8, 0) -> 0 | F16: =SUMIFS(DHIS2[Penta1], DHIS2[woreda], A16, DHIS2[month_year], $F$1)/VLOOKUP(A16, 'Helper_worho denom'!$B$2:$I$200, 8, 0) -> 0 | G16: =SUMIFS(DHIS2[Penta1], DHIS2[woreda], A16, DHIS2[month_year], $G$1)/VLOOKUP(A16, 'Helper_worho denom'!$B$2:$I$200, 8, 0) -> 0 | H16: =SUMIFS(DHIS2[Penta3], DHIS2[woreda], A16, DHIS2[month_year], $H$1)/VLOOKUP(A16,'Helper_worho denom'!$B$2:$I$200, 8, 0) -> 0 | I16: =SUMIFS(DHIS2[Penta3], DHIS2[woreda], A16, DHIS2[month_year], $I$1)/VLOOKUP(A16,'Helper_worho denom'!$B$2:$I$200, 8, 0) -> 0 | J16: =SUMIFS(DHIS2[Penta3], DHIS2[woreda], A16, DHIS2[month_year], $J$1)/VLOOKUP(A16,'Helper_worho denom'!$B$2:$I$200, 8, 0) -> 0 | K16: =SUMIFS(DHIS2[Penta3], DHIS2[woreda], A16, DHIS2[month_year], $K$1)/VLOOKUP(A16,'Helper_worho denom'!$B$2:$I$200, 8, 0) -> 0 | L16: =SUMIFS(DHIS2[Penta3], DHIS2[woreda], A16, DHIS2[month_year], $L$1)/VLOOKUP(A16,'Helper_worho denom'!$B$2:$I$200, 8, 0) -> 0 | M16: =SUMIFS(DHIS2[Penta3], DHIS2[woreda], A16, DHIS2[month_year], $M$1)/VLOOKUP(A16,'Helper_worho denom'!$B$2:$I$200, 8, 0) -> 0 | N16: N/A | O16: N/A | P16: N/A | Q16: N/A | R16: N/A | S16: N/A | T16: N/A | U16: N/A | V16: N/A | W16: N/A | X16: N/A | Y16: N/A
A17: Dalol WorHO | B17: =SUMIFS(DHIS2[Penta1], DHIS2[woreda], A17, DHIS2[month_year], $B$1)/VLOOKUP(A17, 'Helper_worho denom'!$B$2:$I$200, 8, 0) -> 0 | C17: =SUMIFS(DHIS2[Penta1], DHIS2[woreda], A17, DHIS2[month_year], $C$1)/VLOOKUP(A17, 'Helper_worho denom'!$B$2:$I$200, 8, 0) -> 0 | D17: =SUMIFS(DHIS2[Penta1], DHIS2[woreda], A17, DHIS2[month_year], $D$1)/VLOOKUP(A17, 'Helper_worho denom'!$B$2:$I$200, 8, 0) -> 0 | E17: =SUMIFS(DHIS2[Penta1], DHIS2[woreda], A17, DHIS2[month_year], $E$1)/VLOOKUP(A17, 'Helper_worho denom'!$B$2:$I$200, 8, 0) -> 0 | F17: =SUMIFS(DHIS2[Penta1], DHIS2[woreda], A17, DHIS2[month_year], $F$1)/VLOOKUP(A17, 'Helper_worho denom'!$B$2:$I$200, 8, 0) -> 0 | G17: =SUMIFS(DHIS2[Penta1], DHIS2[woreda], A17, DHIS2[month_year], $G$1)/VLOOKUP(A17, 'Helper_worho denom'!$B$2:$I$200, 8, 0) -> 0 | H17: =SUMIFS(DHIS2[Penta3], DHIS2[woreda], A17, DHIS2[month_year], $H$1)/VLOOKUP(A17,'Helper_worho denom'!$B$2:$I$200, 8, 0) -> 0 | I17: =SUMIFS(DHIS2[Penta3], DHIS2[woreda], A17, DHIS2[month_year], $I$1)/VLOOKUP(A17,'Helper_worho denom'!$B$2:$I$200, 8, 0) -> 0 | J17: =SUMIFS(DHIS2[Penta3], DHIS2[woreda], A17, DHIS2[month_year], $J$1)/VLOOKUP(A17,'Helper_worho denom'!$B$2:$I$200, 8, 0) -> 0 | K17: =SUMIFS(DHIS2[Penta3], DHIS2[woreda], A17, DHIS2[month_year], $K$1)/VLOOKUP(A17,'Helper_worho denom'!$B$2:$I$200, 8, 0) -> 0 | L17: =SUMIFS(DHIS2[Penta3], DHIS2[woreda], A17, DHIS2[month_year], $L$1)/VLOOKUP(A17,'Helper_worho denom'!$B$2:$I$200, 8, 0) -> 0 | M17: =SUMIFS(DHIS2[Penta3], DHIS2[woreda], A17, DHIS2[month_year], $M$1)/VLOOKUP(A17,'Helper_worho denom'!$B$2:$I$200, 8, 0) -> 0 | N17: N/A | O17: N/A | P17: N/A | Q17: N/A | R17: N/A | S17: N/A | T17: N/A | U17: N/A | V17: N/A | W17: N/A | X17: N/A | Y17: N/A
A18: Dewe WorHO | B18: =SUMIFS(DHIS2[Penta1], DHIS2[woreda], A18, DHIS2[month_year], $B$1)/VLOOKUP(A18, 'Helper_worho denom'!$B$2:$I$200, 8, 0) -> 0 | C18: =SUMIFS(DHIS2[Penta1], DHIS2[woreda], A18, DHIS2[month_year], $C$1)/VLOOKUP(A18, 'Helper_worho denom'!$B$2:$I$200, 8, 0) -> 0 | D18: =SUMIFS(DHIS2[Penta1], DHIS2[woreda], A18, DHIS2[month_year], $D$1)/VLOOKUP(A18, 'Helper_worho denom'!$B$2:$I$200, 8, 0) -> 0 | E18: =SUMIFS(DHIS2[Penta1], DHIS2[woreda], A18, DHIS2[month_year], $E$1)/VLOOKUP(A18, 'Helper_worho denom'!$B$2:$I$200, 8, 0) -> 0 | F18: =SUMIFS(DHIS2[Penta1], DHIS2[woreda], A18, DHIS2[month_year], $F$1)/VLOOKUP(A18, 'Helper_worho denom'!$B$2:$I$200, 8, 0) -> 0 | G18: =SUMIFS(DHIS2[Penta1], DHIS2[woreda], A18, DHIS2[month_year], $G$1)/VLOOKUP(A18, 'Helper_worho denom'!$B$2:$I$200, 8, 0) -> 0 | H18: =SUMIFS(DHIS2[Penta3], DHIS2[woreda], A18, DHIS2[month_year], $H$1)/VLOOKUP(A18,'Helper_worho denom'!$B$2:$I$200, 8, 0) -> 0 | I18: =SUMIFS(DHIS2[Penta3], DHIS2[woreda], A18, DHIS2[month_year], $I$1)/VLOOKUP(A18,'Helper_worho denom'!$B$2:$I$200, 8, 0) -> 0 | J18: =SUMIFS(DHIS2[Penta3], DHIS2[woreda], A18, DHIS2[month_year], $J$1)/VLOOKUP(A18,'Helper_worho denom'!$B$2:$I$200, 8, 0) -> 0 | K18: =SUMIFS(DHIS2[Penta3], DHIS2[woreda], A18, DHIS2[month_year], $K$1)/VLOOKUP(A18,'Helper_worho denom'!$B$2:$I$200, 8, 0) -> 0 | L18: =SUMIFS(DHIS2[Penta3], DHIS2[woreda], A18, DHIS2[month_year], $L$1)/VLOOKUP(A18,'Helper_worho denom'!$B$2:$I$200, 8, 0) -> 0 | M18: =SUMIFS(DHIS2[Penta3], DHIS2[woreda], A18, DHIS2[month_year], $M$1)/VLOOKUP(A18,'Helper_worho denom'!$B$2:$I$200, 8, 0) -> 0 | N18: N/A | O18: N/A | P18: N/A | Q18: N/A | R18: N/A | S18: N/A | T18: N/A | U18: N/A | V18: N/A | W18: N/A | X18: N/A | Y18: N/A
A19: Dubti WorHO | B19: =SUMIFS(DHIS2[Penta1], DHIS2[woreda], A19, DHIS2[month_year], $B$1)/VLOOKUP(A19, 'Helper_worho denom'!$B$2:$I$200, 8, 0) -> 0 | C19: =SUMIFS(DHIS2[Penta1], DHIS2[woreda], A19, DHIS2[month_year], $C$1)/VLOOKUP(A19, 'Helper_worho denom'!$B$2:$I$200, 8, 0) -> 0 | D19: =SUMIFS(DHIS2[Penta1], DHIS2[woreda], A19, DHIS2[month_year], $D$1)/VLOOKUP(A19, 'Helper_worho denom'!$B$2:$I$200, 8, 0) -> 0 | E19: =SUMIFS(DHIS2[Penta1], DHIS2[woreda], A19, DHIS2[month_year], $E$1)/VLOOKUP(A19, 'Helper_worho denom'!$B$2:$I$200, 8, 0) -> 0 | F19: =SUMIFS(DHIS2[Penta1], DHIS2[woreda], A19, DHIS2[month_year], $F$1)/VLOOKUP(A19, 'Helper_worho denom'!$B$2:$I$200, 8, 0) -> 0 | G19: =SUMIFS(DHIS2[Penta1], DHIS2[woreda], A19, DHIS2[month_year], $G$1)/VLOOKUP(A19, 'Helper_worho denom'!$B$2:$I$200, 8, 0) -> 0 | H19: =SUMIFS(DHIS2[Penta3], DHIS2[woreda], A19, DHIS2[month_year], $H$1)/VLOOKUP(A19,'Helper_worho denom'!$B$2:$I$200, 8, 0) -> 0 | I19: =SUMIFS(DHIS2[Penta3], DHIS2[woreda], A19, DHIS2[month_year], $I$1)/VLOOKUP(A19,'Helper_worho denom'!$B$2:$I$200, 8, 0) -> 0 | J19: =SUMIFS(DHIS2[Penta3], DHIS2[woreda], A19, DHIS2[month_year], $J$1)/VLOOKUP(A19,'Helper_worho denom'!$B$2:$I$200, 8, 0) -> 0 | K19: =SUMIFS(DHIS2[Penta3], DHIS2[woreda], A19, DHIS2[month_year], $K$1)/VLOOKUP(A19,'Helper_worho denom'!$B$2:$I$200, 8, 0) -> 0 | L19: =SUMIFS(DHIS2[Penta3], DHIS2[woreda], A19, DHIS2[month_year], $L$1)/VLOOKUP(A19,'Helper_worho denom'!$B$2:$I$200, 8, 0) -> 0 | M19: =SUMIFS(DHIS2[Penta3], DHIS2[woreda], A19, DHIS2[month_year], $M$1)/VLOOKUP(A19,'Helper_worho denom'!$B$2:$I$200, 8, 0) -> 0 | N19: N/A | O19: N/A | P19: N/A | Q19: N/A | R19: N/A | S19: N/A | T19: N/A | U19: N/A | V19: N/A | W19: N/A | X19: N/A | Y19: N/A
A20: Dulecha WorHO | B20: =SUMIFS(DHIS2[Penta1], DHIS2[woreda], A20, DHIS2[month_year], $B$1)/VLOOKUP(A20, 'Helper_worho denom'!$B$2:$I$200, 8, 0) -> 0 | C20: =SUMIFS(DHIS2[Penta1], DHIS2[woreda], A20, DHIS2[month_year], $C$1)/VLOOKUP(A20, 'Helper_worho denom'!$B$2:$I$200, 8, 0) -> 0 | D20: =SUMIFS(DHIS2[Penta1], DHIS2[woreda], A20, DHIS2[month_year], $D$1)/VLOOKUP(A20, 'Helper_worho denom'!$B$2:$I$200, 8, 0) -> 0 | E20: =SUMIFS(DHIS2[Penta1], DHIS2[woreda], A20, DHIS2[month_year], $E$1)/VLOOKUP(A20, 'Helper_worho denom'!$B$2:$I$200, 8, 0) -> 0 | F20: =SUMIFS(DHIS2[Penta1], DHIS2[woreda], A20, DHIS2[month_year], $F$1)/VLOOKUP(A20, 'Helper_worho denom'!$B$2:$I$200, 8, 0) -> 0 | G20: =SUMIFS(DHIS2[Penta1], DHIS2[woreda], A20, DHIS2[month_year], $G$1)/VLOOKUP(A20, 'Helper_worho denom'!$B$2:$I$200, 8, 0) -> 0 | H20: =SUMIFS(DHIS2[Penta3], DHIS2[woreda], A20, DHIS2[month_year], $H$1)/VLOOKUP(A20,'Helper_worho denom'!$B$2:$I$200, 8, 0) -> 0 | I20: =SUMIFS(DHIS2[Penta3], DHIS2[woreda], A20, DHIS2[month_year], $I$1)/VLOOKUP(A20,'Helper_worho denom'!$B$2:$I$200, 8, 0) -> 0 | J20: =SUMIFS(DHIS2[Penta3], DHIS2[woreda], A20, DHIS2[month_year], $J$1)/VLOOKUP(A20,'Helper_worho denom'!$B$2:$I$200, 8, 0) -> 0 | K20: =SUMIFS(DHIS2[Penta3], DHIS2[woreda], A20, DHIS2[month_year], $K$1)/VLOOKUP(A20,'Helper_worho denom'!$B$2:$I$200, 8, 0) -> 0 | L20: =SUMIFS(DHIS2[Penta3], DHIS2[woreda], A20, DHIS2[month_year], $L$1)/VLOOKUP(A20,'Helper_worho denom'!$B$2:$I$200, 8, 0) -> 0 | M20: =SUMIFS(DHIS2[Penta3], DHIS2[woreda], A20, DHIS2[month_year], $M$1)/VLOOKUP(A20,'Helper_worho denom'!$B$2:$I$200, 8, 0) -> 0 | N20: N/A | O20: N/A | P20: N/A | Q20: N/A | R20: N/A | S20: N/A | T20: N/A | U20: N/A | V20: N/A | W20: N/A | X20: N/A | Y20: N/A
A21: Elidar WorHO | B21: =SUMIFS(DHIS2[Penta1], DHIS2[woreda], A21, DHIS2[month_year], $B$1)/VLOOKUP(A21, 'Helper_worho denom'!$B$2:$I$200, 8, 0) -> 0 | C21: =SUMIFS(DHIS2[Penta1], DHIS2[woreda], A21, DHIS2[month_year], $C$1)/VLOOKUP(A21, 'Helper_worho denom'!$B$2:$I$200, 8, 0) -> 0 | D21: =SUMIFS(DHIS2[Penta1], DHIS2[woreda], A21, DHIS2[month_year], $D$1)/VLOOKUP(A21, 'Helper_worho denom'!$B$2:$I$200, 8, 0) -> 0 | E21: =SUMIFS(DHIS2[Penta1], DHIS2[woreda], A21, DHIS2[month_year], $E$1)/VLOOKUP(A21, 'Helper_worho denom'!$B$2:$I$200, 8, 0) -> 0 | F21: =SUMIFS(DHIS2[Penta1], DHIS2[woreda], A21, DHIS2[month_year], $F$1)/VLOOKUP(A21, 'Helper_worho denom'!$B$2:$I$200, 8, 0) -> 0 | G21: =SUMIFS(DHIS2[Penta1], DHIS2[woreda], A21, DHIS2[month_year], $G$1)/VLOOKUP(A21, 'Helper_worho denom'!$B$2:$I$200, 8, 0) -> 0 | H21: =SUMIFS(DHIS2[Penta3], DHIS2[woreda], A21, DHIS2[month_year], $H$1)/VLOOKUP(A21,'Helper_worho denom'!$B$2:$I$200, 8, 0) -> 0 | I21: =SUMIFS(DHIS2[Penta3], DHIS2[woreda], A21, DHIS2[month_year], $I$1)/VLOOKUP(A21,'Helper_worho denom'!$B$2:$I$200, 8, 0) -> 0 | J21: =SUMIFS(DHIS2[Penta3], DHIS2[woreda], A21, DHIS2[month_year], $J$1)/VLOOKUP(A21,'Helper_worho denom'!$B$2:$I$200, 8, 0) -> 0 | K21: =SUMIFS(DHIS2[Penta3], DHIS2[woreda], A21, DHIS2[month_year], $K$1)/VLOOKUP(A21,'Helper_worho denom'!$B$2:$I$200, 8, 0) -> 0 | L21: =SUMIFS(DHIS2[Penta3], DHIS2[woreda], A21, DHIS2[month_year], $L$1)/VLOOKUP(A21,'Helper_worho denom'!$B$2:$I$200, 8, 0) -> 0 | M21: =SUMIFS(DHIS2[Penta3], DHIS2[woreda], A21, DHIS2[month_year], $M$1)/VLOOKUP(A21,'Helper_worho denom'!$B$2:$I$200, 8, 0) -> 0 | N21: N/A | O21: N/A | P21: N/A | Q21: N/A | R21: N/A | S21: N/A | T21: N/A | U21: N/A | V21: N/A | W21: N/A | X21: N/A | Y21: N/A
A22: Erabti WorHO | B22: =SUMIFS(DHIS2[Penta1], DHIS2[woreda], A22, DHIS2[month_year], $B$1)/VLOOKUP(A22, 'Helper_worho denom'!$B$2:$I$200, 8, 0) -> 0 | C22: =SUMIFS(DHIS2[Penta1], DHIS2[woreda], A22, DHIS2[month_year], $C$1)/VLOOKUP(A22, 'Helper_worho denom'!$B$2:$I$200, 8, 0) -> 0 | D22: =SUMIFS(DHIS2[Penta1], DHIS2[woreda], A22, DHIS2[month_year], $D$1)/VLOOKUP(A22, 'Helper_worho denom'!$B$2:$I$200, 8, 0) -> 0 | E22: =SUMIFS(DHIS2[Penta1], DHIS2[woreda], A22, DHIS2[month_year], $E$1)/VLOOKUP(A22, 'Helper_worho denom'!$B$2:$I$200, 8, 0) -> 0 | F22: =SUMIFS(DHIS2[Penta1], DHIS2[woreda], A22, DHIS2[month_year], $F$1)/VLOOKUP(A22, 'Helper_worho denom'!$B$2:$I$200, 8, 0) -> 0 | G22: =SUMIFS(DHIS2[Penta1], DHIS2[woreda], A22, DHIS2[month_year], $G$1)/VLOOKUP(A22, 'Helper_worho denom'!$B$2:$I$200, 8, 0) -> 0 | H22: =SUMIFS(DHIS2[Penta3], DHIS2[woreda], A22, DHIS2[month_year], $H$1)/VLOOKUP(A22,'Helper_worho denom'!$B$2:$I$200, 8, 0) -> 0 | I22: =SUMIFS(DHIS2[Penta3], DHIS2[woreda], A22, DHIS2[month_year], $I$1)/VLOOKUP(A22,'Helper_worho denom'!$B$2:$I$200, 8, 0) -> 0 | J22: =SUMIFS(DHIS2[Penta3], DHIS2[woreda], A22, DHIS2[month_year], $J$1)/VLOOKUP(A22,'Helper_worho denom'!$B$2:$I$200, 8, 0) -> 0 | K22: =SUMIFS(DHIS2[Penta3], DHIS2[woreda], A22, DHIS2[month_year], $K$1)/VLOOKUP(A22,'Helper_worho denom'!$B$2:$I$200, 8, 0) -> 0 | L22: =SUMIFS(DHIS2[Penta3], DHIS2[woreda], A22, DHIS2[month_year], $L$1)/VLOOKUP(A22,'Helper_worho denom'!$B$2:$I$200, 8, 0) -> 0 | M22: =SUMIFS(DHIS2[Penta3], DHIS2[woreda], A22, DHIS2[month_year], $M$1)/VLOOKUP(A22,'Helper_worho denom'!$B$2:$I$200, 8, 0) -> 0 | N22: N/A | O22: N/A | P22: N/A | Q22: N/A | R22: N/A | S22: N/A | T22: N/A | U22: N/A | V22: N/A | W22: N/A | X22: N/A | Y22: N/A
A23: Ewa WorHO | B23: =SUMIFS(DHIS2[Penta1], DHIS2[woreda], A23, DHIS2[month_year], $B$1)/VLOOKUP(A23, 'Helper_worho denom'!$B$2:$I$200, 8, 0) -> 0 | C23: =SUMIFS(DHIS2[Penta1], DHIS2[woreda], A23, DHIS2[month_year], $C$1)/VLOOKUP(A23, 'Helper_worho denom'!$B$2:$I$200, 8, 0) -> 0 | D23: =SUMIFS(DHIS2[Penta1], DHIS2[woreda], A23, DHIS2[month_year], $D$1)/VLOOKUP(A23, 'Helper_worho denom'!$B$2:$I$200, 8, 0) -> 0 | E23: =SUMIFS(DHIS2[Penta1], DHIS2[woreda], A23, DHIS2[month_year], $E$1)/VLOOKUP(A23, 'Helper_worho denom'!$B$2:$I$200, 8, 0) -> 0 | F23: =SUMIFS(DHIS2[Penta1], DHIS2[woreda], A23, DHIS2[month_year], $F$1)/VLOOKUP(A23, 'Helper_worho denom'!$B$2:$I$200, 8, 0) -> 0 | G23: =SUMIFS(DHIS2[Penta1], DHIS2[woreda], A23, DHIS2[month_year], $G$1)/VLOOKUP(A23, 'Helper_worho denom'!$B$2:$I$200, 8, 0) -> 0 | H23: =SUMIFS(DHIS2[Penta3], DHIS2[woreda], A23, DHIS2[month_year], $H$1)/VLOOKUP(A23,'Helper_worho denom'!$B$2:$I$200, 8, 0) -> 0 | I23: =SUMIFS(DHIS2[Penta3], DHIS2[woreda], A23, DHIS2[month_year], $I$1)/VLOOKUP(A23,'Helper_worho denom'!$B$2:$I$200, 8, 0) -> 0 | J23: =SUMIFS(DHIS2[Penta3], DHIS2[woreda], A23, DHIS2[month_year], $J$1)/VLOOKUP(A23,'Helper_worho denom'!$B$2:$I$200, 8, 0) -> 0 | K23: =SUMIFS(DHIS2[Penta3], DHIS2[woreda], A23, DHIS2[month_year], $K$1)/VLOOKUP(A23,'Helper_worho denom'!$B$2:$I$200, 8, 0) -> 0 | L23: =SUMIFS(DHIS2[Penta3], DHIS2[woreda], A23, DHIS2[month_year], $L$1)/VLOOKUP(A23,'Helper_worho denom'!$B$2:$I$200, 8, 0) -> 0 | M23: =SUMIFS(DHIS2[Penta3], DHIS2[woreda], A23, DHIS2[month_year], $M$1)/VLOOKUP(A23,'Helper_worho denom'!$B$2:$I$200, 8, 0) -> 0 | N23: N/A | O23: N/A | P23: N/A | Q23: N/A | R23: N/A | S23: N/A | T23: N/A | U23: N/A | V23: N/A | W23: N/A | X23: N/A | Y23: N/A
A24: Galalo WorHO | B24: =SUMIFS(DHIS2[Penta1], DHIS2[woreda], A24, DHIS2[month_year], $B$1)/VLOOKUP(A24, 'Helper_worho denom'!$B$2:$I$200, 8, 0) -> 0 | C24: =SUMIFS(DHIS2[Penta1], DHIS2[woreda], A24, DHIS2[month_year], $C$1)/VLOOKUP(A24, 'Helper_worho denom'!$B$2:$I$200, 8, 0) -> 0 | D24: =SUMIFS(DHIS2[Penta1], DHIS2[woreda], A24, DHIS2[month_year], $D$1)/VLOOKUP(A24, 'Helper_worho denom'!$B$2:$I$200, 8, 0) -> 0 | E24: =SUMIFS(DHIS2[Penta1], DHIS2[woreda], A24, DHIS2[month_year], $E$1)/VLOOKUP(A24, 'Helper_worho denom'!$B$2:$I$200, 8, 0) -> 0 | F24: =SUMIFS(DHIS2[Penta1], DHIS2[woreda], A24, DHIS2[month_year], $F$1)/VLOOKUP(A24, 'Helper_worho denom'!$B$2:$I$200, 8, 0) -> 0 | G24: =SUMIFS(DHIS2[Penta1], DHIS2[woreda], A24, DHIS2[month_year], $G$1)/VLOOKUP(A24, 'Helper_worho denom'!$B$2:$I$200, 8, 0) -> 0 | H24: =SUMIFS(DHIS2[Penta3], DHIS2[woreda], A24, DHIS2[month_year], $H$1)/VLOOKUP(A24,'Helper_worho denom'!$B$2:$I$200, 8, 0) -> 0 | I24: =SUMIFS(DHIS2[Penta3], DHIS2[woreda], A24, DHIS2[month_year], $I$1)/VLOOKUP(A24,'Helper_worho denom'!$B$2:$I$200, 8, 0) -> 0 | J24: =SUMIFS(DHIS2[Penta3], DHIS2[woreda], A24, DHIS2[month_year], $J$1)/VLOOKUP(A24,'Helper_worho denom'!$B$2:$I$200, 8, 0) -> 0 | K24: =SUMIFS(DHIS2[Penta3], DHIS2[woreda], A24, DHIS2[month_year], $K$1)/VLOOKUP(A24,'Helper_worho denom'!$B$2:$I$200, 8, 0) -> 0 | L24: =SUMIFS(DHIS2[Penta3], DHIS2[woreda], A24, DHIS2[month_year], $L$1)/VLOOKUP(A24,'Helper_worho denom'!$B$2:$I$200, 8, 0) -> 0 | M24: =SUMIFS(DHIS2[Penta3], DHIS2[woreda], A24, DHIS2[month_year], $M$1)/VLOOKUP(A24,'Helper_worho denom'!$B$2:$I$200, 8, 0) -> 0 | N24: N/A | O24: N/A | P24: N/A | Q24: N/A | R24: N/A | S24: N/A | T24: N/A | U24: N/A | V24: N/A | W24: N/A | X24: N/A | Y24: N/A
A25: Gewane WorHO | B25: =SUMIFS(DHIS2[Penta1], DHIS2[woreda], A25, DHIS2[month_year], $B$1)/VLOOKUP(A25, 'Helper_worho denom'!$B$2:$I$200, 8, 0) -> 0 | C25: =SUMIFS(DHIS2[Penta1], DHIS2[woreda], A25, DHIS2[month_year], $C$1)/VLOOKUP(A25, 'Helper_worho denom'!$B$2:$I$200, 8, 0) -> 0 | D25: =SUMIFS(DHIS2[Penta1], DHIS2[woreda], A25, DHIS2[month_year], $D$1)/VLOOKUP(A25, 'Helper_worho denom'!$B$2:$I$200, 8, 0) -> 0 | E25: =SUMIFS(DHIS2[Penta1], DHIS2[woreda], A25, DHIS2[month_year], $E$1)/VLOOKUP(A25, 'Helper_worho denom'!$B$2:$I$200, 8, 0) -> 0 | F25: =SUMIFS(DHIS2[Penta1], DHIS2[woreda], A25, DHIS2[month_year], $F$1)/VLOOKUP(A25, 'Helper_worho denom'!$B$2:$I$200, 8, 0) -> 0 | G25: =SUMIFS(DHIS2[Penta1], DHIS2[woreda], A25, DHIS2[month_year], $G$1)/VLOOKUP(A25, 'Helper_worho denom'!$B$2:$I$200, 8, 0) -> 0 | H25: =SUMIFS(DHIS2[Penta3], DHIS2[woreda], A25, DHIS2[month_year], $H$1)/VLOOKUP(A25,'Helper_worho denom'!$B$2:$I$200, 8, 0) -> 0 | I25: =SUMIFS(DHIS2[Penta3], DHIS2[woreda], A25, DHIS2[month_year], $I$1)/VLOOKUP(A25,'Helper_worho denom'!$B$2:$I$200, 8, 0) -> 0 | J25: =SUMIFS(DHIS2[Penta3], DHIS2[woreda], A25, DHIS2[month_year], $J$1)/VLOOKUP(A25,'Helper_worho denom'!$B$2:$I$200, 8, 0) -> 0 | K25: =SUMIFS(DHIS2[Penta3], DHIS2[woreda], A25, DHIS2[month_year], $K$1)/VLOOKUP(A25,'Helper_worho denom'!$B$2:$I$200, 8, 0) -> 0 | L25: =SUMIFS(DHIS2[Penta3], DHIS2[woreda], A25, DHIS2[month_year], $L$1)/VLOOKUP(A25,'Helper_worho denom'!$B$2:$I$200, 8, 0) -> 0 | M25: =SUMIFS(DHIS2[Penta3], DHIS2[woreda], A25, DHIS2[month_year], $M$1)/VLOOKUP(A25,'Helper_worho denom'!$B$2:$I$200, 8, 0) -> 0 | N25: N/A | O25: N/A | P25: N/A | Q25: N/A | R25: N/A | S25: N/A | T25: N/A | U25: N/A | V25: N/A | W25: N/A | X25: N/A | Y25: N/A
A26: Gulina WorHO | B26: =SUMIFS(DHIS2[Penta1], DHIS2[woreda], A26, DHIS2[month_year], $B$1)/VLOOKUP(A26, 'Helper_worho denom'!$B$2:$I$200, 8, 0) -> 0 | C26: =SUMIFS(DHIS2[Penta1], DHIS2[woreda], A26, DHIS2[month_year], $C$1)/VLOOKUP(A26, 'Helper_worho denom'!$B$2:$I$200, 8, 0) -> 0 | D26: =SUMIFS(DHIS2[Penta1], DHIS2[woreda], A26, DHIS2[month_year], $D$1)/VLOOKUP(A26, 'Helper_worho denom'!$B$2:$I$200, 8, 0) -> 0 | E26: =SUMIFS(DHIS2[Penta1], DHIS2[woreda], A26, DHIS2[month_year], $E$1)/VLOOKUP(A26, 'Helper_worho denom'!$B$2:$I$200, 8, 0) -> 0 | F26: =SUMIFS(DHIS2[Penta1], DHIS2[woreda], A26, DHIS2[month_year], $F$1)/VLOOKUP(A26, 'Helper_worho denom'!$B$2:$I$200, 8, 0) -> 0 | G26: =SUMIFS(DHIS2[Penta1], DHIS2[woreda], A26, DHIS2[month_year], $G$1)/VLOOKUP(A26, 'Helper_worho denom'!$B$2:$I$200, 8, 0) -> 0 | H26: =SUMIFS(DHIS2[Penta3], DHIS2[woreda], A26, DHIS2[month_year], $H$1)/VLOOKUP(A26,'Helper_worho denom'!$B$2:$I$200, 8, 0) -> 0 | I26: =SUMIFS(DHIS2[Penta3], DHIS2[woreda], A26, DHIS2[month_year], $I$1)/VLOOKUP(A26,'Helper_worho denom'!$B$2:$I$200, 8, 0) -> 0 | J26: =SUMIFS(DHIS2[Penta3], DHIS2[woreda], A26, DHIS2[month_year], $J$1)/VLOOKUP(A26,'Helper_worho denom'!$B$2:$I$200, 8, 0) -> 0 | K26: =SUMIFS(DHIS2[Penta3], DHIS2[woreda], A26, DHIS2[month_year], $K$1)/VLOOKUP(A26,'Helper_worho denom'!$B$2:$I$200, 8, 0) -> 0 | L26: =SUMIFS(DHIS2[Penta3], DHIS2[woreda], A26, DHIS2[month_year], $L$1)/VLOOKUP(A26,'Helper_worho denom'!$B$2:$I$200, 8, 0) -> 0 | M26: =SUMIFS(DHIS2[Penta3], DHIS2[woreda], A26, DHIS2[month_year], $M$1)/VLOOKUP(A26,'Helper_worho denom'!$B$2:$I$200, 8, 0) -> 0 | N26: N/A | O26: N/A | P26: N/A | Q26: N/A | R26: N/A | S26: N/A | T26: N/A | U26: N/A | V26: N/A | W26: N/A | X26: N/A | Y26: N/A
A27: Hadeleala WorHO | B27: =SUMIFS(DHIS2[Penta1], DHIS2[woreda], A27, DHIS2[month_year], $B$1)/VLOOKUP(A27, 'Helper_worho denom'!$B$2:$I$200, 8, 0) -> 0 | C27: =SUMIFS(DHIS2[Penta1], DHIS2[woreda], A27, DHIS2[month_year], $C$1)/VLOOKUP(A27, 'Helper_worho denom'!$B$2:$I$200, 8, 0) -> 0 | D27: =SUMIFS(DHIS2[Penta1], DHIS2[woreda], A27, DHIS2[month_year], $D$1)/VLOOKUP(A27, 'Helper_worho denom'!$B$2:$I$200, 8, 0) -> 0 | E27: =SUMIFS(DHIS2[Penta1], DHIS2[woreda], A27, DHIS2[month_year], $E$1)/VLOOKUP(A27, 'Helper_worho denom'!$B$2:$I$200, 8, 0) -> 0 | F27: =SUMIFS(DHIS2[Penta1], DHIS2[woreda], A27, DHIS2[month_year], $F$1)/VLOOKUP(A27, 'Helper_worho denom'!$B$2:$I$200, 8, 0) -> 0 | G27: =SUMIFS(DHIS2[Penta1], DHIS2[woreda], A27, DHIS2[month_year], $G$1)/VLOOKUP(A27, 'Helper_worho denom'!$B$2:$I$200, 8, 0) -> 0 | H27: =SUMIFS(DHIS2[Penta3], DHIS2[woreda], A27, DHIS2[month_year], $H$1)/VLOOKUP(A27,'Helper_worho denom'!$B$2:$I$200, 8, 0) -> 0 | I27: =SUMIFS(DHIS2[Penta3], DHIS2[woreda], A27, DHIS2[month_year], $I$1)/VLOOKUP(A27,'Helper_worho denom'!$B$2:$I$200, 8, 0) -> 0 | J27: =SUMIFS(DHIS2[Penta3], DHIS2[woreda], A27, DHIS2[month_year], $J$1)/VLOOKUP(A27,'Helper_worho denom'!$B$2:$I$200, 8, 0) -> 0 | K27: =SUMIFS(DHIS2[Penta3], DHIS2[woreda], A27, DHIS2[month_year], $K$1)/VLOOKUP(A27,'Helper_worho denom'!$B$2:$I$200, 8, 0) -> 0 | L27: =SUMIFS(DHIS2[Penta3], DHIS2[woreda], A27, DHIS2[month_year], $L$1)/VLOOKUP(A27,'Helper_worho denom'!$B$2:$I$200, 8, 0) -> 0 | M27: =SUMIFS(DHIS2[Penta3], DHIS2[woreda], A27, DHIS2[month_year], $M$1)/VLOOKUP(A27,'Helper_worho denom'!$B$2:$I$200, 8, 0) -> 0 | N27: N/A | O27: N/A | P27: N/A | Q27: N/A | R27: N/A | S27: N/A | T27: N/A | U27: N/A | V27: N/A | W27: N/A | X27: N/A | Y27: N/A
A28: Koneba WorHO | B28: =SUMIFS(DHIS2[Penta1], DHIS2[woreda], A28, DHIS2[month_year], $B$1)/VLOOKUP(A28, 'Helper_worho denom'!$B$2:$I$200, 8, 0) -> 0 | C28: =SUMIFS(DHIS2[Penta1], DHIS2[woreda], A28, DHIS2[month_year], $C$1)/VLOOKUP(A28, 'Helper_worho denom'!$B$2:$I$200, 8, 0) -> 0 | D28: =SUMIFS(DHIS2[Penta1], DHIS2[woreda], A28, DHIS2[month_year], $D$1)/VLOOKUP(A28, 'Helper_worho denom'!$B$2:$I$200, 8, 0) -> 0 | E28: =SUMIFS(DHIS2[Penta1], DHIS2[woreda], A28, DHIS2[month_year], $E$1)/VLOOKUP(A28, 'Helper_worho denom'!$B$2:$I$200, 8, 0) -> 0 | F28: =SUMIFS(DHIS2[Penta1], DHIS2[woreda], A28, DHIS2[month_year], $F$1)/VLOOKUP(A28, 'Helper_worho denom'!$B$2:$I$200, 8, 0) -> 0 | G28: =SUMIFS(DHIS2[Penta1], DHIS2[woreda], A28, DHIS2[month_year], $G$1)/VLOOKUP(A28, 'Helper_worho denom'!$B$2:$I$200, 8, 0) -> 0 | H28: =SUMIFS(DHIS2[Penta3], DHIS2[woreda], A28, DHIS2[month_year], $H$1)/VLOOKUP(A28,'Helper_worho denom'!$B$2:$I$200, 8, 0) -> 0 | I28: =SUMIFS(DHIS2[Penta3], DHIS2[woreda], A28, DHIS2[month_year], $I$1)/VLOOKUP(A28,'Helper_worho denom'!$B$2:$I$200, 8, 0) -> 0 | J28: =SUMIFS(DHIS2[Penta3], DHIS2[woreda], A28, DHIS2[month_year], $J$1)/VLOOKUP(A28,'Helper_worho denom'!$B$2:$I$200, 8, 0) -> 0 | K28: =SUMIFS(DHIS2[Penta3], DHIS2[woreda], A28, DHIS2[month_year], $K$1)/VLOOKUP(A28,'Helper_worho denom'!$B$2:$I$200, 8, 0) -> 0 | L28: =SUMIFS(DHIS2[Penta3], DHIS2[woreda], A28, DHIS2[month_year], $L$1)/VLOOKUP(A28,'Helper_worho denom'!$B$2:$I$200, 8, 0) -> 0 | M28: =SUMIFS(DHIS2[Penta3], DHIS2[woreda], A28, DHIS2[month_year], $M$1)/VLOOKUP(A28,'Helper_worho denom'!$B$2:$I$200, 8, 0) -> 0 | N28: N/A | O28: N/A | P28: N/A | Q28: N/A | R28: N/A | S28: N/A | T28: N/A | U28: N/A | V28: N/A | W28: N/A | X28: N/A | Y28: N/A
A29: Kori WorHO | B29: =SUMIFS(DHIS2[Penta1], DHIS2[woreda], A29, DHIS2[month_year], $B$1)/VLOOKUP(A29, 'Helper_worho denom'!$B$2:$I$200, 8, 0) -> 0 | C29: =SUMIFS(DHIS2[Penta1], DHIS2[woreda], A29, DHIS2[month_year], $C$1)/VLOOKUP(A29, 'Helper_worho denom'!$B$2:$I$200, 8, 0) -> 0 | D29: =SUMIFS(DHIS2[Penta1], DHIS2[woreda], A29, DHIS2[month_year], $D$1)/VLOOKUP(A29, 'Helper_worho denom'!$B$2:$I$200, 8, 0) -> 0 | E29: =SUMIFS(DHIS2[Penta1], DHIS2[woreda], A29, DHIS2[month_year], $E$1)/VLOOKUP(A29, 'Helper_worho denom'!$B$2:$I$200, 8, 0) -> 0 | F29: =SUMIFS(DHIS2[Penta1], DHIS2[woreda], A29, DHIS2[month_year], $F$1)/VLOOKUP(A29, 'Helper_worho denom'!$B$2:$I$200, 8, 0) -> 0 | G29: =SUMIFS(DHIS2[Penta1], DHIS2[woreda], A29, DHIS2[month_year], $G$1)/VLOOKUP(A29, 'Helper_worho denom'!$B$2:$I$200, 8, 0) -> 0 | H29: =SUMIFS(DHIS2[Penta3], DHIS2[woreda], A29, DHIS2[month_year], $H$1)/VLOOKUP(A29,'Helper_worho denom'!$B$2:$I$200, 8, 0) -> 0 | I29: =SUMIFS(DHIS2[Penta3], DHIS2[woreda], A29, DHIS2[month_year], $I$1)/VLOOKUP(A29,'Helper_worho denom'!$B$2:$I$200, 8, 0) -> 0 | J29: =SUMIFS(DHIS2[Penta3], DHIS2[woreda], A29, DHIS2[month_year], $J$1)/VLOOKUP(A29,'Helper_worho denom'!$B$2:$I$200, 8, 0) -> 0 | K29: =SUMIFS(DHIS2[Penta3], DHIS2[woreda], A29, DHIS2[month_year], $K$1)/VLOOKUP(A29,'Helper_worho denom'!$B$2:$I$200, 8, 0) -> 0 | L29: =SUMIFS(DHIS2[Penta3], DHIS2[woreda], A29, DHIS2[month_year], $L$1)/VLOOKUP(A29,'Helper_worho denom'!$B$2:$I$200, 8, 0) -> 0 | M29: =SUMIFS(DHIS2[Penta3], DHIS2[woreda], A29, DHIS2[month_year], $M$1)/VLOOKUP(A29,'Helper_worho denom'!$B$2:$I$200, 8, 0) -> 0 | N29: N/A | O29: N/A | P29: N/A | Q29: N/A | R29: N/A | S29: N/A | T29: N/A | U29: N/A | V29: N/A | W29: N/A | X29: N/A | Y29: N/A
A30: Magale WorHO | B30: =SUMIFS(DHIS2[Penta1], DHIS2[woreda], A30, DHIS2[month_year], $B$1)/VLOOKUP(A30, 'Helper_worho denom'!$B$2:$I$200, 8, 0) -> 0 | C30: =SUMIFS(DHIS2[Penta1], DHIS2[woreda], A30, DHIS2[month_year], $C$1)/VLOOKUP(A30, 'Helper_worho denom'!$B$2:$I$200, 8, 0) -> 0 | D30: =SUMIFS(DHIS2[Penta1], DHIS2[woreda], A30, DHIS2[month_year], $D$1)/VLOOKUP(A30, 'Helper_worho denom'!$B$2:$I$200, 8, 0) -> 0 | E30: =SUMIFS(DHIS2[Penta1], DHIS2[woreda], A30, DHIS2[month_year], $E$1)/VLOOKUP(A30, 'Helper_worho denom'!$B$2:$I$200, 8, 0) -> 0 | F30: =SUMIFS(DHIS2[Penta1], DHIS2[woreda], A30, DHIS2[month_year], $F$1)/VLOOKUP(A30, 'Helper_worho denom'!$B$2:$I$200, 8, 0) -> 0 | G30: =SUMIFS(DHIS2[Penta1], DHIS2[woreda], A30, DHIS2[month_year], $G$1)/VLOOKUP(A30, 'Helper_worho denom'!$B$2:$I$200, 8, 0) -> 0 | H30: =SUMIFS(DHIS2[Penta3], DHIS2[woreda], A30, DHIS2[month_year], $H$1)/VLOOKUP(A30,'Helper_worho denom'!$B$2:$I$200, 8, 0) -> 0 | I30: =SUMIFS(DHIS2[Penta3], DHIS2[woreda], A30, DHIS2[month_year], $I$1)/VLOOKUP(A30,'Helper_worho denom'!$B$2:$I$200, 8, 0) -> 0 | J30: =SUMIFS(DHIS2[Penta3], DHIS2[woreda], A30, DHIS2[month_year], $J$1)/VLOOKUP(A30,'Helper_worho denom'!$B$2:$I$200, 8, 0) -> 0 | K30: =SUMIFS(DHIS2[Penta3], DHIS2[woreda], A30, DHIS2[month_year], $K$1)/VLOOKUP(A30,'Helper_worho denom'!$B$2:$I$200, 8, 0) -> 0 | L30: =SUMIFS(DHIS2[Penta3], DHIS2[woreda], A30, DHIS2[month_year], $L$1)/VLOOKUP(A30,'Helper_worho denom'!$B$2:$I$200, 8, 0) -> 0 | M30: =SUMIFS(DHIS2[Penta3], DHIS2[woreda], A30, DHIS2[month_year], $M$1)/VLOOKUP(A30,'Helper_worho denom'!$B$2:$I$200, 8, 0) -> 0 | N30: N/A | O30: N/A | P30: N/A | Q30: N/A | R30: N/A | S30: N/A | T30: N/A | U30: N/A | V30: N/A | W30: N/A | X30: N/A | Y30: N/A
A31: Mille WorHO | B31: =SUMIFS(DHIS2[Penta1], DHIS2[woreda], A31, DHIS2[month_year], $B$1)/VLOOKUP(A31, 'Helper_worho denom'!$B$2:$I$200, 8, 0) -> 0 | C31: =SUMIFS(DHIS2[Penta1], DHIS2[woreda], A31, DHIS2[month_year], $C$1)/VLOOKUP(A31, 'Helper_worho denom'!$B$2:$I$200, 8, 0) -> 0 | D31: =SUMIFS(DHIS2[Penta1], DHIS2[woreda], A31, DHIS2[month_year], $D$1)/VLOOKUP(A31, 'Helper_worho denom'!$B$2:$I$200, 8, 0) -> 0 | E31: =SUMIFS(DHIS2[Penta1], DHIS2[woreda], A31, DHIS2[month_year], $E$1)/VLOOKUP(A31, 'Helper_worho denom'!$B$2:$I$200, 8, 0) -> 0 | F31: =SUMIFS(DHIS2[Penta1], DHIS2[woreda], A31, DHIS2[month_year], $F$1)/VLOOKUP(A31, 'Helper_worho denom'!$B$2:$I$200, 8, 0) -> 0 | G31: =SUMIFS(DHIS2[Penta1], DHIS2[woreda], A31, DHIS2[month_year], $G$1)/VLOOKUP(A31, 'Helper_worho denom'!$B$2:$I$200, 8, 0) -> 0 | H31: =SUMIFS(DHIS2[Penta3], DHIS2[woreda], A31, DHIS2[month_year], $H$1)/VLOOKUP(A31,'Helper_worho denom'!$B$2:$I$200, 8, 0) -> 0 | I31: =SUMIFS(DHIS2[Penta3], DHIS2[woreda], A31, DHIS2[month_year], $I$1)/VLOOKUP(A31,'Helper_worho denom'!$B$2:$I$200, 8, 0) -> 0 | J31: =SUMIFS(DHIS2[Penta3], DHIS2[woreda], A31, DHIS2[month_year], $J$1)/VLOOKUP(A31,'Helper_worho denom'!$B$2:$I$200, 8, 0) -> 0 | K31: =SUMIFS(DHIS2[Penta3], DHIS2[woreda], A31, DHIS2[month_year], $K$1)/VLOOKUP(A31,'Helper_worho denom'!$B$2:$I$200, 8, 0) -> 0 | L31: =SUMIFS(DHIS2[Penta3], DHIS2[woreda], A31, DHIS2[month_year], $L$1)/VLOOKUP(A31,'Helper_worho denom'!$B$2:$I$200, 8, 0) -> 0 | M31: =SUMIFS(DHIS2[Penta3], DHIS2[woreda], A31, DHIS2[month_year], $M$1)/VLOOKUP(A31,'Helper_worho denom'!$B$2:$I$200, 8, 0) -> 0 | N31: N/A | O31: N/A | P31: N/A | Q31: N/A | R31: N/A | S31: N/A | T31: N/A | U31: N/A | V31: N/A | W31: N/A | X31: N/A | Y31: N/A
A32: Semera Logia Kentiba WorHO | B32: =SUMIFS(DHIS2[Penta1], DHIS2[woreda], A32, DHIS2[month_year], $B$1)/VLOOKUP(A32, 'Helper_worho denom'!$B$2:$I$200, 8, 0) -> 0 | C32: =SUMIFS(DHIS2[Penta1], DHIS2[woreda], A32, DHIS2[month_year], $C$1)/VLOOKUP(A32, 'Helper_worho denom'!$B$2:$I$200, 8, 0) -> 0 | D32: =SUMIFS(DHIS2[Penta1], DHIS2[woreda], A32, DHIS2[month_year], $D$1)/VLOOKUP(A32, 'Helper_worho denom'!$B$2:$I$200, 8, 0) -> 0 | E32: =SUMIFS(DHIS2[Penta1], DHIS2[woreda], A32, DHIS2[month_year], $E$1)/VLOOKUP(A32, 'Helper_worho denom'!$B$2:$I$200, 8, 0) -> 0 | F32: =SUMIFS(DHIS2[Penta1], DHIS2[woreda], A32, DHIS2[month_year], $F$1)/VLOOKUP(A32, 'Helper_worho denom'!$B$2:$I$200, 8, 0) -> 0 | G32: =SUMIFS(DHIS2[Penta1], DHIS2[woreda], A32, DHIS2[month_year], $G$1)/VLOOKUP(A32, 'Helper_worho denom'!$B$2:$I$200, 8, 0) -> 0 | H32: =SUMIFS(DHIS2[Penta3], DHIS2[woreda], A32, DHIS2[month_year], $H$1)/VLOOKUP(A32,'Helper_worho denom'!$B$2:$I$200, 8, 0) -> 0 | I32: =SUMIFS(DHIS2[Penta3], DHIS2[woreda], A32, DHIS2[month_year], $I$1)/VLOOKUP(A32,'Helper_worho denom'!$B$2:$I$200, 8, 0) -> 0 | J32: =SUMIFS(DHIS2[Penta3], DHIS2[woreda], A32, DHIS2[month_year], $J$1)/VLOOKUP(A32,'Helper_worho denom'!$B$2:$I$200, 8, 0) -> 0 | K32: =SUMIFS(DHIS2[Penta3], DHIS2[woreda], A32, DHIS2[month_year], $K$1)/VLOOKUP(A32,'Helper_worho denom'!$B$2:$I$200, 8, 0) -> 0 | L32: =SUMIFS(DHIS2[Penta3], DHIS2[woreda], A32, DHIS2[month_year], $L$1)/VLOOKUP(A32,'Helper_worho denom'!$B$2:$I$200, 8, 0) -> 0 | M32: =SUMIFS(DHIS2[Penta3], DHIS2[woreda], A32, DHIS2[month_year], $M$1)/VLOOKUP(A32,'Helper_worho denom'!$B$2:$I$200, 8, 0) -> 0 | N32: N/A | O32: N/A | P32: N/A | Q32: N/A | R32: N/A | S32: N/A | T32: N/A | U32: N/A | V32: N/A | W32: N/A | X32: N/A | Y32: N/A
A33: Semirobi WorHO | B33: =SUMIFS(DHIS2[Penta1], DHIS2[woreda], A33, DHIS2[month_year], $B$1)/VLOOKUP(A33, 'Helper_worho denom'!$B$2:$I$200, 8, 0) -> 0 | C33: =SUMIFS(DHIS2[Penta1], DHIS2[woreda], A33, DHIS2[month_year], $C$1)/VLOOKUP(A33, 'Helper_worho denom'!$B$2:$I$200, 8, 0) -> 0 | D33: =SUMIFS(DHIS2[Penta1], DHIS2[woreda], A33, DHIS2[month_year], $D$1)/VLOOKUP(A33, 'Helper_worho denom'!$B$2:$I$200, 8, 0) -> 0 | E33: =SUMIFS(DHIS2[Penta1], DHIS2[woreda], A33, DHIS2[month_year], $E$1)/VLOOKUP(A33, 'Helper_worho denom'!$B$2:$I$200, 8, 0) -> 0 | F33: =SUMIFS(DHIS2[Penta1], DHIS2[woreda], A33, DHIS2[month_year], $F$1)/VLOOKUP(A33, 'Helper_worho denom'!$B$2:$I$200, 8, 0) -> 0 | G33: =SUMIFS(DHIS2[Penta1], DHIS2[woreda], A33, DHIS2[month_year], $G$1)/VLOOKUP(A33, 'Helper_worho denom'!$B$2:$I$200, 8, 0) -> 0 | H33: =SUMIFS(DHIS2[Penta3], DHIS2[woreda], A33, DHIS2[month_year], $H$1)/VLOOKUP(A33,'Helper_worho denom'!$B$2:$I$200, 8, 0) -> 0 | I33: =SUMIFS(DHIS2[Penta3], DHIS2[woreda], A33, DHIS2[month_year], $I$1)/VLOOKUP(A33,'Helper_worho denom'!$B$2:$I$200, 8, 0) -> 0 | J33: =SUMIFS(DHIS2[Penta3], DHIS2[woreda], A33, DHIS2[month_year], $J$1)/VLOOKUP(A33,'Helper_worho denom'!$B$2:$I$200, 8, 0) -> 0 | K33: =SUMIFS(DHIS2[Penta3], DHIS2[woreda], A33, DHIS2[month_year], $K$1)/VLOOKUP(A33,'Helper_worho denom'!$B$2:$I$200, 8, 0) -> 0 | L33: =SUMIFS(DHIS2[Penta3], DHIS2[woreda], A33, DHIS2[month_year], $L$1)/VLOOKUP(A33,'Helper_worho denom'!$B$2:$I$200, 8, 0) -> 0 | M33: =SUMIFS(DHIS2[Penta3], DHIS2[woreda], A33, DHIS2[month_year], $M$1)/VLOOKUP(A33,'Helper_worho denom'!$B$2:$I$200, 8, 0) -> 0 | N33: N/A | O33: N/A | P33: N/A | Q33: N/A | R33: N/A | S33: N/A | T33: N/A | U33: N/A | V33: N/A | W33: N/A | X33: N/A | Y33: N/A
A34: Telalak WorHO | B34: =SUMIFS(DHIS2[Penta1], DHIS2[woreda], A34, DHIS2[month_year], $B$1)/VLOOKUP(A34, 'Helper_worho denom'!$B$2:$I$200, 8, 0) -> 0 | C34: =SUMIFS(DHIS2[Penta1], DHIS2[woreda], A34, DHIS2[month_year], $C$1)/VLOOKUP(A34, 'Helper_worho denom'!$B$2:$I$200, 8, 0) -> 0 | D34: =SUMIFS(DHIS2[Penta1], DHIS2[woreda], A34, DHIS2[month_year], $D$1)/VLOOKUP(A34, 'Helper_worho denom'!$B$2:$I$200, 8, 0) -> 0 | E34: =SUMIFS(DHIS2[Penta1], DHIS2[woreda], A34, DHIS2[month_year], $E$1)/VLOOKUP(A34, 'Helper_worho denom'!$B$2:$I$200, 8, 0) -> 0 | F34: =SUMIFS(DHIS2[Penta1], DHIS2[woreda], A34, DHIS2[month_year], $F$1)/VLOOKUP(A34, 'Helper_worho denom'!$B$2:$I$200, 8, 0) -> 0 | G34: =SUMIFS(DHIS2[Penta1], DHIS2[woreda], A34, DHIS2[month_year], $G$1)/VLOOKUP(A34, 'Helper_worho denom'!$B$2:$I$200, 8, 0) -> 0 | H34: =SUMIFS(DHIS2[Penta3], DHIS2[woreda], A34, DHIS2[month_year], $H$1)/VLOOKUP(A34,'Helper_worho denom'!$B$2:$I$200, 8, 0) -> 0 | I34: =SUMIFS(DHIS2[Penta3], DHIS2[woreda], A34, DHIS2[month_year], $I$1)/VLOOKUP(A34,'Helper_worho denom'!$B$2:$I$200, 8, 0) -> 0 | J34: =SUMIFS(DHIS2[Penta3], DHIS2[woreda], A34, DHIS2[month_year], $J$1)/VLOOKUP(A34,'Helper_worho denom'!$B$2:$I$200, 8, 0) -> 0 | K34: =SUMIFS(DHIS2[Penta3], DHIS2[woreda], A34, DHIS2[month_year], $K$1)/VLOOKUP(A34,'Helper_worho denom'!$B$2:$I$200, 8, 0) -> 0 | L34: =SUMIFS(DHIS2[Penta3], DHIS2[woreda], A34, DHIS2[month_year], $L$1)/VLOOKUP(A34,'Helper_worho denom'!$B$2:$I$200, 8, 0) -> 0 | M34: =SUMIFS(DHIS2[Penta3], DHIS2[woreda], A34, DHIS2[month_year], $M$1)/VLOOKUP(A34,'Helper_worho denom'!$B$2:$I$200, 8, 0) -> 0 | N34: N/A | O34: N/A | P34: N/A | Q34: N/A | R34: N/A | S34: N/A | T34: N/A | U34: N/A | V34: N/A | W34: N/A | X34: N/A | Y34: N/A
A35: Teru WorHO | B35: =SUMIFS(DHIS2[Penta1], DHIS2[woreda], A35, DHIS2[month_year], $B$1)/VLOOKUP(A35, 'Helper_worho denom'!$B$2:$I$200, 8, 0) -> 0 | C35: =SUMIFS(DHIS2[Penta1], DHIS2[woreda], A35, DHIS2[month_year], $C$1)/VLOOKUP(A35, 'Helper_worho denom'!$B$2:$I$200, 8, 0) -> 0 | D35: =SUMIFS(DHIS2[Penta1], DHIS2[woreda], A35, DHIS2[month_year], $D$1)/VLOOKUP(A35, 'Helper_worho denom'!$B$2:$I$200, 8, 0) -> 0 | E35: =SUMIFS(DHIS2[Penta1], DHIS2[woreda], A35, DHIS2[month_year], $E$1)/VLOOKUP(A35, 'Helper_worho denom'!$B$2:$I$200, 8, 0) -> 0 | F35: =SUMIFS(DHIS2[Penta1], DHIS2[woreda], A35, DHIS2[month_year], $F$1)/VLOOKUP(A35, 'Helper_worho denom'!$B$2:$I$200, 8, 0) -> 0 | G35: =SUMIFS(DHIS2[Penta1], DHIS2[woreda], A35, DHIS2[month_year], $G$1)/VLOOKUP(A35, 'Helper_worho denom'!$B$2:$I$200, 8, 0) -> 0 | H35: =SUMIFS(DHIS2[Penta3], DHIS2[woreda], A35, DHIS2[month_year], $H$1)/VLOOKUP(A35,'Helper_worho denom'!$B$2:$I$200, 8, 0) -> 0 | I35: =SUMIFS(DHIS2[Penta3], DHIS2[woreda], A35, DHIS2[month_year], $I$1)/VLOOKUP(A35,'Helper_worho denom'!$B$2:$I$200, 8, 0) -> 0 | J35: =SUMIFS(DHIS2[Penta3], DHIS2[woreda], A35, DHIS2[month_year], $J$1)/VLOOKUP(A35,'Helper_worho denom'!$B$2:$I$200, 8, 0) -> 0 | K35: =SUMIFS(DHIS2[Penta3], DHIS2[woreda], A35, DHIS2[month_year], $K$1)/VLOOKUP(A35,'Helper_worho denom'!$B$2:$I$200, 8, 0) -> 0 | L35: =SUMIFS(DHIS2[Penta3], DHIS2[woreda], A35, DHIS2[month_year], $L$1)/VLOOKUP(A35,'Helper_worho denom'!$B$2:$I$200, 8, 0) -> 0 | M35: =SUMIFS(DHIS2[Penta3], DHIS2[woreda], A35, DHIS2[month_year], $M$1)/VLOOKUP(A35,'Helper_worho denom'!$B$2:$I$200, 8, 0) -> 0 | N35: N/A | O35: N/A | P35: N/A | Q35: N/A | R35: N/A | S35: N/A | T35: N/A | U35: N/A | V35: N/A | W35: N/A | X35: N/A | Y35: N/A
A36: Yallo WorHO | B36: =SUMIFS(DHIS2[Penta1], DHIS2[woreda], A36, DHIS2[month_year], $B$1)/VLOOKUP(A36, 'Helper_worho denom'!$B$2:$I$200, 8, 0) -> 0 | C36: =SUMIFS(DHIS2[Penta1], DHIS2[woreda], A36, DHIS2[month_year], $C$1)/VLOOKUP(A36, 'Helper_worho denom'!$B$2:$I$200, 8, 0) -> 0 | D36: =SUMIFS(DHIS2[Penta1], DHIS2[woreda], A36, DHIS2[month_year], $D$1)/VLOOKUP(A36, 'Helper_worho denom'!$B$2:$I$200, 8, 0) -> 0 | E36: =SUMIFS(DHIS2[Penta1], DHIS2[woreda], A36, DHIS2[month_year], $E$1)/VLOOKUP(A36, 'Helper_worho denom'!$B$2:$I$200, 8, 0) -> 0 | F36: =SUMIFS(DHIS2[Penta1], DHIS2[woreda], A36, DHIS2[month_year], $F$1)/VLOOKUP(A36, 'Helper_worho denom'!$B$2:$I$200, 8, 0) -> 0 | G36: =SUMIFS(DHIS2[Penta1], DHIS2[woreda], A36, DHIS2[month_year], $G$1)/VLOOKUP(A36, 'Helper_worho denom'!$B$2:$I$200, 8, 0) -> 0 | H36: =SUMIFS(DHIS2[Penta3], DHIS2[woreda], A36, DHIS2[month_year], $H$1)/VLOOKUP(A36,'Helper_worho denom'!$B$2:$I$200, 8, 0) -> 0 | I36: =SUMIFS(DHIS2[Penta3], DHIS2[woreda], A36, DHIS2[month_year], $I$1)/VLOOKUP(A36,'Helper_worho denom'!$B$2:$I$200, 8, 0) -> 0 | J36: =SUMIFS(DHIS2[Penta3], DHIS2[woreda], A36, DHIS2[month_year], $J$1)/VLOOKUP(A36,'Helper_worho denom'!$B$2:$I$200, 8, 0) -> 0 | K36: =SUMIFS(DHIS2[Penta3], DHIS2[woreda], A36, DHIS2[month_year], $K$1)/VLOOKUP(A36,'Helper_worho denom'!$B$2:$I$200, 8, 0) -> 0 | L36: =SUMIFS(DHIS2[Penta3], DHIS2[woreda], A36, DHIS2[month_year], $L$1)/VLOOKUP(A36,'Helper_worho denom'!$B$2:$I$200, 8, 0) -> 0 | M36: =SUMIFS(DHIS2[Penta3], DHIS2[woreda], A36, DHIS2[month_year], $M$1)/VLOOKUP(A36,'Helper_worho denom'!$B$2:$I$200, 8, 0) -> 0 | N36: N/A | O36: N/A | P36: N/A | Q36: N/A | R36: N/A | S36: N/A | T36: N/A | U36: N/A | V36: N/A | W36: N/A | X36: N/A | Y36: N/A
A37: Agalo Meti WorHO | B37: =SUMIFS(DHIS2[Penta1], DHIS2[woreda], A37, DHIS2[month_year], $B$1)/VLOOKUP(A37, 'Helper_worho denom'!$B$2:$I$200, 8, 0) -> 0 | C37: =SUMIFS(DHIS2[Penta1], DHIS2[woreda], A37, DHIS2[month_year], $C$1)/VLOOKUP(A37, 'Helper_worho denom'!$B$2:$I$200, 8, 0) -> 0 | D37: =SUMIFS(DHIS2[Penta1], DHIS2[woreda], A37, DHIS2[month_year], $D$1)/VLOOKUP(A37, 'Helper_worho denom'!$B$2:$I$200, 8, 0) -> 0 | E37: =SUMIFS(DHIS2[Penta1], DHIS2[woreda], A37, DHIS2[month_year], $E$1)/VLOOKUP(A37, 'Helper_worho denom'!$B$2:$I$200, 8, 0) -> 0 | F37: =SUMIFS(DHIS2[Penta1], DHIS2[woreda], A37, DHIS2[month_year], $F$1)/VLOOKUP(A37, 'Helper_worho denom'!$B$2:$I$200, 8, 0) -> 0 | G37: =SUMIFS(DHIS2[Penta1], DHIS2[woreda], A37, DHIS2[month_year], $G$1)/VLOOKUP(A37, 'Helper_worho denom'!$B$2:$I$200, 8, 0) -> 0 | H37: =SUMIFS(DHIS2[Penta3], DHIS2[woreda], A37, DHIS2[month_year], $H$1)/VLOOKUP(A37,'Helper_worho denom'!$B$2:$I$200, 8, 0) -> 0 | I37: =SUMIFS(DHIS2[Penta3], DHIS2[woreda], A37, DHIS2[month_year], $I$1)/VLOOKUP(A37,'Helper_worho denom'!$B$2:$I$200, 8, 0) -> 0 | J37: =SUMIFS(DHIS2[Penta3], DHIS2[woreda], A37, DHIS2[month_year], $J$1)/VLOOKUP(A37,'Helper_worho denom'!$B$2:$I$200, 8, 0) -> 0 | K37: =SUMIFS(DHIS2[Penta3], DHIS2[woreda], A37, DHIS2[month_year], $K$1)/VLOOKUP(A37,'Helper_worho denom'!$B$2:$I$200, 8, 0) -> 0 | L37: =SUMIFS(DHIS2[Penta3], DHIS2[woreda], A37, DHIS2[month_year], $L$1)/VLOOKUP(A37,'Helper_worho denom'!$B$2:$I$200, 8, 0) -> 0 | M37: =SUMIFS(DHIS2[Penta3], DHIS2[woreda], A37, DHIS2[month_year], $M$1)/VLOOKUP(A37,'Helper_worho denom'!$B$2:$I$200, 8, 0) -> 0 | N37: N/A | O37: N/A | P37: N/A | Q37: N/A | R37: N/A | S37: N/A | T37: N/A | U37: N/A | V37: N/A | W37: N/A | X37: N/A | Y37: N/A
A38: Asosa Town 1 WorHO | B38: =SUMIFS(DHIS2[Penta1], DHIS2[woreda], A38, DHIS2[month_year], $B$1)/VLOOKUP(A38, 'Helper_worho denom'!$B$2:$I$200, 8, 0) -> 0 | C38: =SUMIFS(DHIS2[Penta1], DHIS2[woreda], A38, DHIS2[month_year], $C$1)/VLOOKUP(A38, 'Helper_worho denom'!$B$2:$I$200, 8, 0) -> 0 | D38: =SUMIFS(DHIS2[Penta1], DHIS2[woreda], A38, DHIS2[month_year], $D$1)/VLOOKUP(A38, 'Helper_worho denom'!$B$2:$I$200, 8, 0) -> 0 | E38: =SUMIFS(DHIS2[Penta1], DHIS2[woreda], A38, DHIS2[month_year], $E$1)/VLOOKUP(A38, 'Helper_worho denom'!$B$2:$I$200, 8, 0) -> 0 | F38: =SUMIFS(DHIS2[Penta1], DHIS2[woreda], A38, DHIS2[month_year], $F$1)/VLOOKUP(A38, 'Helper_worho denom'!$B$2:$I$200, 8, 0) -> 0 | G38: =SUMIFS(DHIS2[Penta1], DHIS2[woreda], A38, DHIS2[month_year], $G$1)/VLOOKUP(A38, 'Helper_worho denom'!$B$2:$I$200, 8, 0) -> 0 | H38: =SUMIFS(DHIS2[Penta3], DHIS2[woreda], A38, DHIS2[month_year], $H$1)/VLOOKUP(A38,'Helper_worho denom'!$B$2:$I$200, 8, 0) -> 0 | I38: =SUMIFS(DHIS2[Penta3], DHIS2[woreda], A38, DHIS2[month_year], $I$1)/VLOOKUP(A38,'Helper_worho denom'!$B$2:$I$200, 8, 0) -> 0 | J38: =SUMIFS(DHIS2[Penta3], DHIS2[woreda], A38, DHIS2[month_year], $J$1)/VLOOKUP(A38,'Helper_worho denom'!$B$2:$I$200, 8, 0) -> 0 | K38: =SUMIFS(DHIS2[Penta3], DHIS2[woreda], A38, DHIS2[month_year], $K$1)/VLOOKUP(A38,'Helper_worho denom'!$B$2:$I$200, 8, 0) -> 0 | L38: =SUMIFS(DHIS2[Penta3], DHIS2[woreda], A38, DHIS2[month_year], $L$1)/VLOOKUP(A38,'Helper_worho denom'!$B$2:$I$200, 8, 0) -> 0 | M38: =SUMIFS(DHIS2[Penta3], DHIS2[woreda], A38, DHIS2[month_year], $M$1)/VLOOKUP(A38,'Helper_worho denom'!$B$2:$I$200, 8, 0) -> 0 | N38: N/A | O38: N/A | P38: N/A | Q38: N/A | R38: N/A | S38: N/A | T38: N/A | U38: N/A | V38: N/A | W38: N/A | X38: N/A | Y38: N/A
A39: Assosa WorHO | B39: =SUMIFS(DHIS2[Penta1], DHIS2[woreda], A39, DHIS2[month_year], $B$1)/VLOOKUP(A39, 'Helper_worho denom'!$B$2:$I$200, 8, 0) -> 0 | C39: =SUMIFS(DHIS2[Penta1], DHIS2[woreda], A39, DHIS2[month_year], $C$1)/VLOOKUP(A39, 'Helper_worho denom'!$B$2:$I$200, 8, 0) -> 0 | D39: =SUMIFS(DHIS2[Penta1], DHIS2[woreda], A39, DHIS2[month_year], $D$1)/VLOOKUP(A39, 'Helper_worho denom'!$B$2:$I$200, 8, 0) -> 0 | E39: =SUMIFS(DHIS2[Penta1], DHIS2[woreda], A39, DHIS2[month_year], $E$1)/VLOOKUP(A39, 'Helper_worho denom'!$B$2:$I$200, 8, 0) -> 0 | F39: =SUMIFS(DHIS2[Penta1], DHIS2[woreda], A39, DHIS2[month_year], $F$1)/VLOOKUP(A39, 'Helper_worho denom'!$B$2:$I$200, 8, 0) -> 0 | G39: =SUMIFS(DHIS2[Penta1], DHIS2[woreda], A39, DHIS2[month_year], $G$1)/VLOOKUP(A39, 'Helper_worho denom'!$B$2:$I$200, 8, 0) -> 0 | H39: =SUMIFS(DHIS2[Penta3], DHIS2[woreda], A39, DHIS2[month_year], $H$1)/VLOOKUP(A39,'Helper_worho denom'!$B$2:$I$200, 8, 0) -> 0 | I39: =SUMIFS(DHIS2[Penta3], DHIS2[woreda], A39, DHIS2[month_year], $I$1)/VLOOKUP(A39,'Helper_worho denom'!$B$2:$I$200, 8, 0) -> 0 | J39: =SUMIFS(DHIS2[Penta3], DHIS2[woreda], A39, DHIS2[month_year], $J$1)/VLOOKUP(A39,'Helper_worho denom'!$B$2:$I$200, 8, 0) -> 0 | K39: =SUMIFS(DHIS2[Penta3], DHIS2[woreda], A39, DHIS2[month_year], $K$1)/VLOOKUP(A39,'Helper_worho denom'!$B$2:$I$200, 8, 0) -> 0 | L39: =SUMIFS(DHIS2[Penta3], DHIS2[woreda], A39, DHIS2[month_year], $L$1)/VLOOKUP(A39,'Helper_worho denom'!$B$2:$I$200, 8, 0) -> 0 | M39: =SUMIFS(DHIS2[Penta3], DHIS2[woreda], A39, DHIS2[month_year], $M$1)/VLOOKUP(A39,'Helper_worho denom'!$B$2:$I$200, 8, 0) -> 0 | N39: N/A | O39: N/A | P39: N/A | Q39: N/A | R39: N/A | S39: N/A | T39: N/A | U39: N/A | V39: N/A | W39: N/A | X39: N/A | Y39: N/A
A40: Bambasi WorHO | B40: =SUMIFS(DHIS2[Penta1], DHIS2[woreda], A40, DHIS2[month_year], $B$1)/VLOOKUP(A40, 'Helper_worho denom'!$B$2:$I$200, 8, 0) -> 0 | C40: =SUMIFS(DHIS2[Penta1], DHIS2[woreda], A40, DHIS2[month_year], $C$1)/VLOOKUP(A40, 'Helper_worho denom'!$B$2:$I$200, 8, 0) -> 0 | D40: =SUMIFS(DHIS2[Penta1], DHIS2[woreda], A40, DHIS2[month_year], $D$1)/VLOOKUP(A40, 'Helper_worho denom'!$B$2:$I$200, 8, 0) -> 0 | E40: =SUMIFS(DHIS2[Penta1], DHIS2[woreda], A40, DHIS2[month_year], $E$1)/VLOOKUP(A40, 'Helper_worho denom'!$B$2:$I$200, 8, 0) -> 0 | F40: =SUMIFS(DHIS2[Penta1], DHIS2[woreda], A40, DHIS2[month_year], $F$1)/VLOOKUP(A40, 'Helper_worho denom'!$B$2:$I$200, 8, 0) -> 0 | G40: =SUMIFS(DHIS2[Penta1], DHIS2[woreda], A40, DHIS2[month_year], $G$1)/VLOOKUP(A40, 'Helper_worho denom'!$B$2:$I$200, 8, 0) -> 0 | H40: =SUMIFS(DHIS2[Penta3], DHIS2[woreda], A40, DHIS2[month_year], $H$1)/VLOOKUP(A40,'Helper_worho denom'!$B$2:$I$200, 8, 0) -> 0 | I40: =SUMIFS(DHIS2[Penta3], DHIS2[woreda], A40, DHIS2[month_year], $I$1)/VLOOKUP(A40,'Helper_worho denom'!$B$2:$I$200, 8, 0) -> 0 | J40: =SUMIFS(DHIS2[Penta3], DHIS2[woreda], A40, DHIS2[month_year], $J$1)/VLOOKUP(A40,'Helper_worho denom'!$B$2:$I$200, 8, 0) -> 0 | K40: =SUMIFS(DHIS2[Penta3], DHIS2[woreda], A40, DHIS2[month_year], $K$1)/VLOOKUP(A40,'Helper_worho denom'!$B$2:$I$200, 8, 0) -> 0 | L40: =SUMIFS(DHIS2[Penta3], DHIS2[woreda], A40, DHIS2[month_year], $L$1)/VLOOKUP(A40,'Helper_worho denom'!$B$2:$I$200, 8, 0) -> 0 | M40: =SUMIFS(DHIS2[Penta3], DHIS2[woreda], A40, DHIS2[month_year], $M$1)/VLOOKUP(A40,'Helper_worho denom'!$B$2:$I$200, 8, 0) -> 0 | N40: N/A | O40: N/A | P40: N/A | Q40: N/A | R40: N/A | S40: N/A | T40: N/A | U40: N/A | V40: N/A | W40: N/A | X40: N/A | Y40: N/A
A41: Belo Jeganfoy WorHO | B41: =SUMIFS(DHIS2[Penta1], DHIS2[woreda], A41, DHIS2[month_year], $B$1)/VLOOKUP(A41, 'Helper_worho denom'!$B$2:$I$200, 8, 0) -> 0 | C41: =SUMIFS(DHIS2[Penta1], DHIS2[woreda], A41, DHIS2[month_year], $C$1)/VLOOKUP(A41, 'Helper_worho denom'!$B$2:$I$200, 8, 0) -> 0 | D41: =SUMIFS(DHIS2[Penta1], DHIS2[woreda], A41, DHIS2[month_year], $D$1)/VLOOKUP(A41, 'Helper_worho denom'!$B$2:$I$200, 8, 0) -> 0 | E41: =SUMIFS(DHIS2[Penta1], DHIS2[woreda], A41, DHIS2[month_year], $E$1)/VLOOKUP(A41, 'Helper_worho denom'!$B$2:$I$200, 8, 0) -> 0 | F41: =SUMIFS(DHIS2[Penta1], DHIS2[woreda], A41, DHIS2[month_year], $F$1)/VLOOKUP(A41, 'Helper_worho denom'!$B$2:$I$200, 8, 0) -> 0 | G41: =SUMIFS(DHIS2[Penta1], DHIS2[woreda], A41, DHIS2[month_year], $G$1)/VLOOKUP(A41, 'Helper_worho denom'!$B$2:$I$200, 8, 0) -> 0 | H41: =SUMIFS(DHIS2[Penta3], DHIS2[woreda], A41, DHIS2[month_year], $H$1)/VLOOKUP(A41,'Helper_worho denom'!$B$2:$I$200, 8, 0) -> 0 | I41: =SUMIFS(DHIS2[Penta3], DHIS2[woreda], A41, DHIS2[month_year], $I$1)/VLOOKUP(A41,'Helper_worho denom'!$B$2:$I$200, 8, 0) -> 0 | J41: =SUMIFS(DHIS2[Penta3], DHIS2[woreda], A41, DHIS2[month_year], $J$1)/VLOOKUP(A41,'Helper_worho denom'!$B$2:$I$200, 8, 0) -> 0 | K41: =SUMIFS(DHIS2[Penta3], DHIS2[woreda], A41, DHIS2[month_year], $K$1)/VLOOKUP(A41,'Helper_worho denom'!$B$2:$I$200, 8, 0) -> 0 | L41: =SUMIFS(DHIS2[Penta3], DHIS2[woreda], A41, DHIS2[month_year], $L$1)/VLOOKUP(A41,'Helper_worho denom'!$B$2:$I$200, 8, 0) -> 0 | M41: =SUMIFS(DHIS2[Penta3], DHIS2[woreda], A41, DHIS2[month_year], $M$1)/VLOOKUP(A41,'Helper_worho denom'!$B$2:$I$200, 8, 0) -> 0 | N41: N/A | O41: N/A | P41: N/A | Q41: N/A | R41: N/A | S41: N/A | T41: N/A | U41: N/A | V41: N/A | W41: N/A | X41: N/A | Y41: N/A
A42: Bulen WorHO | B42: =SUMIFS(DHIS2[Penta1], DHIS2[woreda], A42, DHIS2[month_year], $B$1)/VLOOKUP(A42, 'Helper_worho denom'!$B$2:$I$200, 8, 0) -> 0 | C42: =SUMIFS(DHIS2[Penta1], DHIS2[woreda], A42, DHIS2[month_year], $C$1)/VLOOKUP(A42, 'Helper_worho denom'!$B$2:$I$200, 8, 0) -> 0 | D42: =SUMIFS(DHIS2[Penta1], DHIS2[woreda], A42, DHIS2[month_year], $D$1)/VLOOKUP(A42, 'Helper_worho denom'!$B$2:$I$200, 8, 0) -> 0 | E42: =SUMIFS(DHIS2[Penta1], DHIS2[woreda], A42, DHIS2[month_year], $E$1)/VLOOKUP(A42, 'Helper_worho denom'!$B$2:$I$200, 8, 0) -> 0 | F42: =SUMIFS(DHIS2[Penta1], DHIS2[woreda], A42, DHIS2[month_year], $F$1)/VLOOKUP(A42, 'Helper_worho denom'!$B$2:$I$200, 8, 0) -> 0 | G42: =SUMIFS(DHIS2[Penta1], DHIS2[woreda], A42, DHIS2[month_year], $G$1)/VLOOKUP(A42, 'Helper_worho denom'!$B$2:$I$200, 8, 0) -> 0 | H42: =SUMIFS(DHIS2[Penta3], DHIS2[woreda], A42, DHIS2[month_year], $H$1)/VLOOKUP(A42,'Helper_worho denom'!$B$2:$I$200, 8, 0) -> 0 | I42: =SUMIFS(DHIS2[Penta3], DHIS2[woreda], A42, DHIS2[month_year], $I$1)/VLOOKUP(A42,'Helper_worho denom'!$B$2:$I$200, 8, 0) -> 0 | J42: =SUMIFS(DHIS2[Penta3], DHIS2[woreda], A42, DHIS2[month_year], $J$1)/VLOOKUP(A42,'Helper_worho denom'!$B$2:$I$200, 8, 0) -> 0 | K42: =SUMIFS(DHIS2[Penta3], DHIS2[woreda], A42, DHIS2[month_year], $K$1)/VLOOKUP(A42,'Helper_worho denom'!$B$2:$I$200, 8, 0) -> 0 | L42: =SUMIFS(DHIS2[Penta3], DHIS2[woreda], A42, DHIS2[month_year], $L$1)/VLOOKUP(A42,'Helper_worho denom'!$B$2:$I$200, 8, 0) -> 0 | M42: =SUMIFS(DHIS2[Penta3], DHIS2[woreda], A42, DHIS2[month_year], $M$1)/VLOOKUP(A42,'Helper_worho denom'!$B$2:$I$200, 8, 0) -> 0 | N42: N/A | O42: N/A | P42: N/A | Q42: N/A | R42: N/A | S42: N/A | T42: N/A | U42: N/A | V42: N/A | W42: N/A | X42: N/A | Y42: N/A
A43: Dangur WorHO | B43: =SUMIFS(DHIS2[Penta1], DHIS2[woreda], A43, DHIS2[month_year], $B$1)/VLOOKUP(A43, 'Helper_worho denom'!$B$2:$I$200, 8, 0) -> 0 | C43: =SUMIFS(DHIS2[Penta1], DHIS2[woreda], A43, DHIS2[month_year], $C$1)/VLOOKUP(A43, 'Helper_worho denom'!$B$2:$I$200, 8, 0) -> 0 | D43: =SUMIFS(DHIS2[Penta1], DHIS2[woreda], A43, DHIS2[month_year], $D$1)/VLOOKUP(A43, 'Helper_worho denom'!$B$2:$I$200, 8, 0) -> 0 | E43: =SUMIFS(DHIS2[Penta1], DHIS2[woreda], A43, DHIS2[month_year], $E$1)/VLOOKUP(A43, 'Helper_worho denom'!$B$2:$I$200, 8, 0) -> 0 | F43: =SUMIFS(DHIS2[Penta1], DHIS2[woreda], A43, DHIS2[month_year], $F$1)/VLOOKUP(A43, 'Helper_worho denom'!$B$2:$I$200, 8, 0) -> 0 | G43: =SUMIFS(DHIS2[Penta1], DHIS2[woreda], A43, DHIS2[month_year], $G$1)/VLOOKUP(A43, 'Helper_worho denom'!$B$2:$I$200, 8, 0) -> 0 | H43: =SUMIFS(DHIS2[Penta3], DHIS2[woreda], A43, DHIS2[month_year], $H$1)/VLOOKUP(A43,'Helper_worho denom'!$B$2:$I$200, 8, 0) -> 0 | I43: =SUMIFS(DHIS2[Penta3], DHIS2[woreda], A43, DHIS2[month_year], $I$1)/VLOOKUP(A43,'Helper_worho denom'!$B$2:$I$200, 8, 0) -> 0 | J43: =SUMIFS(DHIS2[Penta3], DHIS2[woreda], A43, DHIS2[month_year], $J$1)/VLOOKUP(A43,'Helper_worho denom'!$B$2:$I$200, 8, 0) -> 0 | K43: =SUMIFS(DHIS2[Penta3], DHIS2[woreda], A43, DHIS2[month_year], $K$1)/VLOOKUP(A43,'Helper_worho denom'!$B$2:$I$200, 8, 0) -> 0 | L43: =SUMIFS(DHIS2[Penta3], DHIS2[woreda], A43, DHIS2[month_year], $L$1)/VLOOKUP(A43,'Helper_worho denom'!$B$2:$I$200, 8, 0) -> 0 | M43: =SUMIFS(DHIS2[Penta3], DHIS2[woreda], A43, DHIS2[month_year], $M$1)/VLOOKUP(A43,'Helper_worho denom'!$B$2:$I$200, 8, 0) -> 0 | N43: N/A | O43: N/A | P43: N/A | Q43: N/A | R43: N/A | S43: N/A | T43: N/A | U43: N/A | V43: N/A | W43: N/A | X43: N/A | Y43: N/A
A44: Dibate WorHO | B44: =SUMIFS(DHIS2[Penta1], DHIS2[woreda], A44, DHIS2[month_year], $B$1)/VLOOKUP(A44, 'Helper_worho denom'!$B$2:$I$200, 8, 0) -> 0 | C44: =SUMIFS(DHIS2[Penta1], DHIS2[woreda], A44, DHIS2[month_year], $C$1)/VLOOKUP(A44, 'Helper_worho denom'!$B$2:$I$200, 8, 0) -> 0 | D44: =SUMIFS(DHIS2[Penta1], DHIS2[woreda], A44, DHIS2[month_year], $D$1)/VLOOKUP(A44, 'Helper_worho denom'!$B$2:$I$200, 8, 0) -> 0 | E44: =SUMIFS(DHIS2[Penta1], DHIS2[woreda], A44, DHIS2[month_year], $E$1)/VLOOKUP(A44, 'Helper_worho denom'!$B$2:$I$200, 8, 0) -> 0 | F44: =SUMIFS(DHIS2[Penta1], DHIS2[woreda], A44, DHIS2[month_year], $F$1)/VLOOKUP(A44, 'Helper_worho denom'!$B$2:$I$200, 8, 0) -> 0 | G44: =SUMIFS(DHIS2[Penta1], DHIS2[woreda], A44, DHIS2[month_year], $G$1)/VLOOKUP(A44, 'Helper_worho denom'!$B$2:$I$200, 8, 0) -> 0 | H44: =SUMIFS(DHIS2[Penta3], DHIS2[woreda], A44, DHIS2[month_year], $H$1)/VLOOKUP(A44,'Helper_worho denom'!$B$2:$I$200, 8, 0) -> 0 | I44: =SUMIFS(DHIS2[Penta3], DHIS2[woreda], A44, DHIS2[month_year], $I$1)/VLOOKUP(A44,'Helper_worho denom'!$B$2:$I$200, 8, 0) -> 0 | J44: =SUMIFS(DHIS2[Penta3], DHIS2[woreda], A44, DHIS2[month_year], $J$1)/VLOOKUP(A44,'Helper_worho denom'!$B$2:$I$200, 8, 0) -> 0 | K44: =SUMIFS(DHIS2[Penta3], DHIS2[woreda], A44, DHIS2[month_year], $K$1)/VLOOKUP(A44,'Helper_worho denom'!$B$2:$I$200, 8, 0) -> 0 | L44: =SUMIFS(DHIS2[Penta3], DHIS2[woreda], A44, DHIS2[month_year], $L$1)/VLOOKUP(A44,'Helper_worho denom'!$B$2:$I$200, 8, 0) -> 0 | M44: =SUMIFS(DHIS2[Penta3], DHIS2[woreda], A44, DHIS2[month_year], $M$1)/VLOOKUP(A44,'Helper_worho denom'!$B$2:$I$200, 8, 0) -> 0 | N44: N/A | O44: N/A | P44: N/A | Q44: N/A | R44: N/A | S44: N/A | T44: N/A | U44: N/A | V44: N/A | W44: N/A | X44: N/A | Y44: N/A
A45: Guba WorHO | B45: =SUMIFS(DHIS2[Penta1], DHIS2[woreda], A45, DHIS2[month_year], $B$1)/VLOOKUP(A45, 'Helper_worho denom'!$B$2:$I$200, 8, 0) -> 0 | C45: =SUMIFS(DHIS2[Penta1], DHIS2[woreda], A45, DHIS2[month_year], $C$1)/VLOOKUP(A45, 'Helper_worho denom'!$B$2:$I$200, 8, 0) -> 0 | D45: =SUMIFS(DHIS2[Penta1], DHIS2[woreda], A45, DHIS2[month_year], $D$1)/VLOOKUP(A45, 'Helper_worho denom'!$B$2:$I$200, 8, 0) -> 0 | E45: =SUMIFS(DHIS2[Penta1], DHIS2[woreda], A45, DHIS2[month_year], $E$1)/VLOOKUP(A45, 'Helper_worho denom'!$B$2:$I$200, 8, 0) -> 0 | F45: =SUMIFS(DHIS2[Penta1], DHIS2[woreda], A45, DHIS2[month_year], $F$1)/VLOOKUP(A45, 'Helper_worho denom'!$B$2:$I$200, 8, 0) -> 0 | G45: =SUMIFS(DHIS2[Penta1], DHIS2[woreda], A45, DHIS2[month_year], $G$1)/VLOOKUP(A45, 'Helper_worho denom'!$B$2:$I$200, 8, 0) -> 0 | H45: =SUMIFS(DHIS2[Penta3], DHIS2[woreda], A45, DHIS2[month_year], $H$1)/VLOOKUP(A45,'Helper_worho denom'!$B$2:$I$200, 8, 0) -> 0 | I45: =SUMIFS(DHIS2[Penta3], DHIS2[woreda], A45, DHIS2[month_year], $I$1)/VLOOKUP(A45,'Helper_worho denom'!$B$2:$I$200, 8, 0) -> 0 | J45: =SUMIFS(DHIS2[Penta3], DHIS2[woreda], A45, DHIS2[month_year], $J$1)/VLOOKUP(A45,'Helper_worho denom'!$B$2:$I$200, 8, 0) -> 0 | K45: =SUMIFS(DHIS2[Penta3], DHIS2[woreda], A45, DHIS2[month_year], $K$1)/VLOOKUP(A45,'Helper_worho denom'!$B$2:$I$200, 8, 0) -> 0 | L45: =SUMIFS(DHIS2[Penta3], DHIS2[woreda], A45, DHIS2[month_year], $L$1)/VLOOKUP(A45,'Helper_worho denom'!$B$2:$I$200, 8, 0) -> 0 | M45: =SUMIFS(DHIS2[Penta3], DHIS2[woreda], A45, DHIS2[month_year], $M$1)/VLOOKUP(A45,'Helper_worho denom'!$B$2:$I$200, 8, 0) -> 0 | N45: N/A | O45: N/A | P45: N/A | Q45: N/A | R45: N/A | S45: N/A | T45: N/A | U45: N/A | V45: N/A | W45: N/A | X45: N/A | Y45: N/A
A46: Homosha WorHO | B46: =SUMIFS(DHIS2[Penta1], DHIS2[woreda], A46, DHIS2[month_year], $B$1)/VLOOKUP(A46, 'Helper_worho denom'!$B$2:$I$200, 8, 0) -> 0 | C46: =SUMIFS(DHIS2[Penta1], DHIS2[woreda], A46, DHIS2[month_year], $C$1)/VLOOKUP(A46, 'Helper_worho denom'!$B$2:$I$200, 8, 0) -> 0 | D46: =SUMIFS(DHIS2[Penta1], DHIS2[woreda], A46, DHIS2[month_year], $D$1)/VLOOKUP(A46, 'Helper_worho denom'!$B$2:$I$200, 8, 0) -> 0 | E46: =SUMIFS(DHIS2[Penta1], DHIS2[woreda], A46, DHIS2[month_year], $E$1)/VLOOKUP(A46, 'Helper_worho denom'!$B$2:$I$200, 8, 0) -> 0 | F46: =SUMIFS(DHIS2[Penta1], DHIS2[woreda], A46, DHIS2[month_year], $F$1)/VLOOKUP(A46, 'Helper_worho denom'!$B$2:$I$200, 8, 0) -> 0 | G46: =SUMIFS(DHIS2[Penta1], DHIS2[woreda], A46, DHIS2[month_year], $G$1)/VLOOKUP(A46, 'Helper_worho denom'!$B$2:$I$200, 8, 0) -> 0 | H46: =SUMIFS(DHIS2[Penta3], DHIS2[woreda], A46, DHIS2[month_year], $H$1)/VLOOKUP(A46,'Helper_worho denom'!$B$2:$I$200, 8, 0) -> 0 | I46: =SUMIFS(DHIS2[Penta3], DHIS2[woreda], A46, DHIS2[month_year], $I$1)/VLOOKUP(A46,'Helper_worho denom'!$B$2:$I$200, 8, 0) -> 0 | J46: =SUMIFS(DHIS2[Penta3], DHIS2[woreda], A46, DHIS2[month_year], $J$1)/VLOOKUP(A46,'Helper_worho denom'!$B$2:$I$200, 8, 0) -> 0 | K46: =SUMIFS(DHIS2[Penta3], DHIS2[woreda], A46, DHIS2[month_year], $K$1)/VLOOKUP(A46,'Helper_worho denom'!$B$2:$I$200, 8, 0) -> 0 | L46: =SUMIFS(DHIS2[Penta3], DHIS2[woreda], A46, DHIS2[month_year], $L$1)/VLOOKUP(A46,'Helper_worho denom'!$B$2:$I$200, 8, 0) -> 0 | M46: =SUMIFS(DHIS2[Penta3], DHIS2[woreda], A46, DHIS2[month_year], $M$1)/VLOOKUP(A46,'Helper_worho denom'!$B$2:$I$200, 8, 0) -> 0 | N46: N/A | O46: N/A | P46: N/A | Q46: N/A | R46: N/A | S46: N/A | T46: N/A | U46: N/A | V46: N/A | W46: N/A | X46: N/A | Y46: N/A
A47: Kamashi Primary Hospital | B47: =SUMIFS(DHIS2[Penta1], DHIS2[woreda], A47, DHIS2[month_year], $B$1)/VLOOKUP(A47, 'Helper_worho denom'!$B$2:$I$200, 8, 0) ->  | C47: =SUMIFS(DHIS2[Penta1], DHIS2[woreda], A47, DHIS2[month_year], $C$1)/VLOOKUP(A47, 'Helper_worho denom'!$B$2:$I$200, 8, 0) ->  | D47: =SUMIFS(DHIS2[Penta1], DHIS2[woreda], A47, DHIS2[month_year], $D$1)/VLOOKUP(A47, 'Helper_worho denom'!$B$2:$I$200, 8, 0) ->  | E47: =SUMIFS(DHIS2[Penta1], DHIS2[woreda], A47, DHIS2[month_year], $E$1)/VLOOKUP(A47, 'Helper_worho denom'!$B$2:$I$200, 8, 0) ->  | F47: =SUMIFS(DHIS2[Penta1], DHIS2[woreda], A47, DHIS2[month_year], $F$1)/VLOOKUP(A47, 'Helper_worho denom'!$B$2:$I$200, 8, 0) ->  | G47: =SUMIFS(DHIS2[Penta1], DHIS2[woreda], A47, DHIS2[month_year], $G$1)/VLOOKUP(A47, 'Helper_worho denom'!$B$2:$I$200, 8, 0) ->  | H47: =SUMIFS(DHIS2[Penta3], DHIS2[woreda], A47, DHIS2[month_year], $H$1)/VLOOKUP(A47,'Helper_worho denom'!$B$2:$I$200, 8, 0) ->  | I47: =SUMIFS(DHIS2[Penta3], DHIS2[woreda], A47, DHIS2[month_year], $I$1)/VLOOKUP(A47,'Helper_worho denom'!$B$2:$I$200, 8, 0) ->  | J47: =SUMIFS(DHIS2[Penta3], DHIS2[woreda], A47, DHIS2[month_year], $J$1)/VLOOKUP(A47,'Helper_worho denom'!$B$2:$I$200, 8, 0) ->  | K47: =SUMIFS(DHIS2[Penta3], DHIS2[woreda], A47, DHIS2[month_year], $K$1)/VLOOKUP(A47,'Helper_worho denom'!$B$2:$I$200, 8, 0) ->  | L47: =SUMIFS(DHIS2[Penta3], DHIS2[woreda], A47, DHIS2[month_year], $L$1)/VLOOKUP(A47,'Helper_worho denom'!$B$2:$I$200, 8, 0) ->  | M47: =SUMIFS(DHIS2[Penta3], DHIS2[woreda], A47, DHIS2[month_year], $M$1)/VLOOKUP(A47,'Helper_worho denom'!$B$2:$I$200, 8, 0) ->  | N47: N/A | O47: N/A | P47: N/A | Q47: N/A | R47: N/A | S47: N/A | T47: Missing data | U47: Missing data | V47: Missing data | W47: Missing data | X47: Missing data | Y47: Missing data
A48: Kamashi WorHO | B48: =SUMIFS(DHIS2[Penta1], DHIS2[woreda], A48, DHIS2[month_year], $B$1)/VLOOKUP(A48, 'Helper_worho denom'!$B$2:$I$200, 8, 0) -> 0 | C48: =SUMIFS(DHIS2[Penta1], DHIS2[woreda], A48, DHIS2[month_year], $C$1)/VLOOKUP(A48, 'Helper_worho denom'!$B$2:$I$200, 8, 0) -> 0 | D48: =SUMIFS(DHIS2[Penta1], DHIS2[woreda], A48, DHIS2[month_year], $D$1)/VLOOKUP(A48, 'Helper_worho denom'!$B$2:$I$200, 8, 0) -> 0 | E48: =SUMIFS(DHIS2[Penta1], DHIS2[woreda], A48, DHIS2[month_year], $E$1)/VLOOKUP(A48, 'Helper_worho denom'!$B$2:$I$200, 8, 0) -> 0 | F48: =SUMIFS(DHIS2[Penta1], DHIS2[woreda], A48, DHIS2[month_year], $F$1)/VLOOKUP(A48, 'Helper_worho denom'!$B$2:$I$200, 8, 0) -> 0 | G48: =SUMIFS(DHIS2[Penta1], DHIS2[woreda], A48, DHIS2[month_year], $G$1)/VLOOKUP(A48, 'Helper_worho denom'!$B$2:$I$200, 8, 0) -> 0 | H48: =SUMIFS(DHIS2[Penta3], DHIS2[woreda], A48, DHIS2[month_year], $H$1)/VLOOKUP(A48,'Helper_worho denom'!$B$2:$I$200, 8, 0) -> 0 | I48: =SUMIFS(DHIS2[Penta3], DHIS2[woreda], A48, DHIS2[month_year], $I$1)/VLOOKUP(A48,'Helper_worho denom'!$B$2:$I$200, 8, 0) -> 0 | J48: =SUMIFS(DHIS2[Penta3], DHIS2[woreda], A48, DHIS2[month_year], $J$1)/VLOOKUP(A48,'Helper_worho denom'!$B$2:$I$200, 8, 0) -> 0 | K48: =SUMIFS(DHIS2[Penta3], DHIS2[woreda], A48, DHIS2[month_year], $K$1)/VLOOKUP(A48,'Helper_worho denom'!$B$2:$I$200, 8, 0) -> 0 | L48: =SUMIFS(DHIS2[Penta3], DHIS2[woreda], A48, DHIS2[month_year], $L$1)/VLOOKUP(A48,'Helper_worho denom'!$B$2:$I$200, 8, 0) -> 0 | M48: =SUMIFS(DHIS2[Penta3], DHIS2[woreda], A48, DHIS2[month_year], $M$1)/VLOOKUP(A48,'Helper_worho denom'!$B$2:$I$200, 8, 0) -> 0 | N48: N/A | O48: N/A | P48: N/A | Q48: N/A | R48: N/A | S48: N/A | T48: N/A | U48: N/A | V48: N/A | W48: N/A | X48: N/A | Y48: N/A
